Workbook

Sheet Introduction
C4: Joint Monitoring Programme for Water Supply, Sanitation and Hygiene
C6: Estimates on household water, sanitation and hygiene by wealth quintile and sub-national region in
C7: =+Water!B5 -> Mauritania
C9: Updated May 2021
C11: Follow the links below to find the following information:
C13: JMP Estimates
C14: WASH status and trends by wealth quintile (customized quintiles made without water and sanitation assets)
C15: Water
C16: Sanitation
C17: Hygiene
C19: Data inputs
C20: customized wealth quintiles and subnational data:
C21: =IF(INDIRECT(CONCATENATE("Water","!B105"))=0,"",INDIRECT(CONCATENATE("Water","!B105"))) -> WHS03
C22: =IF(INDIRECT(CONCATENATE("Water","!B106"))=0,"",INDIRECT(CONCATENATE("Water","!B106"))) -> MICS07
C23: =IF(INDIRECT(CONCATENATE("Water","!B107"))=0,"",INDIRECT(CONCATENATE("Water","!B107"))) -> MICS11
C24: =IF(INDIRECT(CONCATENATE("Water","!B108"))=0,"",INDIRECT(CONCATENATE("Water","!B108"))) -> MICS15
C25: =IF(INDIRECT(CONCATENATE("Water","!B109"))=0,"",INDIRECT(CONCATENATE("Water","!B109"))) -> 
C26: =IF(INDIRECT(CONCATENATE("Water","!B110"))=0,"",INDIRECT(CONCATENATE("Water","!B110"))) -> 
C27: =IF(INDIRECT(CONCATENATE("Water","!B111"))=0,"",INDIRECT(CONCATENATE("Water","!B111"))) -> 
C28: =IF(INDIRECT(CONCATENATE("Water","!B112"))=0,"",INDIRECT(CONCATENATE("Water","!B112"))) -> 
C29: =IF(INDIRECT(CONCATENATE("Water","!B113"))=0,"",INDIRECT(CONCATENATE("Water","!B113"))) -> 
C30: =IF(INDIRECT(CONCATENATE("Water","!B114"))=0,"",INDIRECT(CONCATENATE("Water","!B114"))) -> 
C31: =IF(INDIRECT(CONCATENATE("Water","!B115"))=0,"",INDIRECT(CONCATENATE("Water","!B115"))) -> 
C32: =IF(INDIRECT(CONCATENATE("Water","!B116"))=0,"",INDIRECT(CONCATENATE("Water","!B116"))) -> 
L55: =+IF(ISNUMBER(M48), "", "Insufficient data to estimate safely managed sanitation services at national level") -> Insufficient data to estimate safely managed sanitation services at national level

Sheet Water
A1: BGD
B4: Summary of trends in use of drinking water by wealth quintile (%)
B5: =IF(ISERROR(INDIRECT(CONCATENATE($B105,"!A2"))),"",INDIRECT(CONCATENATE($B105,"!A2"))) -> Mauritania
B7: =B118 -> National use of drinking water sources, 2000–2020 | J7: =B218 -> Urban use of drinking water sources, 2000–2020 | R7: =B318 -> Rural use of drinking water sources, 2000–2020
B31: =IF(ISERROR(INDIRECT(CONCATENATE($B105,"!A2"))),"",INDIRECT(CONCATENATE($B105,"!A2"))) -> Mauritania | F31: Poorest | J31: Poor | N31: Middle | R31: Rich | V31: Richest
F32: Basic | G32: Limited | H32: Unimproved | I32: Surface water | J32: Basic | K32: Limited | L32: Unimproved | M32: Surface water | N32: Basic | O32: Limited | P32: Unimproved | Q32: Surface water | R32: Basic | S32: Limited | T32: Unimproved | U32: Surface water | V32: Basic | W32: Limited | X32: Unimproved | Y32: Surface water
B33: NATIONAL | D33: Estimate | E33: =C99 -> 2000 | F33: =E99 -> 20.99309002 | G33: =F99 -> 15.92767461 | H33: 59.03682687 | I33: 4.042408503 | J33: =J99 -> 24.13587665 | K33: =K99 -> 11.3784493 | L33: 61.33795587 | M33: 3.147718176 | N33: =O99 -> 49.8144199 | O33: =P99 -> 13.60493513 | P33: 34.56418886 | Q33: 2.016456108 | R33: =T99 -> 71.16130366 | S33: =U99 -> 13.91226888 | T33: 7.386080519 | U33: 7.54034694 | V33: =Y99 -> 79.74310737 | W33: =Z99 -> 13.27120945 | X33: 2.801723572 | Y33: 4.183959604
E34: =C100 -> 2020 | F34: =E100 -> 33.54471209 | G34: 25.45072014 | H34: 38.73400351 | I34: 2.270564265 | J34: =J100 -> 47.84927544 | K34: 22.55772858 | L34: 27.27449488 | M34: 2.318501101 | N34: =O100 -> 68.28172616 | O34: 18.64858522 | P34: 12.64802384 | Q34: 0.4216647736 | R34: =T100 -> 83.64677953 | S34: 16.35322047 | T34: 0 | U34: 0 | V34: =Y100 -> 85.73207877 | W34: 14.26792123 | X34: 0 | Y34: 0
B36: URBAN | D36: Estimate | E36: =C199 -> 2000 | F36: =E199 -> 57.36142921 | G36: =F199 -> 17.17632721 | H36: 22.35523825 | I36: 3.107005329 | J36: =J199 -> 69.90220132 | K36: =K199 -> 15.35657017 | L36: 6.960854051 | M36: 7.780374457 | N36: =O199 -> 74.51077202 | O36: =P199 -> 14.64174524 | P36: 1.667160758 | Q36: 9.18032198 | R36: =T199 -> 78.38119796 | S36: =U199 -> 14.3866075 | T36: 3.250456714 | U36: 3.981737832 | V36: =Y199 -> 83.15869661 | W36: =Z199 -> 12.1240348 | X36: 1.18864923 | Y36: 3.528619359
E37: =C200 -> 2020 | F37: =E200 -> 73.87365481 | G37: 22.12075405 | H37: 4.005591142 | I37: 0 | J37: =J200 -> 81.9882812 | K37: 18.0117188 | L37: 0 | M37: 0 | N37: =O200 -> 83.57674501 | O37: 16.42325499 | P37: 0 | Q37: 0 | R37: =T200 -> 84.49181003 | S37: 15.50818997 | T37: 0 | U37: 0 | V37: =Y200 -> 87.27572707 | W37: 12.72427293 | X37: 0 | Y37: 0
B39: RURAL | D39: Estimate | E39: =C299 -> 2000 | F39: =E299 -> 17.95634067 | G39: =F299 -> 15.05732279 | H39: 62.14000089 | I39: 4.846335652 | J39: =J299 -> 19.51852119 | K39: =K299 -> 13.53643306 | L39: 63.42045961 | M39: 3.524586131 | N39: =O299 -> 21.66277762 | O39: =P299 -> 10.23408384 | P39: 64.17723824 | Q39: 3.925900294 | R39: =T299 -> 38.03923203 | S39: =U299 -> 13.27365843 | T39: 47.04506064 | U39: 1.64204889 | V39: =Y299 -> 53.75220461 | W39: =Z299 -> 12.21263219 | X39: 32.55439024 | Y39: 1.480772967
E40: =C300 -> 2020 | F40: =E300 -> 31.04141511 | G40: 26.02983625 | H40: 41.0451043 | I40: 1.883644337 | J40: =J300 -> 35.35425732 | K40: 24.51879079 | L40: 36.47638735 | M40: 3.65056455 | N40: =O300 -> 45.19554354 | O40: 21.35160089 | P40: 31.21682579 | Q40: 2.236029778 | R40: =T300 -> 53.21700611 | S40: 18.5698902 | T40: 26.70493463 | U40: 1.508169069 | V40: =Y300 -> 75.63820335 | W40: 17.18518456 | X40: 7.176612083 | Y40: 0
A97: NATIONAL | D97: Poorest | I97: Poor | N97: Middle | S97: Rich | X97: Richest
D98: Improved | E98: Basic | F98: Limited | G98: Unimproved | H98: Surface water | I98: Improved | J98: Basic | K98: Limited | L98: Unimproved | M98: Surface water | N98: Improved | O98: Basic | P98: Limited | Q98: Unimproved | R98: Surface water | S98: Improved | T98: Basic | U98: Limited | V98: Unimproved | W98: Surface water | X98: Improved | Y98: Basic | Z98: Limited | AA98: Unimproved | AB98: Surface water
A99: Forecast period: | C99: 2000 | D99: =IF((D101+H101)>100,D101*100/(D101+H101),D101) -> 36.92076463 | E99: =D99*AVERAGEIF(E105:E116,">0")/100 -> 20.99309002 | F99: =D99*(100-AVERAGEIF(E105:E116,">0"))/100 -> 15.92767461 | G99: =100-(E99+F99+H99) -> 59.03682687 | H99: =IF((D101+H101)>100,H101*100/(D101+H101),H101) -> 4.042408503 | I99: =IF((I101+M101)>100,I101*100/(I101+M101),I101) -> 35.51432596 | J99: =I99*AVERAGEIF(J105:J116,">0")/100 -> 24.13587665 | K99: =I99*(100-AVERAGEIF(J105:J116,">0"))/100 -> 11.3784493 | L99: =100-(J99+K99+M99) -> 61.33795587 | M99: =IF((I101+M101)>100,M101*100/(I101+M101),M101) -> 3.147718176 | N99: =IF((N101+R101)>100,N101*100/(N101+R101),N101) -> 63.41935503 | O99: =N99*AVERAGEIF(O105:O116,">0")/100 -> 49.8144199 | P99: =N99*(100-AVERAGEIF(O105:O116,">0"))/100 -> 13.60493513 | Q99: =100-(O99+P99+R99) -> 34.56418886 | R99: =IF((N101+R101)>100,R101*100/(N101+R101),R101) -> 2.016456108 | S99: =IF((S101+W101)>100,S101*100/(S101+W101),S101) -> 85.07357254 | T99: =S99*AVERAGEIF(T105:T116,">0")/100 -> 71.16130366 | U99: =S99*(100-AVERAGEIF(T105:T116,">0"))/100 -> 13.91226888 | V99: =100-(T99+U99+W99) -> 7.386080519 | W99: =IF((S101+W101)>100,W101*100/(S101+W101),W101) -> 7.54034694 | X99: =IF((X101+AB101)>100,X101*100/(X101+AB101),X101) -> 93.01431682 | Y99: =X99*AVERAGEIF(Y105:Y116,">0")/100 -> 79.74310737 | Z99: =X99*(100-AVERAGEIF(Y105:Y116,">0"))/100 -> 13.27120945 | AA99: =100-(Y99+Z99+AB99) -> 2.801723572 | AB99: =IF((X101+AB101)>100,AB101*100/(X101+AB101),AB101) -> 4.183959604
C100: 2020 | D100: =IF((D102+H102)>100,D102*100/(D102+H102),D102) -> 58.99543223 | E100: =D100*AVERAGEIF(E105:E116,">0")/100 -> 33.54471209 | F100: =D100*(100-AVERAGEIF(E105:E116,">0"))/100 -> 25.45072014 | G100: =100-(E100+F100+H100) -> 38.73400351 | H100: =IF((D102+H102)>100,H102*100/(D102+H102),H102) -> 2.270564265 | I100: =IF((I102+M102)>100,I102*100/(I102+M102),I102) -> 70.40700402 | J100: =I100*AVERAGEIF(J105:J116,">0")/100 -> 47.84927544 | K100: =I100*(100-AVERAGEIF(J105:J116,">0"))/100 -> 22.55772858 | L100: =100-(J100+K100+M100) -> 27.27449488 | M100: =IF((I102+M102)>100,M102*100/(I102+M102),M102) -> 2.318501101 | N100: =IF((N102+R102)>100,N102*100/(N102+R102),N102) -> 86.93031139 | O100: =N100*AVERAGEIF(O105:O116,">0")/100 -> 68.28172616 | P100: =N100*(100-AVERAGEIF(O105:O116,">0"))/100 -> 18.64858522 | Q100: =100-(O100+P100+R100) -> 12.64802384 | R100: =IF((N102+R102)>100,R102*100/(N102+R102),R102) -> 0.4216647736 | S100: =IF((S102+W102)>100,S102*100/(S102+W102),S102) -> 100 | T100: =S100*AVERAGEIF(T105:T116,">0")/100 -> 83.64677953 | U100: =S100*(100-AVERAGEIF(T105:T116,">0"))/100 -> 16.35322047 | V100: =100-(T100+U100+W100) -> 0 | W100: =IF((S102+W102)>100,W102*100/(S102+W102),W102) -> 0 | X100: =IF((X102+AB102)>100,X102*100/(X102+AB102),X102) -> 100 | Y100: =X100*AVERAGEIF(Y105:Y116,">0")/100 -> 85.73207877 | Z100: =X100*(100-AVERAGEIF(Y105:Y116,">0"))/100 -> 14.26792123 | AA100: =100-(Y100+Z100+AB100) -> 0 | AB100: =IF((X102+AB102)>100,AB102*100/(X102+AB102),AB102) -> 0
A101: Regression period: | C101: =MinRegYear(C99,C105:C116) -> 2001 | D101: =IF(MAX(C105:C116)-MIN(C105:C116)<5,AVERAGEIF(C105:C116,">0",D105:D116), IF(FORECAST($C101,D$105:D$116,$C$105:$C$116)<0,0, IF(FORECAST($C101,D$105:D$116,$C$105:$C$116)>100,100, FORECAST($C101,D$105:D$116,$C$105:$C$116)))) -> 36.92076463 | H101: =IF(MAX(C105:C116)-MIN(C105:C116)<5,AVERAGEIF(C105:C116,">0",H105:H116), IF(FORECAST($C101,H$105:H$116,$C$105:$C$116)<0,0, IF(FORECAST($C101,H$105:H$116,$C$105:$C$116)>100,100, FORECAST($C101,H$105:H$116,$C$105:$C$116)))) -> 4.042408503 | I101: =IF(MAX(C105:C116)-MIN(C105:C116)<5,AVERAGEIF(C105:C116,">0",I105:I116), IF(FORECAST($C101,I$105:I$116,$C$105:$C$116)<0,0, IF(FORECAST($C101,I$105:I$116,$C$105:$C$116)>100,100, FORECAST($C101,I$105:I$116,$C$105:$C$116)))) -> 35.51432596 | M101: =IF(MAX(C105:C116)-MIN(C105:C116)<5,AVERAGEIF(C105:C116,">0",M105:M116), IF(FORECAST($C101,M$105:M$116,$C$105:$C$116)<0,0, IF(FORECAST($C101,M$105:M$116,$C$105:$C$116)>100,100, FORECAST($C101,M$105:M$116,$C$105:$C$116)))) -> 3.147718176 | N101: =IF(MAX(C105:C116)-MIN(C105:C116)<5,AVERAGEIF(C105:C116,">0",N105:N116), IF(FORECAST($C101,N$105:N$116,$C$105:$C$116)<0,0, IF(FORECAST($C101,N$105:N$116,$C$105:$C$116)>100,100, FORECAST($C101,N$105:N$116,$C$105:$C$116)))) -> 63.41935503 | R101: =IF(MAX(C105:C116)-MIN(C105:C116)<5,AVERAGEIF(C105:C116,">0",R105:R116), IF(FORECAST($C101,R$105:R$116,$C$105:$C$116)<0,0, IF(FORECAST($C101,R$105:R$116,$C$105:$C$116)>100,100, FORECAST($C101,R$105:R$116,$C$105:$C$116)))) -> 2.016456108 | S101: =IF(MAX(C105:C116)-MIN(C105:C116)<5,AVERAGEIF(C105:C116,">0",S105:S116), IF(FORECAST($C101,S$105:S$116,$C$105:$C$116)<0,0, IF(FORECAST($C101,S$105:S$116,$C$105:$C$116)>100,100, FORECAST($C101,S$105:S$116,$C$105:$C$116)))) -> 85.07357254 | W101: =IF(MAX(C105:C116)-MIN(C105:C116)<5,AVERAGEIF(C105:C116,">0",W105:W116), IF(FORECAST($C101,W$105:W$116,$C$105:$C$116)<0,0, IF(FORECAST($C101,W$105:W$116,$C$105:$C$116)>100,100, FORECAST($C101,W$105:W$116,$C$105:$C$116)))) -> 7.54034694 | X101: =IF(MAX(C105:C116)-MIN(C105:C116)<5,AVERAGEIF(C105:C116,">0",X105:X116), IF(FORECAST($C101,X$105:X$116,$C$105:$C$116)<0,0, IF(FORECAST($C101,X$105:X$116,$C$105:$C$116)>100,100, FORECAST($C101,X$105:X$116,$C$105:$C$116)))) -> 93.01431682 | AB101: =IF(MAX(C105:C116)-MIN(C105:C116)<5,AVERAGEIF(C105:C116,">0",AB105:AB116), IF(FORECAST($C101,AB$105:AB$116,$C$105:$C$116)<0,0, IF(FORECAST($C101,AB$105:AB$116,$C$105:$C$116)>100,100, FORECAST($C101,AB$105:AB$116,$C$105:$C$116)))) -> 4.183959604
C102: =MaxRegYear(C100,C105:C116) -> 2017 | D102: =IF(MAX(C105:C116)-MIN(C105:C116)<5,AVERAGEIF(C105:C116,">0",D105:D116), IF(FORECAST($C102,D$105:D$116,$C$105:$C$116)<0,0, IF(FORECAST($C102,D$105:D$116,$C$105:$C$116)>100,100, FORECAST($C102,D$105:D$116,$C$105:$C$116)))) -> 58.99543223 | H102: =IF(MAX(C105:C116)-MIN(C105:C116)<5,AVERAGEIF(C105:C116,">0",H105:H116), IF(FORECAST($C102,H$105:H$116,$C$105:$C$116)<0,0, IF(FORECAST($C102,H$105:H$116,$C$105:$C$116)>100,100, FORECAST($C102,H$105:H$116,$C$105:$C$116)))) -> 2.270564265 | I102: =IF(MAX(C105:C116)-MIN(C105:C116)<5,AVERAGEIF(C105:C116,">0",I105:I116), IF(FORECAST($C102,I$105:I$116,$C$105:$C$116)<0,0, IF(FORECAST($C102,I$105:I$116,$C$105:$C$116)>100,100, FORECAST($C102,I$105:I$116,$C$105:$C$116)))) -> 70.40700402 | M102: =IF(MAX(C105:C116)-MIN(C105:C116)<5,AVERAGEIF(C105:C116,">0",M105:M116), IF(FORECAST($C102,M$105:M$116,$C$105:$C$116)<0,0, IF(FORECAST($C102,M$105:M$116,$C$105:$C$116)>100,100, FORECAST($C102,M$105:M$116,$C$105:$C$116)))) -> 2.318501101 | N102: =IF(MAX(C105:C116)-MIN(C105:C116)<5,AVERAGEIF(C105:C116,">0",N105:N116), IF(FORECAST($C102,N$105:N$116,$C$105:$C$116)<0,0, IF(FORECAST($C102,N$105:N$116,$C$105:$C$116)>100,100, FORECAST($C102,N$105:N$116,$C$105:$C$116)))) -> 86.93031139 | R102: =IF(MAX(C105:C116)-MIN(C105:C116)<5,AVERAGEIF(C105:C116,">0",R105:R116), IF(FORECAST($C102,R$105:R$116,$C$105:$C$116)<0,0, IF(FORECAST($C102,R$105:R$116,$C$105:$C$116)>100,100, FORECAST($C102,R$105:R$116,$C$105:$C$116)))) -> 0.4216647736 | S102: =IF(MAX(C105:C116)-MIN(C105:C116)<5,AVERAGEIF(C105:C116,">0",S105:S116), IF(FORECAST($C102,S$105:S$116,$C$105:$C$116)<0,0, IF(FORECAST($C102,S$105:S$116,$C$105:$C$116)>100,100, FORECAST($C102,S$105:S$116,$C$105:$C$116)))) -> 100 | W102: =IF(MAX(C105:C116)-MIN(C105:C116)<5,AVERAGEIF(C105:C116,">0",W105:W116), IF(FORECAST($C102,W$105:W$116,$C$105:$C$116)<0,0, IF(FORECAST($C102,W$105:W$116,$C$105:$C$116)>100,100, FORECAST($C102,W$105:W$116,$C$105:$C$116)))) -> 0 | X102: =IF(MAX(C105:C116)-MIN(C105:C116)<5,AVERAGEIF(C105:C116,">0",X105:X116), IF(FORECAST($C102,X$105:X$116,$C$105:$C$116)<0,0, IF(FORECAST($C102,X$105:X$116,$C$105:$C$116)>100,100, FORECAST($C102,X$105:X$116,$C$105:$C$116)))) -> 100 | AB102: =IF(MAX(C105:C116)-MIN(C105:C116)<5,AVERAGEIF(C105:C116,">0",AB105:AB116), IF(FORECAST($C102,AB$105:AB$116,$C$105:$C$116)<0,0, IF(FORECAST($C102,AB$105:AB$116,$C$105:$C$116)>100,100, FORECAST($C102,AB$105:AB$116,$C$105:$C$116)))) -> 0
B104: Survey | C104: Year | D104: Improved | E104: % Improved < = 30min | H104: Surface water | I104: Improved | J104: % Improved < = 30min | M104: Surface water | N104: Improved | O104: % Improved < = 30min | R104: Surface water | S104: Improved | T104: % Improved < = 30min | W104: Surface water | X104: Improved | Y104: % Improved < = 30min | AB104: Surface water
B105: WHS03 | C105: 2003 | D105: =IF(ISERROR(INDIRECT(CONCATENATE($B105,"!C16"))),"",INDIRECT(CONCATENATE($B105,"!C16"))) -> 40.54110135 | E105: =IF(ISERROR(INDIRECT(CONCATENATE($B105,"!C23"))),"",INDIRECT(CONCATENATE($B105,"!C23"))) -> 67.43611322 | H105: =IF(ISERROR(INDIRECT(CONCATENATE($B105,"!C21"))),"",INDIRECT(CONCATENATE($B105,"!C21"))) -> 3.054355812 | I105: =IF(ISERROR(INDIRECT(CONCATENATE($B105,"!D16"))),"",INDIRECT(CONCATENATE($B105,"!D16"))) -> 40.09479703 | J105: =IF(ISERROR(INDIRECT(CONCATENATE($B105,"!D23"))),"",INDIRECT(CONCATENATE($B105,"!D23"))) -> 65.17270445 | M105: =IF(ISERROR(INDIRECT(CONCATENATE($B105,"!D21"))),"",INDIRECT(CONCATENATE($B105,"!D21"))) -> 1.641796329 | N105: =IF(ISERROR(INDIRECT(CONCATENATE($B105,"!E16"))),"",INDIRECT(CONCATENATE($B105,"!E16"))) -> 65.23650642 | O105: =IF(ISERROR(INDIRECT(CONCATENATE($B105,"!E23"))),"",INDIRECT(CONCATENATE($B105,"!E23"))) -> 66.90072304 | R105: =IF(ISERROR(INDIRECT(CONCATENATE($B105,"!E21"))),"",INDIRECT(CONCATENATE($B105,"!E21"))) -> 2.485501373 | S105: =IF(ISERROR(INDIRECT(CONCATENATE($B105,"!F16"))),"",INDIRECT(CONCATENATE($B105,"!F16"))) -> 84.06059749 | T105: =IF(ISERROR(INDIRECT(CONCATENATE($B105,"!F23"))),"",INDIRECT(CONCATENATE($B105,"!F23"))) -> 61.97726618 | W105: =IF(ISERROR(INDIRECT(CONCATENATE($B105,"!F21"))),"",INDIRECT(CONCATENATE($B105,"!F21"))) -> 8.924969256 | X105: =IF(ISERROR(INDIRECT(CONCATENATE($B105,"!G16"))),"",INDIRECT(CONCATENATE($B105,"!G16"))) -> 91.99907796 | Y105: =IF(ISERROR(INDIRECT(CONCATENATE($B105,"!G23"))),"",INDIRECT(CONCATENATE($B105,"!G23"))) -> 57.44268533 | AB105: =IF(ISERROR(INDIRECT(CONCATENATE($B105,"!G221"))),"",INDIRECT(CONCATENATE($B105,"!G21"))) -> 5.080752933
B106: MICS07 | C106: 2007 | D106: 47.80430279 | E106: 46.90556481 | H106: 4.647034296 | I106: 50.82890168 | J106: 60.08688976 | M106: 4.824076302 | N106: 75.0862155 | O106: 79.09468253 | R106: 0.395728714 | S106: 95.76169574 | T106: 95.00909439 | W106: 0 | X106: 98.68654512 | Y106: 97.31159392 | AB106: 0.03267671548
B107: MICS11 | C107: 2011 | D107: 42.92334646 | E107: 56.87336252 | H107: 2.696587575 | I107: 52.2059479 | J107: 74.88923014 | M107: 2.861637581 | N107: 75.77835355 | O107: 83.34351665 | R107: 1.059890266 | S107: 95.74046174 | T107: 86.8585432 | W107: 0.01662264171 | X107: 99.27887621 | Y107: 91.91503196 | AB107: 0
B108: MICS15 | C108: 2015 | D108: 60.56364312 | E108: 56.22434466 | H108: 2.227967854 | I108: 68.71301334 | J108: 71.69501336 | M108: 1.60492834 | N108: 84.59825736 | O108: 84.85172118 | R108: 0.9351214102 | S108: 97.87920428 | T108: 90.74221434 | W108: 0.1334515985 | X108: 98.73653874 | Y108: 96.25900388 | AB108: 0.4268140297
D111: =IF(ISERROR(INDIRECT(CONCATENATE($B111,"!C16"))),"",INDIRECT(CONCATENATE($B111,"!C16"))) ->  | E111: =IF(ISERROR(INDIRECT(CONCATENATE($B111,"!C23"))),"",INDIRECT(CONCATENATE($B111,"!C23"))) ->  | H111: =IF(ISERROR(INDIRECT(CONCATENATE($B111,"!C21"))),"",INDIRECT(CONCATENATE($B111,"!C21"))) ->  | I111: =IF(ISERROR(INDIRECT(CONCATENATE($B111,"!D16"))),"",INDIRECT(CONCATENATE($B111,"!D16"))) ->  | J111: =IF(ISERROR(INDIRECT(CONCATENATE($B111,"!D23"))),"",INDIRECT(CONCATENATE($B111,"!D23"))) ->  | M111: =IF(ISERROR(INDIRECT(CONCATENATE($B111,"!D21"))),"",INDIRECT(CONCATENATE($B111,"!D21"))) ->  | N111: =IF(ISERROR(INDIRECT(CONCATENATE($B111,"!E16"))),"",INDIRECT(CONCATENATE($B111,"!E16"))) ->  | O111: =IF(ISERROR(INDIRECT(CONCATENATE($B111,"!E23"))),"",INDIRECT(CONCATENATE($B111,"!E23"))) ->  | R111: =IF(ISERROR(INDIRECT(CONCATENATE($B111,"!E21"))),"",INDIRECT(CONCATENATE($B111,"!E21"))) ->  | S111: =IF(ISERROR(INDIRECT(CONCATENATE($B111,"!F16"))),"",INDIRECT(CONCATENATE($B111,"!F16"))) ->  | T111: =IF(ISERROR(INDIRECT(CONCATENATE($B111,"!F23"))),"",INDIRECT(CONCATENATE($B111,"!F23"))) ->  | W111: =IF(ISERROR(INDIRECT(CONCATENATE($B111,"!F21"))),"",INDIRECT(CONCATENATE($B111,"!F21"))) ->  | X111: =IF(ISERROR(INDIRECT(CONCATENATE($B111,"!G16"))),"",INDIRECT(CONCATENATE($B111,"!G16"))) ->  | Y111: =IF(ISERROR(INDIRECT(CONCATENATE($B111,"!G23"))),"",INDIRECT(CONCATENATE($B111,"!G23"))) ->  | AB111: =IF(ISERROR(INDIRECT(CONCATENATE($B111,"!G221"))),"",INDIRECT(CONCATENATE($B111,"!G21"))) -> 
D112: =IF(ISERROR(INDIRECT(CONCATENATE($B112,"!C16"))),"",INDIRECT(CONCATENATE($B112,"!C16"))) ->  | E112: =IF(ISERROR(INDIRECT(CONCATENATE($B112,"!C23"))),"",INDIRECT(CONCATENATE($B112,"!C23"))) ->  | H112: =IF(ISERROR(INDIRECT(CONCATENATE($B112,"!C21"))),"",INDIRECT(CONCATENATE($B112,"!C21"))) ->  | I112: =IF(ISERROR(INDIRECT(CONCATENATE($B112,"!D16"))),"",INDIRECT(CONCATENATE($B112,"!D16"))) ->  | J112: =IF(ISERROR(INDIRECT(CONCATENATE($B112,"!D23"))),"",INDIRECT(CONCATENATE($B112,"!D23"))) ->  | M112: =IF(ISERROR(INDIRECT(CONCATENATE($B112,"!D21"))),"",INDIRECT(CONCATENATE($B112,"!D21"))) ->  | N112: =IF(ISERROR(INDIRECT(CONCATENATE($B112,"!E16"))),"",INDIRECT(CONCATENATE($B112,"!E16"))) ->  | O112: =IF(ISERROR(INDIRECT(CONCATENATE($B112,"!E23"))),"",INDIRECT(CONCATENATE($B112,"!E23"))) ->  | R112: =IF(ISERROR(INDIRECT(CONCATENATE($B112,"!E21"))),"",INDIRECT(CONCATENATE($B112,"!E21"))) ->  | S112: =IF(ISERROR(INDIRECT(CONCATENATE($B112,"!F16"))),"",INDIRECT(CONCATENATE($B112,"!F16"))) ->  | T112: =IF(ISERROR(INDIRECT(CONCATENATE($B112,"!F23"))),"",INDIRECT(CONCATENATE($B112,"!F23"))) ->  | W112: =IF(ISERROR(INDIRECT(CONCATENATE($B112,"!F21"))),"",INDIRECT(CONCATENATE($B112,"!F21"))) ->  | X112: =IF(ISERROR(INDIRECT(CONCATENATE($B112,"!G16"))),"",INDIRECT(CONCATENATE($B112,"!G16"))) ->  | Y112: =IF(ISERROR(INDIRECT(CONCATENATE($B112,"!G23"))),"",INDIRECT(CONCATENATE($B112,"!G23"))) ->  | AB112: =IF(ISERROR(INDIRECT(CONCATENATE($B112,"!G221"))),"",INDIRECT(CONCATENATE($B112,"!G21"))) -> 
B118: =CONCATENATE("National use of drinking water sources, ",C99,"–",C100) -> National use of drinking water sources, 2000–2020 | S118: Data points used for regression
E153: =IF(ISERROR(INDIRECT(CONCATENATE($B153,"!M18"))),"",INDIRECT(CONCATENATE($B153,"!M18"))) ->  | F153: =IF(ISERROR(INDIRECT(CONCATENATE($B153,"!M19"))),"",INDIRECT(CONCATENATE($B153,"!M19"))) ->  | G153: =IF(ISERROR(INDIRECT(CONCATENATE($B153,"!M20"))),"",INDIRECT(CONCATENATE($B153,"!M20"))) ->  | H153: =IF(ISERROR(INDIRECT(CONCATENATE($B153,"!M21"))),"",INDIRECT(CONCATENATE($B153,"!M21"))) ->  | J153: =IF(ISERROR(INDIRECT(CONCATENATE($B153,"!N18"))),"",INDIRECT(CONCATENATE($B153,"!N18"))) ->  | K153: =IF(ISERROR(INDIRECT(CONCATENATE($B153,"!N19"))),"",INDIRECT(CONCATENATE($B153,"!N19"))) ->  | L153: =IF(ISERROR(INDIRECT(CONCATENATE($B153,"!N20"))),"",INDIRECT(CONCATENATE($B153,"!N20"))) ->  | M153: =IF(ISERROR(INDIRECT(CONCATENATE($B153,"!N21"))),"",INDIRECT(CONCATENATE($B153,"!N21"))) ->  | O153: =IF(ISERROR(INDIRECT(CONCATENATE($B153,"!O18"))),"",INDIRECT(CONCATENATE($B153,"!O18"))) ->  | P153: =IF(ISERROR(INDIRECT(CONCATENATE($B153,"!O19"))),"",INDIRECT(CONCATENATE($B153,"!O19"))) ->  | Q153: =IF(ISERROR(INDIRECT(CONCATENATE($B153,"!O20"))),"",INDIRECT(CONCATENATE($B153,"!O20"))) ->  | R153: =IF(ISERROR(INDIRECT(CONCATENATE($B153,"!O21"))),"",INDIRECT(CONCATENATE($B153,"!O21"))) ->  | T153: =IF(ISERROR(INDIRECT(CONCATENATE($B153,"!P18"))),"",INDIRECT(CONCATENATE($B153,"!P18"))) ->  | U153: =IF(ISERROR(INDIRECT(CONCATENATE($B153,"!P19"))),"",INDIRECT(CONCATENATE($B153,"!P19"))) ->  | V153: =IF(ISERROR(INDIRECT(CONCATENATE($B153,"!P20"))),"",INDIRECT(CONCATENATE($B153,"!P20"))) ->  | W153: =IF(ISERROR(INDIRECT(CONCATENATE($B153,"!P21"))),"",INDIRECT(CONCATENATE($B153,"!P21"))) ->  | Y153: =IF(ISERROR(INDIRECT(CONCATENATE($B153,"!Q18"))),"",INDIRECT(CONCATENATE($B153,"!Q18"))) ->  | Z153: =IF(ISERROR(INDIRECT(CONCATENATE($B153,"!Q19"))),"",INDIRECT(CONCATENATE($B153,"!Q19"))) ->  | AA153: =IF(ISERROR(INDIRECT(CONCATENATE($B153,"!Q20"))),"",INDIRECT(CONCATENATE($B153,"!Q20"))) ->  | AB153: =IF(ISERROR(INDIRECT(CONCATENATE($B153,"!Q21"))),"",INDIRECT(CONCATENATE($B153,"!Q1"))) -> 
A197: URBAN | D197: Poorest | I197: Poor | N197: Middle | S197: Rich | X197: Richest
D198: Improved | E198: Basic | F198: Limited | G198: Unimproved | H198: Surface water | I198: Improved | J198: Basic | K198: Limited | L198: Unimproved | M198: Surface water | N198: Improved | O198: Basic | P198: Limited | Q198: Unimproved | R198: Surface water | S198: Improved | T198: Basic | U198: Limited | V198: Unimproved | W198: Surface water | X198: Improved | Y198: Basic | Z198: Limited | AA198: Unimproved | AB198: Surface water
A199: Forecast period: | C199: 2000 | D199: =IF((D201+H201)>100,D201*100/(D201+H201),D201) -> 74.53775642 | E199: =D199*AVERAGEIF(E205:E216,">0")/100 -> 57.36142921 | F199: =D199*(100-AVERAGEIF(E205:E216,">0"))/100 -> 17.17632721 | G199: =100-(E199+F199+H199) -> 22.35523825 | H199: =IF((D201+H201)>100,H201*100/(D201+H201),H201) -> 3.107005329 | I199: =IF((I201+M201)>100,I201*100/(I201+M201),I201) -> 85.25877149 | J199: =I199*AVERAGEIF(J205:J216,">0")/100 -> 69.90220132 | K199: =I199*(100-AVERAGEIF(J205:J216,">0"))/100 -> 15.35657017 | L199: =100-(J199+K199+M199) -> 6.960854051 | M199: =IF((I201+M201)>100,M201*100/(I201+M201),M201) -> 7.780374457 | N199: =IF((N201+R201)>100,N201*100/(N201+R201),N201) -> 89.15251726 | O199: =N199*AVERAGEIF(O205:O216,">0")/100 -> 74.51077202 | P199: =N199*(100-AVERAGEIF(O205:O216,">0"))/100 -> 14.64174524 | Q199: =100-(O199+P199+R199) -> 1.667160758 | R199: =IF((N201+R201)>100,R201*100/(N201+R201),R201) -> 9.18032198 | S199: =IF((S201+W201)>100,S201*100/(S201+W201),S201) -> 92.76780545 | T199: =S199*AVERAGEIF(T205:T216,">0")/100 -> 78.38119796 | U199: =S199*(100-AVERAGEIF(T205:T216,">0"))/100 -> 14.3866075 | V199: =100-(T199+U199+W199) -> 3.250456714 | W199: =IF((S201+W201)>100,W201*100/(S201+W201),W201) -> 3.981737832 | X199: =IF((X201+AB201)>100,X201*100/(X201+AB201),X201) -> 95.28273141 | Y199: =X199*AVERAGEIF(Y205:Y216,">0")/100 -> 83.15869661 | Z199: =X199*(100-AVERAGEIF(Y205:Y216,">0"))/100 -> 12.1240348 | AA199: =100-(Y199+Z199+AB199) -> 1.18864923 | AB199: =IF((X201+AB201)>100,AB201*100/(X201+AB201),AB201) -> 3.528619359
C200: 2020 | D200: =IF((D202+H202)>100,D202*100/(D202+H202),D202) -> 95.99440886 | E200: =D200*AVERAGEIF(E205:E216,">0")/100 -> 73.87365481 | F200: =D200*(100-AVERAGEIF(E205:E216,">0"))/100 -> 22.12075405 | G200: =100-(E200+F200+H200) -> 4.005591142 | H200: =IF((D202+H202)>100,H202*100/(D202+H202),H202) -> 0 | I200: =IF((I202+M202)>100,I202*100/(I202+M202),I202) -> 100 | J200: =I200*AVERAGEIF(J205:J216,">0")/100 -> 81.9882812 | K200: =I200*(100-AVERAGEIF(J205:J216,">0"))/100 -> 18.0117188 | L200: =100-(J200+K200+M200) -> 0 | M200: =IF((I202+M202)>100,M202*100/(I202+M202),M202) -> 0 | N200: =IF((N202+R202)>100,N202*100/(N202+R202),N202) -> 100 | O200: =N200*AVERAGEIF(O205:O216,">0")/100 -> 83.57674501 | P200: =N200*(100-AVERAGEIF(O205:O216,">0"))/100 -> 16.42325499 | Q200: =100-(O200+P200+R200) -> 0 | R200: =IF((N202+R202)>100,R202*100/(N202+R202),R202) -> 0 | S200: =IF((S202+W202)>100,S202*100/(S202+W202),S202) -> 100 | T200: =S200*AVERAGEIF(T205:T216,">0")/100 -> 84.49181003 | U200: =S200*(100-AVERAGEIF(T205:T216,">0"))/100 -> 15.50818997 | V200: =100-(T200+U200+W200) -> 0 | W200: =IF((S202+W202)>100,W202*100/(S202+W202),W202) -> 0 | X200: =IF((X202+AB202)>100,X202*100/(X202+AB202),X202) -> 100 | Y200: =X200*AVERAGEIF(Y205:Y216,">0")/100 -> 87.27572707 | Z200: =X200*(100-AVERAGEIF(Y205:Y216,">0"))/100 -> 12.72427293 | AA200: =100-(Y200+Z200+AB200) -> 0 | AB200: =IF((X202+AB202)>100,AB202*100/(X202+AB202),AB202) -> 0
A201: Regression period: | C201: =MinRegYear(C199,C205:C216) -> 2001 | D201: =IF(MAX(C205:C216)-MIN(C205:C216)<5,AVERAGEIF(C205:C216,">0",D205:D216), IF(FORECAST($C201,D$205:D$216,$C$205:$C$216)<0,0, IF(FORECAST($C201,D$205:D$216,$C$205:$C$216)>100,100, FORECAST($C201,D$205:D$216,$C$205:$C$216)))) -> 74.53775642 | H201: =IF(MAX(C205:C216)-MIN(C205:C216)<5,AVERAGEIF(C205:C216,">0",H205:H216), IF(FORECAST($C201,H$205:H$216,$C$205:$C$216)<0,0, IF(FORECAST($C201,H$205:H$216,$C$205:$C$216)>100,100, FORECAST($C201,H$205:H$216,$C$205:$C$216)))) -> 3.107005329 | I201: =IF(MAX(C205:C216)-MIN(C205:C216)<5,AVERAGEIF(C205:C216,">0",I205:I216), IF(FORECAST($C201,I$205:I$216,$C$205:$C$216)<0,0, IF(FORECAST($C201,I$205:I$216,$C$205:$C$216)>100,100, FORECAST($C201,I$205:I$216,$C$205:$C$216)))) -> 85.25877149 | M201: =IF(MAX(C205:C216)-MIN(C205:C216)<5,AVERAGEIF(C205:C216,">0",M205:M216), IF(FORECAST($C201,M$205:M$216,$C$205:$C$216)<0,0, IF(FORECAST($C201,M$205:M$216,$C$205:$C$216)>100,100, FORECAST($C201,M$205:M$216,$C$205:$C$216)))) -> 7.780374457 | N201: =IF(MAX(C205:C216)-MIN(C205:C216)<5,AVERAGEIF(C205:C216,">0",N205:N216), IF(FORECAST($C201,N$205:N$216,$C$205:$C$216)<0,0, IF(FORECAST($C201,N$205:N$216,$C$205:$C$216)>100,100, FORECAST($C201,N$205:N$216,$C$205:$C$216)))) -> 89.15251726 | R201: =IF(MAX(C205:C216)-MIN(C205:C216)<5,AVERAGEIF(C205:C216,">0",R205:R216), IF(FORECAST($C201,R$205:R$216,$C$205:$C$216)<0,0, IF(FORECAST($C201,R$205:R$216,$C$205:$C$216)>100,100, FORECAST($C201,R$205:R$216,$C$205:$C$216)))) -> 9.18032198 | S201: =IF(MAX(C205:C216)-MIN(C205:C216)<5,AVERAGEIF(C205:C216,">0",S205:S216), IF(FORECAST($C201,S$205:S$216,$C$205:$C$216)<0,0, IF(FORECAST($C201,S$205:S$216,$C$205:$C$216)>100,100, FORECAST($C201,S$205:S$216,$C$205:$C$216)))) -> 92.76780545 | W201: =IF(MAX(C205:C216)-MIN(C205:C216)<5,AVERAGEIF(C205:C216,">0",W205:W216), IF(FORECAST($C201,W$205:W$216,$C$205:$C$216)<0,0, IF(FORECAST($C201,W$205:W$216,$C$205:$C$216)>100,100, FORECAST($C201,W$205:W$216,$C$205:$C$216)))) -> 3.981737832 | X201: =IF(MAX(C205:C216)-MIN(C205:C216)<5,AVERAGEIF(C205:C216,">0",X205:X216), IF(FORECAST($C201,X$205:X$216,$C$205:$C$216)<0,0, IF(FORECAST($C201,X$205:X$216,$C$205:$C$216)>100,100, FORECAST($C201,X$205:X$216,$C$205:$C$216)))) -> 95.28273141 | AB201: =IF(MAX(C205:C216)-MIN(C205:C216)<5,AVERAGEIF(C205:C216,">0",AB205:AB216), IF(FORECAST($C201,AB$205:AB$216,$C$205:$C$216)<0,0, IF(FORECAST($C201,AB$205:AB$216,$C$205:$C$216)>100,100, FORECAST($C201,AB$205:AB$216,$C$205:$C$216)))) -> 3.528619359
C202: =MaxRegYear(C200,C205:C216) -> 2017 | D202: =IF(MAX(C205:C216)-MIN(C205:C216)<5,AVERAGEIF(C205:C216,">0",D205:D216), IF(FORECAST($C202,D$205:D$216,$C$205:$C$216)<0,0, IF(FORECAST($C202,D$205:D$216,$C$205:$C$216)>100,100, FORECAST($C202,D$205:D$216,$C$205:$C$216)))) -> 95.99440886 | H202: =IF(MAX(C205:C216)-MIN(C205:C216)<5,AVERAGEIF(C205:C216,">0",H205:H216), IF(FORECAST($C202,H$205:H$216,$C$205:$C$216)<0,0, IF(FORECAST($C202,H$205:H$216,$C$205:$C$216)>100,100, FORECAST($C202,H$205:H$216,$C$205:$C$216)))) -> 0 | I202: =IF(MAX(C205:C216)-MIN(C205:C216)<5,AVERAGEIF(C205:C216,">0",I205:I216), IF(FORECAST($C202,I$205:I$216,$C$205:$C$216)<0,0, IF(FORECAST($C202,I$205:I$216,$C$205:$C$216)>100,100, FORECAST($C202,I$205:I$216,$C$205:$C$216)))) -> 100 | M202: =IF(MAX(C205:C216)-MIN(C205:C216)<5,AVERAGEIF(C205:C216,">0",M205:M216), IF(FORECAST($C202,M$205:M$216,$C$205:$C$216)<0,0, IF(FORECAST($C202,M$205:M$216,$C$205:$C$216)>100,100, FORECAST($C202,M$205:M$216,$C$205:$C$216)))) -> 0 | N202: =IF(MAX(C205:C216)-MIN(C205:C216)<5,AVERAGEIF(C205:C216,">0",N205:N216), IF(FORECAST($C202,N$205:N$216,$C$205:$C$216)<0,0, IF(FORECAST($C202,N$205:N$216,$C$205:$C$216)>100,100, FORECAST($C202,N$205:N$216,$C$205:$C$216)))) -> 100 | R202: =IF(MAX(C205:C216)-MIN(C205:C216)<5,AVERAGEIF(C205:C216,">0",R205:R216), IF(FORECAST($C202,R$205:R$216,$C$205:$C$216)<0,0, IF(FORECAST($C202,R$205:R$216,$C$205:$C$216)>100,100, FORECAST($C202,R$205:R$216,$C$205:$C$216)))) -> 0 | S202: =IF(MAX(C205:C216)-MIN(C205:C216)<5,AVERAGEIF(C205:C216,">0",S205:S216), IF(FORECAST($C202,S$205:S$216,$C$205:$C$216)<0,0, IF(FORECAST($C202,S$205:S$216,$C$205:$C$216)>100,100, FORECAST($C202,S$205:S$216,$C$205:$C$216)))) -> 100 | W202: =IF(MAX(C205:C216)-MIN(C205:C216)<5,AVERAGEIF(C205:C216,">0",W205:W216), IF(FORECAST($C202,W$205:W$216,$C$205:$C$216)<0,0, IF(FORECAST($C202,W$205:W$216,$C$205:$C$216)>100,100, FORECAST($C202,W$205:W$216,$C$205:$C$216)))) -> 0 | X202: =IF(MAX(C205:C216)-MIN(C205:C216)<5,AVERAGEIF(C205:C216,">0",X205:X216), IF(FORECAST($C202,X$205:X$216,$C$205:$C$216)<0,0, IF(FORECAST($C202,X$205:X$216,$C$205:$C$216)>100,100, FORECAST($C202,X$205:X$216,$C$205:$C$216)))) -> 100 | AB202: =IF(MAX(C205:C216)-MIN(C205:C216)<5,AVERAGEIF(C205:C216,">0",AB205:AB216), IF(FORECAST($C202,AB$205:AB$216,$C$205:$C$216)<0,0, IF(FORECAST($C202,AB$205:AB$216,$C$205:$C$216)>100,100, FORECAST($C202,AB$205:AB$216,$C$205:$C$216)))) -> 0
B204: Survey | C204: Year | D204: Improved | E204: % Improved < = 30min | H204: Surface water | I204: Improved | J204: % Improved < = 30min | M204: Surface water | N204: Improved | O204: % Improved < = 30min | R204: Surface water | S204: Improved | T204: % Improved < = 30min | W204: Surface water | X204: Improved | Y204: % Improved < = 30min | AB204: Surface water
B205: WHS03 | C205: 2003 | D205: =IF(ISERROR(INDIRECT(CONCATENATE($B205,"!H16"))),"",INDIRECT(CONCATENATE($B205,"!H16"))) -> 75.68368303 | E205: =IF(ISERROR(INDIRECT(CONCATENATE($B205,"!H23"))),"",INDIRECT(CONCATENATE($B205,"!H23"))) -> 68.36518582 | H205: =IF(ISERROR(INDIRECT(CONCATENATE($B205,"!H21"))),"",INDIRECT(CONCATENATE($B205,"!H21"))) -> 3.798405621 | I205: =IF(ISERROR(INDIRECT(CONCATENATE($B205,"!I16"))),"",INDIRECT(CONCATENATE($B205,"!I16"))) -> 84.50657 | J205: =IF(ISERROR(INDIRECT(CONCATENATE($B205,"!I23"))),"",INDIRECT(CONCATENATE($B205,"!I23"))) -> 59.64758374 | M205: =IF(ISERROR(INDIRECT(CONCATENATE($B205,"!I21"))),"",INDIRECT(CONCATENATE($B205,"!I21"))) -> 9.263855937 | N205: =IF(ISERROR(INDIRECT(CONCATENATE($B205,"!J16"))),"",INDIRECT(CONCATENATE($B205,"!J16"))) -> 87.90437984 | O205: =IF(ISERROR(INDIRECT(CONCATENATE($B205,"!J23"))),"",INDIRECT(CONCATENATE($B205,"!J23"))) -> 60.00223032 | R205: =IF(ISERROR(INDIRECT(CONCATENATE($B205,"!J21"))),"",INDIRECT(CONCATENATE($B205,"!J21"))) -> 10.89955032 | S205: =IF(ISERROR(INDIRECT(CONCATENATE($B205,"!K16"))),"",INDIRECT(CONCATENATE($B205,"!K16"))) -> 91.36649589 | T205: =IF(ISERROR(INDIRECT(CONCATENATE($B205,"!K23"))),"",INDIRECT(CONCATENATE($B205,"!K23"))) -> 56.34699453 | W205: =IF(ISERROR(INDIRECT(CONCATENATE($B205,"!K21"))),"",INDIRECT(CONCATENATE($B205,"!K21"))) -> 5.010110428 | X205: =IF(ISERROR(INDIRECT(CONCATENATE($B205,"!L16"))),"",INDIRECT(CONCATENATE($B205,"!L16"))) -> 94.48388253 | Y205: =IF(ISERROR(INDIRECT(CONCATENATE($B205,"!L23"))),"",INDIRECT(CONCATENATE($B205,"!L23"))) -> 60.14916337 | AB205: =IF(ISERROR(INDIRECT(CONCATENATE($B205,"!L221"))),"",INDIRECT(CONCATENATE($B205,"!L21"))) -> 4.202179678
B206: MICS07 | C206: 2007 | D206: 83.67530869 | E206: 81.38375348 | H206: 0 | I206: 95.59230374 | J206: 94.98311049 | M206: 0 | N206: 98.48668928 | O206: 97.33780848 | R206: 0 | S206: 98.63846394 | T206: 97.4467403 | W206: 0 | X206: 99.48223474 | Y206: 97.09627141 | AB206: 0
B207: MICS11 | C207: 2011 | D207: 90.37401383 | E207: 74.74036138 | H207: 0 | I207: 98.11776528 | J207: 83.08087014 | M207: 0 | N207: 99.38063897 | O207: 86.75836941 | R207: 0 | S207: 99.84437112 | T207: 89.1764369 | W207: 0 | X207: 99.98424793 | Y207: 94.32618852 | AB207: 0
B208: MICS15 | C208: 2015 | D208: 91.33132501 | E208: 83.33552241 | H208: 0.3475412828 | I208: 98.55496558 | J208: 90.24156044 | M208: 0.268294542 | N208: 99.58356494 | O208: 90.20857184 | R208: 0.2408451216 | S208: 97.92355251 | T208: 94.9970684 | W208: 0.7910172334 | X208: 99.41367648 | Y208: 97.53128497 | AB208: 0.1235239063
B218: =CONCATENATE("Urban use of drinking water sources, ",C199,"–",C200) -> Urban use of drinking water sources, 2000–2020 | S218: Data points used for regression
E253: =IF(ISERROR(INDIRECT(CONCATENATE($B253,"!M18"))),"",INDIRECT(CONCATENATE($B253,"!M18"))) ->  | F253: =IF(ISERROR(INDIRECT(CONCATENATE($B253,"!M19"))),"",INDIRECT(CONCATENATE($B253,"!M19"))) ->  | G253: =IF(ISERROR(INDIRECT(CONCATENATE($B253,"!M20"))),"",INDIRECT(CONCATENATE($B253,"!M20"))) ->  | H253: =IF(ISERROR(INDIRECT(CONCATENATE($B253,"!M21"))),"",INDIRECT(CONCATENATE($B253,"!M21"))) ->  | J253: =IF(ISERROR(INDIRECT(CONCATENATE($B253,"!N18"))),"",INDIRECT(CONCATENATE($B253,"!N18"))) ->  | K253: =IF(ISERROR(INDIRECT(CONCATENATE($B253,"!N19"))),"",INDIRECT(CONCATENATE($B253,"!N19"))) ->  | L253: =IF(ISERROR(INDIRECT(CONCATENATE($B253,"!N20"))),"",INDIRECT(CONCATENATE($B253,"!N20"))) ->  | M253: =IF(ISERROR(INDIRECT(CONCATENATE($B253,"!N21"))),"",INDIRECT(CONCATENATE($B253,"!N21"))) ->  | O253: =IF(ISERROR(INDIRECT(CONCATENATE($B253,"!O18"))),"",INDIRECT(CONCATENATE($B253,"!O18"))) ->  | P253: =IF(ISERROR(INDIRECT(CONCATENATE($B253,"!O19"))),"",INDIRECT(CONCATENATE($B253,"!O19"))) ->  | Q253: =IF(ISERROR(INDIRECT(CONCATENATE($B253,"!O20"))),"",INDIRECT(CONCATENATE($B253,"!O20"))) ->  | R253: =IF(ISERROR(INDIRECT(CONCATENATE($B253,"!O21"))),"",INDIRECT(CONCATENATE($B253,"!O21"))) ->  | T253: =IF(ISERROR(INDIRECT(CONCATENATE($B253,"!P18"))),"",INDIRECT(CONCATENATE($B253,"!P18"))) ->  | U253: =IF(ISERROR(INDIRECT(CONCATENATE($B253,"!P19"))),"",INDIRECT(CONCATENATE($B253,"!P19"))) ->  | V253: =IF(ISERROR(INDIRECT(CONCATENATE($B253,"!P20"))),"",INDIRECT(CONCATENATE($B253,"!P20"))) ->  | W253: =IF(ISERROR(INDIRECT(CONCATENATE($B253,"!P21"))),"",INDIRECT(CONCATENATE($B253,"!P21"))) ->  | Y253: =IF(ISERROR(INDIRECT(CONCATENATE($B253,"!Q18"))),"",INDIRECT(CONCATENATE($B253,"!Q18"))) ->  | Z253: =IF(ISERROR(INDIRECT(CONCATENATE($B253,"!Q19"))),"",INDIRECT(CONCATENATE($B253,"!Q19"))) ->  | AA253: =IF(ISERROR(INDIRECT(CONCATENATE($B253,"!Q20"))),"",INDIRECT(CONCATENATE($B253,"!Q20"))) ->  | AB253: =IF(ISERROR(INDIRECT(CONCATENATE($B253,"!Q21"))),"",INDIRECT(CONCATENATE($B253,"!Q1"))) -> 
E254: =IF(ISERROR(INDIRECT(CONCATENATE($B254,"!M18"))),"",INDIRECT(CONCATENATE($B254,"!M18"))) ->  | F254: =IF(ISERROR(INDIRECT(CONCATENATE($B254,"!M19"))),"",INDIRECT(CONCATENATE($B254,"!M19"))) ->  | G254: =IF(ISERROR(INDIRECT(CONCATENATE($B254,"!M20"))),"",INDIRECT(CONCATENATE($B254,"!M20"))) ->  | H254: =IF(ISERROR(INDIRECT(CONCATENATE($B254,"!M21"))),"",INDIRECT(CONCATENATE($B254,"!M21"))) ->  | J254: =IF(ISERROR(INDIRECT(CONCATENATE($B254,"!N18"))),"",INDIRECT(CONCATENATE($B254,"!N18"))) ->  | K254: =IF(ISERROR(INDIRECT(CONCATENATE($B254,"!N19"))),"",INDIRECT(CONCATENATE($B254,"!N19"))) ->  | L254: =IF(ISERROR(INDIRECT(CONCATENATE($B254,"!N20"))),"",INDIRECT(CONCATENATE($B254,"!N20"))) ->  | M254: =IF(ISERROR(INDIRECT(CONCATENATE($B254,"!N21"))),"",INDIRECT(CONCATENATE($B254,"!N21"))) ->  | O254: =IF(ISERROR(INDIRECT(CONCATENATE($B254,"!O18"))),"",INDIRECT(CONCATENATE($B254,"!O18"))) ->  | P254: =IF(ISERROR(INDIRECT(CONCATENATE($B254,"!O19"))),"",INDIRECT(CONCATENATE($B254,"!O19"))) ->  | Q254: =IF(ISERROR(INDIRECT(CONCATENATE($B254,"!O20"))),"",INDIRECT(CONCATENATE($B254,"!O20"))) ->  | R254: =IF(ISERROR(INDIRECT(CONCATENATE($B254,"!O21"))),"",INDIRECT(CONCATENATE($B254,"!O21"))) ->  | T254: =IF(ISERROR(INDIRECT(CONCATENATE($B254,"!P18"))),"",INDIRECT(CONCATENATE($B254,"!P18"))) ->  | U254: =IF(ISERROR(INDIRECT(CONCATENATE($B254,"!P19"))),"",INDIRECT(CONCATENATE($B254,"!P19"))) ->  | V254: =IF(ISERROR(INDIRECT(CONCATENATE($B254,"!P20"))),"",INDIRECT(CONCATENATE($B254,"!P20"))) ->  | W254: =IF(ISERROR(INDIRECT(CONCATENATE($B254,"!P21"))),"",INDIRECT(CONCATENATE($B254,"!P21"))) ->  | Y254: =IF(ISERROR(INDIRECT(CONCATENATE($B254,"!Q18"))),"",INDIRECT(CONCATENATE($B254,"!Q18"))) ->  | Z254: =IF(ISERROR(INDIRECT(CONCATENATE($B254,"!Q19"))),"",INDIRECT(CONCATENATE($B254,"!Q19"))) ->  | AA254: =IF(ISERROR(INDIRECT(CONCATENATE($B254,"!Q20"))),"",INDIRECT(CONCATENATE($B254,"!Q20"))) ->  | AB254: =IF(ISERROR(INDIRECT(CONCATENATE($B254,"!Q21"))),"",INDIRECT(CONCATENATE($B254,"!Q1"))) -> 
E255: =IF(ISERROR(INDIRECT(CONCATENATE($B255,"!M18"))),"",INDIRECT(CONCATENATE($B255,"!M18"))) ->  | F255: =IF(ISERROR(INDIRECT(CONCATENATE($B255,"!M19"))),"",INDIRECT(CONCATENATE($B255,"!M19"))) ->  | G255: =IF(ISERROR(INDIRECT(CONCATENATE($B255,"!M20"))),"",INDIRECT(CONCATENATE($B255,"!M20"))) ->  | H255: =IF(ISERROR(INDIRECT(CONCATENATE($B255,"!M21"))),"",INDIRECT(CONCATENATE($B255,"!M21"))) ->  | J255: =IF(ISERROR(INDIRECT(CONCATENATE($B255,"!N18"))),"",INDIRECT(CONCATENATE($B255,"!N18"))) ->  | K255: =IF(ISERROR(INDIRECT(CONCATENATE($B255,"!N19"))),"",INDIRECT(CONCATENATE($B255,"!N19"))) ->  | L255: =IF(ISERROR(INDIRECT(CONCATENATE($B255,"!N20"))),"",INDIRECT(CONCATENATE($B255,"!N20"))) ->  | M255: =IF(ISERROR(INDIRECT(CONCATENATE($B255,"!N21"))),"",INDIRECT(CONCATENATE($B255,"!N21"))) ->  | O255: =IF(ISERROR(INDIRECT(CONCATENATE($B255,"!O18"))),"",INDIRECT(CONCATENATE($B255,"!O18"))) ->  | P255: =IF(ISERROR(INDIRECT(CONCATENATE($B255,"!O19"))),"",INDIRECT(CONCATENATE($B255,"!O19"))) ->  | Q255: =IF(ISERROR(INDIRECT(CONCATENATE($B255,"!O20"))),"",INDIRECT(CONCATENATE($B255,"!O20"))) ->  | R255: =IF(ISERROR(INDIRECT(CONCATENATE($B255,"!O21"))),"",INDIRECT(CONCATENATE($B255,"!O21"))) ->  | T255: =IF(ISERROR(INDIRECT(CONCATENATE($B255,"!P18"))),"",INDIRECT(CONCATENATE($B255,"!P18"))) ->  | U255: =IF(ISERROR(INDIRECT(CONCATENATE($B255,"!P19"))),"",INDIRECT(CONCATENATE($B255,"!P19"))) ->  | V255: =IF(ISERROR(INDIRECT(CONCATENATE($B255,"!P20"))),"",INDIRECT(CONCATENATE($B255,"!P20"))) ->  | W255: =IF(ISERROR(INDIRECT(CONCATENATE($B255,"!P21"))),"",INDIRECT(CONCATENATE($B255,"!P21"))) ->  | Y255: =IF(ISERROR(INDIRECT(CONCATENATE($B255,"!Q18"))),"",INDIRECT(CONCATENATE($B255,"!Q18"))) ->  | Z255: =IF(ISERROR(INDIRECT(CONCATENATE($B255,"!Q19"))),"",INDIRECT(CONCATENATE($B255,"!Q19"))) ->  | AA255: =IF(ISERROR(INDIRECT(CONCATENATE($B255,"!Q20"))),"",INDIRECT(CONCATENATE($B255,"!Q20"))) ->  | AB255: =IF(ISERROR(INDIRECT(CONCATENATE($B255,"!Q21"))),"",INDIRECT(CONCATENATE($B255,"!Q1"))) -> 
E256: =IF(ISERROR(INDIRECT(CONCATENATE($B256,"!M18"))),"",INDIRECT(CONCATENATE($B256,"!M18"))) ->  | F256: =IF(ISERROR(INDIRECT(CONCATENATE($B256,"!M19"))),"",INDIRECT(CONCATENATE($B256,"!M19"))) ->  | G256: =IF(ISERROR(INDIRECT(CONCATENATE($B256,"!M20"))),"",INDIRECT(CONCATENATE($B256,"!M20"))) ->  | H256: =IF(ISERROR(INDIRECT(CONCATENATE($B256,"!M21"))),"",INDIRECT(CONCATENATE($B256,"!M21"))) ->  | J256: =IF(ISERROR(INDIRECT(CONCATENATE($B256,"!N18"))),"",INDIRECT(CONCATENATE($B256,"!N18"))) ->  | K256: =IF(ISERROR(INDIRECT(CONCATENATE($B256,"!N19"))),"",INDIRECT(CONCATENATE($B256,"!N19"))) ->  | L256: =IF(ISERROR(INDIRECT(CONCATENATE($B256,"!N20"))),"",INDIRECT(CONCATENATE($B256,"!N20"))) ->  | M256: =IF(ISERROR(INDIRECT(CONCATENATE($B256,"!N21"))),"",INDIRECT(CONCATENATE($B256,"!N21"))) ->  | O256: =IF(ISERROR(INDIRECT(CONCATENATE($B256,"!O18"))),"",INDIRECT(CONCATENATE($B256,"!O18"))) ->  | P256: =IF(ISERROR(INDIRECT(CONCATENATE($B256,"!O19"))),"",INDIRECT(CONCATENATE($B256,"!O19"))) ->  | Q256: =IF(ISERROR(INDIRECT(CONCATENATE($B256,"!O20"))),"",INDIRECT(CONCATENATE($B256,"!O20"))) ->  | R256: =IF(ISERROR(INDIRECT(CONCATENATE($B256,"!O21"))),"",INDIRECT(CONCATENATE($B256,"!O21"))) ->  | T256: =IF(ISERROR(INDIRECT(CONCATENATE($B256,"!P18"))),"",INDIRECT(CONCATENATE($B256,"!P18"))) ->  | U256: =IF(ISERROR(INDIRECT(CONCATENATE($B256,"!P19"))),"",INDIRECT(CONCATENATE($B256,"!P19"))) ->  | V256: =IF(ISERROR(INDIRECT(CONCATENATE($B256,"!P20"))),"",INDIRECT(CONCATENATE($B256,"!P20"))) ->  | W256: =IF(ISERROR(INDIRECT(CONCATENATE($B256,"!P21"))),"",INDIRECT(CONCATENATE($B256,"!P21"))) ->  | Y256: =IF(ISERROR(INDIRECT(CONCATENATE($B256,"!Q18"))),"",INDIRECT(CONCATENATE($B256,"!Q18"))) ->  | Z256: =IF(ISERROR(INDIRECT(CONCATENATE($B256,"!Q19"))),"",INDIRECT(CONCATENATE($B256,"!Q19"))) ->  | AA256: =IF(ISERROR(INDIRECT(CONCATENATE($B256,"!Q20"))),"",INDIRECT(CONCATENATE($B256,"!Q20"))) ->  | AB256: =IF(ISERROR(INDIRECT(CONCATENATE($B256,"!Q21"))),"",INDIRECT(CONCATENATE($B256,"!Q1"))) -> 
E257: =IF(ISERROR(INDIRECT(CONCATENATE($B257,"!M18"))),"",INDIRECT(CONCATENATE($B257,"!M18"))) ->  | F257: =IF(ISERROR(INDIRECT(CONCATENATE($B257,"!M19"))),"",INDIRECT(CONCATENATE($B257,"!M19"))) ->  | G257: =IF(ISERROR(INDIRECT(CONCATENATE($B257,"!M20"))),"",INDIRECT(CONCATENATE($B257,"!M20"))) ->  | H257: =IF(ISERROR(INDIRECT(CONCATENATE($B257,"!M21"))),"",INDIRECT(CONCATENATE($B257,"!M21"))) ->  | J257: =IF(ISERROR(INDIRECT(CONCATENATE($B257,"!N18"))),"",INDIRECT(CONCATENATE($B257,"!N18"))) ->  | K257: =IF(ISERROR(INDIRECT(CONCATENATE($B257,"!N19"))),"",INDIRECT(CONCATENATE($B257,"!N19"))) ->  | L257: =IF(ISERROR(INDIRECT(CONCATENATE($B257,"!N20"))),"",INDIRECT(CONCATENATE($B257,"!N20"))) ->  | M257: =IF(ISERROR(INDIRECT(CONCATENATE($B257,"!N21"))),"",INDIRECT(CONCATENATE($B257,"!N21"))) ->  | O257: =IF(ISERROR(INDIRECT(CONCATENATE($B257,"!O18"))),"",INDIRECT(CONCATENATE($B257,"!O18"))) ->  | P257: =IF(ISERROR(INDIRECT(CONCATENATE($B257,"!O19"))),"",INDIRECT(CONCATENATE($B257,"!O19"))) ->  | Q257: =IF(ISERROR(INDIRECT(CONCATENATE($B257,"!O20"))),"",INDIRECT(CONCATENATE($B257,"!O20"))) ->  | R257: =IF(ISERROR(INDIRECT(CONCATENATE($B257,"!O21"))),"",INDIRECT(CONCATENATE($B257,"!O21"))) ->  | T257: =IF(ISERROR(INDIRECT(CONCATENATE($B257,"!P18"))),"",INDIRECT(CONCATENATE($B257,"!P18"))) ->  | U257: =IF(ISERROR(INDIRECT(CONCATENATE($B257,"!P19"))),"",INDIRECT(CONCATENATE($B257,"!P19"))) ->  | V257: =IF(ISERROR(INDIRECT(CONCATENATE($B257,"!P20"))),"",INDIRECT(CONCATENATE($B257,"!P20"))) ->  | W257: =IF(ISERROR(INDIRECT(CONCATENATE($B257,"!P21"))),"",INDIRECT(CONCATENATE($B257,"!P21"))) ->  | Y257: =IF(ISERROR(INDIRECT(CONCATENATE($B257,"!Q18"))),"",INDIRECT(CONCATENATE($B257,"!Q18"))) ->  | Z257: =IF(ISERROR(INDIRECT(CONCATENATE($B257,"!Q19"))),"",INDIRECT(CONCATENATE($B257,"!Q19"))) ->  | AA257: =IF(ISERROR(INDIRECT(CONCATENATE($B257,"!Q20"))),"",INDIRECT(CONCATENATE($B257,"!Q20"))) ->  | AB257: =IF(ISERROR(INDIRECT(CONCATENATE($B257,"!Q21"))),"",INDIRECT(CONCATENATE($B257,"!Q1"))) -> 
A297: RURAL | D297: Poorest | I297: Poor | N297: Middle | S297: Rich | X297: Richest
D298: Improved | E298: Basic | F298: Limited | G298: Unimproved | H298: Surface water | I298: Improved | J298: Basic | K298: Limited | L298: Unimproved | M298: Surface water | N298: Improved | O298: Basic | P298: Limited | Q298: Unimproved | R298: Surface water | S298: Improved | T298: Basic | U298: Limited | V298: Unimproved | W298: Surface water | X298: Improved | Y298: Basic | Z298: Limited | AA298: Unimproved | AB298: Surface water
A299: Forecast period: | C299: 2000 | D299: =IF((D301+H301)>100,D301*100/(D301+H301),D301) -> 33.01366346 | E299: =D299*AVERAGEIF(E305:E316,">0")/100 -> 17.95634067 | F299: =D299*(100-AVERAGEIF(E305:E316,">0"))/100 -> 15.05732279 | G299: =100-(E299+F299+H299) -> 62.14000089 | H299: =IF((D301+H301)>100,H301*100/(D301+H301),H301) -> 4.846335652 | I299: =IF((I301+M301)>100,I301*100/(I301+M301),I301) -> 33.05495425 | J299: =I299*AVERAGEIF(J305:J316,">0")/100 -> 19.51852119 | K299: =I299*(100-AVERAGEIF(J305:J316,">0"))/100 -> 13.53643306 | L299: =100-(J299+K299+M299) -> 63.42045961 | M299: =IF((I301+M301)>100,M301*100/(I301+M301),M301) -> 3.524586131 | N299: =IF((N301+R301)>100,N301*100/(N301+R301),N301) -> 31.89686146 | O299: =N299*AVERAGEIF(O305:O316,">0")/100 -> 21.66277762 | P299: =N299*(100-AVERAGEIF(O305:O316,">0"))/100 -> 10.23408384 | Q299: =100-(O299+P299+R299) -> 64.17723824 | R299: =IF((N301+R301)>100,R301*100/(N301+R301),R301) -> 3.925900294 | S299: =IF((S301+W301)>100,S301*100/(S301+W301),S301) -> 51.31289047 | T299: =S299*AVERAGEIF(T305:T316,">0")/100 -> 38.03923203 | U299: =S299*(100-AVERAGEIF(T305:T316,">0"))/100 -> 13.27365843 | V299: =100-(T299+U299+W299) -> 47.04506064 | W299: =IF((S301+W301)>100,W301*100/(S301+W301),W301) -> 1.64204889 | X299: =IF((X301+AB301)>100,X301*100/(X301+AB301),X301) -> 65.9648368 | Y299: =X299*AVERAGEIF(Y305:Y316,">0")/100 -> 53.75220461 | Z299: =X299*(100-AVERAGEIF(Y305:Y316,">0"))/100 -> 12.21263219 | AA299: =100-(Y299+Z299+AB299) -> 32.55439024 | AB299: =IF((X301+AB301)>100,AB301*100/(X301+AB301),AB301) -> 1.480772967
C300: 2020 | D300: =IF((D302+H302)>100,D302*100/(D302+H302),D302) -> 57.07125136 | E300: =D300*AVERAGEIF(E305:E316,">0")/100 -> 31.04141511 | F300: =D300*(100-AVERAGEIF(E305:E316,">0"))/100 -> 26.02983625 | G300: =100-(E300+F300+H300) -> 41.0451043 | H300: =IF((D302+H302)>100,H302*100/(D302+H302),H302) -> 1.883644337 | I300: =IF((I302+M302)>100,I302*100/(I302+M302),I302) -> 59.87304811 | J300: =I300*AVERAGEIF(J305:J316,">0")/100 -> 35.35425732 | K300: =I300*(100-AVERAGEIF(J305:J316,">0"))/100 -> 24.51879079 | L300: =100-(J300+K300+M300) -> 36.47638735 | M300: =IF((I302+M302)>100,M302*100/(I302+M302),M302) -> 3.65056455 | N300: =IF((N302+R302)>100,N302*100/(N302+R302),N302) -> 66.54714443 | O300: =N300*AVERAGEIF(O305:O316,">0")/100 -> 45.19554354 | P300: =N300*(100-AVERAGEIF(O305:O316,">0"))/100 -> 21.35160089 | Q300: =100-(O300+P300+R300) -> 31.21682579 | R300: =IF((N302+R302)>100,R302*100/(N302+R302),R302) -> 2.236029778 | S300: =IF((S302+W302)>100,S302*100/(S302+W302),S302) -> 71.7868963 | T300: =S300*AVERAGEIF(T305:T316,">0")/100 -> 53.21700611 | U300: =S300*(100-AVERAGEIF(T305:T316,">0"))/100 -> 18.5698902 | V300: =100-(T300+U300+W300) -> 26.70493463 | W300: =IF((S302+W302)>100,W302*100/(S302+W302),W302) -> 1.508169069 | X300: =IF((X302+AB302)>100,X302*100/(X302+AB302),X302) -> 92.82338792 | Y300: =X300*AVERAGEIF(Y305:Y316,">0")/100 -> 75.63820335 | Z300: =X300*(100-AVERAGEIF(Y305:Y316,">0"))/100 -> 17.18518456 | AA300: =100-(Y300+Z300+AB300) -> 7.176612083 | AB300: =IF((X302+AB302)>100,AB302*100/(X302+AB302),AB302) -> 0
A301: Regression period: | C301: =MinRegYear(C299,C305:C316) -> 2001 | D301: =IF(MAX(C305:C316)-MIN(C305:C316)<5,AVERAGEIF(C305:C316,">0",D305:D316), IF(FORECAST($C301,D$305:D$316,$C$305:$C$316)<0,0, IF(FORECAST($C301,D$305:D$316,$C$305:$C$316)>100,100, FORECAST($C301,D$305:D$316,$C$305:$C$316)))) -> 33.01366346 | H301: =IF(MAX(C305:C316)-MIN(C305:C316)<5,AVERAGEIF(C305:C316,">0",H305:H316), IF(FORECAST($C301,H$305:H$316,$C$305:$C$316)<0,0, IF(FORECAST($C301,H$305:H$316,$C$305:$C$316)>100,100, FORECAST($C301,H$305:H$316,$C$305:$C$316)))) -> 4.846335652 | I301: =IF(MAX(C305:C316)-MIN(C305:C316)<5,AVERAGEIF(C305:C316,">0",I305:I316), IF(FORECAST($C301,I$305:I$316,$C$305:$C$316)<0,0, IF(FORECAST($C301,I$305:I$316,$C$305:$C$316)>100,100, FORECAST($C301,I$305:I$316,$C$305:$C$316)))) -> 33.05495425 | M301: =IF(MAX(C305:C316)-MIN(C305:C316)<5,AVERAGEIF(C305:C316,">0",M305:M316), IF(FORECAST($C301,M$305:M$316,$C$305:$C$316)<0,0, IF(FORECAST($C301,M$305:M$316,$C$305:$C$316)>100,100, FORECAST($C301,M$305:M$316,$C$305:$C$316)))) -> 3.524586131 | N301: =IF(MAX(C305:C316)-MIN(C305:C316)<5,AVERAGEIF(C305:C316,">0",N305:N316), IF(FORECAST($C301,N$305:N$316,$C$305:$C$316)<0,0, IF(FORECAST($C301,N$305:N$316,$C$305:$C$316)>100,100, FORECAST($C301,N$305:N$316,$C$305:$C$316)))) -> 31.89686146 | R301: =IF(MAX(C305:C316)-MIN(C305:C316)<5,AVERAGEIF(C305:C316,">0",R305:R316), IF(FORECAST($C301,R$305:R$316,$C$305:$C$316)<0,0, IF(FORECAST($C301,R$305:R$316,$C$305:$C$316)>100,100, FORECAST($C301,R$305:R$316,$C$305:$C$316)))) -> 3.925900294 | S301: =IF(MAX(C305:C316)-MIN(C305:C316)<5,AVERAGEIF(C305:C316,">0",S305:S316), IF(FORECAST($C301,S$305:S$316,$C$305:$C$316)<0,0, IF(FORECAST($C301,S$305:S$316,$C$305:$C$316)>100,100, FORECAST($C301,S$305:S$316,$C$305:$C$316)))) -> 51.31289047 | W301: =IF(MAX(C305:C316)-MIN(C305:C316)<5,AVERAGEIF(C305:C316,">0",W305:W316), IF(FORECAST($C301,W$305:W$316,$C$305:$C$316)<0,0, IF(FORECAST($C301,W$305:W$316,$C$305:$C$316)>100,100, FORECAST($C301,W$305:W$316,$C$305:$C$316)))) -> 1.64204889 | X301: =IF(MAX(C305:C316)-MIN(C305:C316)<5,AVERAGEIF(C305:C316,">0",X305:X316), IF(FORECAST($C301,X$305:X$316,$C$305:$C$316)<0,0, IF(FORECAST($C301,X$305:X$316,$C$305:$C$316)>100,100, FORECAST($C301,X$305:X$316,$C$305:$C$316)))) -> 65.9648368 | AB301: =IF(MAX(C305:C316)-MIN(C305:C316)<5,AVERAGEIF(C305:C316,">0",AB305:AB316), IF(FORECAST($C301,AB$305:AB$316,$C$305:$C$316)<0,0, IF(FORECAST($C301,AB$305:AB$316,$C$305:$C$316)>100,100, FORECAST($C301,AB$305:AB$316,$C$305:$C$316)))) -> 1.480772967
C302: =MaxRegYear(C300,C305:C316) -> 2017 | D302: =IF(MAX(C305:C316)-MIN(C305:C316)<5,AVERAGEIF(C305:C316,">0",D305:D316), IF(FORECAST($C302,D$305:D$316,$C$305:$C$316)<0,0, IF(FORECAST($C302,D$305:D$316,$C$305:$C$316)>100,100, FORECAST($C302,D$305:D$316,$C$305:$C$316)))) -> 57.07125136 | H302: =IF(MAX(C305:C316)-MIN(C305:C316)<5,AVERAGEIF(C305:C316,">0",H305:H316), IF(FORECAST($C302,H$305:H$316,$C$305:$C$316)<0,0, IF(FORECAST($C302,H$305:H$316,$C$305:$C$316)>100,100, FORECAST($C302,H$305:H$316,$C$305:$C$316)))) -> 1.883644337 | I302: =IF(MAX(C305:C316)-MIN(C305:C316)<5,AVERAGEIF(C305:C316,">0",I305:I316), IF(FORECAST($C302,I$305:I$316,$C$305:$C$316)<0,0, IF(FORECAST($C302,I$305:I$316,$C$305:$C$316)>100,100, FORECAST($C302,I$305:I$316,$C$305:$C$316)))) -> 59.87304811 | M302: =IF(MAX(C305:C316)-MIN(C305:C316)<5,AVERAGEIF(C305:C316,">0",M305:M316), IF(FORECAST($C302,M$305:M$316,$C$305:$C$316)<0,0, IF(FORECAST($C302,M$305:M$316,$C$305:$C$316)>100,100, FORECAST($C302,M$305:M$316,$C$305:$C$316)))) -> 3.65056455 | N302: =IF(MAX(C305:C316)-MIN(C305:C316)<5,AVERAGEIF(C305:C316,">0",N305:N316), IF(FORECAST($C302,N$305:N$316,$C$305:$C$316)<0,0, IF(FORECAST($C302,N$305:N$316,$C$305:$C$316)>100,100, FORECAST($C302,N$305:N$316,$C$305:$C$316)))) -> 66.54714443 | R302: =IF(MAX(C305:C316)-MIN(C305:C316)<5,AVERAGEIF(C305:C316,">0",R305:R316), IF(FORECAST($C302,R$305:R$316,$C$305:$C$316)<0,0, IF(FORECAST($C302,R$305:R$316,$C$305:$C$316)>100,100, FORECAST($C302,R$305:R$316,$C$305:$C$316)))) -> 2.236029778 | S302: =IF(MAX(C305:C316)-MIN(C305:C316)<5,AVERAGEIF(C305:C316,">0",S305:S316), IF(FORECAST($C302,S$305:S$316,$C$305:$C$316)<0,0, IF(FORECAST($C302,S$305:S$316,$C$305:$C$316)>100,100, FORECAST($C302,S$305:S$316,$C$305:$C$316)))) -> 71.7868963 | W302: =IF(MAX(C305:C316)-MIN(C305:C316)<5,AVERAGEIF(C305:C316,">0",W305:W316), IF(FORECAST($C302,W$305:W$316,$C$305:$C$316)<0,0, IF(FORECAST($C302,W$305:W$316,$C$305:$C$316)>100,100, FORECAST($C302,W$305:W$316,$C$305:$C$316)))) -> 1.508169069 | X302: =IF(MAX(C305:C316)-MIN(C305:C316)<5,AVERAGEIF(C305:C316,">0",X305:X316), IF(FORECAST($C302,X$305:X$316,$C$305:$C$316)<0,0, IF(FORECAST($C302,X$305:X$316,$C$305:$C$316)>100,100, FORECAST($C302,X$305:X$316,$C$305:$C$316)))) -> 92.82338792 | AB302: =IF(MAX(C305:C316)-MIN(C305:C316)<5,AVERAGEIF(C305:C316,">0",AB305:AB316), IF(FORECAST($C302,AB$305:AB$316,$C$305:$C$316)<0,0, IF(FORECAST($C302,AB$305:AB$316,$C$305:$C$316)>100,100, FORECAST($C302,AB$305:AB$316,$C$305:$C$316)))) -> 0
B304: Survey | C304: Year | D304: Improved | E304: % Improved < = 30min | H304: Surface water | I304: Improved | J304: % Improved < = 30min | M304: Surface water | N304: Improved | O304: % Improved < = 30min | R304: Surface water | S304: Improved | T304: % Improved < = 30min | W304: Surface water | X304: Improved | Y304: % Improved < = 30min | AB304: Surface water
B305: WHS03 | C305: 2003 | D305: =IF(ISERROR(INDIRECT(CONCATENATE($B305,"!M16"))),"",INDIRECT(CONCATENATE($B305,"!M16"))) -> 35.78614779 | E305: =IF(ISERROR(INDIRECT(CONCATENATE($B305,"!M23"))),"",INDIRECT(CONCATENATE($B305,"!M23"))) -> 67.75325793 | H305: =IF(ISERROR(INDIRECT(CONCATENATE($B305,"!M21"))),"",INDIRECT(CONCATENATE($B305,"!M21"))) -> 4.058817405 | I305: =IF(ISERROR(INDIRECT(CONCATENATE($B305,"!N16"))),"",INDIRECT(CONCATENATE($B305,"!N16"))) -> 36.0367917 | J305: =IF(ISERROR(INDIRECT(CONCATENATE($B305,"!N23"))),"",INDIRECT(CONCATENATE($B305,"!N23"))) -> 66.53909569 | M305: =IF(ISERROR(INDIRECT(CONCATENATE($B305,"!N21"))),"",INDIRECT(CONCATENATE($B305,"!N21"))) -> 2.301229323 | N305: =IF(ISERROR(INDIRECT(CONCATENATE($B305,"!O16"))),"",INDIRECT(CONCATENATE($B305,"!O16"))) -> 37.91515444 | O305: =IF(ISERROR(INDIRECT(CONCATENATE($B305,"!O23"))),"",INDIRECT(CONCATENATE($B305,"!O23"))) -> 69.16579411 | R305: =IF(ISERROR(INDIRECT(CONCATENATE($B305,"!O21"))),"",INDIRECT(CONCATENATE($B305,"!O21"))) -> 1.466789605 | S305: =IF(ISERROR(INDIRECT(CONCATENATE($B305,"!P16"))),"",INDIRECT(CONCATENATE($B305,"!P16"))) -> 55.01973068 | T305: =IF(ISERROR(INDIRECT(CONCATENATE($B305,"!P23"))),"",INDIRECT(CONCATENATE($B305,"!P23"))) -> 66.80187047 | W305: =IF(ISERROR(INDIRECT(CONCATENATE($B305,"!P21"))),"",INDIRECT(CONCATENATE($B305,"!P21"))) -> 1.749729063 | X305: =IF(ISERROR(INDIRECT(CONCATENATE($B305,"!Q16"))),"",INDIRECT(CONCATENATE($B305,"!Q16"))) -> 65.20703072 | Y305: =IF(ISERROR(INDIRECT(CONCATENATE($B305,"!Q23"))),"",INDIRECT(CONCATENATE($B305,"!Q23"))) -> 62.13964642 | AB305: =IF(ISERROR(INDIRECT(CONCATENATE($B305,"!Q221"))),"",INDIRECT(CONCATENATE($B305,"!Q21"))) -> 1.805118734
B306: MICS07 | C306: 2007 | D306: 46.40447264 | E306: 45.58126553 | H306: 4.340180399 | I306: 48.07059433 | J306: 45.89091004 | M306: 5.474388536 | N306: 44.97685795 | O306: 56.29403065 | R306: 6.73977381 | S306: 58.52447712 | T306: 68.32466402 | W306: 1.252977907 | X306: 80.97592606 | Y306: 84.18922617 | AB306: 0.2961776699
B307: MICS11 | C307: 2011 | D307: 40.01537094 | E307: 49.14353624 | H307: 3.036491096 | I307: 41.00982601 | J307: 68.80688443 | M307: 3.515513976 | N307: 48.31998474 | O307: 74.58486298 | R307: 2.718211927 | S307: 61.59870673 | T307: 84.87720679 | W307: 1.862860648 | X307: 85.21854096 | Y307: 90.1251492 | AB307: 0.118458445
B308: MICS15 | C308: 2015 | D308: 57.96383827 | E308: 55.08447395 | H308: 2.024471078 | I308: 60.73879268 | J308: 54.95791494 | M308: 3.059169526 | N308: 65.67601465 | O308: 71.61561521 | R308: 1.399084802 | S308: 71.05665901 | T308: 76.52394747 | W308: 1.434868299 | X308: 86.17495169 | Y308: 89.49057063 | AB308: 0.5508023733
B318: =CONCATENATE("Rural use of drinking water sources, ",C299,"–",C300) -> Rural use of drinking water sources, 2000–2020 | S318: Data points used for regression

Sheet Sanitation
B4: Summary of trends in use of sanitation facilities by wealth quintile (%)
B5: =IF(ISERROR(INDIRECT(CONCATENATE($B105,"!A2"))),"",INDIRECT(CONCATENATE($B105,"!A2"))) -> Mauritania
B7: =B118 -> National use of sanitation facilities, 2000–2020 | J7: =B218 -> Urban use of sanitation facilities, 2000–2020 | R7: =B318 -> Rural use of sanitation facilities, 2000–2020
B31: =IF(ISERROR(INDIRECT(CONCATENATE($B105,"!A2"))),"",INDIRECT(CONCATENATE($B105,"!A2"))) -> Mauritania | F31: Poorest | J31: Poor | N31: Middle | R31: Rich | V31: Richest
F32: Basic | G32: Limited | H32: Unimproved | I32: Open defecation | J32: Basic | K32: Limited | L32: Unimproved | M32: Open defecation | N32: Basic | O32: Limited | P32: Unimproved | Q32: Open defecation | R32: Basic | S32: Limited | T32: Unimproved | U32: Open defecation | V32: Basic | W32: Limited | X32: Unimproved | Y32: Open defecation
B33: NATIONAL | D33: Estimate | E33: =C99 -> 2000 | F33: =E99 -> 3.085214012 | G33: =F99 -> 1.364373109 | H33: 19.3263426 | I33: 76.22407028 | J33: =J99 -> 3.398463045 | K33: =K99 -> 1.765208837 | L33: 29.11648943 | M33: 65.71983869 | N33: =O99 -> 15.26271503 | O33: =P99 -> 7.928602472 | P33: 37.6066377 | Q33: 39.20204479 | R33: =T99 -> 47.72060954 | S33: =U99 -> 15.67809525 | T33: 22.96522257 | U33: 13.63607264 | V33: =Y99 -> 76.43445175 | W33: =Z99 -> 13.80497633 | X33: 7.418742664 | Y33: 2.341829263
E34: =C100 -> 2020 | F34: =E100 -> 4.00031536 | G34: 1.769058057 | H34: 3.9328843 | I34: 90.29774228 | J34: =J100 -> 12.30491914 | K34: 6.391345648 | L34: 11.56752581 | M34: 69.73620941 | N34: =O100 -> 30.96422569 | O34: 16.0851484 | P34: 15.39880619 | Q34: 37.55181972 | R34: =T100 -> 57.19153022 | S34: 18.78966482 | T34: 15.61712093 | U34: 8.40168403 | V34: =Y100 -> 78.46166203 | W34: 14.17111475 | X34: 7.342086657 | Y34: 0.02513655594
B36: URBAN | D36: Estimate | E36: =C199 -> 2000 | F36: =E199 -> 15.08606719 | G36: =F199 -> 8.433575878 | H36: 31.91155842 | I36: 44.56879851 | J36: =J199 -> 45.65389429 | K36: =K199 -> 17.18359572 | L36: 25.06348107 | M36: 12.09902892 | N36: =O199 -> 58.11522014 | O36: =P199 -> 17.95048656 | P36: 17.49028637 | Q36: 6.444006944 | R36: =T199 -> 69.22920271 | S36: =U199 -> 17.35486581 | T36: 10.07068055 | U36: 3.345250926 | V36: =Y199 -> 87.43086995 | W36: =Z199 -> 8.318466541 | X36: 3.989686857 | Y36: 0.2609766498
E37: =C200 -> 2020 | F37: =E200 -> 27.09501808 | G37: 15.14694904 | H37: 20.73927114 | I37: 37.01876173 | J37: =J200 -> 49.21221202 | K37: 18.5229052 | L37: 18.3095989 | M37: 13.95528388 | N37: =O200 -> 64.02846463 | O37: 19.776955 | P37: 13.390498 | Q37: 2.804082372 | R37: =T200 -> 73.36154364 | S37: 18.39079024 | T37: 8.247666118 | U37: 0 | V37: =Y200 -> 87.4107973 | W37: 8.316556762 | X37: 4.189373757 | Y37: 0.08327217914
B39: RURAL | D39: Estimate | E39: =C299 -> 2000 | F39: =E299 -> 2.659253213 | G39: =F299 -> 1.092401012 | H39: 17.24153523 | I39: 79.00681055 | J39: =J299 -> 3.452931673 | K39: =K299 -> 1.315678659 | L39: 17.62269856 | M39: 77.60869111 | N39: =O299 -> 3.158216117 | O39: =P299 -> 1.676552772 | P39: 32.28946311 | Q39: 62.875768 | R39: =T299 -> 8.453897885 | S39: =U299 -> 5.095682125 | T39: 35.77499333 | U39: 50.67542666 | V39: =Y299 -> 25.13128868 | W39: =Z299 -> 10.16895859 | X39: 35.38173858 | Y39: 29.31801416
E40: =C300 -> 2020 | F40: =E300 -> 2.872969278 | G40: 1.180193947 | H40: 1.205501271 | I40: 94.7413355 | J40: =J300 -> 5.218777636 | K40: 1.988523091 | L40: 8.740235309 | M40: 84.05246396 | N40: =O300 -> 9.341549896 | O40: 4.95900242 | P40: 9.78983004 | Q40: 75.90961764 | R40: =T300 -> 17.96937571 | S40: 10.83124351 | T40: 13.29446853 | U40: 57.90491225 | V40: =Y300 -> 46.08663675 | W40: 18.64819216 | X40: 12.25331765 | Y40: 23.01185343
A97: NATIONAL | D97: Poorest | I97: Poor | N97: Middle | S97: Rich | X97: Richest
D98: Improved | E98: Basic | F98: Limited | G98: Unimproved | H98: Open defecation | I98: Improved | J98: Basic | K98: Limited | L98: Unimproved | M98: Open defecation | N98: Improved | O98: Basic | P98: Limited | Q98: Unimproved | R98: Open defecation | S98: Improved | T98: Basic | U98: Limited | V98: Unimproved | W98: Open defecation | X98: Improved | Y98: Basic | Z98: Limited | AA98: Unimproved | AB98: Open defecation
A99: Forecast period: | C99: 2000 | D99: =IF((D101+H101)>100,D101*100/(D101+H101),D101) -> 4.449587121 | E99: =D99*AVERAGEIF(E105:E116,">0")/100 -> 3.085214012 | F99: =D99*(100-AVERAGEIF(E105:E116,">0"))/100 -> 1.364373109 | G99: =100-(E99+F99+H99) -> 19.3263426 | H99: =IF((D101+H101)>100,H101*100/(D101+H101),H101) -> 76.22407028 | I99: =IF((I101+M101)>100,I101*100/(I101+M101),I101) -> 5.163671882 | J99: =I99*AVERAGEIF(J105:J116,">0")/100 -> 3.398463045 | K99: =I99*(100-AVERAGEIF(J105:J116,">0"))/100 -> 1.765208837 | L99: =100-(J99+K99+M99) -> 29.11648943 | M99: =IF((I101+M101)>100,M101*100/(I101+M101),M101) -> 65.71983869 | N99: =IF((N101+R101)>100,N101*100/(N101+R101),N101) -> 23.19131751 | O99: =N99*AVERAGEIF(O105:O116,">0")/100 -> 15.26271503 | P99: =N99*(100-AVERAGEIF(O105:O116,">0"))/100 -> 7.928602472 | Q99: =100-(O99+P99+R99) -> 37.6066377 | R99: =IF((N101+R101)>100,R101*100/(N101+R101),R101) -> 39.20204479 | S99: =IF((S101+W101)>100,S101*100/(S101+W101),S101) -> 63.39870479 | T99: =S99*AVERAGEIF(T105:T116,">0")/100 -> 47.72060954 | U99: =S99*(100-AVERAGEIF(T105:T116,">0"))/100 -> 15.67809525 | V99: =100-(T99+U99+W99) -> 22.96522257 | W99: =IF((S101+W101)>100,W101*100/(S101+W101),W101) -> 13.63607264 | X99: =IF((X101+AB101)>100,X101*100/(X101+AB101),X101) -> 90.23942807 | Y99: =X99*AVERAGEIF(Y105:Y116,">0")/100 -> 76.43445175 | Z99: =X99*(100-AVERAGEIF(Y105:Y116,">0"))/100 -> 13.80497633 | AA99: =100-(Y99+Z99+AB99) -> 7.418742664 | AB99: =IF((X101+AB101)>100,AB101*100/(X101+AB101),AB101) -> 2.341829263
C100: 2020 | D100: =IF((D102+H102)>100,D102*100/(D102+H102),D102) -> 5.769373417 | E100: =D100*AVERAGEIF(E105:E116,">0")/100 -> 4.00031536 | F100: =D100*(100-AVERAGEIF(E105:E116,">0"))/100 -> 1.769058057 | G100: =100-(E100+F100+H100) -> 3.9328843 | H100: =IF((D102+H102)>100,H102*100/(D102+H102),H102) -> 90.29774228 | I100: =IF((I102+M102)>100,I102*100/(I102+M102),I102) -> 18.69626478 | J100: =I100*AVERAGEIF(J105:J116,">0")/100 -> 12.30491914 | K100: =I100*(100-AVERAGEIF(J105:J116,">0"))/100 -> 6.391345648 | L100: =100-(J100+K100+M100) -> 11.56752581 | M100: =IF((I102+M102)>100,M102*100/(I102+M102),M102) -> 69.73620941 | N100: =IF((N102+R102)>100,N102*100/(N102+R102),N102) -> 47.04937409 | O100: =N100*AVERAGEIF(O105:O116,">0")/100 -> 30.96422569 | P100: =N100*(100-AVERAGEIF(O105:O116,">0"))/100 -> 16.0851484 | Q100: =100-(O100+P100+R100) -> 15.39880619 | R100: =IF((N102+R102)>100,R102*100/(N102+R102),R102) -> 37.55181972 | S100: =IF((S102+W102)>100,S102*100/(S102+W102),S102) -> 75.98119504 | T100: =S100*AVERAGEIF(T105:T116,">0")/100 -> 57.19153022 | U100: =S100*(100-AVERAGEIF(T105:T116,">0"))/100 -> 18.78966482 | V100: =100-(T100+U100+W100) -> 15.61712093 | W100: =IF((S102+W102)>100,W102*100/(S102+W102),W102) -> 8.40168403 | X100: =IF((X102+AB102)>100,X102*100/(X102+AB102),X102) -> 92.63277679 | Y100: =X100*AVERAGEIF(Y105:Y116,">0")/100 -> 78.46166203 | Z100: =X100*(100-AVERAGEIF(Y105:Y116,">0"))/100 -> 14.17111475 | AA100: =100-(Y100+Z100+AB100) -> 7.342086657 | AB100: =IF((X102+AB102)>100,AB102*100/(X102+AB102),AB102) -> 0.02513655594
A101: Regression period: | C101: =MinRegYear(C99,C105:C116) -> 2001 | D101: =IF(MAX(C105:C116)-MIN(C105:C116)<5,AVERAGEIF(C105:C116,">0",D105:D116), IF(FORECAST($C101,D$105:D$116,$C$105:$C$116)<0,0, IF(FORECAST($C101,D$105:D$116,$C$105:$C$116)>100,100, FORECAST($C101,D$105:D$116,$C$105:$C$116)))) -> 4.449587121 | H101: =IF(MAX(C105:C116)-MIN(C105:C116)<5,AVERAGEIF(C105:C116,">0",H105:H116), IF(FORECAST($C101,H$105:H$116,$C$105:$C$116)<0,0, IF(FORECAST($C101,H$105:H$116,$C$105:$C$116)>100,100, FORECAST($C101,H$105:H$116,$C$105:$C$116)))) -> 76.22407028 | I101: =IF(MAX(C105:C116)-MIN(C105:C116)<5,AVERAGEIF(C105:C116,">0",I105:I116), IF(FORECAST($C101,I$105:I$116,$C$105:$C$116)<0,0, IF(FORECAST($C101,I$105:I$116,$C$105:$C$116)>100,100, FORECAST($C101,I$105:I$116,$C$105:$C$116)))) -> 5.163671882 | M101: =IF(MAX(C105:C116)-MIN(C105:C116)<5,AVERAGEIF(C105:C116,">0",M105:M116), IF(FORECAST($C101,M$105:M$116,$C$105:$C$116)<0,0, IF(FORECAST($C101,M$105:M$116,$C$105:$C$116)>100,100, FORECAST($C101,M$105:M$116,$C$105:$C$116)))) -> 65.71983869 | N101: =IF(MAX(C105:C116)-MIN(C105:C116)<5,AVERAGEIF(C105:C116,">0",N105:N116), IF(FORECAST($C101,N$105:N$116,$C$105:$C$116)<0,0, IF(FORECAST($C101,N$105:N$116,$C$105:$C$116)>100,100, FORECAST($C101,N$105:N$116,$C$105:$C$116)))) -> 23.19131751 | R101: =IF(MAX(C105:C116)-MIN(C105:C116)<5,AVERAGEIF(C105:C116,">0",R105:R116), IF(FORECAST($C101,R$105:R$116,$C$105:$C$116)<0,0, IF(FORECAST($C101,R$105:R$116,$C$105:$C$116)>100,100, FORECAST($C101,R$105:R$116,$C$105:$C$116)))) -> 39.20204479 | S101: =IF(MAX(C105:C116)-MIN(C105:C116)<5,AVERAGEIF(C105:C116,">0",S105:S116), IF(FORECAST($C101,S$105:S$116,$C$105:$C$116)<0,0, IF(FORECAST($C101,S$105:S$116,$C$105:$C$116)>100,100, FORECAST($C101,S$105:S$116,$C$105:$C$116)))) -> 63.39870479 | W101: =IF(MAX(C105:C116)-MIN(C105:C116)<5,AVERAGEIF(C105:C116,">0",W105:W116), IF(FORECAST($C101,W$105:W$116,$C$105:$C$116)<0,0, IF(FORECAST($C101,W$105:W$116,$C$105:$C$116)>100,100, FORECAST($C101,W$105:W$116,$C$105:$C$116)))) -> 13.63607264 | X101: =IF(MAX(C105:C116)-MIN(C105:C116)<5,AVERAGEIF(C105:C116,">0",X105:X116), IF(FORECAST($C101,X$105:X$116,$C$105:$C$116)<0,0, IF(FORECAST($C101,X$105:X$116,$C$105:$C$116)>100,100, FORECAST($C101,X$105:X$116,$C$105:$C$116)))) -> 90.23942807 | AB101: =IF(MAX(C105:C116)-MIN(C105:C116)<5,AVERAGEIF(C105:C116,">0",AB105:AB116), IF(FORECAST($C101,AB$105:AB$116,$C$105:$C$116)<0,0, IF(FORECAST($C101,AB$105:AB$116,$C$105:$C$116)>100,100, FORECAST($C101,AB$105:AB$116,$C$105:$C$116)))) -> 2.341829263
C102: =MaxRegYear(C100,C105:C116) -> 2017 | D102: =IF(MAX(C105:C116)-MIN(C105:C116)<5,AVERAGEIF(C105:C116,">0",D105:D116), IF(FORECAST($C102,D$105:D$116,$C$105:$C$116)<0,0, IF(FORECAST($C102,D$105:D$116,$C$105:$C$116)>100,100, FORECAST($C102,D$105:D$116,$C$105:$C$116)))) -> 5.769373417 | H102: =IF(MAX(C105:C116)-MIN(C105:C116)<5,AVERAGEIF(C105:C116,">0",H105:H116), IF(FORECAST($C102,H$105:H$116,$C$105:$C$116)<0,0, IF(FORECAST($C102,H$105:H$116,$C$105:$C$116)>100,100, FORECAST($C102,H$105:H$116,$C$105:$C$116)))) -> 90.29774228 | I102: =IF(MAX(C105:C116)-MIN(C105:C116)<5,AVERAGEIF(C105:C116,">0",I105:I116), IF(FORECAST($C102,I$105:I$116,$C$105:$C$116)<0,0, IF(FORECAST($C102,I$105:I$116,$C$105:$C$116)>100,100, FORECAST($C102,I$105:I$116,$C$105:$C$116)))) -> 18.69626478 | M102: =IF(MAX(C105:C116)-MIN(C105:C116)<5,AVERAGEIF(C105:C116,">0",M105:M116), IF(FORECAST($C102,M$105:M$116,$C$105:$C$116)<0,0, IF(FORECAST($C102,M$105:M$116,$C$105:$C$116)>100,100, FORECAST($C102,M$105:M$116,$C$105:$C$116)))) -> 69.73620941 | N102: =IF(MAX(C105:C116)-MIN(C105:C116)<5,AVERAGEIF(C105:C116,">0",N105:N116), IF(FORECAST($C102,N$105:N$116,$C$105:$C$116)<0,0, IF(FORECAST($C102,N$105:N$116,$C$105:$C$116)>100,100, FORECAST($C102,N$105:N$116,$C$105:$C$116)))) -> 47.04937409 | R102: =IF(MAX(C105:C116)-MIN(C105:C116)<5,AVERAGEIF(C105:C116,">0",R105:R116), IF(FORECAST($C102,R$105:R$116,$C$105:$C$116)<0,0, IF(FORECAST($C102,R$105:R$116,$C$105:$C$116)>100,100, FORECAST($C102,R$105:R$116,$C$105:$C$116)))) -> 37.55181972 | S102: =IF(MAX(C105:C116)-MIN(C105:C116)<5,AVERAGEIF(C105:C116,">0",S105:S116), IF(FORECAST($C102,S$105:S$116,$C$105:$C$116)<0,0, IF(FORECAST($C102,S$105:S$116,$C$105:$C$116)>100,100, FORECAST($C102,S$105:S$116,$C$105:$C$116)))) -> 75.98119504 | W102: =IF(MAX(C105:C116)-MIN(C105:C116)<5,AVERAGEIF(C105:C116,">0",W105:W116), IF(FORECAST($C102,W$105:W$116,$C$105:$C$116)<0,0, IF(FORECAST($C102,W$105:W$116,$C$105:$C$116)>100,100, FORECAST($C102,W$105:W$116,$C$105:$C$116)))) -> 8.40168403 | X102: =IF(MAX(C105:C116)-MIN(C105:C116)<5,AVERAGEIF(C105:C116,">0",X105:X116), IF(FORECAST($C102,X$105:X$116,$C$105:$C$116)<0,0, IF(FORECAST($C102,X$105:X$116,$C$105:$C$116)>100,100, FORECAST($C102,X$105:X$116,$C$105:$C$116)))) -> 92.63277679 | AB102: =IF(MAX(C105:C116)-MIN(C105:C116)<5,AVERAGEIF(C105:C116,">0",AB105:AB116), IF(FORECAST($C102,AB$105:AB$116,$C$105:$C$116)<0,0, IF(FORECAST($C102,AB$105:AB$116,$C$105:$C$116)>100,100, FORECAST($C102,AB$105:AB$116,$C$105:$C$116)))) -> 0.02513655594
B104: Survey | C104: Year | D104: Improved | E104: Not shared | H104: Open defecation | I104: Improved | J104: Not shared | M104: Open defecation | N104: Improved | O104: Not shared | R104: Open defecation | S104: Improved | T104: Not shared | W104: Open defecation | X104: Improved | Y104: Not shared | AB104: Open defecation
B105: WHS03 | C105: 2003 | D105: =IF(ISERROR(INDIRECT(CONCATENATE($B105,"!C122"))),"",INDIRECT(CONCATENATE($B105,"!C122"))) -> 6.112462306 | E105: =IF(ISERROR(INDIRECT(CONCATENATE($B105,"!C129"))),"",INDIRECT(CONCATENATE($B105,"!C129"))) -> 59.86456895 | H105: =IF(ISERROR(INDIRECT(CONCATENATE($B105,"!C127"))),"",INDIRECT(CONCATENATE($B105,"!C127"))) -> 70.9865057 | I105: =IF(ISERROR(INDIRECT(CONCATENATE($B105,"!D122"))),"",INDIRECT(CONCATENATE($B105,"!D122"))) -> 9.437628595 | J105: =IF(ISERROR(INDIRECT(CONCATENATE($B105,"!D129"))),"",INDIRECT(CONCATENATE($B105,"!D129"))) -> 59.19517929 | M105: =IF(ISERROR(INDIRECT(CONCATENATE($B105,"!D127"))),"",INDIRECT(CONCATENATE($B105,"!D127"))) -> 58.55238119 | N105: =IF(ISERROR(INDIRECT(CONCATENATE($B105,"!E122"))),"",INDIRECT(CONCATENATE($B105,"!E122"))) -> 29.2259988 | O105: =IF(ISERROR(INDIRECT(CONCATENATE($B105,"!E129"))),"",INDIRECT(CONCATENATE($B105,"!E129"))) -> 55.38026833 | R105: =IF(ISERROR(INDIRECT(CONCATENATE($B105,"!E127"))),"",INDIRECT(CONCATENATE($B105,"!E127"))) -> 34.92236128 | S105: =IF(ISERROR(INDIRECT(CONCATENATE($B105,"!F122"))),"",INDIRECT(CONCATENATE($B105,"!F122"))) -> 66.50316237 | T105: =IF(ISERROR(INDIRECT(CONCATENATE($B105,"!F129"))),"",INDIRECT(CONCATENATE($B105,"!F129"))) -> 71.50981862 | W105: =IF(ISERROR(INDIRECT(CONCATENATE($B105,"!F127"))),"",INDIRECT(CONCATENATE($B105,"!F127"))) -> 13.15817557 | X105: =IF(ISERROR(INDIRECT(CONCATENATE($B105,"!G122"))),"",INDIRECT(CONCATENATE($B105,"!G122"))) -> 93.24234569 | Y105: =IF(ISERROR(INDIRECT(CONCATENATE($B105,"!G129"))),"",INDIRECT(CONCATENATE($B105,"!G129"))) -> 83.23914449 | AB105: =IF(ISERROR(INDIRECT(CONCATENATE($B105,"!G2127"))),"",INDIRECT(CONCATENATE($B105,"!G127"))) -> 1.763687784
B106: MICS07 | C106: 2007 | D106: 2.261255867 | E106: 66.73668907 | H106: 91.59607506 | I106: 5.948391479 | J106: 71.60990636 | M106: 76.35877866 | N106: 27.04245866 | O106: 63.76853421 | R106: 45.68229501 | S106: 65.54137991 | T106: 75.29964038 | W106: 11.99903128 | X106: 87.80742388 | Y106: 86.99598952 | AB106: 1.894839476
B107: MICS11 | C107: 2011 | D107: 6.147250092 | E107: 75.83651847 | H107: 85.82168043 | I107: 14.45440013 | J107: 66.24808237 | M107: 72.97298 | N107: 39.13659033 | O107: 68.2921482 | R107: 36.19270101 | S107: 71.81933976 | T107: 68.09132141 | W107: 9.183666528 | X107: 90.28304386 | Y107: 76.65667795 | AB107: 0.9160210363
B108: MICS15 | C108: 2015 | D108: 5.91695281 | E108: 74.91056421 | H108: 84.63936392 | I108: 17.87945313 | J108: 66.20624295 | M108: 63.02795634 | N108: 45.0763354 | O108: 75.80782812 | R108: 36.71037172 | S108: 74.89591763 | T108: 86.18177133 | W108: 9.734639974 | X108: 94.41159629 | Y108: 91.91552926 | AB108: 0.1593833414
B118: =CONCATENATE("National use of sanitation facilities, ",C99,"–",C100) -> National use of sanitation facilities, 2000–2020 | S118: Data points used for regression
A197: URBAN | D197: Poorest | I197: Poor | N197: Middle | S197: Rich | X197: Richest
D198: Improved | E198: Basic | F198: Limited | G198: Unimproved | H198: Open defecation | I198: Improved | J198: Basic | K198: Limited | L198: Unimproved | M198: Open defecation | N198: Improved | O198: Basic | P198: Limited | Q198: Unimproved | R198: Open defecation | S198: Improved | T198: Basic | U198: Limited | V198: Unimproved | W198: Open defecation | X198: Improved | Y198: Basic | Z198: Limited | AA198: Unimproved | AB198: Open defecation
A199: Forecast period: | C199: 2000 | D199: =IF((D201+H201)>100,D201*100/(D201+H201),D201) -> 23.51964306 | E199: =D199*AVERAGEIF(E205:E216,">0")/100 -> 15.08606719 | F199: =D199*(100-AVERAGEIF(E205:E216,">0"))/100 -> 8.433575878 | G199: =100-(E199+F199+H199) -> 31.91155842 | H199: =IF((D201+H201)>100,H201*100/(D201+H201),H201) -> 44.56879851 | I199: =IF((I201+M201)>100,I201*100/(I201+M201),I201) -> 62.83749001 | J199: =I199*AVERAGEIF(J205:J216,">0")/100 -> 45.65389429 | K199: =I199*(100-AVERAGEIF(J205:J216,">0"))/100 -> 17.18359572 | L199: =100-(J199+K199+M199) -> 25.06348107 | M199: =IF((I201+M201)>100,M201*100/(I201+M201),M201) -> 12.09902892 | N199: =IF((N201+R201)>100,N201*100/(N201+R201),N201) -> 76.06570669 | O199: =N199*AVERAGEIF(O205:O216,">0")/100 -> 58.11522014 | P199: =N199*(100-AVERAGEIF(O205:O216,">0"))/100 -> 17.95048656 | Q199: =100-(O199+P199+R199) -> 17.49028637 | R199: =IF((N201+R201)>100,R201*100/(N201+R201),R201) -> 6.444006944 | S199: =IF((S201+W201)>100,S201*100/(S201+W201),S201) -> 86.58406852 | T199: =S199*AVERAGEIF(T205:T216,">0")/100 -> 69.22920271 | U199: =S199*(100-AVERAGEIF(T205:T216,">0"))/100 -> 17.35486581 | V199: =100-(T199+U199+W199) -> 10.07068055 | W199: =IF((S201+W201)>100,W201*100/(S201+W201),W201) -> 3.345250926 | X199: =IF((X201+AB201)>100,X201*100/(X201+AB201),X201) -> 95.74933649 | Y199: =X199*AVERAGEIF(Y205:Y216,">0")/100 -> 87.43086995 | Z199: =X199*(100-AVERAGEIF(Y205:Y216,">0"))/100 -> 8.318466541 | AA199: =100-(Y199+Z199+AB199) -> 3.989686857 | AB199: =IF((X201+AB201)>100,AB201*100/(X201+AB201),AB201) -> 0.2609766498
C200: 2020 | D200: =IF((D202+H202)>100,D202*100/(D202+H202),D202) -> 42.24196712 | E200: =D200*AVERAGEIF(E205:E216,">0")/100 -> 27.09501808 | F200: =D200*(100-AVERAGEIF(E205:E216,">0"))/100 -> 15.14694904 | G200: =100-(E200+F200+H200) -> 20.73927114 | H200: =IF((D202+H202)>100,H202*100/(D202+H202),H202) -> 37.01876173 | I200: =IF((I202+M202)>100,I202*100/(I202+M202),I202) -> 67.73511723 | J200: =I200*AVERAGEIF(J205:J216,">0")/100 -> 49.21221202 | K200: =I200*(100-AVERAGEIF(J205:J216,">0"))/100 -> 18.5229052 | L200: =100-(J200+K200+M200) -> 18.3095989 | M200: =IF((I202+M202)>100,M202*100/(I202+M202),M202) -> 13.95528388 | N200: =IF((N202+R202)>100,N202*100/(N202+R202),N202) -> 83.80541963 | O200: =N200*AVERAGEIF(O205:O216,">0")/100 -> 64.02846463 | P200: =N200*(100-AVERAGEIF(O205:O216,">0"))/100 -> 19.776955 | Q200: =100-(O200+P200+R200) -> 13.390498 | R200: =IF((N202+R202)>100,R202*100/(N202+R202),R202) -> 2.804082372 | S200: =IF((S202+W202)>100,S202*100/(S202+W202),S202) -> 91.75233388 | T200: =S200*AVERAGEIF(T205:T216,">0")/100 -> 73.36154364 | U200: =S200*(100-AVERAGEIF(T205:T216,">0"))/100 -> 18.39079024 | V200: =100-(T200+U200+W200) -> 8.247666118 | W200: =IF((S202+W202)>100,W202*100/(S202+W202),W202) -> 0 | X200: =IF((X202+AB202)>100,X202*100/(X202+AB202),X202) -> 95.72735406 | Y200: =X200*AVERAGEIF(Y205:Y216,">0")/100 -> 87.4107973 | Z200: =X200*(100-AVERAGEIF(Y205:Y216,">0"))/100 -> 8.316556762 | AA200: =100-(Y200+Z200+AB200) -> 4.189373757 | AB200: =IF((X202+AB202)>100,AB202*100/(X202+AB202),AB202) -> 0.08327217914
A201: Regression period: | C201: =MinRegYear(C199,C205:C216) -> 2001 | D201: =IF(MAX(C205:C216)-MIN(C205:C216)<5,AVERAGEIF(C205:C216,">0",D205:D216), IF(FORECAST($C201,D$205:D$216,$C$205:$C$216)<0,0, IF(FORECAST($C201,D$205:D$216,$C$205:$C$216)>100,100, FORECAST($C201,D$205:D$216,$C$205:$C$216)))) -> 23.51964306 | H201: =IF(MAX(C205:C216)-MIN(C205:C216)<5,AVERAGEIF(C205:C216,">0",H205:H216), IF(FORECAST($C201,H$205:H$216,$C$205:$C$216)<0,0, IF(FORECAST($C201,H$205:H$216,$C$205:$C$216)>100,100, FORECAST($C201,H$205:H$216,$C$205:$C$216)))) -> 44.56879851 | I201: =IF(MAX(C205:C216)-MIN(C205:C216)<5,AVERAGEIF(C205:C216,">0",I205:I216), IF(FORECAST($C201,I$205:I$216,$C$205:$C$216)<0,0, IF(FORECAST($C201,I$205:I$216,$C$205:$C$216)>100,100, FORECAST($C201,I$205:I$216,$C$205:$C$216)))) -> 62.83749001 | M201: =IF(MAX(C205:C216)-MIN(C205:C216)<5,AVERAGEIF(C205:C216,">0",M205:M216), IF(FORECAST($C201,M$205:M$216,$C$205:$C$216)<0,0, IF(FORECAST($C201,M$205:M$216,$C$205:$C$216)>100,100, FORECAST($C201,M$205:M$216,$C$205:$C$216)))) -> 12.09902892 | N201: =IF(MAX(C205:C216)-MIN(C205:C216)<5,AVERAGEIF(C205:C216,">0",N205:N216), IF(FORECAST($C201,N$205:N$216,$C$205:$C$216)<0,0, IF(FORECAST($C201,N$205:N$216,$C$205:$C$216)>100,100, FORECAST($C201,N$205:N$216,$C$205:$C$216)))) -> 76.06570669 | R201: =IF(MAX(C205:C216)-MIN(C205:C216)<5,AVERAGEIF(C205:C216,">0",R205:R216), IF(FORECAST($C201,R$205:R$216,$C$205:$C$216)<0,0, IF(FORECAST($C201,R$205:R$216,$C$205:$C$216)>100,100, FORECAST($C201,R$205:R$216,$C$205:$C$216)))) -> 6.444006944 | S201: =IF(MAX(C205:C216)-MIN(C205:C216)<5,AVERAGEIF(C205:C216,">0",S205:S216), IF(FORECAST($C201,S$205:S$216,$C$205:$C$216)<0,0, IF(FORECAST($C201,S$205:S$216,$C$205:$C$216)>100,100, FORECAST($C201,S$205:S$216,$C$205:$C$216)))) -> 86.58406852 | W201: =IF(MAX(C205:C216)-MIN(C205:C216)<5,AVERAGEIF(C205:C216,">0",W205:W216), IF(FORECAST($C201,W$205:W$216,$C$205:$C$216)<0,0, IF(FORECAST($C201,W$205:W$216,$C$205:$C$216)>100,100, FORECAST($C201,W$205:W$216,$C$205:$C$216)))) -> 3.345250926 | X201: =IF(MAX(C205:C216)-MIN(C205:C216)<5,AVERAGEIF(C205:C216,">0",X205:X216), IF(FORECAST($C201,X$205:X$216,$C$205:$C$216)<0,0, IF(FORECAST($C201,X$205:X$216,$C$205:$C$216)>100,100, FORECAST($C201,X$205:X$216,$C$205:$C$216)))) -> 95.74933649 | AB201: =IF(MAX(C205:C216)-MIN(C205:C216)<5,AVERAGEIF(C205:C216,">0",AB205:AB216), IF(FORECAST($C201,AB$205:AB$216,$C$205:$C$216)<0,0, IF(FORECAST($C201,AB$205:AB$216,$C$205:$C$216)>100,100, FORECAST($C201,AB$205:AB$216,$C$205:$C$216)))) -> 0.2609766498
C202: =MaxRegYear(C200,C205:C216) -> 2017 | D202: =IF(MAX(C205:C216)-MIN(C205:C216)<5,AVERAGEIF(C205:C216,">0",D205:D216), IF(FORECAST($C202,D$205:D$216,$C$205:$C$216)<0,0, IF(FORECAST($C202,D$205:D$216,$C$205:$C$216)>100,100, FORECAST($C202,D$205:D$216,$C$205:$C$216)))) -> 42.24196712 | H202: =IF(MAX(C205:C216)-MIN(C205:C216)<5,AVERAGEIF(C205:C216,">0",H205:H216), IF(FORECAST($C202,H$205:H$216,$C$205:$C$216)<0,0, IF(FORECAST($C202,H$205:H$216,$C$205:$C$216)>100,100, FORECAST($C202,H$205:H$216,$C$205:$C$216)))) -> 37.01876173 | I202: =IF(MAX(C205:C216)-MIN(C205:C216)<5,AVERAGEIF(C205:C216,">0",I205:I216), IF(FORECAST($C202,I$205:I$216,$C$205:$C$216)<0,0, IF(FORECAST($C202,I$205:I$216,$C$205:$C$216)>100,100, FORECAST($C202,I$205:I$216,$C$205:$C$216)))) -> 67.73511723 | M202: =IF(MAX(C205:C216)-MIN(C205:C216)<5,AVERAGEIF(C205:C216,">0",M205:M216), IF(FORECAST($C202,M$205:M$216,$C$205:$C$216)<0,0, IF(FORECAST($C202,M$205:M$216,$C$205:$C$216)>100,100, FORECAST($C202,M$205:M$216,$C$205:$C$216)))) -> 13.95528388 | N202: =IF(MAX(C205:C216)-MIN(C205:C216)<5,AVERAGEIF(C205:C216,">0",N205:N216), IF(FORECAST($C202,N$205:N$216,$C$205:$C$216)<0,0, IF(FORECAST($C202,N$205:N$216,$C$205:$C$216)>100,100, FORECAST($C202,N$205:N$216,$C$205:$C$216)))) -> 83.80541963 | R202: =IF(MAX(C205:C216)-MIN(C205:C216)<5,AVERAGEIF(C205:C216,">0",R205:R216), IF(FORECAST($C202,R$205:R$216,$C$205:$C$216)<0,0, IF(FORECAST($C202,R$205:R$216,$C$205:$C$216)>100,100, FORECAST($C202,R$205:R$216,$C$205:$C$216)))) -> 2.804082372 | S202: =IF(MAX(C205:C216)-MIN(C205:C216)<5,AVERAGEIF(C205:C216,">0",S205:S216), IF(FORECAST($C202,S$205:S$216,$C$205:$C$216)<0,0, IF(FORECAST($C202,S$205:S$216,$C$205:$C$216)>100,100, FORECAST($C202,S$205:S$216,$C$205:$C$216)))) -> 91.75233388 | W202: =IF(MAX(C205:C216)-MIN(C205:C216)<5,AVERAGEIF(C205:C216,">0",W205:W216), IF(FORECAST($C202,W$205:W$216,$C$205:$C$216)<0,0, IF(FORECAST($C202,W$205:W$216,$C$205:$C$216)>100,100, FORECAST($C202,W$205:W$216,$C$205:$C$216)))) -> 0 | X202: =IF(MAX(C205:C216)-MIN(C205:C216)<5,AVERAGEIF(C205:C216,">0",X205:X216), IF(FORECAST($C202,X$205:X$216,$C$205:$C$216)<0,0, IF(FORECAST($C202,X$205:X$216,$C$205:$C$216)>100,100, FORECAST($C202,X$205:X$216,$C$205:$C$216)))) -> 95.72735406 | AB202: =IF(MAX(C205:C216)-MIN(C205:C216)<5,AVERAGEIF(C205:C216,">0",AB205:AB216), IF(FORECAST($C202,AB$205:AB$216,$C$205:$C$216)<0,0, IF(FORECAST($C202,AB$205:AB$216,$C$205:$C$216)>100,100, FORECAST($C202,AB$205:AB$216,$C$205:$C$216)))) -> 0.08327217914
B204: Survey | C204: Year | D204: Improved | E204: Not shared | H204: Open defecation | I204: Improved | J204: Not shared | M204: Open defecation | N204: Improved | O204: Not shared | R204: Open defecation | S204: Improved | T204: Not shared | W204: Open defecation | X204: Improved | Y204: Not shared | AB204: Open defecation
B205: WHS03 | C205: 2003 | D205: =IF(ISERROR(INDIRECT(CONCATENATE($B205,"!H122"))),"",INDIRECT(CONCATENATE($B205,"!H122"))) -> 28.93099289 | E205: =IF(ISERROR(INDIRECT(CONCATENATE($B205,"!H129"))),"",INDIRECT(CONCATENATE($B205,"!H129"))) -> 56.21449076 | H205: =IF(ISERROR(INDIRECT(CONCATENATE($B205,"!H127"))),"",INDIRECT(CONCATENATE($B205,"!H127"))) -> 44.15550545 | I205: =IF(ISERROR(INDIRECT(CONCATENATE($B205,"!I122"))),"",INDIRECT(CONCATENATE($B205,"!I122"))) -> 64.98677459 | J205: =IF(ISERROR(INDIRECT(CONCATENATE($B205,"!I129"))),"",INDIRECT(CONCATENATE($B205,"!I129"))) -> 69.08050495 | M205: =IF(ISERROR(INDIRECT(CONCATENATE($B205,"!I127"))),"",INDIRECT(CONCATENATE($B205,"!I127"))) -> 10.8605895 | N205: =IF(ISERROR(INDIRECT(CONCATENATE($B205,"!J122"))),"",INDIRECT(CONCATENATE($B205,"!J122"))) -> 80.54999825 | O205: =IF(ISERROR(INDIRECT(CONCATENATE($B205,"!J129"))),"",INDIRECT(CONCATENATE($B205,"!J129"))) -> 73.44288638 | R205: =IF(ISERROR(INDIRECT(CONCATENATE($B205,"!J127"))),"",INDIRECT(CONCATENATE($B205,"!J127"))) -> 6.359004703 | S205: =IF(ISERROR(INDIRECT(CONCATENATE($B205,"!K122"))),"",INDIRECT(CONCATENATE($B205,"!K122"))) -> 90.0027965 | T205: =IF(ISERROR(INDIRECT(CONCATENATE($B205,"!K129"))),"",INDIRECT(CONCATENATE($B205,"!K129"))) -> 80.90941541 | W205: =IF(ISERROR(INDIRECT(CONCATENATE($B205,"!K127"))),"",INDIRECT(CONCATENATE($B205,"!K127"))) -> 3.083864526 | X205: =IF(ISERROR(INDIRECT(CONCATENATE($B205,"!L122"))),"",INDIRECT(CONCATENATE($B205,"!L122"))) -> 97.47108305 | Y205: =IF(ISERROR(INDIRECT(CONCATENATE($B205,"!L129"))),"",INDIRECT(CONCATENATE($B205,"!L129"))) -> 89.57388915 | AB205: =IF(ISERROR(INDIRECT(CONCATENATE($B205,"!L2127"))),"",INDIRECT(CONCATENATE($B205,"!L127"))) -> 0
B206: MICS07 | C206: 2007 | D206: 26.50412121 | E206: 62.38315123 | H206: 39.88467181 | I206: 61.06400059 | J206: 69.51653695 | M206: 15.50478644 | N206: 73.12931015 | O206: 76.3907793 | R206: 5.314189962 | S206: 84.14816192 | T206: 81.81706945 | W206: 1.710917396 | X206: 94.26979702 | Y206: 94.24828267 | AB206: 0.5663794173
B207: MICS11 | C207: 2011 | D207: 34.08070439 | E207: 62.29019576 | H207: 41.96436676 | I207: 68.50746274 | J207: 66.89778989 | M207: 12.25127833 | N207: 82.03012274 | O207: 68.2835575 | R207: 2.58877963 | S207: 90.24416217 | T207: 69.05957724 | W207: 1.031911048 | X207: 93.50470651 | Y207: 85.73078397 | AB207: 0.1221182406
B208: MICS15 | C208: 2015 | D208: 42.00740188 | E208: 75.68182438 | H208: 37.17057648 | I208: 66.58697656 | J208: 85.12081361 | M208: 13.49197133 | N208: 84.0328215 | O208: 87.48814177 | R208: 4.234204337 | S208: 92.27768422 | T208: 88.03814523 | W208: 0.2786922905 | X208: 97.70779453 | Y208: 95.69602933 | AB208: 0
B218: =CONCATENATE("Urban use of sanitation facilities, ",C199,"–",C200) -> Urban use of sanitation facilities, 2000–2020 | S218: Data points used for regression
A297: RURAL | D297: Poorest | I297: Poor | N297: Middle | S297: Rich | X297: Richest
D298: Improved | E298: Basic | F298: Limited | G298: Unimproved | H298: Open defecation | I298: Improved | J298: Basic | K298: Limited | L298: Unimproved | M298: Open defecation | N298: Improved | O298: Basic | P298: Limited | Q298: Unimproved | R298: Open defecation | S298: Improved | T298: Basic | U298: Limited | V298: Unimproved | W298: Open defecation | X298: Improved | Y298: Basic | Z298: Limited | AA298: Unimproved | AB298: Open defecation
A299: Forecast period: | C299: 2000 | D299: =IF((D301+H301)>100,D301*100/(D301+H301),D301) -> 3.751654225 | E299: =D299*AVERAGEIF(E305:E316,">0")/100 -> 2.659253213 | F299: =D299*(100-AVERAGEIF(E305:E316,">0"))/100 -> 1.092401012 | G299: =100-(E299+F299+H299) -> 17.24153523 | H299: =IF((D301+H301)>100,H301*100/(D301+H301),H301) -> 79.00681055 | I299: =IF((I301+M301)>100,I301*100/(I301+M301),I301) -> 4.768610332 | J299: =I299*AVERAGEIF(J305:J316,">0")/100 -> 3.452931673 | K299: =I299*(100-AVERAGEIF(J305:J316,">0"))/100 -> 1.315678659 | L299: =100-(J299+K299+M299) -> 17.62269856 | M299: =IF((I301+M301)>100,M301*100/(I301+M301),M301) -> 77.60869111 | N299: =IF((N301+R301)>100,N301*100/(N301+R301),N301) -> 4.834768889 | O299: =N299*AVERAGEIF(O305:O316,">0")/100 -> 3.158216117 | P299: =N299*(100-AVERAGEIF(O305:O316,">0"))/100 -> 1.676552772 | Q299: =100-(O299+P299+R299) -> 32.28946311 | R299: =IF((N301+R301)>100,R301*100/(N301+R301),R301) -> 62.875768 | S299: =IF((S301+W301)>100,S301*100/(S301+W301),S301) -> 13.54958001 | T299: =S299*AVERAGEIF(T305:T316,">0")/100 -> 8.453897885 | U299: =S299*(100-AVERAGEIF(T305:T316,">0"))/100 -> 5.095682125 | V299: =100-(T299+U299+W299) -> 35.77499333 | W299: =IF((S301+W301)>100,W301*100/(S301+W301),W301) -> 50.67542666 | X299: =IF((X301+AB301)>100,X301*100/(X301+AB301),X301) -> 35.30024727 | Y299: =X299*AVERAGEIF(Y305:Y316,">0")/100 -> 25.13128868 | Z299: =X299*(100-AVERAGEIF(Y305:Y316,">0"))/100 -> 10.16895859 | AA299: =100-(Y299+Z299+AB299) -> 35.38173858 | AB299: =IF((X301+AB301)>100,AB301*100/(X301+AB301),AB301) -> 29.31801416
C300: 2020 | D300: =IF((D302+H302)>100,D302*100/(D302+H302),D302) -> 4.053163225 | E300: =D300*AVERAGEIF(E305:E316,">0")/100 -> 2.872969278 | F300: =D300*(100-AVERAGEIF(E305:E316,">0"))/100 -> 1.180193947 | G300: =100-(E300+F300+H300) -> 1.205501271 | H300: =IF((D302+H302)>100,H302*100/(D302+H302),H302) -> 94.7413355 | I300: =IF((I302+M302)>100,I302*100/(I302+M302),I302) -> 7.207300727 | J300: =I300*AVERAGEIF(J305:J316,">0")/100 -> 5.218777636 | K300: =I300*(100-AVERAGEIF(J305:J316,">0"))/100 -> 1.988523091 | L300: =100-(J300+K300+M300) -> 8.740235309 | M300: =IF((I302+M302)>100,M302*100/(I302+M302),M302) -> 84.05246396 | N300: =IF((N302+R302)>100,N302*100/(N302+R302),N302) -> 14.30055232 | O300: =N300*AVERAGEIF(O305:O316,">0")/100 -> 9.341549896 | P300: =N300*(100-AVERAGEIF(O305:O316,">0"))/100 -> 4.95900242 | Q300: =100-(O300+P300+R300) -> 9.78983004 | R300: =IF((N302+R302)>100,R302*100/(N302+R302),R302) -> 75.90961764 | S300: =IF((S302+W302)>100,S302*100/(S302+W302),S302) -> 28.80061922 | T300: =S300*AVERAGEIF(T305:T316,">0")/100 -> 17.96937571 | U300: =S300*(100-AVERAGEIF(T305:T316,">0"))/100 -> 10.83124351 | V300: =100-(T300+U300+W300) -> 13.29446853 | W300: =IF((S302+W302)>100,W302*100/(S302+W302),W302) -> 57.90491225 | X300: =IF((X302+AB302)>100,X302*100/(X302+AB302),X302) -> 64.73482891 | Y300: =X300*AVERAGEIF(Y305:Y316,">0")/100 -> 46.08663675 | Z300: =X300*(100-AVERAGEIF(Y305:Y316,">0"))/100 -> 18.64819216 | AA300: =100-(Y300+Z300+AB300) -> 12.25331765 | AB300: =IF((X302+AB302)>100,AB302*100/(X302+AB302),AB302) -> 23.01185343
A301: Regression period: | C301: =MinRegYear(C299,C305:C316) -> 2001 | D301: =IF(MAX(C305:C316)-MIN(C305:C316)<5,AVERAGEIF(C305:C316,">0",D305:D316), IF(FORECAST($C301,D$305:D$316,$C$305:$C$316)<0,0, IF(FORECAST($C301,D$305:D$316,$C$305:$C$316)>100,100, FORECAST($C301,D$305:D$316,$C$305:$C$316)))) -> 3.751654225 | H301: =IF(MAX(C305:C316)-MIN(C305:C316)<5,AVERAGEIF(C305:C316,">0",H305:H316), IF(FORECAST($C301,H$305:H$316,$C$305:$C$316)<0,0, IF(FORECAST($C301,H$305:H$316,$C$305:$C$316)>100,100, FORECAST($C301,H$305:H$316,$C$305:$C$316)))) -> 79.00681055 | I301: =IF(MAX(C305:C316)-MIN(C305:C316)<5,AVERAGEIF(C305:C316,">0",I305:I316), IF(FORECAST($C301,I$305:I$316,$C$305:$C$316)<0,0, IF(FORECAST($C301,I$305:I$316,$C$305:$C$316)>100,100, FORECAST($C301,I$305:I$316,$C$305:$C$316)))) -> 4.768610332 | M301: =IF(MAX(C305:C316)-MIN(C305:C316)<5,AVERAGEIF(C305:C316,">0",M305:M316), IF(FORECAST($C301,M$305:M$316,$C$305:$C$316)<0,0, IF(FORECAST($C301,M$305:M$316,$C$305:$C$316)>100,100, FORECAST($C301,M$305:M$316,$C$305:$C$316)))) -> 77.60869111 | N301: =IF(MAX(C305:C316)-MIN(C305:C316)<5,AVERAGEIF(C305:C316,">0",N305:N316), IF(FORECAST($C301,N$305:N$316,$C$305:$C$316)<0,0, IF(FORECAST($C301,N$305:N$316,$C$305:$C$316)>100,100, FORECAST($C301,N$305:N$316,$C$305:$C$316)))) -> 4.834768889 | R301: =IF(MAX(C305:C316)-MIN(C305:C316)<5,AVERAGEIF(C305:C316,">0",R305:R316), IF(FORECAST($C301,R$305:R$316,$C$305:$C$316)<0,0, IF(FORECAST($C301,R$305:R$316,$C$305:$C$316)>100,100, FORECAST($C301,R$305:R$316,$C$305:$C$316)))) -> 62.875768 | S301: =IF(MAX(C305:C316)-MIN(C305:C316)<5,AVERAGEIF(C305:C316,">0",S305:S316), IF(FORECAST($C301,S$305:S$316,$C$305:$C$316)<0,0, IF(FORECAST($C301,S$305:S$316,$C$305:$C$316)>100,100, FORECAST($C301,S$305:S$316,$C$305:$C$316)))) -> 13.54958001 | W301: =IF(MAX(C305:C316)-MIN(C305:C316)<5,AVERAGEIF(C305:C316,">0",W305:W316), IF(FORECAST($C301,W$305:W$316,$C$305:$C$316)<0,0, IF(FORECAST($C301,W$305:W$316,$C$305:$C$316)>100,100, FORECAST($C301,W$305:W$316,$C$305:$C$316)))) -> 50.67542666 | X301: =IF(MAX(C305:C316)-MIN(C305:C316)<5,AVERAGEIF(C305:C316,">0",X305:X316), IF(FORECAST($C301,X$305:X$316,$C$305:$C$316)<0,0, IF(FORECAST($C301,X$305:X$316,$C$305:$C$316)>100,100, FORECAST($C301,X$305:X$316,$C$305:$C$316)))) -> 35.30024727 | AB301: =IF(MAX(C305:C316)-MIN(C305:C316)<5,AVERAGEIF(C305:C316,">0",AB305:AB316), IF(FORECAST($C301,AB$305:AB$316,$C$305:$C$316)<0,0, IF(FORECAST($C301,AB$305:AB$316,$C$305:$C$316)>100,100, FORECAST($C301,AB$305:AB$316,$C$305:$C$316)))) -> 29.31801416
C302: =MaxRegYear(C300,C305:C316) -> 2017 | D302: =IF(MAX(C305:C316)-MIN(C305:C316)<5,AVERAGEIF(C305:C316,">0",D305:D316), IF(FORECAST($C302,D$305:D$316,$C$305:$C$316)<0,0, IF(FORECAST($C302,D$305:D$316,$C$305:$C$316)>100,100, FORECAST($C302,D$305:D$316,$C$305:$C$316)))) -> 4.053163225 | H302: =IF(MAX(C305:C316)-MIN(C305:C316)<5,AVERAGEIF(C305:C316,">0",H305:H316), IF(FORECAST($C302,H$305:H$316,$C$305:$C$316)<0,0, IF(FORECAST($C302,H$305:H$316,$C$305:$C$316)>100,100, FORECAST($C302,H$305:H$316,$C$305:$C$316)))) -> 94.7413355 | I302: =IF(MAX(C305:C316)-MIN(C305:C316)<5,AVERAGEIF(C305:C316,">0",I305:I316), IF(FORECAST($C302,I$305:I$316,$C$305:$C$316)<0,0, IF(FORECAST($C302,I$305:I$316,$C$305:$C$316)>100,100, FORECAST($C302,I$305:I$316,$C$305:$C$316)))) -> 7.207300727 | M302: =IF(MAX(C305:C316)-MIN(C305:C316)<5,AVERAGEIF(C305:C316,">0",M305:M316), IF(FORECAST($C302,M$305:M$316,$C$305:$C$316)<0,0, IF(FORECAST($C302,M$305:M$316,$C$305:$C$316)>100,100, FORECAST($C302,M$305:M$316,$C$305:$C$316)))) -> 84.05246396 | N302: =IF(MAX(C305:C316)-MIN(C305:C316)<5,AVERAGEIF(C305:C316,">0",N305:N316), IF(FORECAST($C302,N$305:N$316,$C$305:$C$316)<0,0, IF(FORECAST($C302,N$305:N$316,$C$305:$C$316)>100,100, FORECAST($C302,N$305:N$316,$C$305:$C$316)))) -> 14.30055232 | R302: =IF(MAX(C305:C316)-MIN(C305:C316)<5,AVERAGEIF(C305:C316,">0",R305:R316), IF(FORECAST($C302,R$305:R$316,$C$305:$C$316)<0,0, IF(FORECAST($C302,R$305:R$316,$C$305:$C$316)>100,100, FORECAST($C302,R$305:R$316,$C$305:$C$316)))) -> 75.90961764 | S302: =IF(MAX(C305:C316)-MIN(C305:C316)<5,AVERAGEIF(C305:C316,">0",S305:S316), IF(FORECAST($C302,S$305:S$316,$C$305:$C$316)<0,0, IF(FORECAST($C302,S$305:S$316,$C$305:$C$316)>100,100, FORECAST($C302,S$305:S$316,$C$305:$C$316)))) -> 28.80061922 | W302: =IF(MAX(C305:C316)-MIN(C305:C316)<5,AVERAGEIF(C305:C316,">0",W305:W316), IF(FORECAST($C302,W$305:W$316,$C$305:$C$316)<0,0, IF(FORECAST($C302,W$305:W$316,$C$305:$C$316)>100,100, FORECAST($C302,W$305:W$316,$C$305:$C$316)))) -> 57.90491225 | X302: =IF(MAX(C305:C316)-MIN(C305:C316)<5,AVERAGEIF(C305:C316,">0",X305:X316), IF(FORECAST($C302,X$305:X$316,$C$305:$C$316)<0,0, IF(FORECAST($C302,X$305:X$316,$C$305:$C$316)>100,100, FORECAST($C302,X$305:X$316,$C$305:$C$316)))) -> 64.73482891 | AB302: =IF(MAX(C305:C316)-MIN(C305:C316)<5,AVERAGEIF(C305:C316,">0",AB305:AB316), IF(FORECAST($C302,AB$305:AB$316,$C$305:$C$316)<0,0, IF(FORECAST($C302,AB$305:AB$316,$C$305:$C$316)>100,100, FORECAST($C302,AB$305:AB$316,$C$305:$C$316)))) -> 23.01185343
B304: Survey | C304: Year | D304: Improved | E304: Not shared | H304: Open defecation | I304: Improved | J304: Not shared | M304: Open defecation | N304: Improved | O304: Not shared | R304: Open defecation | S304: Improved | T304: Not shared | W304: Open defecation | X304: Improved | Y304: Not shared | AB304: Open defecation
B305: WHS03 | C305: 2003 | D305: =IF(ISERROR(INDIRECT(CONCATENATE($B305,"!M122"))),"",INDIRECT(CONCATENATE($B305,"!M122"))) -> 4.73891919 | E305: =IF(ISERROR(INDIRECT(CONCATENATE($B305,"!M129"))),"",INDIRECT(CONCATENATE($B305,"!M129"))) -> 65.27001744 | H305: =IF(ISERROR(INDIRECT(CONCATENATE($B305,"!M127"))),"",INDIRECT(CONCATENATE($B305,"!M127"))) -> 75.01114426 | I305: =IF(ISERROR(INDIRECT(CONCATENATE($B305,"!N122"))),"",INDIRECT(CONCATENATE($B305,"!N122"))) -> 6.555632597 | J305: =IF(ISERROR(INDIRECT(CONCATENATE($B305,"!N129"))),"",INDIRECT(CONCATENATE($B305,"!N129"))) -> 64.61601988 | M305: =IF(ISERROR(INDIRECT(CONCATENATE($B305,"!N127"))),"",INDIRECT(CONCATENATE($B305,"!N127"))) -> 70.83162059 | N305: =IF(ISERROR(INDIRECT(CONCATENATE($B305,"!O122"))),"",INDIRECT(CONCATENATE($B305,"!O122"))) -> 8.331018104 | O305: =IF(ISERROR(INDIRECT(CONCATENATE($B305,"!O129"))),"",INDIRECT(CONCATENATE($B305,"!O129"))) -> 53.91730871 | R305: =IF(ISERROR(INDIRECT(CONCATENATE($B305,"!O127"))),"",INDIRECT(CONCATENATE($B305,"!O127"))) -> 55.36908199 | S305: =IF(ISERROR(INDIRECT(CONCATENATE($B305,"!P122"))),"",INDIRECT(CONCATENATE($B305,"!P122"))) -> 18.50588953 | T305: =IF(ISERROR(INDIRECT(CONCATENATE($B305,"!P129"))),"",INDIRECT(CONCATENATE($B305,"!P129"))) -> 56.97948098 | W305: =IF(ISERROR(INDIRECT(CONCATENATE($B305,"!P127"))),"",INDIRECT(CONCATENATE($B305,"!P127"))) -> 45.51882685 | X305: =IF(ISERROR(INDIRECT(CONCATENATE($B305,"!Q122"))),"",INDIRECT(CONCATENATE($B305,"!Q122"))) -> 38.89250613 | Y305: =IF(ISERROR(INDIRECT(CONCATENATE($B305,"!Q129"))),"",INDIRECT(CONCATENATE($B305,"!Q129"))) -> 57.19721581 | AB305: =IF(ISERROR(INDIRECT(CONCATENATE($B305,"!Q2127"))),"",INDIRECT(CONCATENATE($B305,"!Q127"))) -> 26.17565739
B306: MICS07 | C306: 2007 | D306: 2.08005846 | E306: 74.93505726 | H306: 93.92494312 | I306: 2.514585134 | J306: 71.30294223 | M306: 90.31126228 | N306: 4.235638187 | O306: 71.12613549 | R306: 79.31409183 | S306: 12.41729366 | T306: 60.46900459 | W306: 65.56486874 | X306: 42.6987606 | Y306: 75.77465574 | AB306: 34.82459753
B307: MICS11 | C307: 2011 | D307: 4.660691609 | E307: 66.87058007 | H307: 88.69296295 | I307: 8.183302124 | J307: 79.47623609 | M307: 83.81136284 | N307: 12.10940365 | O307: 69.74435602 | R307: 75.32841524 | S307: 27.63454278 | T307: 65.33490846 | W307: 49.01794171 | X307: 61.23696189 | Y307: 72.63546933 | AB307: 16.69613644
B308: MICS15 | C308: 2015 | D308: 4.12996564 | E308: 76.45294928 | H308: 89.86724178 | I308: 6.698302262 | J308: 74.24320229 | M308: 78.36806444 | N308: 13.59458247 | O308: 66.50420275 | R308: 67.55918223 | S308: 26.1426725 | T308: 66.7859027 | W308: 57.05904052 | X308: 57.24192374 | Y308: 79.16447376 | AB308: 26.96334382
B318: =CONCATENATE("Rural use of sanitation facilities, ",C299,"–",C300) -> Rural use of sanitation facilities, 2000–2020 | S318: Data points used for regression

Sheet Hygiene
B4: Access to hygiene facilities by wealth quintile (%)
B5: =IF(ISERROR(INDIRECT(CONCATENATE($E$32,"!A2"))),"",INDIRECT(CONCATENATE($E$32,"!A2"))) -> Mauritania
B7: =CONCATENATE("National ",IF(ISERROR(INDIRECT(CONCATENATE($E$32,"!A2"))),"",INDIRECT(CONCATENATE($E$32,"!A210")))) -> National Access to hygiene facilities | K7: =CONCATENATE("Urban ",IF(ISERROR(INDIRECT(CONCATENATE($E$32,"!A2"))),"",INDIRECT(CONCATENATE($E$32,"!A210")))) -> Urban Access to hygiene facilities | S7: =CONCATENATE("Rural ",IF(ISERROR(INDIRECT(CONCATENATE($E$32,"!A2"))),"",INDIRECT(CONCATENATE($E$32,"!A210")))) -> Rural Access to hygiene facilities
E32: =INDEX(B88:B100,A88) -> MICS15 | G32: =IF(ISERROR(INDIRECT(CONCATENATE($E$32,"!A2"))),"",INDIRECT(CONCATENATE($E$32,"!A2"))) -> Mauritania | K32: Poorest | N32: Poor | Q32: Middle | T32: Rich | W32: Richest
K33: Basic | L33: Limited | M33: No facility | N33: Basic | O33: Limited | P33: No facility | Q33: Basic | R33: Limited | S33: No facility | T33: Basic | U33: Limited | V33: No facility | W33: Basic | X33: Limited | Y33: No facility
B34: >>> Select Survey : | G34: NATIONAL | J34: =IF(ISERROR(INDIRECT(CONCATENATE(#REF!,"!A2"))),"",INDIRECT(CONCATENATE(#REF!,"!A210"))) ->  | K34: =IF(ISERROR(INDIRECT(CONCATENATE($E$32,"!C222"))),"",INDIRECT(CONCATENATE($E$32,"!C222"))) -> 30.00145687 | L34: =IF(ISERROR(INDIRECT(CONCATENATE($E$32,"!C223"))),"",INDIRECT(CONCATENATE($E$32,"!C223"))) -> 19.4468276 | M34: =IF(ISERROR(INDIRECT(CONCATENATE($E$32,"!C224"))),"",INDIRECT(CONCATENATE($E$32,"!C224"))) -> 50.55171552 | N34: =IF(ISERROR(INDIRECT(CONCATENATE($E$32,"!D222"))),"",INDIRECT(CONCATENATE($E$32,"!D222"))) -> 40.11609131 | O34: =IF(ISERROR(INDIRECT(CONCATENATE($E$32,"!D223"))),"",INDIRECT(CONCATENATE($E$32,"!D223"))) -> 31.63347962 | P34: =IF(ISERROR(INDIRECT(CONCATENATE($E$32,"!D224"))),"",INDIRECT(CONCATENATE($E$32,"!D224"))) -> 28.25042907 | Q34: =IF(ISERROR(INDIRECT(CONCATENATE($E$32,"!E222"))),"",INDIRECT(CONCATENATE($E$32,"!E222"))) -> 54.18864554 | R34: =IF(ISERROR(INDIRECT(CONCATENATE($E$32,"!E223"))),"",INDIRECT(CONCATENATE($E$32,"!E223"))) -> 30.08359837 | S34: =IF(ISERROR(INDIRECT(CONCATENATE($E$32,"!E224"))),"",INDIRECT(CONCATENATE($E$32,"!E224"))) -> 15.72775609 | T34: =IF(ISERROR(INDIRECT(CONCATENATE($E$32,"!F222"))),"",INDIRECT(CONCATENATE($E$32,"!F222"))) -> 69.44199751 | U34: =IF(ISERROR(INDIRECT(CONCATENATE($E$32,"!F223"))),"",INDIRECT(CONCATENATE($E$32,"!F223"))) -> 23.50669258 | V34: =IF(ISERROR(INDIRECT(CONCATENATE($E$32,"!F224"))),"",INDIRECT(CONCATENATE($E$32,"!F224"))) -> 7.051309909 | W34: =IF(ISERROR(INDIRECT(CONCATENATE($E$32,"!G222"))),"",INDIRECT(CONCATENATE($E$32,"!G222"))) -> 77.65233237 | X34: =IF(ISERROR(INDIRECT(CONCATENATE($E$32,"!G223"))),"",INDIRECT(CONCATENATE($E$32,"!G223"))) -> 20.51285456 | Y34: =IF(ISERROR(INDIRECT(CONCATENATE($E$32,"!G224"))),"",INDIRECT(CONCATENATE($E$32,"!G224"))) -> 1.834813064
G37: URBAN | J37: =IF(ISERROR(INDIRECT(CONCATENATE(#REF!,"!A2"))),"",INDIRECT(CONCATENATE(#REF!,"!A210"))) ->  | K37: =IF(ISERROR(INDIRECT(CONCATENATE($E$32,"!H222"))),"",INDIRECT(CONCATENATE($E$32,"!H222"))) -> 47.71889541 | L37: =IF(ISERROR(INDIRECT(CONCATENATE($E$32,"!H223"))),"",INDIRECT(CONCATENATE($E$32,"!H223"))) -> 29.43700354 | M37: =IF(ISERROR(INDIRECT(CONCATENATE($E$32,"!H224"))),"",INDIRECT(CONCATENATE($E$32,"!H224"))) -> 22.84410105 | N37: =IF(ISERROR(INDIRECT(CONCATENATE($E$32,"!I222"))),"",INDIRECT(CONCATENATE($E$32,"!I222"))) -> 64.75540537 | O37: =IF(ISERROR(INDIRECT(CONCATENATE($E$32,"!I223"))),"",INDIRECT(CONCATENATE($E$32,"!I223"))) -> 26.40192134 | P37: =IF(ISERROR(INDIRECT(CONCATENATE($E$32,"!I224"))),"",INDIRECT(CONCATENATE($E$32,"!I224"))) -> 8.842673297 | Q37: =IF(ISERROR(INDIRECT(CONCATENATE($E$32,"!J222"))),"",INDIRECT(CONCATENATE($E$32,"!J222"))) -> 73.96365678 | R37: =IF(ISERROR(INDIRECT(CONCATENATE($E$32,"!J223"))),"",INDIRECT(CONCATENATE($E$32,"!J223"))) -> 22.4349924 | S37: =IF(ISERROR(INDIRECT(CONCATENATE($E$32,"!J224"))),"",INDIRECT(CONCATENATE($E$32,"!J224"))) -> 3.601350821 | T37: =IF(ISERROR(INDIRECT(CONCATENATE($E$32,"!K222"))),"",INDIRECT(CONCATENATE($E$32,"!K222"))) -> 73.541273 | U37: =IF(ISERROR(INDIRECT(CONCATENATE($E$32,"!K223"))),"",INDIRECT(CONCATENATE($E$32,"!K223"))) -> 24.89445357 | V37: =IF(ISERROR(INDIRECT(CONCATENATE($E$32,"!K224"))),"",INDIRECT(CONCATENATE($E$32,"!K224"))) -> 1.564273434 | W37: =IF(ISERROR(INDIRECT(CONCATENATE($E$32,"!L222"))),"",INDIRECT(CONCATENATE($E$32,"!L222"))) -> 78.75591477 | X37: =IF(ISERROR(INDIRECT(CONCATENATE($E$32,"!L223"))),"",INDIRECT(CONCATENATE($E$32,"!L223"))) -> 19.42356492 | Y37: =IF(ISERROR(INDIRECT(CONCATENATE($E$32,"!L224"))),"",INDIRECT(CONCATENATE($E$32,"!L224"))) -> 1.820520309
G40: RURAL | J40: =IF(ISERROR(INDIRECT(CONCATENATE(#REF!,"!A2"))),"",INDIRECT(CONCATENATE(#REF!,"!A210"))) ->  | K40: =IF(ISERROR(INDIRECT(CONCATENATE($E$32,"!M222"))),"",INDIRECT(CONCATENATE($E$32,"!M222"))) -> 29.19825521 | L40: =IF(ISERROR(INDIRECT(CONCATENATE($E$32,"!M223"))),"",INDIRECT(CONCATENATE($E$32,"!M223"))) -> 13.21498416 | M40: =IF(ISERROR(INDIRECT(CONCATENATE($E$32,"!M224"))),"",INDIRECT(CONCATENATE($E$32,"!M224"))) -> 57.58676063 | N40: =IF(ISERROR(INDIRECT(CONCATENATE($E$32,"!N222"))),"",INDIRECT(CONCATENATE($E$32,"!N222"))) -> 31.9231245 | O40: =IF(ISERROR(INDIRECT(CONCATENATE($E$32,"!N223"))),"",INDIRECT(CONCATENATE($E$32,"!N223"))) -> 26.32041513 | P40: =IF(ISERROR(INDIRECT(CONCATENATE($E$32,"!N224"))),"",INDIRECT(CONCATENATE($E$32,"!N224"))) -> 41.75646037 | Q40: =IF(ISERROR(INDIRECT(CONCATENATE($E$32,"!O222"))),"",INDIRECT(CONCATENATE($E$32,"!O222"))) -> 39.08550046 | R40: =IF(ISERROR(INDIRECT(CONCATENATE($E$32,"!O223"))),"",INDIRECT(CONCATENATE($E$32,"!O223"))) -> 33.124869 | S40: =IF(ISERROR(INDIRECT(CONCATENATE($E$32,"!O224"))),"",INDIRECT(CONCATENATE($E$32,"!O224"))) -> 27.78963054 | T40: =IF(ISERROR(INDIRECT(CONCATENATE($E$32,"!P222"))),"",INDIRECT(CONCATENATE($E$32,"!P222"))) -> 46.09107127 | U40: =IF(ISERROR(INDIRECT(CONCATENATE($E$32,"!P223"))),"",INDIRECT(CONCATENATE($E$32,"!P223"))) -> 31.50492547 | V40: =IF(ISERROR(INDIRECT(CONCATENATE($E$32,"!P224"))),"",INDIRECT(CONCATENATE($E$32,"!P224"))) -> 22.40400327 | W40: =IF(ISERROR(INDIRECT(CONCATENATE($E$32,"!Q222"))),"",INDIRECT(CONCATENATE($E$32,"!Q222"))) -> 65.30473428 | X40: =IF(ISERROR(INDIRECT(CONCATENATE($E$32,"!Q223"))),"",INDIRECT(CONCATENATE($E$32,"!Q223"))) -> 22.23255277 | Y40: =IF(ISERROR(INDIRECT(CONCATENATE($E$32,"!Q224"))),"",INDIRECT(CONCATENATE($E$32,"!Q224"))) -> 12.46271296
A88: 4 | B88: WHS03
B89: MICS07
B90: MICS11
B91: MICS15
B92: Template

Sheet WHS03
A2: =A1026 -> Mauritania
A3: =A1034 -> 2003
A4: Use of drinking water sources
A5: by wealth quintile and sub-national region
A6: Notes:
A7: WHO/UNICEF JMP customised wealth index excludes water,
A8: sanitation and hygiene assets.
A9: Survey used for analysis: | B9: =A1025 -> WHS03
A10: Improved wells + springs based on: | B10: MICS07
A11: =B1027 -> 
A14: Use of drinking water sources | C14: NATIONAL wealth index quintile | H14: URBAN wealth index quintile | M14: RURAL wealth index quintile | BA14: Raw numbers of respondents: | BB14: Use of drinking water sources | BC14: NATIONAL wealth index quintile | BH14: URBAN wealth index quintile | BM14: RURAL wealth index quintile
A15: Weighted percentage (used in graphs) | C15: Poorest | D15: Poor | E15: Middle | F15: Rich | G15: Richest | H15: Poorest | I15: Poor | J15: Middle | K15: Rich | L15: Richest | M15: Poorest | N15: Poor | O15: Middle | P15: Rich | Q15: Richest | BA15: Water data, raw numbers (weighted) | BC15: Poorest | BD15: Poor | BE15: Middle | BF15: Rich | BG15: Richest | BH15: Poorest | BI15: Poor | BJ15: Middle | BK15: Rich | BL15: Richest | BM15: Poorest | BN15: Poor | BO15: Middle | BP15: Rich | BQ15: Richest
A16: Water | B16: Improved | C16: =C58+C59+C63+C65+(C61+C62)*MICS07!C24/100 -> 40.54110135 | D16: =D58+D59+D63+D65+(D61+D62)*MICS07!D24/100 -> 40.09479703 | E16: =E58+E59+E63+E65+(E61+E62)*MICS07!E24/100 -> 65.23650642 | F16: =F58+F59+F63+F65+(F61+F62)*MICS07!F24/100 -> 84.06059749 | G16: =G58+G59+G63+G65+(G61+G62)*MICS07!G24/100 -> 91.99907796 | H16: =H58+H59+H63+H65+(H61+H62)*MICS07!H24/100 -> 75.68368303 | I16: =I58+I59+I63+I65+(I61+I62)*MICS07!I24/100 -> 84.50657 | J16: =J58+J59+J63+J65+(J61+J62)*MICS07!J24/100 -> 87.90437984 | K16: =K58+K59+K63+K65+(K61+K62)*MICS07!K24/100 -> 91.36649589 | L16: =L58+L59+L63+L65+(L61+L62)*MICS07!L24/100 -> 94.48388253 | M16: =M58+M59+M63+M65+(M61+M62)*MICS07!M24/100 -> 35.78614779 | N16: =N58+N59+N63+N65+(N61+N62)*MICS07!N24/100 -> 36.0367917 | O16: =O58+O59+O63+O65+(O61+O62)*MICS07!O24/100 -> 37.91515444 | P16: =P58+P59+P63+P65+(P61+P62)*MICS07!P24/100 -> 55.01973068 | Q16: =Q58+Q59+Q63+Q65+(Q61+Q62)*MICS07!Q24/100 -> 65.20703072 | BA16: Water | BB16: Improved | BC16: N/A | BD16: N/A | BE16: N/A | BF16: N/A | BG16: N/A | BH16: N/A | BI16: N/A | BJ16: N/A | BK16: N/A | BL16: N/A | BM16: N/A | BN16: N/A | BO16: N/A | BP16: N/A | BQ16: N/A
B17: Not Improved | C17: =100-C16 -> 59.45889865 | D17: =100-D16 -> 59.90520297 | E17: 34.76349358 | F17: 15.93940251 | G17: 8.000922036 | H17: 24.31631697 | I17: 15.49343 | J17: 12.09562016 | K17: 8.633504113 | L17: 5.516117471 | M17: 64.21385221 | N17: 63.9632083 | O17: 62.08484556 | P17: 44.98026932 | Q17: 34.79296928 | BB17: Not Improved | BC17: N/A | BD17: N/A | BE17: N/A | BF17: N/A | BG17: N/A | BH17: N/A | BI17: N/A | BJ17: N/A | BK17: N/A | BL17: N/A | BM17: N/A | BN17: N/A | BO17: N/A | BP17: N/A | BQ17: N/A
A18: Water ladder | B18: Basic | C18: =C16*C23/100 -> 27.33934301 | D18: =D16*D23/100 -> 26.13086357 | E18: =E16*E23/100 -> 43.64369448 | F18: 52.09846026 | G18: 52.84674086 | H18: 51.74129054 | I18: 50.40612711 | J18: 52.74458845 | K18: 51.48227444 | L18: 56.83126486 | M18: 24.24628102 | N18: 23.97855531 | O18: 26.22431766 | P18: 36.75420922 | Q18: 40.51941833 | BA18: Water ladder | BB18: Basic | BC18: N/A | BD18: N/A | BE18: N/A | BF18: N/A | BG18: N/A | BH18: N/A | BI18: N/A | BJ18: N/A | BK18: N/A | BL18: N/A | BM18: N/A | BN18: N/A | BO18: N/A | BP18: N/A | BQ18: N/A
B19: Limited | C19: =C16*C22/100 -> 13.20175834 | D19: =D16*D22/100 -> 13.96393346 | E19: =E16*E22/100 -> 21.59281194 | F19: 31.96213723 | G19: 39.1523371 | H19: 23.94239249 | I19: 34.10044289 | J19: 35.15979139 | K19: 39.88422145 | L19: 37.65261767 | M19: 11.53986677 | N19: 12.05823639 | O19: 11.69083678 | P19: 18.26552146 | Q19: 24.68761239 | BB19: Limited | BC19: N/A | BD19: N/A | BE19: N/A | BF19: N/A | BG19: N/A | BH19: N/A | BI19: N/A | BJ19: N/A | BK19: N/A | BL19: N/A | BM19: N/A | BN19: N/A | BO19: N/A | BP19: N/A | BQ19: N/A
B20: Unimproved | C20: =100-C18-C19-C21 -> 56.40454284 | D20: =100-D18-D19-D21 -> 58.26340664 | E20: =100-E18-E19-E21 -> 32.27799221 | F20: 7.014433253 | G20: 2.920169103 | H20: 20.51791135 | I20: 6.229574062 | J20: 1.196069839 | K20: 3.623393685 | L20: 1.313937793 | M20: 60.1550348 | N20: 61.66197898 | O20: 60.61805595 | P20: 43.23054026 | Q20: 32.98785054 | BB20: Unimproved | BC20: N/A | BD20: N/A | BE20: N/A | BF20: N/A | BG20: N/A | BH20: N/A | BI20: N/A | BJ20: N/A | BK20: N/A | BL20: N/A | BM20: N/A | BN20: N/A | BO20: N/A | BP20: N/A | BQ20: N/A
B21: Surface water | C21: =C64 -> 3.054355812 | D21: 1.641796329 | E21: 2.485501373 | F21: 8.924969256 | G21: 5.080752933 | H21: 3.798405621 | I21: 9.263855937 | J21: 10.89955032 | K21: 5.010110428 | L21: 4.202179678 | M21: 4.058817405 | N21: 2.301229323 | O21: 1.466789605 | P21: 1.749729063 | Q21: 1.805118734 | BB21: Surface water | BC21: N/A | BD21: N/A | BE21: N/A | BF21: N/A | BG21: N/A | BH21: N/A | BI21: N/A | BJ21: N/A | BK21: N/A | BL21: N/A | BM21: N/A | BN21: N/A | BO21: N/A | BP21: N/A | BQ21: N/A
A22: Improved water point at more than 30 minutes | B22: Yes | C22: 32.56388678 | D22: 34.82729555 | E22: 33.09927696 | F22: 38.02273382 | G22: 42.55731467 | H22: 31.63481418 | I22: 40.35241626 | J22: 39.99776968 | K22: 43.65300547 | L22: 39.85083663 | M22: 32.24674207 | N22: 33.46090431 | O22: 30.83420589 | P22: 33.19812953 | Q22: 37.86035358 | BA22: Improved water point at more than 30 minutes | BB22: Yes | BC22: N/A | BD22: N/A | BE22: N/A | BF22: N/A | BG22: N/A | BH22: N/A | BI22: N/A | BJ22: N/A | BK22: N/A | BL22: N/A | BM22: N/A | BN22: N/A | BO22: N/A | BP22: N/A | BQ22: N/A
B23: No | C23: 67.43611322 | D23: 65.17270445 | E23: 66.90072304 | F23: 61.97726618 | G23: 57.44268533 | H23: 68.36518582 | I23: 59.64758374 | J23: 60.00223032 | K23: 56.34699453 | L23: 60.14916337 | M23: 67.75325793 | N23: 66.53909569 | O23: 69.16579411 | P23: 66.80187047 | Q23: 62.13964642 | BB23: No | BC23: N/A | BD23: N/A | BE23: N/A | BF23: N/A | BG23: N/A | BH23: N/A | BI23: N/A | BJ23: N/A | BK23: N/A | BL23: N/A | BM23: N/A | BN23: N/A | BO23: N/A | BP23: N/A | BQ23: N/A
A24: Manually calculated ratios | B24: Improved wells
B25: Improved springs
B26: Other
C27: NATIONAL wealth index quintile | H27: URBAN wealth index quintile | M27: RURAL wealth index quintile | BA27: Raw numbers of respondents: | BB27: Use of drinking water sources | BC27: NATIONAL wealth index quintile | BH27: URBAN wealth index quintile | BM27: RURAL wealth index quintile
A28: Percentage based on weighted population | C28: Poorest | D28: Poor | E28: Middle | F28: Rich | G28: Richest | H28: Poorest | I28: Poor | J28: Middle | K28: Rich | L28: Richest | M28: Poorest | N28: Poor | O28: Middle | P28: Rich | Q28: Richest | BA28: Water data, raw numbers (weighted) | BC28: Poorest | BD28: Poor | BE28: Middle | BF28: Rich | BG28: Richest | BH28: Poorest | BI28: Poor | BJ28: Middle | BK28: Rich | BL28: Richest | BM28: Poorest | BN28: Poor | BO28: Middle | BP28: Rich | BQ28: Richest
A29: Piped water | B29: Yes | C29: 20.10500247 | D29: 19.9386156 | E29: 41.48978175 | F29: 53.33404661 | G29: 71.24726777 | H29: 45.9795656 | I29: 52.18763827 | J29: 58.96728017 | K29: 66.77824074 | L29: 79.33020552 | M29: 17.72311606 | N29: 15.29031275 | O29: 19.45565423 | P29: 34.29609171 | Q29: 39.90514108 | BA29: Piped water | BB29: Yes | BC29: N/A | BD29: N/A | BE29: N/A | BF29: N/A | BG29: N/A | BH29: N/A | BI29: N/A | BJ29: N/A | BK29: N/A | BL29: N/A | BM29: N/A | BN29: N/A | BO29: N/A | BP29: N/A | BQ29: N/A
B30: No | C30: 79.89499753 | D30: 80.0613844 | E30: 58.51021825 | F30: 46.66595339 | G30: 28.75273223 | H30: 54.0204344 | I30: 47.81236173 | J30: 41.03271983 | K30: 33.22175926 | L30: 20.66979448 | M30: 82.27688394 | N30: 84.70968725 | O30: 80.54434577 | P30: 65.70390829 | Q30: 60.09485892 | BB30: No | BC30: N/A | BD30: N/A | BE30: N/A | BF30: N/A | BG30: N/A | BH30: N/A | BI30: N/A | BJ30: N/A | BK30: N/A | BL30: N/A | BM30: N/A | BN30: N/A | BO30: N/A | BP30: N/A | BQ30: N/A
A31: Piped water on premises | B31: Yes | C31: 4.432382371 | D31: 8.270264027 | E31: 17.843949 | F31: 18.31819899 | G31: 48.64550448 | H31: 9.765192734 | I31: 16.98570158 | J31: 23.27749368 | K31: 38.8090418 | L31: 63.87243881 | M31: 2.874302081 | N31: 5.232398646 | O31: 8.346021137 | P31: 17.11287092 | Q31: 18.79212562 | BA31: Piped water on premises | BB31: Yes | BC31: N/A | BD31: N/A | BE31: N/A | BF31: N/A | BG31: N/A | BH31: N/A | BI31: N/A | BJ31: N/A | BK31: N/A | BL31: N/A | BM31: N/A | BN31: N/A | BO31: N/A | BP31: N/A | BQ31: N/A
B32: No | C32: 95.56761763 | D32: 91.72973597 | E32: 82.156051 | F32: 81.68180101 | G32: 51.35449552 | H32: 90.23480727 | I32: 83.01429842 | J32: 76.72250632 | K32: 61.1909582 | L32: 36.12756119 | M32: 97.12569792 | N32: 94.76760135 | O32: 91.65397886 | P32: 82.88712908 | Q32: 81.20787438 | BB32: No | BC32: N/A | BD32: N/A | BE32: N/A | BF32: N/A | BG32: N/A | BH32: N/A | BI32: N/A | BJ32: N/A | BK32: N/A | BL32: N/A | BM32: N/A | BN32: N/A | BO32: N/A | BP32: N/A | BQ32: N/A
A33: Piped water into dwelling | B33: Yes | C33: N/A | D33: N/A | E33: N/A | F33: N/A | G33: N/A | H33: N/A | I33: N/A | J33: N/A | K33: N/A | L33: N/A | M33: N/A | N33: N/A | O33: N/A | P33: N/A | Q33: N/A | BA33: Piped water into dwelling | BB33: Yes | BC33: N/A | BD33: N/A | BE33: N/A | BF33: N/A | BG33: N/A | BH33: N/A | BI33: N/A | BJ33: N/A | BK33: N/A | BL33: N/A | BM33: N/A | BN33: N/A | BO33: N/A | BP33: N/A | BQ33: N/A
B34: No | C34: N/A | D34: N/A | E34: N/A | F34: N/A | G34: N/A | H34: N/A | I34: N/A | J34: N/A | K34: N/A | L34: N/A | M34: N/A | N34: N/A | O34: N/A | P34: N/A | Q34: N/A | BB34: No | BC34: N/A | BD34: N/A | BE34: N/A | BF34: N/A | BG34: N/A | BH34: N/A | BI34: N/A | BJ34: N/A | BK34: N/A | BL34: N/A | BM34: N/A | BN34: N/A | BO34: N/A | BP34: N/A | BQ34: N/A
A35: Water source on premises | B35: Yes | C35: N/A | D35: N/A | E35: N/A | F35: N/A | G35: N/A | H35: N/A | I35: N/A | J35: N/A | K35: N/A | L35: N/A | M35: N/A | N35: N/A | O35: N/A | P35: N/A | Q35: N/A | BA35: Water source on premises | BB35: Yes | BC35: N/A | BD35: N/A | BE35: N/A | BF35: N/A | BG35: N/A | BH35: N/A | BI35: N/A | BJ35: N/A | BK35: N/A | BL35: N/A | BM35: N/A | BN35: N/A | BO35: N/A | BP35: N/A | BQ35: N/A
B36: No | C36: N/A | D36: N/A | E36: N/A | F36: N/A | G36: N/A | H36: N/A | I36: N/A | J36: N/A | K36: N/A | L36: N/A | M36: N/A | N36: N/A | O36: N/A | P36: N/A | Q36: N/A | BB36: No | BC36: N/A | BD36: N/A | BE36: N/A | BF36: N/A | BG36: N/A | BH36: N/A | BI36: N/A | BJ36: N/A | BK36: N/A | BL36: N/A | BM36: N/A | BN36: N/A | BO36: N/A | BP36: N/A | BQ36: N/A
A37: Improved Water source on premises | B37: Yes | C37: N/A | D37: N/A | E37: N/A | F37: N/A | G37: N/A | H37: N/A | I37: N/A | J37: N/A | K37: N/A | L37: N/A | M37: N/A | N37: N/A | O37: N/A | P37: N/A | Q37: N/A | BA37: Improved water source on premises | BB37: Yes | BC37: N/A | BD37: N/A | BE37: N/A | BF37: N/A | BG37: N/A | BH37: N/A | BI37: N/A | BJ37: N/A | BK37: N/A | BL37: N/A | BM37: N/A | BN37: N/A | BO37: N/A | BP37: N/A | BQ37: N/A
B38: No | C38: N/A | D38: N/A | E38: N/A | F38: N/A | G38: N/A | H38: N/A | I38: N/A | J38: N/A | K38: N/A | L38: N/A | M38: N/A | N38: N/A | O38: N/A | P38: N/A | Q38: N/A | BB38: No | BC38: N/A | BD38: N/A | BE38: N/A | BF38: N/A | BG38: N/A | BH38: N/A | BI38: N/A | BJ38: N/A | BK38: N/A | BL38: N/A | BM38: N/A | BN38: N/A | BO38: N/A | BP38: N/A | BQ38: N/A
A39: Piped water on premises available when needed | B39: Yes | C39: N/A | D39: N/A | E39: N/A | F39: N/A | G39: N/A | H39: N/A | I39: N/A | J39: N/A | K39: N/A | L39: N/A | M39: N/A | N39: N/A | O39: N/A | P39: N/A | Q39: N/A | BA39: Piped water on premises available when needed | BB39: Yes | BC39: N/A | BD39: N/A | BE39: N/A | BF39: N/A | BG39: N/A | BH39: N/A | BI39: N/A | BJ39: N/A | BK39: N/A | BL39: N/A | BM39: N/A | BN39: N/A | BO39: N/A | BP39: N/A | BQ39: N/A
B40: No | C40: N/A | D40: N/A | E40: N/A | F40: N/A | G40: N/A | H40: N/A | I40: N/A | J40: N/A | K40: N/A | L40: N/A | M40: N/A | N40: N/A | O40: N/A | P40: N/A | Q40: N/A | BB40: No | BC40: N/A | BD40: N/A | BE40: N/A | BF40: N/A | BG40: N/A | BH40: N/A | BI40: N/A | BJ40: N/A | BK40: N/A | BL40: N/A | BM40: N/A | BN40: N/A | BO40: N/A | BP40: N/A | BQ40: N/A
A41: Water point at more than 30 minutes | B41: Yes | C41: 39.49551994 | D41: 39.95060909 | E41: 36.19157208 | F41: 36.37493658 | G41: 41.08705452 | H41: 31.06719334 | I41: 38.73438164 | J41: 37.09459341 | K41: 41.55859763 | L41: 37.94682778 | M41: 40.89057572 | N41: 40.1472507 | O41: 38.95686163 | P41: 36.44903617 | Q41: 41.69710161 | BA41: Water point at more than 30 minutes | BB41: Yes | BC41: N/A | BD41: N/A | BE41: N/A | BF41: N/A | BG41: N/A | BH41: N/A | BI41: N/A | BJ41: N/A | BK41: N/A | BL41: N/A | BM41: N/A | BN41: N/A | BO41: N/A | BP41: N/A | BQ41: N/A
B42: No | C42: 60.50448006 | D42: 60.04939091 | E42: 63.80842792 | F42: 63.62506342 | G42: 58.91294548 | H42: 68.93280666 | I42: 61.26561836 | J42: 62.90540659 | K42: 58.44140237 | L42: 62.05317222 | M42: 59.10942428 | N42: 59.8527493 | O42: 61.04313837 | P42: 63.55096383 | Q42: 58.30289839 | BB42: No | BC42: N/A | BD42: N/A | BE42: N/A | BF42: N/A | BG42: N/A | BH42: N/A | BI42: N/A | BJ42: N/A | BK42: N/A | BL42: N/A | BM42: N/A | BN42: N/A | BO42: N/A | BP42: N/A | BQ42: N/A
A43: Water source available when needed | B43: Yes | C43: N/A | D43: N/A | E43: N/A | F43: N/A | G43: N/A | H43: N/A | I43: N/A | J43: N/A | K43: N/A | L43: N/A | M43: N/A | N43: N/A | O43: N/A | P43: N/A | Q43: N/A | BA43: Water source available when needed | BB43: Yes | BC43: N/A | BD43: N/A | BE43: N/A | BF43: N/A | BG43: N/A | BH43: N/A | BI43: N/A | BJ43: N/A | BK43: N/A | BL43: N/A | BM43: N/A | BN43: N/A | BO43: N/A | BP43: N/A | BQ43: N/A
B44: No | C44: N/A | D44: N/A | E44: N/A | F44: N/A | G44: N/A | H44: N/A | I44: N/A | J44: N/A | K44: N/A | L44: N/A | M44: N/A | N44: N/A | O44: N/A | P44: N/A | Q44: N/A | BB44: No | BC44: N/A | BD44: N/A | BE44: N/A | BF44: N/A | BG44: N/A | BH44: N/A | BI44: N/A | BJ44: N/A | BK44: N/A | BL44: N/A | BM44: N/A | BN44: N/A | BO44: N/A | BP44: N/A | BQ44: N/A
A45: Improved water source available when needed | B45: Yes | C45: N/A | D45: N/A | E45: N/A | F45: N/A | G45: N/A | H45: N/A | I45: N/A | J45: N/A | K45: N/A | L45: N/A | M45: N/A | N45: N/A | O45: N/A | P45: N/A | Q45: N/A | BA45: Improved water source available when needed | BB45: Yes | BC45: N/A | BD45: N/A | BE45: N/A | BF45: N/A | BG45: N/A | BH45: N/A | BI45: N/A | BJ45: N/A | BK45: N/A | BL45: N/A | BM45: N/A | BN45: N/A | BO45: N/A | BP45: N/A | BQ45: N/A
B46: No | C46: N/A | D46: N/A | E46: N/A | F46: N/A | G46: N/A | H46: N/A | I46: N/A | J46: N/A | K46: N/A | L46: N/A | M46: N/A | N46: N/A | O46: N/A | P46: N/A | Q46: N/A | BB46: No | BC46: N/A | BD46: N/A | BE46: N/A | BF46: N/A | BG46: N/A | BH46: N/A | BI46: N/A | BJ46: N/A | BK46: N/A | BL46: N/A | BM46: N/A | BN46: N/A | BO46: N/A | BP46: N/A | BQ46: N/A
A47: Microbiological quality at point of collection | B47: Not contaminated (No E. coli in 100 mL) | C47: N/A | D47: N/A | E47: N/A | F47: N/A | G47: N/A | H47: N/A | I47: N/A | J47: N/A | K47: N/A | L47: N/A | M47: N/A | N47: N/A | O47: N/A | P47: N/A | Q47: N/A | BA47: Microbiological quality at point of collection | BB47: Not contaminated (No E. coli in 100 mL) | BC47: N/A | BD47: N/A | BE47: N/A | BF47: N/A | BG47: N/A | BH47: N/A | BI47: N/A | BJ47: N/A | BK47: N/A | BL47: N/A | BM47: N/A | BN47: N/A | BO47: N/A | BP47: N/A | BQ47: N/A
B48: Contaminated (E. coli detected in 100 mL) | C48: N/A | D48: N/A | E48: N/A | F48: N/A | G48: N/A | H48: N/A | I48: N/A | J48: N/A | K48: N/A | L48: N/A | M48: N/A | N48: N/A | O48: N/A | P48: N/A | Q48: N/A | BB48: Contaminated (E. coli detected in 100 mL) | BC48: N/A | BD48: N/A | BE48: N/A | BF48: N/A | BG48: N/A | BH48: N/A | BI48: N/A | BJ48: N/A | BK48: N/A | BL48: N/A | BM48: N/A | BN48: N/A | BO48: N/A | BP48: N/A | BQ48: N/A
B49: Highly contaminated (>100 CFU/100 mL) | C49: N/A | D49: N/A | E49: N/A | F49: N/A | G49: N/A | H49: N/A | I49: N/A | J49: N/A | K49: N/A | L49: N/A | M49: N/A | N49: N/A | O49: N/A | P49: N/A | Q49: N/A | BB49: Highly contaminated (>100 CFU/100 mL) | BC49: N/A | BD49: N/A | BE49: N/A | BF49: N/A | BG49: N/A | BH49: N/A | BI49: N/A | BJ49: N/A | BK49: N/A | BL49: N/A | BM49: N/A | BN49: N/A | BO49: N/A | BP49: N/A | BQ49: N/A
A50: Microbiological quality of improved water sources at point of collection | B50: Not contaminated (No E. coli in 100 mL) | C50: N/A | D50: N/A | E50: N/A | F50: N/A | G50: N/A | H50: N/A | I50: N/A | J50: N/A | K50: N/A | L50: N/A | M50: N/A | N50: N/A | O50: N/A | P50: N/A | Q50: N/A | BA50: Microbiological quality of improved water sources at point of collection | BB50: Not contaminated (No E. coli in 100 mL) | BC50: N/A | BD50: N/A | BE50: N/A | BF50: N/A | BG50: N/A | BH50: N/A | BI50: N/A | BJ50: N/A | BK50: N/A | BL50: N/A | BM50: N/A | BN50: N/A | BO50: N/A | BP50: N/A | BQ50: N/A
B51: Contaminated (E. coli detected in 100 mL) | C51: N/A | D51: N/A | E51: N/A | F51: N/A | G51: N/A | H51: N/A | I51: N/A | J51: N/A | K51: N/A | L51: N/A | M51: N/A | N51: N/A | O51: N/A | P51: N/A | Q51: N/A | BB51: Contaminated (E. coli detected in 100 mL) | BC51: N/A | BD51: N/A | BE51: N/A | BF51: N/A | BG51: N/A | BH51: N/A | BI51: N/A | BJ51: N/A | BK51: N/A | BL51: N/A | BM51: N/A | BN51: N/A | BO51: N/A | BP51: N/A | BQ51: N/A
B52: Highly contaminated (>100 CFU/100 mL) | C52: N/A | D52: N/A | E52: N/A | F52: N/A | G52: N/A | H52: N/A | I52: N/A | J52: N/A | K52: N/A | L52: N/A | M52: N/A | N52: N/A | O52: N/A | P52: N/A | Q52: N/A | BB52: Highly contaminated (>100 CFU/100 mL) | BC52: N/A | BD52: N/A | BE52: N/A | BF52: N/A | BG52: N/A | BH52: N/A | BI52: N/A | BJ52: N/A | BK52: N/A | BL52: N/A | BM52: N/A | BN52: N/A | BO52: N/A | BP52: N/A | BQ52: N/A
A53: Microbiological quality of piped on premises at point of collection | B53: Not contaminated (No E. coli in 100 mL) | C53: N/A | D53: N/A | E53: N/A | F53: N/A | G53: N/A | H53: N/A | I53: N/A | J53: N/A | K53: N/A | L53: N/A | M53: N/A | N53: N/A | O53: N/A | P53: N/A | Q53: N/A | BA53: Microbiological quality of piped on premises at point of collection | BB53: Not contaminated (No E. coli in 100 mL) | BC53: N/A | BD53: N/A | BE53: N/A | BF53: N/A | BG53: N/A | BH53: N/A | BI53: N/A | BJ53: N/A | BK53: N/A | BL53: N/A | BM53: N/A | BN53: N/A | BO53: N/A | BP53: N/A | BQ53: N/A
B54: Contaminated (E. coli detected in 100 mL) | C54: N/A | D54: N/A | E54: N/A | F54: N/A | G54: N/A | H54: N/A | I54: N/A | J54: N/A | K54: N/A | L54: N/A | M54: N/A | N54: N/A | O54: N/A | P54: N/A | Q54: N/A | BB54: Contaminated (E. coli detected in 100 mL) | BC54: N/A | BD54: N/A | BE54: N/A | BF54: N/A | BG54: N/A | BH54: N/A | BI54: N/A | BJ54: N/A | BK54: N/A | BL54: N/A | BM54: N/A | BN54: N/A | BO54: N/A | BP54: N/A | BQ54: N/A
B55: Highly contaminated (>100 CFU/100 mL) | C55: N/A | D55: N/A | E55: N/A | F55: N/A | G55: N/A | H55: N/A | I55: N/A | J55: N/A | K55: N/A | L55: N/A | M55: N/A | N55: N/A | O55: N/A | P55: N/A | Q55: N/A | BB55: Highly contaminated (>100 CFU/100 mL) | BC55: N/A | BD55: N/A | BE55: N/A | BF55: N/A | BG55: N/A | BH55: N/A | BI55: N/A | BJ55: N/A | BK55: N/A | BL55: N/A | BM55: N/A | BN55: N/A | BO55: N/A | BP55: N/A | BQ55: N/A
C56: NATIONAL wealth index quintile | H56: URBAN wealth index quintile | M56: RURAL wealth index quintile | BA56: Raw numbers of respondents: | BB56: Use of drinking water sources | BC56: NATIONAL wealth index quintile | BH56: URBAN wealth index quintile | BM56: RURAL wealth index quintile
A57: Percentage based on weighted population | C57: Poorest | D57: Poor | E57: Middle | F57: Rich | G57: Richest | H57: Poorest | I57: Poor | J57: Middle | K57: Rich | L57: Richest | M57: Poorest | N57: Poor | O57: Middle | P57: Rich | Q57: Richest | BA57: Water data, raw numbers (weighted) | BC57: Poorest | BD57: Poor | BE57: Middle | BF57: Rich | BG57: Richest | BH57: Poorest | BI57: Poor | BJ57: Middle | BK57: Rich | BL57: Richest | BM57: Poorest | BN57: Poor | BO57: Middle | BP57: Rich | BQ57: Richest
A58: main source of drinking water | B58: Piped water through house connection or yard | C58: 4.671917064 | D58: 8.832667193 | E58: 18.82982628 | F58: 19.96911437 | G58: 50.6126059 | H58: 10.28227951 | I58: 18.74923414 | J58: 25.04822724 | K58: 39.85238086 | L58: 67.14924225 | M58: 3.033975694 | N58: 5.550090471 | O58: 8.95031462 | P58: 17.94373725 | Q58: 20.07903765
B59: Public standpipe | C59: 16.51959943 | D59: 12.46183506 | E59: 24.95226382 | F59: 38.17162735 | G59: 23.51572155 | H59: 38.13199743 | I59: 38.85676139 | J59: 38.40473095 | K59: 28.72112057 | L59: 16.2507858 | M59: 15.67369728 | N59: 10.66859331 | O59: 11.91402584 | P59: 18.01750275 | Q59: 22.55886539
B60: Protected tube well or bore hole | C60: 16.31255063 | D60: 16.14597828 | E60: 11.22340531 | F60: 3.169701376 | G60: 1.682834704 | H60: 6.072437221 | I60: 1.84601259 | J60: 0.730138998 | K60: 3.048530399 | L60: 0.6629319445 | M60: 16.75451381 | N60: 19.65925633 | O60: 14.20364763 | P60: 15.00559729 | Q60: 12.42762091
B61: Protected dug well or protected spring | C61: 21.90195806 | D61: 14.97515193 | E61: 18.30250058 | F61: 4.432971564 | G61: 1.145421588 | H61: 9.689589997 | I61: 3.964753902 | J61: 0.3617470482 | K61: 0.6683630594 | L61: 1.119329515 | M61: 26.09036993 | N61: 16.31171897 | O61: 15.42025006 | P61: 18.93593703 | Q61: 20.871266
B62: Unprotected dug well or spring | C62: 28.20216949 | D62: 40.14483744 | E62: 15.87462895 | F62: 3.047727432 | G62: 0.8193155282 | H62: 11.62352008 | I62: 2.299427572 | J62: 1.115612865 | K62: 0.6871307709 | L62: 0.3444207021 | M62: 27.54752743 | N62: 37.80882889 | O62: 43.02983623 | P62: 23.5471009 | Q62: 15.08551699
B63: Rainwater (into tank or cistern ) | C63: 3.072428881 | D63: 1.72994317 | E63: 1.98873097 | F63: 0.171904627 | G63: 0 | H63: 0 | I63: 0 | J63: 0 | K63: 0 | L63: 0 | M63: 3.29050199 | N63: 3.589311451 | O63: 1.585105232 | P63: 0.2759026525 | Q63: 3.974280636
B64: Water taken directly from pond-water or stream | C64: 3.054355812 | D64: 1.641796329 | E64: 2.485501373 | F64: 8.924969256 | G64: 5.080752933 | H64: 3.798405621 | I64: 9.263855937 | J64: 10.89955032 | K64: 5.010110428 | L64: 4.202179678 | M64: 4.058817405 | N64: 2.301229323 | O64: 1.466789605 | P64: 1.749729063 | Q64: 1.805118734
B65: Tanker-truck, vendor | C65: 6.265020629 | D65: 4.067790608 | E65: 6.343142711 | F65: 22.11198402 | G65: 17.1433478 | H65: 20.40177013 | I65: 25.01995447 | J65: 23.43999258 | K65: 22.01236391 | L65: 10.27111011 | M65: 3.550596466 | N65: 4.110971241 | O65: 3.430030784 | P65: 4.524493061 | Q65: 3.198293694
A108: =A1026 -> Mauritania
A109: =A1034 -> 2003
A110: Use of sanitation facilities
A111: by wealth quintile and sub-national region
A112: Notes:
A113: WHO/UNICEF JMP customised wealth index excludes water,
A114: sanitation and hygiene assets.
A115: Survey used for analysis: | B115: =A1025 -> WHS03
A116: Improved latrines based on: | B116: MICS07
A117: =B1029 -> 
A120: Use of sanitation facilities | C120: NATIONAL wealth index quintile | H120: URBAN wealth index quintile | M120: RURAL wealth index quintile | BA120: Raw numbers of respondents: | BB120: Use of sanitation facilities | BC120: NATIONAL wealth index quintile | BH120: URBAN wealth index quintile | BM120: RURAL wealth index quintile
A121: Weighted percentage (used in graphs) | C121: Poorest | D121: Poor | E121: Middle | F121: Rich | G121: Richest | H121: Poorest | I121: Poor | J121: Middle | K121: Rich | L121: Richest | M121: Poorest | N121: Poor | O121: Middle | P121: Rich | Q121: Richest | BA121: Sanitation data, raw numbers (weighted) | BC121: Poorest | BD121: Poor | BE121: Middle | BF121: Rich | BG121: Richest | BH121: Poorest | BI121: Poor | BJ121: Middle | BK121: Rich | BL121: Richest | BM121: Poorest | BN121: Poor | BO121: Middle | BP121: Rich | BQ121: Richest
A122: Sanitation | B122: Improved | C122: =C153+C154+(C155+C156+C157)*MICS07!C130/100 -> 6.112462306 | D122: =D153+D154+(D155+D156+D157)*MICS07!D130/100 -> 9.437628595 | E122: =E153+E154+(E155+E156+E157)*MICS07!E130/100 -> 29.2259988 | F122: =F153+F154+(F155+F156+F157)*MICS07!F130/100 -> 66.50316237 | G122: =G153+G154+(G155+G156+G157)*MICS07!G130/100 -> 93.24234569 | H122: =H153+H154+(H155+H156+H157)*MICS07!H130/100 -> 28.93099289 | I122: =I153+I154+(I155+I156+I157)*MICS07!I130/100 -> 64.98677459 | J122: =J153+J154+(J155+J156+J157)*MICS07!J130/100 -> 80.54999825 | K122: =K153+K154+(K155+K156+K157)*MICS07!K130/100 -> 90.0027965 | L122: =L153+L154+(L155+L156+L157)*MICS07!L130/100 -> 97.47108305 | M122: =M153+M154+(M155+M156+M157)*MICS07!M130/100 -> 4.73891919 | N122: =N153+N154+(N155+N156+N157)*MICS07!N130/100 -> 6.555632597 | O122: =O153+O154+(O155+O156+O157)*MICS07!O130/100 -> 8.331018104 | P122: =P153+P154+(P155+P156+P157)*MICS07!P130/100 -> 18.50588953 | Q122: =Q153+Q154+(Q155+Q156+Q157)*MICS07!Q130/100 -> 38.89250613 | BA122: Sanitation | BB122: Improved | BC122: 9007.242447 | BD122: 14162.31224 | BE122: 31644.28895 | BF122: 48681.67397 | BG122: 65276.88903 | BH122: 11838.32675 | BI122: 22195.05733 | BJ122: 25890.17805 | BK122: 28971.78542 | BL122: 30817.15704 | BM122: 3800.601814 | BN122: 4924.448074 | BO122: 7517.898136 | BP122: 13111.88437 | BQ122: 19705.06965
B123: Not Improved | C123: =100-C122 -> 93.88753769 | D123: =100-D122 -> 90.5623714 | E123: 70.7740012 | F123: 33.49683763 | G123: 6.75765431 | H123: 71.06900711 | I123: 35.01322541 | J123: 19.45000175 | K123: 9.9972035 | L123: 2.528916949 | M123: 95.26108081 | N123: 93.4443674 | O123: 91.6689819 | P123: 81.49411047 | Q123: 61.10749387 | BB123: Not Improved | BC123: 62833.38807 | BD123: 57595.30396 | BE123: 40224.14632 | BF123: 23090.06551 | BG123: 6586.694489 | BH123: 20472.92899 | BI123: 10194.19967 | BJ123: 6373.758339 | BK123: 3306.293495 | BL123: 1549.381035 | BM123: 35676.03056 | BN123: 34648.12613 | BO123: 31897.21532 | BP123: 26460.02171 | BQ123: 19751.6431
A124: Sanitation ladder | B124: Basic | C124: =C122*C129/100 -> 3.659199212 | D124: =D122*D129/100 -> 5.586621167 | E124: =E122*E129/100 -> 16.18543656 | F124: 47.55629079 | G124: 77.61413086 | H124: 16.26341032 | I124: 44.89319204 | J124: 59.15824369 | K124: 72.8207365 | L124: 87.30863989 | M124: 3.093093381 | N124: 4.235988862 | O124: 4.49186075 | P124: 10.5445598 | Q124: 22.24543066 | BA124: Sanitation ladder | BB124: Basic | BC124: 4077.836174 | BD124: 6638.572285 | BE124: 16380.11622 | BF124: 32595.12611 | BG124: 51797.79906 | BH124: 6276.42017 | BI124: 13912.61335 | BJ124: 18083.99358 | BK124: 21789.99922 | BL124: 26799.1412 | BM124: 1857.383869 | BN124: 2425.263451 | BO124: 3145.58326 | BP124: 5871.932701 | BQ124: 11327.11906
B125: Limited | C125: =C122*C128/100 -> 2.453263094 | D125: =D122*D128/100 -> 3.851007428 | E125: =E122*E128/100 -> 13.04056224 | F125: 18.94687158 | G125: 15.62821483 | H125: 12.66758257 | I125: 20.09358255 | J125: 21.39175456 | K125: 17.18206 | L125: 10.16244316 | M125: 1.645825808 | N125: 2.319643735 | O125: 3.839157354 | P125: 7.961329723 | Q125: 16.64707547 | BB125: Limited | BC125: 2945.56514 | BD125: 5441.400433 | BE125: 12586.6031 | BF125: 12642.13553 | BG125: 10336.162 | BH125: 4509.572208 | BI125: 6521.707249 | BJ125: 6335.384628 | BK125: 5473.886997 | BL125: 3064.704746 | BM125: 1193.697147 | BN125: 1546.328621 | BO125: 3271.99099 | BP125: 5685.762711 | BQ125: 6348.830914
B126: Unimproved | C126: =100-C124-C125-C127 -> 22.90103199 | D126: =100-D124-D125-D127 -> 32.00999022 | E126: =100-E124-E125-E127 -> 35.85163992 | F126: 20.33866206 | G126: 4.993966526 | H126: 26.91350166 | I126: 24.15263592 | J126: 13.09099705 | K126: 6.913338974 | L126: 2.528916949 | M126: 20.24993655 | N126: 22.61274681 | O126: 36.2998999 | P126: 35.97528363 | Q126: 34.93183648 | BB126: Unimproved | BC126: 13244.49429 | BD126: 16798.77037 | BE126: 16061.06225 | BF126: 14099.43584 | BG126: 5374.676682 | BH126: 6670.39426 | BI126: 6867.761814 | BJ126: 4415.621338 | BK126: 2363.550568 | BL126: 1549.381035 | BM126: 6626.381027 | BN126: 7293.153862 | BO126: 10682.66807 | BP126: 9154.802883 | BQ126: 9954.724567
B127: Open defecation | C127: 70.9865057 | D127: 58.55238119 | E127: 34.92236128 | F127: 13.15817557 | G127: 1.763687784 | H127: 44.15550545 | I127: 10.8605895 | J127: 6.359004703 | K127: 3.083864526 | L127: 0 | M127: 75.01114426 | N127: 70.83162059 | O127: 55.36908199 | P127: 45.51882685 | Q127: 26.17565739 | BB127: Open defecation | BC127: 49588.89378 | BD127: 40796.5336 | BE127: 24163.08408 | BF127: 8990.629669 | BG127: 1212.017807 | BH127: 13802.53473 | BI127: 3326.437855 | BJ127: 1958.137001 | BK127: 942.7429276 | BL127: 0 | BM127: 29049.64953 | BN127: 27354.97227 | BO127: 21214.54725 | BP127: 17305.21883 | BQ127: 9796.918533
A128: Shared among Improved Sanitation | B128: Yes | C128: 40.13543105 | D128: 40.80482071 | E128: 44.61973167 | F128: 28.49018138 | G128: 16.76085551 | H128: 43.78550924 | I128: 30.91949505 | J128: 26.55711362 | K128: 19.09058459 | L128: 10.42611085 | M128: 34.72998256 | N128: 35.38398012 | O128: 46.08269129 | P128: 43.02051902 | Q128: 42.80278419 | BA128: Shared among improved sanitation facilities | BB128: Yes | BC128: N/A | BD128: N/A | BE128: N/A | BF128: N/A | BG128: N/A | BH128: N/A | BI128: N/A | BJ128: N/A | BK128: N/A | BL128: N/A | BM128: N/A | BN128: N/A | BO128: N/A | BP128: N/A | BQ128: N/A
B129: No | C129: 59.86456895 | D129: 59.19517929 | E129: 55.38026833 | F129: 71.50981862 | G129: 83.23914449 | H129: 56.21449076 | I129: 69.08050495 | J129: 73.44288638 | K129: 80.90941541 | L129: 89.57388915 | M129: 65.27001744 | N129: 64.61601988 | O129: 53.91730871 | P129: 56.97948098 | Q129: 57.19721581 | BB129: No | BC129: N/A | BD129: N/A | BE129: N/A | BF129: N/A | BG129: N/A | BH129: N/A | BI129: N/A | BJ129: N/A | BK129: N/A | BL129: N/A | BM129: N/A | BN129: N/A | BO129: N/A | BP129: N/A | BQ129: N/A
A130: Manually calculated ratios | B130: Improved latrines
B131: Other
B132: Other
C133: NATIONAL wealth index quintile | H133: URBAN wealth index quintile | M133: RURAL wealth index quintile | BA133: Raw numbers of respondents: | BB133: Use of sanitation facilities | BC133: NATIONAL wealth index quintile | BH133: URBAN wealth index quintile | BM133: RURAL wealth index quintile
A134: Percentage based on weighted population | C134: Poorest | D134: Poor | E134: Middle | F134: Rich | G134: Richest | H134: Poorest | I134: Poor | J134: Middle | K134: Rich | L134: Richest | M134: Poorest | N134: Poor | O134: Middle | P134: Rich | Q134: Richest | BA134: Sanitation data, raw numbers (weighted) | BC134: Poorest | BD134: Poor | BE134: Middle | BF134: Rich | BG134: Richest | BH134: Poorest | BI134: Poor | BJ134: Middle | BK134: Rich | BL134: Richest | BM134: Poorest | BN134: Poor | BO134: Middle | BP134: Rich | BQ134: Richest
A135: Sanitation type | B135: Sewer connection | C135: 1.513752029 | D135: 2.040475629 | E135: 5.4425261 | F135: 12.71259453 | G135: 26.66655982 | H135: 7.679329603 | I135: 12.37701199 | J135: 16.96735238 | K135: 22.94142337 | L135: 32.55243277 | M135: 0.8365184588 | N135: 1.483166669 | O135: 2.389656843 | P135: 3.657087767 | Q135: 3.900288883 | BA135: Sanitation type | BB135: Sewer connection | BC135: N/A | BD135: N/A | BE135: N/A | BF135: N/A | BG135: N/A | BH135: N/A | BI135: N/A | BJ135: N/A | BK135: N/A | BL135: N/A | BM135: N/A | BN135: N/A | BO135: N/A | BP135: N/A | BQ135: N/A
B136: Septic tank connection | C136: 2.40612244 | D136: 3.776104808 | E136: 9.330836562 | F136: 28.68795705 | G136: 44.99567026 | H136: 13.50534837 | I136: 27.40095615 | J136: 38.28214428 | K136: 42.4320222 | L136: 49.44556261 | M136: 1.565968866 | N136: 2.489014557 | O136: 2.834331915 | P136: 6.751991886 | Q136: 8.584558541 | BB136: Septic tank connection | BC136: N/A | BD136: N/A | BE136: N/A | BF136: N/A | BG136: N/A | BH136: N/A | BI136: N/A | BJ136: N/A | BK136: N/A | BL136: N/A | BM136: N/A | BN136: N/A | BO136: N/A | BP136: N/A | BQ136: N/A
B137: Improved latrines | C137: 8.617936491 | D137: 13.91973884 | E137: 29.25749571 | F137: 26.42792008 | G137: 19.1722174 | H137: 15.45372087 | I137: 28.74801666 | J137: 24.99544847 | K137: 24.38339992 | L137: 13.21502051 | M137: 7.224984893 | N137: 8.471912121 | O137: 13.84965451 | P137: 22.72524635 | Q137: 37.45613417 | BB137: Improved latrines | BC137: N/A | BD137: N/A | BE137: N/A | BF137: N/A | BG137: N/A | BH137: N/A | BI137: N/A | BJ137: N/A | BK137: N/A | BL137: N/A | BM137: N/A | BN137: N/A | BO137: N/A | BP137: N/A | BQ137: N/A
B138: Unimproved facilities | C138: 18.43593826 | D138: 23.41043537 | E138: 22.34786689 | F138: 19.64482948 | G138: 7.478998984 | H138: 20.64418144 | I138: 21.20382636 | J138: 13.68593492 | K138: 7.322463565 | L138: 4.786984111 | M138: 16.78557827 | N138: 18.42981916 | O138: 27.10297429 | P138: 23.13460177 | Q138: 25.22948283 | BB138: Unimproved facilities | BC138: N/A | BD138: N/A | BE138: N/A | BF138: N/A | BG138: N/A | BH138: N/A | BI138: N/A | BJ138: N/A | BK138: N/A | BL138: N/A | BM138: N/A | BN138: N/A | BO138: N/A | BP138: N/A | BQ138: N/A
B139: Open defecation | C139: 69.02625078 | D139: 56.85324535 | E139: 33.62127474 | F139: 12.52669886 | G139: 1.686553533 | H139: 42.71741971 | I139: 10.27018883 | J139: 6.069119952 | K139: 2.920690944 | L139: 0 | M139: 73.58694951 | N139: 69.1260875 | O139: 53.82338243 | P139: 43.73107223 | Q139: 24.82953558 | BB139: Open defecation | BC139: N/A | BD139: N/A | BE139: N/A | BF139: N/A | BG139: N/A | BH139: N/A | BI139: N/A | BJ139: N/A | BK139: N/A | BL139: N/A | BM139: N/A | BN139: N/A | BO139: N/A | BP139: N/A | BQ139: N/A
A140: Septic tank emptying practices | B140: Not emptied/treated and disposed in situ | C140: N/A | D140: N/A | E140: N/A | F140: N/A | G140: N/A | H140: N/A | I140: N/A | J140: N/A | K140: N/A | L140: N/A | M140: N/A | N140: N/A | O140: N/A | P140: N/A | Q140: N/A | BA140: Septic tank emptying practices | BB140: Not emptied/treated and disposed in situ | BC140: N/A | BD140: N/A | BE140: N/A | BF140: N/A | BG140: N/A | BH140: N/A | BI140: N/A | BJ140: N/A | BK140: N/A | BL140: N/A | BM140: N/A | BN140: N/A | BO140: N/A | BP140: N/A | BQ140: N/A
B141: Emptied and buried on site | C141: N/A | D141: N/A | E141: N/A | F141: N/A | G141: N/A | H141: N/A | I141: N/A | J141: N/A | K141: N/A | L141: N/A | M141: N/A | N141: N/A | O141: N/A | P141: N/A | Q141: N/A | BB141: Emptied and buried on site | BC141: N/A | BD141: N/A | BE141: N/A | BF141: N/A | BG141: N/A | BH141: N/A | BI141: N/A | BJ141: N/A | BK141: N/A | BL141: N/A | BM141: N/A | BN141: N/A | BO141: N/A | BP141: N/A | BQ141: N/A
B142: Emptied and discharged locally | C142: N/A | D142: N/A | E142: N/A | F142: N/A | G142: N/A | H142: N/A | I142: N/A | J142: N/A | K142: N/A | L142: N/A | M142: N/A | N142: N/A | O142: N/A | P142: N/A | Q142: N/A | BB142: Emptied and discharged locally | BC142: N/A | BD142: N/A | BE142: N/A | BF142: N/A | BG142: N/A | BH142: N/A | BI142: N/A | BJ142: N/A | BK142: N/A | BL142: N/A | BM142: N/A | BN142: N/A | BO142: N/A | BP142: N/A | BQ142: N/A
B143: Emptied and removed offsite | C143: N/A | D143: N/A | E143: N/A | F143: N/A | G143: N/A | H143: N/A | I143: N/A | J143: N/A | K143: N/A | L143: N/A | M143: N/A | N143: N/A | O143: N/A | P143: N/A | Q143: N/A | BB143: Emptied and removed offsite | BC143: N/A | BD143: N/A | BE143: N/A | BF143: N/A | BG143: N/A | BH143: N/A | BI143: N/A | BJ143: N/A | BK143: N/A | BL143: N/A | BM143: N/A | BN143: N/A | BO143: N/A | BP143: N/A | BQ143: N/A
A144: Latrine emptying practices | B144: Not emptied/treated and disposed in situ | C144: N/A | D144: N/A | E144: N/A | F144: N/A | G144: N/A | H144: N/A | I144: N/A | J144: N/A | K144: N/A | L144: N/A | M144: N/A | N144: N/A | O144: N/A | P144: N/A | Q144: N/A | BA144: Latrine emptying practices | BB144: Not emptied/treated and disposed in situ | BC144: N/A | BD144: N/A | BE144: N/A | BF144: N/A | BG144: N/A | BH144: N/A | BI144: N/A | BJ144: N/A | BK144: N/A | BL144: N/A | BM144: N/A | BN144: N/A | BO144: N/A | BP144: N/A | BQ144: N/A
B145: Emptied and buried on site | C145: N/A | D145: N/A | E145: N/A | F145: N/A | G145: N/A | H145: N/A | I145: N/A | J145: N/A | K145: N/A | L145: N/A | M145: N/A | N145: N/A | O145: N/A | P145: N/A | Q145: N/A | BB145: Emptied and buried on site | BC145: N/A | BD145: N/A | BE145: N/A | BF145: N/A | BG145: N/A | BH145: N/A | BI145: N/A | BJ145: N/A | BK145: N/A | BL145: N/A | BM145: N/A | BN145: N/A | BO145: N/A | BP145: N/A | BQ145: N/A
B146: Emptied and discharged locally | C146: N/A | D146: N/A | E146: N/A | F146: N/A | G146: N/A | H146: N/A | I146: N/A | J146: N/A | K146: N/A | L146: N/A | M146: N/A | N146: N/A | O146: N/A | P146: N/A | Q146: N/A | BB146: Emptied and discharged locally | BC146: N/A | BD146: N/A | BE146: N/A | BF146: N/A | BG146: N/A | BH146: N/A | BI146: N/A | BJ146: N/A | BK146: N/A | BL146: N/A | BM146: N/A | BN146: N/A | BO146: N/A | BP146: N/A | BQ146: N/A
B147: Emptied and removed offsite | C147: N/A | D147: N/A | E147: N/A | F147: N/A | G147: N/A | H147: N/A | I147: N/A | J147: N/A | K147: N/A | L147: N/A | M147: N/A | N147: N/A | O147: N/A | P147: N/A | Q147: N/A | BB147: Emptied and removed offsite | BC147: N/A | BD147: N/A | BE147: N/A | BF147: N/A | BG147: N/A | BH147: N/A | BI147: N/A | BJ147: N/A | BK147: N/A | BL147: N/A | BM147: N/A | BN147: N/A | BO147: N/A | BP147: N/A | BQ147: N/A
A148: Shared among improved sanitation facilities | B148: Yes | C148: 4.93750766 | D148: 8.3105455 | E148: 20.44572929 | F148: 19.61298267 | G148: 15.08618531 | H148: 16.81368058 | I148: 21.43541588 | J148: 21.58911634 | K148: 16.95852784 | L148: 9.790217358 | M148: 3.298559303 | N148: 4.59416503 | O148: 9.097502557 | P148: 14.64227093 | Q148: 21.89446026 | BA148: Shared among improved sanitation facilities | BB148: Yes | BC148: N/A | BD148: N/A | BE148: N/A | BF148: N/A | BG148: N/A | BH148: N/A | BI148: N/A | BJ148: N/A | BK148: N/A | BL148: N/A | BM148: N/A | BN148: N/A | BO148: N/A | BP148: N/A | BQ148: N/A
B149: No | C149: 7.364609275 | D149: 12.05603216 | E149: 25.37644069 | F149: 49.22821707 | G149: 74.9222591 | H149: 21.58642226 | I149: 47.89112339 | J149: 59.70404168 | K149: 71.87336602 | L149: 84.11073479 | M149: 6.199168767 | N149: 8.389577936 | O149: 10.64418852 | P149: 19.39328062 | Q149: 29.25749322 | BB149: No | BC149: N/A | BD149: N/A | BE149: N/A | BF149: N/A | BG149: N/A | BH149: N/A | BI149: N/A | BJ149: N/A | BK149: N/A | BL149: N/A | BM149: N/A | BN149: N/A | BO149: N/A | BP149: N/A | BQ149: N/A
B150: DK/missing | C150: 87.69788306 | D150: 79.63342234 | E150: 54.17783003 | F150: 31.15880026 | G150: 9.991555586 | H150: 61.59989716 | I150: 30.67346073 | J150: 18.70684198 | K150: 11.16810614 | L150: 6.099047848 | M150: 90.50227193 | N150: 87.01625703 | O150: 80.25830892 | P150: 65.96444844 | Q150: 48.84804652 | BB150: DK/missing | BC150: N/A | BD150: N/A | BE150: N/A | BF150: N/A | BG150: N/A | BH150: N/A | BI150: N/A | BJ150: N/A | BK150: N/A | BL150: N/A | BM150: N/A | BN150: N/A | BO150: N/A | BP150: N/A | BQ150: N/A
A151: Shared among all sanitation facilities | B151: Yes | C151: 77.19340099 | D151: 68.97223022 | E151: 58.06053703 | F151: 78.99440502 | G151: 87.48742032 | H151: 64.04657384 | I151: 79.0805016 | J151: 80.24858724 | K151: 87.44836326 | L151: 92.05673946 | M151: 89.41083885 | N151: 76.50850452 | O151: 69.03089652 | P151: 68.91208642 | Q151: 48.08908274 | BA151: Shared among all sanitation facilities | BB151: Yes | BC151: N/A | BD151: N/A | BE151: N/A | BF151: N/A | BG151: N/A | BH151: N/A | BI151: N/A | BJ151: N/A | BK151: N/A | BL151: N/A | BM151: N/A | BN151: N/A | BO151: N/A | BP151: N/A | BQ151: N/A
B152: No | C152: 22.80659901 | D152: 31.02776978 | E152: 41.93946297 | F152: 21.00559498 | G152: 12.51257968 | H152: 35.95342616 | I152: 20.9194984 | J152: 19.75141276 | K152: 12.55163674 | L152: 7.943260539 | M152: 10.58916115 | N152: 23.49149548 | O152: 30.96910348 | P152: 31.08791358 | Q152: 51.91091726 | BB152: No | BC152: N/A | BD152: N/A | BE152: N/A | BF152: N/A | BG152: N/A | BH152: N/A | BI152: N/A | BJ152: N/A | BK152: N/A | BL152: N/A | BM152: N/A | BN152: N/A | BO152: N/A | BP152: N/A | BQ152: N/A
A153: What type of toilet facilities | B153: Flush to piped sewage system | C153: 1.563826064 | D153: 2.149511327 | E153: 5.655107144 | F153: 13.41345588 | G153: 27.67711987 | H153: 7.986079537 | I153: 13.10181836 | J153: 17.87456093 | K153: 23.55935083 | L153: 33.56843091 | M153: 0.8685294442 | N153: 1.536228264 | O153: 2.547130397 | P153: 3.836731936 | Q153: 4.044602893 | BA153: What type of toilet facilities | BB153: Flush to piped sewage system | BC153: 1087.489002 | BD153: 1464.196671 | BE153: 3911.458347 | BF153: 9124.050228 | BG153: 19163.54549 | BH153: 2481.287827 | BI153: 4008.822224 | BJ153: 5474.335781 | BK153: 7405.050739 | BL153: 10536.09555 | BM153: 330.2293167 | BN153: 586.9272308 | BO153: 941.8859558 | BP153: 1447.179337 | BQ153: 1538.925781
B154: Flush to septic tank | C154: 2.485715568 | D154: 3.977886303 | E154: 9.695292138 | F154: 30.26956025 | G154: 46.70083309 | H154: 14.04481795 | I154: 29.00557506 | J154: 40.32900979 | K154: 43.57492913 | L154: 50.98881439 | M154: 1.625893673 | N154: 2.578061247 | O154: 3.021108657 | P154: 7.083664531 | Q154: 8.902194515 | BB154: Flush to septic tank | BC154: 1728.573532 | BD154: 2709.642796 | BE154: 6705.926235 | BF154: 20589.84579 | BG154: 32335.50108 | BH154: 4363.74765 | BI154: 8874.96611 | BJ154: 12351.32668 | BK154: 13696.24161 | BL154: 16003.81685 | BM154: 618.1917725 | BN154: 984.9671326 | BO154: 1117.15514 | BP154: 2671.891888 | BQ154: 3387.184605
B155: Pour flush latrine | C155: 5.065500941 | D155: 5.364703466 | E155: 17.20598812 | F155: 12.04393539 | G155: 12.6372981 | H155: 6.218890508 | I155: 11.99932597 | J155: 12.46642723 | K155: 15.60973293 | L155: 9.486044408 | M155: 5.556990558 | N155: 3.309548236 | O155: 4.284874239 | P155: 9.414708461 | Q155: 26.81243879 | BB155: Pour flush latrine | BC155: 3522.563469 | BD155: 3654.310101 | BE155: 11900.83656 | BF155: 8192.480179 | BG155: 8750.023056 | BH155: 1932.219337 | BI155: 3671.487675 | BJ155: 3818.018742 | BK155: 4906.36882 | BL155: 2977.376884 | BM155: 2112.860085 | BN155: 1264.43708 | BO155: 1584.474384 | BP155: 3551.139816 | BQ155: 10201.83054
B156: Covered dry latrine (with privacy) | C156: 3.837511865 | D156: 9.298856287 | E156: 13.19428373 | F156: 15.84098921 | G156: 7.261472598 | H156: 9.852127459 | I156: 18.43219439 | J156: 13.86547515 | K156: 9.430434111 | L156: 4.141431794 | M156: 1.944472258 | N156: 5.465454009 | O156: 10.47744451 | P156: 14.42685181 | Q156: 12.02960423 | BB156: Covered dry latrine (with privacy) | BC156: 2668.616444 | BD156: 6334.162674 | BE156: 9126.067806 | BF156: 10775.29777 | BG156: 5027.819408 | BH156: 3061.071934 | BI156: 5639.781326 | BJ156: 4246.496853 | BK156: 2964.124249 | BL156: 1299.86776 | BM156: 739.3206406 | BN156: 2088.116631 | BO156: 3874.382656 | BP156: 5441.673325 | BQ156: 4577.128727
B157: Uncovered dry latrine (without privacy) | C157: 2.820061373 | D157: 3.729080863 | E157: 7.261915933 | F157: 8.461586163 | G157: 3.111602867 | H157: 7.711526915 | I157: 9.906456227 | J157: 6.810254494 | K157: 4.476387927 | L157: 0.79193225 | M157: 1.429189262 | N157: 4.49861703 | O157: 3.247315449 | P157: 5.203935165 | Q157: 7.464188601 | BB157: Uncovered dry latrine (without privacy) | BC157: 1961.078537 | BD157: 2540.162369 | BE157: 5022.837051 | BF157: 5755.708138 | BG157: 2154.463448 | BH157: 2395.983883 | BI157: 3031.122917 | BJ157: 2085.736259 | BK157: 1406.994614 | BL157: 248.563118 | BM157: 543.4014893 | BN157: 1718.7295 | BO157: 1200.802605 | BP157: 1962.875584 | BQ157: 2840.039574
B158: Bucket latrine (where fresh excreta are manually removed) | C158: 2.103176 | D158: 3.105469148 | E158: 7.145371376 | F158: 4.875756824 | G158: 0.4622144611 | H158: 5.912462174 | I158: 4.113497633 | J158: 1.721407555 | K158: 0.3498052908 | L158: 0.3315065402 | M158: 1.555077392 | N158: 1.389282086 | O158: 4.015329771 | P158: 4.439338492 | Q158: 10.61421199 | BB158: Bucket latrine (where fresh excreta are manually removed) | BC158: 1462.554451 | BD158: 2115.372704 | BE158: 4942.226875 | BF158: 3316.568867 | BG158: 320.0357513 | BH158: 1837.011559 | BI158: 1258.625351 | BJ158: 527.2052841 | BK158: 109.9489517 | BL158: 104.0496826 | BM158: 591.2662468 | BN158: 530.7853699 | BO158: 1484.801376 | BP158: 1674.476883 | BQ158: 4038.587944
B159: No facilities (open defecation) | C159: 71.30959891 | D159: 59.89127884 | E159: 34.93449687 | F159: 13.21731154 | G159: 1.750467425 | H159: 44.42376211 | I159: 10.87161818 | J159: 6.393622996 | K159: 2.999359783 | L159: 0 | M159: 76.40289546 | N159: 71.59913421 | O159: 57.37023451 | P159: 45.87923838 | Q159: 25.74824954 | BB159: No facilities (open defecation) | BC159: 49588.89378 | BD159: 40796.5336 | BE159: 24163.08408 | BF159: 8990.629669 | BG159: 1212.017807 | BH159: 13802.53473 | BI159: 3326.437855 | BJ159: 1958.137001 | BK159: 942.7429276 | BL159: 0 | BM159: 29049.64953 | BN159: 27354.97227 | BO159: 21214.54725 | BP159: 17305.21883 | BQ159: 9796.918533
B160: Other | C160: 10.81460928 | D160: 12.48321377 | E160: 4.907544687 | F160: 1.877404747 | G160: 0.3989915877 | H160: 3.850333349 | I160: 2.569514186 | J160: 0.5392418571 | K160: 0 | L160: 0.6918397108 | M160: 10.61695195 | N160: 9.623674922 | O160: 15.03656247 | P160: 9.715531229 | Q160: 4.384509442 | BB160: Other | BC160: 7520.50943 | BD160: 8503.272259 | BE160: 3394.393093 | BF160: 1277.041157 | BG160: 276.2604446 | BH160: 1196.304798 | BI160: 786.2057991 | BJ160: 165.1504059 | BK160: 0 | BL160: 217.1471558 | BM160: 4036.741428 | BN160: 3676.795307 | BO160: 5560.267754 | BP160: 3664.607346 | BQ160: 1668.25639
BB161: Total | BC161: 69540.27864 | BD161: 68117.65317 | BE161: 69166.83004 | BF161: 68021.6218 | BG161: 69239.66648 | BH161: 31070.16171 | BI161: 30597.44926 | BJ161: 30626.40701 | BK161: 31431.47191 | BL161: 31386.917 | BM161: 38021.66051 | BN161: 38205.73052 | BO161: 36978.31712 | BP161: 37719.06301 | BQ161: 38048.87209
A208: =A1026 -> Mauritania
A209: =A1034 -> 2003
A210: Access to hygiene facilities
A211: by wealth quintile and sub-national region
A212: Notes:
A213: WHO/UNICEF JMP customised wealth index excludes water,
A214: sanitation and hygiene assets.
A215: Survey used for analysis: | B215: =A1025 -> WHS03
A220: Access to handwashing | C220: NATIONAL wealth index quintile | H220: URBAN wealth index quintile | M220: RURAL wealth index quintile | BA220: Raw numbers of respondents: | BB220: Access to handwashing | BC220: NATIONAL wealth index quintile | BH220: URBAN wealth index quintile | BM220: RURAL wealth index quintile
A221: Weighted percentage (used in graphs) | C221: Poorest | D221: Poor | E221: Middle | F221: Rich | G221: Richest | H221: Poorest | I221: Poor | J221: Middle | K221: Rich | L221: Richest | M221: Poorest | N221: Poor | O221: Middle | P221: Rich | Q221: Richest | BA221: Hygiene data, raw numbers (weighted) | BC221: Poorest | BD221: Poor | BE221: Middle | BF221: Rich | BG221: Richest | BH221: Poorest | BI221: Poor | BJ221: Middle | BK221: Rich | BL221: Richest | BM221: Poorest | BN221: Poor | BO221: Middle | BP221: Rich | BQ221: Richest
A222: Hygiene ladder | B222: Basic | C222: N/A | D222: N/A | E222: N/A | F222: N/A | G222: N/A | H222: N/A | I222: N/A | J222: N/A | K222: N/A | L222: N/A | M222: N/A | N222: N/A | O222: N/A | P222: N/A | Q222: N/A | BA222: Hygiene ladder | BB222: Basic | BC222: N/A | BD222: N/A | BE222: N/A | BF222: N/A | BG222: N/A | BH222: N/A | BI222: N/A | BJ222: N/A | BK222: N/A | BL222: N/A | BM222: N/A | BN222: N/A | BO222: N/A | BP222: N/A | BQ222: N/A
B223: Limited | C223: N/A | D223: N/A | E223: N/A | F223: N/A | G223: N/A | H223: N/A | I223: N/A | J223: N/A | K223: N/A | L223: N/A | M223: N/A | N223: N/A | O223: N/A | P223: N/A | Q223: N/A | BB223: Limited | BC223: N/A | BD223: N/A | BE223: N/A | BF223: N/A | BG223: N/A | BH223: N/A | BI223: N/A | BJ223: N/A | BK223: N/A | BL223: N/A | BM223: N/A | BN223: N/A | BO223: N/A | BP223: N/A | BQ223: N/A
B224: No facility | C224: N/A | D224: N/A | E224: N/A | F224: N/A | G224: N/A | H224: N/A | I224: N/A | J224: N/A | K224: N/A | L224: N/A | M224: N/A | N224: N/A | O224: N/A | P224: N/A | Q224: N/A | BB224: No facility | BC224: N/A | BD224: N/A | BE224: N/A | BF224: N/A | BG224: N/A | BH224: N/A | BI224: N/A | BJ224: N/A | BK224: N/A | BL224: N/A | BM224: N/A | BN224: N/A | BO224: N/A | BP224: N/A | BQ224: N/A
BA225: Observed handwashing place | BB225: Fixed | BC225: N/A | BD225: N/A | BE225: N/A | BF225: N/A | BG225: N/A | BH225: N/A | BI225: N/A | BJ225: N/A | BK225: N/A | BL225: N/A | BM225: N/A | BN225: N/A | BO225: N/A | BP225: N/A | BQ225: N/A
BB226: Mobile | BC226: N/A | BD226: N/A | BE226: N/A | BF226: N/A | BG226: N/A | BH226: N/A | BI226: N/A | BJ226: N/A | BK226: N/A | BL226: N/A | BM226: N/A | BN226: N/A | BO226: N/A | BP226: N/A | BQ226: N/A
BA227: Water / Soap | BB227: Water and soap | BC227: N/A | BD227: N/A | BE227: N/A | BF227: N/A | BG227: N/A | BH227: N/A | BI227: N/A | BJ227: N/A | BK227: N/A | BL227: N/A | BM227: N/A | BN227: N/A | BO227: N/A | BP227: N/A | BQ227: N/A
BB228: Water only | BC228: N/A | BD228: N/A | BE228: N/A | BF228: N/A | BG228: N/A | BH228: N/A | BI228: N/A | BJ228: N/A | BK228: N/A | BL228: N/A | BM228: N/A | BN228: N/A | BO228: N/A | BP228: N/A | BQ228: N/A
BB229: Soap only | BC229: N/A | BD229: N/A | BE229: N/A | BF229: N/A | BG229: N/A | BH229: N/A | BI229: N/A | BJ229: N/A | BK229: N/A | BL229: N/A | BM229: N/A | BN229: N/A | BO229: N/A | BP229: N/A | BQ229: N/A
BB230: Neither | BC230: N/A | BD230: N/A | BE230: N/A | BF230: N/A | BG230: N/A | BH230: N/A | BI230: N/A | BJ230: N/A | BK230: N/A | BL230: N/A | BM230: N/A | BN230: N/A | BO230: N/A | BP230: N/A | BQ230: N/A
BA259: Raw numbers of respondents: | BB259: Menstrual health and hygiene | BC259: NATIONAL wealth index quintile | BH259: URBAN wealth index quintile | BM259: RURAL wealth index quintile
BA260: MHH data, raw numbers (weighted) | BC260: Poorest | BD260: Poor | BE260: Middle | BF260: Rich | BG260: Richest | BH260: Poorest | BI260: Poor | BJ260: Middle | BK260: Rich | BL260: Richest | BM260: Poorest | BN260: Poor | BO260: Middle | BP260: Rich | BQ260: Richest
BA261: Private place to wash and change | BB261: Yes | BC261: N/A | BD261: N/A | BE261: N/A | BF261: N/A | BG261: N/A | BH261: N/A | BI261: N/A | BJ261: N/A | BK261: N/A | BL261: N/A | BM261: N/A | BN261: N/A | BO261: N/A | BP261: N/A | BQ261: N/A
BB262: No | BC262: N/A | BD262: N/A | BE262: N/A | BF262: N/A | BG262: N/A | BH262: N/A | BI262: N/A | BJ262: N/A | BK262: N/A | BL262: N/A | BM262: N/A | BN262: N/A | BO262: N/A | BP262: N/A | BQ262: N/A
BB263: DK/not sure/missing | BC263: N/A | BD263: N/A | BE263: N/A | BF263: N/A | BG263: N/A | BH263: N/A | BI263: N/A | BJ263: N/A | BK263: N/A | BL263: N/A | BM263: N/A | BN263: N/A | BO263: N/A | BP263: N/A | BQ263: N/A
BA264: Use of menstrual materials | BB264: Materials reusable | BC264: N/A | BD264: N/A | BE264: N/A | BF264: N/A | BG264: N/A | BH264: N/A | BI264: N/A | BJ264: N/A | BK264: N/A | BL264: N/A | BM264: N/A | BN264: N/A | BO264: N/A | BP264: N/A | BQ264: N/A
BB265: Materials not reusable | BC265: N/A | BD265: N/A | BE265: N/A | BF265: N/A | BG265: N/A | BH265: N/A | BI265: N/A | BJ265: N/A | BK265: N/A | BL265: N/A | BM265: N/A | BN265: N/A | BO265: N/A | BP265: N/A | BQ265: N/A
BB266: No materials used | BC266: N/A | BD266: N/A | BE266: N/A | BF266: N/A | BG266: N/A | BH266: N/A | BI266: N/A | BJ266: N/A | BK266: N/A | BL266: N/A | BM266: N/A | BN266: N/A | BO266: N/A | BP266: N/A | BQ266: N/A
BB267: DK/not sure/missing | BC267: N/A | BD267: N/A | BE267: N/A | BF267: N/A | BG267: N/A | BH267: N/A | BI267: N/A | BJ267: N/A | BK267: N/A | BL267: N/A | BM267: N/A | BN267: N/A | BO267: N/A | BP267: N/A | BQ267: N/A
BA268: Use of menstrual materials with private place to wash and change | BB268: Materials reusable | BC268: N/A | BD268: N/A | BE268: N/A | BF268: N/A | BG268: N/A | BH268: N/A | BI268: N/A | BJ268: N/A | BK268: N/A | BL268: N/A | BM268: N/A | BN268: N/A | BO268: N/A | BP268: N/A | BQ268: N/A
BB269: Materials not reusable | BC269: N/A | BD269: N/A | BE269: N/A | BF269: N/A | BG269: N/A | BH269: N/A | BI269: N/A | BJ269: N/A | BK269: N/A | BL269: N/A | BM269: N/A | BN269: N/A | BO269: N/A | BP269: N/A | BQ269: N/A
BB270: No materials used | BC270: N/A | BD270: N/A | BE270: N/A | BF270: N/A | BG270: N/A | BH270: N/A | BI270: N/A | BJ270: N/A | BK270: N/A | BL270: N/A | BM270: N/A | BN270: N/A | BO270: N/A | BP270: N/A | BQ270: N/A
BA271: Awareness of menstruation before menarche | BB271: Yes | BC271: N/A | BD271: N/A | BE271: N/A | BF271: N/A | BG271: N/A | BH271: N/A | BI271: N/A | BJ271: N/A | BK271: N/A | BL271: N/A | BM271: N/A | BN271: N/A | BO271: N/A | BP271: N/A | BQ271: N/A
BB272: No | BC272: N/A | BD272: N/A | BE272: N/A | BF272: N/A | BG272: N/A | BH272: N/A | BI272: N/A | BJ272: N/A | BK272: N/A | BL272: N/A | BM272: N/A | BN272: N/A | BO272: N/A | BP272: N/A | BQ272: N/A
BB273: DK/not sure/missing | BC273: N/A | BD273: N/A | BE273: N/A | BF273: N/A | BG273: N/A | BH273: N/A | BI273: N/A | BJ273: N/A | BK273: N/A | BL273: N/A | BM273: N/A | BN273: N/A | BO273: N/A | BP273: N/A | BQ273: N/A
BA274: Participation in (all) activities during menstruation | BB274: Yes | BC274: N/A | BD274: N/A | BE274: N/A | BF274: N/A | BG274: N/A | BH274: N/A | BI274: N/A | BJ274: N/A | BK274: N/A | BL274: N/A | BM274: N/A | BN274: N/A | BO274: N/A | BP274: N/A | BQ274: N/A
BB275: No | BC275: N/A | BD275: N/A | BE275: N/A | BF275: N/A | BG275: N/A | BH275: N/A | BI275: N/A | BJ275: N/A | BK275: N/A | BL275: N/A | BM275: N/A | BN275: N/A | BO275: N/A | BP275: N/A | BQ275: N/A
BB276: DK/not sure/missing/no such activity | BC276: N/A | BD276: N/A | BE276: N/A | BF276: N/A | BG276: N/A | BH276: N/A | BI276: N/A | BJ276: N/A | BK276: N/A | BL276: N/A | BM276: N/A | BN276: N/A | BO276: N/A | BP276: N/A | BQ276: N/A
BA277: Participation in specific activities during menstruation | BB277: Did not go to school (amongst those usually attending school) | BC277: N/A | BD277: N/A | BE277: N/A | BF277: N/A | BG277: N/A | BH277: N/A | BI277: N/A | BJ277: N/A | BK277: N/A | BL277: N/A | BM277: N/A | BN277: N/A | BO277: N/A | BP277: N/A | BQ277: N/A
BB278: Did not go to work (amongst those who usually work) | BC278: N/A | BD278: N/A | BE278: N/A | BF278: N/A | BG278: N/A | BH278: N/A | BI278: N/A | BJ278: N/A | BK278: N/A | BL278: N/A | BM278: N/A | BN278: N/A | BO278: N/A | BP278: N/A | BQ278: N/A
BB279: Did not participate in social activities | BC279: N/A | BD279: N/A | BE279: N/A | BF279: N/A | BG279: N/A | BH279: N/A | BI279: N/A | BJ279: N/A | BK279: N/A | BL279: N/A | BM279: N/A | BN279: N/A | BO279: N/A | BP279: N/A | BQ279: N/A
BB280: Did not cook food | BC280: N/A | BD280: N/A | BE280: N/A | BF280: N/A | BG280: N/A | BH280: N/A | BI280: N/A | BJ280: N/A | BK280: N/A | BL280: N/A | BM280: N/A | BN280: N/A | BO280: N/A | BP280: N/A | BQ280: N/A
BB281: Did not eat with others | BC281: N/A | BD281: N/A | BE281: N/A | BF281: N/A | BG281: N/A | BH281: N/A | BI281: N/A | BJ281: N/A | BK281: N/A | BL281: N/A | BM281: N/A | BN281: N/A | BO281: N/A | BP281: N/A | BQ281: N/A
BB282: Did not bathe in regular place | BC282: N/A | BD282: N/A | BE282: N/A | BF282: N/A | BG282: N/A | BH282: N/A | BI282: N/A | BJ282: N/A | BK282: N/A | BL282: N/A | BM282: N/A | BN282: N/A | BO282: N/A | BP282: N/A | BQ282: N/A
BB283: Did not participate in other activities | BC283: N/A | BD283: N/A | BE283: N/A | BF283: N/A | BG283: N/A | BH283: N/A | BI283: N/A | BJ283: N/A | BK283: N/A | BL283: N/A | BM283: N/A | BN283: N/A | BO283: N/A | BP283: N/A | BQ283: N/A
BB284: DK/not sure/missing/no such activity | BC284: N/A | BD284: N/A | BE284: N/A | BF284: N/A | BG284: N/A | BH284: N/A | BI284: N/A | BJ284: N/A | BK284: N/A | BL284: N/A | BM284: N/A | BN284: N/A | BO284: N/A | BP284: N/A | BQ284: N/A
BA339: Raw numbers of respondents: | BB339: Basic water, sanitation and hygiene | BC339: NATIONAL wealth index quintile | BH339: URBAN wealth index quintile | BM339: RURAL wealth index quintile
BA340: WatSan data, raw numbers (weighted) | BC340: Poorest | BD340: Poor | BE340: Middle | BF340: Rich | BG340: Richest | BH340: Poorest | BI340: Poor | BJ340: Middle | BK340: Rich | BL340: Richest | BM340: Poorest | BN340: Poor | BO340: Middle | BP340: Rich | BQ340: Richest
BA341: Use of Basic Water Sanitation and Hygiene | BB341: Yes | BC341: N/A | BD341: N/A | BE341: N/A | BF341: N/A | BG341: N/A | BH341: N/A | BI341: N/A | BJ341: N/A | BK341: N/A | BL341: N/A | BM341: N/A | BN341: N/A | BO341: N/A | BP341: N/A | BQ341: N/A
BB342: No | BC342: N/A | BD342: N/A | BE342: N/A | BF342: N/A | BG342: N/A | BH342: N/A | BI342: N/A | BJ342: N/A | BK342: N/A | BL342: N/A | BM342: N/A | BN342: N/A | BO342: N/A | BP342: N/A | BQ342: N/A
BA343: Use of Basic Water and Sanitation | BB343: Yes | BC343: N/A | BD343: N/A | BE343: N/A | BF343: N/A | BG343: N/A | BH343: N/A | BI343: N/A | BJ343: N/A | BK343: N/A | BL343: N/A | BM343: N/A | BN343: N/A | BO343: N/A | BP343: N/A | BQ343: N/A
BB344: No | BC344: N/A | BD344: N/A | BE344: N/A | BF344: N/A | BG344: N/A | BH344: N/A | BI344: N/A | BJ344: N/A | BK344: N/A | BL344: N/A | BM344: N/A | BN344: N/A | BO344: N/A | BP344: N/A | BQ344: N/A
BA345: Use of Basic Water and Hygiene | BB345: Yes | BC345: N/A | BD345: N/A | BE345: N/A | BF345: N/A | BG345: N/A | BH345: N/A | BI345: N/A | BJ345: N/A | BK345: N/A | BL345: N/A | BM345: N/A | BN345: N/A | BO345: N/A | BP345: N/A | BQ345: N/A
BB346: No | BC346: N/A | BD346: N/A | BE346: N/A | BF346: N/A | BG346: N/A | BH346: N/A | BI346: N/A | BJ346: N/A | BK346: N/A | BL346: N/A | BM346: N/A | BN346: N/A | BO346: N/A | BP346: N/A | BQ346: N/A
BA347: Use of Basic Sanitation and Hygiene | BB347: Yes | BC347: N/A | BD347: N/A | BE347: N/A | BF347: N/A | BG347: N/A | BH347: N/A | BI347: N/A | BJ347: N/A | BK347: N/A | BL347: N/A | BM347: N/A | BN347: N/A | BO347: N/A | BP347: N/A | BQ347: N/A
BB348: No | BC348: N/A | BD348: N/A | BE348: N/A | BF348: N/A | BG348: N/A | BH348: N/A | BI348: N/A | BJ348: N/A | BK348: N/A | BL348: N/A | BM348: N/A | BN348: N/A | BO348: N/A | BP348: N/A | BQ348: N/A
BA349: Use of Basic Water | BB349: Yes | BC349: N/A | BD349: N/A | BE349: N/A | BF349: N/A | BG349: N/A | BH349: N/A | BI349: N/A | BJ349: N/A | BK349: N/A | BL349: N/A | BM349: N/A | BN349: N/A | BO349: N/A | BP349: N/A | BQ349: N/A
BB350: No | BC350: N/A | BD350: N/A | BE350: N/A | BF350: N/A | BG350: N/A | BH350: N/A | BI350: N/A | BJ350: N/A | BK350: N/A | BL350: N/A | BM350: N/A | BN350: N/A | BO350: N/A | BP350: N/A | BQ350: N/A
BA351: Use of Basic Sanitation | BB351: Yes | BC351: N/A | BD351: N/A | BE351: N/A | BF351: N/A | BG351: N/A | BH351: N/A | BI351: N/A | BJ351: N/A | BK351: N/A | BL351: N/A | BM351: N/A | BN351: N/A | BO351: N/A | BP351: N/A | BQ351: N/A
BB352: No | BC352: N/A | BD352: N/A | BE352: N/A | BF352: N/A | BG352: N/A | BH352: N/A | BI352: N/A | BJ352: N/A | BK352: N/A | BL352: N/A | BM352: N/A | BN352: N/A | BO352: N/A | BP352: N/A | BQ352: N/A
BA353: Access to Basic Hygiene | BB353: Yes | BC353: N/A | BD353: N/A | BE353: N/A | BF353: N/A | BG353: N/A | BH353: N/A | BI353: N/A | BJ353: N/A | BK353: N/A | BL353: N/A | BM353: N/A | BN353: N/A | BO353: N/A | BP353: N/A | BQ353: N/A
BB354: No | BC354: N/A | BD354: N/A | BE354: N/A | BF354: N/A | BG354: N/A | BH354: N/A | BI354: N/A | BJ354: N/A | BK354: N/A | BL354: N/A | BM354: N/A | BN354: N/A | BO354: N/A | BP354: N/A | BQ354: N/A
C399: INITIAL (national) Wealth Index | H399: URBAN Wealth Index | M399: RURAL Wealth Index
C400: Component Matrix | H400: Component Matrix | M400: Component Matrix
E401: Component | J401: Component | O401: Component
B402: Note: The INITIAL (national) Wealth Index is based on the first component of the Principal Component Analysis (PCA) which has been obtained at national level. The final national-level (NATIONAL) Wealth Index is based on the URBAN and RURAL specific wealth indexes. Regression procedures are used to establish the relationships between the two sets of scores (urban and rural) and the initial (national) wealth factors. This allows best use of the available information for each area and a better precision of the FINAL (NATIONAL) Wealth Index. For dependency reasons, all WASH variables (contained in the generic MICS and DHS scripts) have been excluded from the sets of asset variables used in the PCAs. The PCA can extracts as many components as there are asset variables in the input. Only the first of the components is used to represent the Wealth Index. The scores represent the weights of the asset variables on the Wealth Index (correlations between the variables and the component). The communalities are the proportion of each variable's variance that can be explained by the component. Proportion of explained variance is the part of the model's total variance that is explained by the component. For more information on the procedure used: The DHS Wealth Index, DHS Comparative Reports No. 6, Shea Oscar Rutstein, Kiersten Johnson, ORC Macro International Inc., 2004. The DHS Wealth Index: Approaches for Rural and Urban Areas, Shea O. Rutstein, ORC Macro International Inc., 2008. MICS Methodological Paper No. 4, Review of options for reporting water, sanitation and hygiene coverage by wealth quintile, UNICEF, 2016. | E402: 1 | J402: 1 | O402: 1
C403: Has Video | E403: 0.7255951783 | H403: Has Video | J403: 0.6393917088 | M403: Has Vacuum cleaner | O403: 0.8187481429
C404: Has Cellular phone | E404: 0.6946184701 | H404: Uses gaz fuel | J404: -0.5972634152 | M404: Has Cellular phone | O404: 0.7958117781
C405: Has Telephone | E405: 0.6704787147 | H405: Has Cellular phone | J405: 0.5907332266 | M405: Has Refrigerator | O405: 0.7848141175
C406: Uses gaz fuel | E406: -0.6700754855 | H406: Has Vacuum cleaner | J406: 0.5869158368 | M406: Has Dish washing machine | O406: 0.7701395928
C407: Has Vacuum cleaner | E407: 0.6358875784 | H407: Permanent Income question 1 | J407: 0.5699478165 | M407: Has Computer | O407: 0.6274451587
C408: Kooks outdoor | E408: 0.5637055958 | H408: Has Telephone | J408: 0.5536214243 | M408: Has Telephone | O408: 0.5115280929
C409: Uses wood fuel | E409: 0.5266633455 | H409: Kooks outdoor | J409: 0.5095491316 | M409: Has Stereo | O409: 0.511227637
C410: Has hard floor | E410: -0.5058039394 | H410: Has hearth floor | J410: 0.4577804242 | M410: Has Clothes washing machine | O410: 0.460318632
C411: Has Refrigerator | E411: 0.4941925382 | H411: Has hard floor | J411: -0.4558168525 | M411: Uses coal heating | O411: -0.3651081274
C412: Has DVD | E412: 0.4895689476 | H412: Uses open fire without chimney | J412: 0.4531988573 | M412: Has DVD | O412: 0.278824879
C413: Has hearth floor | E413: 0.4865980069 | H413: Has DVD | J413: 0.4429399669 | M413: Kooks outdoor | O413: 0.2249271161
C414: Has cement, brick, stone or wood wall | E414: -0.4839160777 | H414: Permanent Income question 4 | J414: 0.4405375915 | M414: Has Internet | O414: 0.2171413692
C415: Permanent Income question 4 | E415: 0.461483094 | H415: Has cement, brick, stone or wood wall | J415: -0.4274570092 | M415: Has Magazine | O415: 0.2136673913
C416: Has TV | E416: 0.4362504019 | H416: Has Refrigerator | J416: 0.4181773957 | M416: Has Camera | O416: 0.2111824268
C417: Has Magazine | E417: 0.4089121076 | H417: Uses wood fuel | J417: 0.4172876503 | M417: Has Security system | O417: 0.2077962732
C418: Has mud brick wall | E418: 0.402565884 | H418: Has mud brick wall | J418: 0.3916722866 | M418: Has Second home | O418: 0.165174448
C419: Uses open fire without chimney | E419: 0.3753025591 | H419: Uses coal fuel | J419: 0.3551576507 | M419: Uses gaz fuel | O419: -0.1493406894
C420: Has Car | E420: 0.3653211606 | H420: Has Magazine | J420: 0.3317607898 | M420: Has hearth floor | O420: 0.1458945982
C421: Has Security system | E421: 0.3613394889 | H421: Has Security system | J421: 0.3275438958 | M421: Uses open fire without chimney | O421: 0.110511748
C422: Has Stereo | E422: 0.3491682916 | H422: Permanent Income question 2 | J422: 0.289576626 | M422: Permanent Income question 4 | O422: 0.1030151829
C423: Has Computer | E423: 0.2725205286 | H423: Permanent Income question 3 | J423: 0.2866759275 | M423: Uses wood heating | O423: -0.1019403751
... 209 more rows

Sheet MICS07
A2: =A1026 -> Mauritania
A3: =A1034 -> 2007
A4: Use of drinking water sources
A5: by wealth quintile and sub-national region
A6: Notes:
A7: WHO/UNICEF JMP customised wealth index excludes water,
A8: sanitation and hygiene assets.
A9: Survey used for analysis: | B9: =A1025 -> MICS07
A10: =B1028 -> 
A11: =B1027 -> 
A14: Use of drinking water sources | C14: NATIONAL wealth index quintile | H14: URBAN wealth index quintile | M14: RURAL wealth index quintile | R14: SUB-REGIONS: | BA14: Raw numbers of respondents: | BB14: Use of drinking water sources | BC14: NATIONAL wealth index quintile | BH14: URBAN wealth index quintile | BM14: RURAL wealth index quintile | BR14: SUB-REGIONS:
A15: Weighted percentage (used in graphs) | C15: Poorest | D15: Poor | E15: Middle | F15: Rich | G15: Richest | H15: Poorest | I15: Poor | J15: Middle | K15: Rich | L15: Richest | M15: Poorest | N15: Poor | O15: Middle | P15: Rich | Q15: Richest | R15: Adrar | S15: Assaba | T15: Brakna | U15: Gorgol | V15: Guidimagha | W15: Hodh ECharghi | X15: Hodh ELGharbi | Y15: Inchiri | Z15: Nouadhibou | AA15: Nouakchott | AB15: Tagant | AC15: Tiris Zemmour | AD15: Trarza | BA15: Water data, raw numbers (weighted) | BC15: Poorest | BD15: Poor | BE15: Middle | BF15: Rich | BG15: Richest | BH15: Poorest | BI15: Poor | BJ15: Middle | BK15: Rich | BL15: Richest | BM15: Poorest | BN15: Poor | BO15: Middle | BP15: Rich | BQ15: Richest | BR15: Adrar | BS15: Assaba | BT15: Brakna | BU15: Gorgol | BV15: Guidimagha | BW15: Hodh ECharghi | BX15: Hodh ELGharbi | BY15: Inchiri | BZ15: Nouadhibou | CA15: Nouakchott | CB15: Tagant | CC15: Tiris Zemmour | CD15: Trarza
A16: Water | B16: Improved | C16: 47.80430279 | D16: 50.82890168 | E16: 75.0862155 | F16: 95.76169574 | G16: 98.68654512 | H16: 83.67530869 | I16: 95.59230374 | J16: 98.48668928 | K16: 98.63846394 | L16: 99.48223474 | M16: 46.40447264 | N16: 48.07059433 | O16: 44.97685795 | P16: 58.52447712 | Q16: 80.97592606 | R16: 77.51782327 | S16: 63.49681965 | T16: 79.48983382 | U16: 56.91750509 | V16: 53.80616614 | W16: 47.85484304 | X16: 33.85417751 | Y16: 86.52789657 | Z16: 96.61312968 | AA16: 98.00297232 | AB16: 63.75062749 | AC16: 97.91983182 | AD16: 92.02471951 | BA16: Water | BB16: Improved | BC16: N/A | BD16: N/A | BE16: N/A | BF16: N/A | BG16: N/A | BH16: N/A | BI16: N/A | BJ16: N/A | BK16: N/A | BL16: N/A | BM16: N/A | BN16: N/A | BO16: N/A | BP16: N/A | BQ16: N/A | BR16: N/A | BS16: N/A | BT16: N/A | BU16: N/A | BV16: N/A | BW16: N/A | BX16: N/A | BY16: N/A | BZ16: N/A | CA16: N/A | CB16: N/A | CC16: N/A | CD16: N/A
B17: Not Improved | C17: 52.19569721 | D17: 49.17109832 | E17: 24.9137845 | F17: 4.238304259 | G17: 1.31345488 | H17: 16.32469131 | I17: 4.407696264 | J17: 1.513310717 | K17: 1.361536058 | L17: 0.5177652628 | M17: 53.59552736 | N17: 51.92940567 | O17: 55.02314205 | P17: 41.47552288 | Q17: 19.02407394 | R17: 22.48217673 | S17: 36.50318035 | T17: 20.51016618 | U17: 43.08249491 | V17: 46.19383386 | W17: 52.14515696 | X17: 66.14582249 | Y17: 13.47210343 | Z17: 3.38687032 | AA17: 1.99702768 | AB17: 36.24937251 | AC17: 2.080168177 | AD17: 7.975280489 | BB17: Not Improved | BC17: N/A | BD17: N/A | BE17: N/A | BF17: N/A | BG17: N/A | BH17: N/A | BI17: N/A | BJ17: N/A | BK17: N/A | BL17: N/A | BM17: N/A | BN17: N/A | BO17: N/A | BP17: N/A | BQ17: N/A | BR17: N/A | BS17: N/A | BT17: N/A | BU17: N/A | BV17: N/A | BW17: N/A | BX17: N/A | BY17: N/A | BZ17: N/A | CA17: N/A | CB17: N/A | CC17: N/A | CD17: N/A
A18: Water ladder | B18: Basic | C18: 22.41844775 | D18: 30.49189484 | E18: 59.34937972 | F18: 90.97016557 | G18: 96.03305668 | H18: 68.04431517 | I18: 90.78971721 | J18: 95.86030696 | K18: 96.1199678 | L18: 96.59319869 | M18: 21.15174589 | N18: 22.05215093 | O18: 25.2492323 | P18: 39.96111171 | Q18: 68.14252612 | R18: 70.5463946 | S18: 34.86250621 | T18: 56.25496885 | U18: 39.11125286 | V18: 26.15665971 | W18: 31.47132578 | X18: 25.26847312 | Y18: 84.87149857 | Z18: 95.33536667 | AA18: 92.68111225 | AB18: 53.75270405 | AC18: 97.51666617 | AD18: 78.10994265 | BA18: Water ladder | BB18: Basic | BC18: N/A | BD18: N/A | BE18: N/A | BF18: N/A | BG18: N/A | BH18: N/A | BI18: N/A | BJ18: N/A | BK18: N/A | BL18: N/A | BM18: N/A | BN18: N/A | BO18: N/A | BP18: N/A | BQ18: N/A | BR18: N/A | BS18: N/A | BT18: N/A | BU18: N/A | BV18: N/A | BW18: N/A | BX18: N/A | BY18: N/A | BZ18: N/A | CA18: N/A | CB18: N/A | CC18: N/A | CD18: N/A
B19: Limited | C19: 25.37640952 | D19: 20.25444094 | E19: 15.68648593 | F19: 4.778737365 | G19: 2.653084216 | H19: 15.56489706 | I19: 4.795399704 | J19: 2.62178182 | K19: 2.518496145 | L19: 2.888683864 | M19: 25.25272675 | N19: 26.0012673 | O19: 19.60318279 | P19: 18.52598411 | Q19: 12.79719648 | R19: 6.936344617 | S19: 28.53886161 | T19: 23.1906769 | U19: 17.72375061 | V19: 27.64950643 | W19: 16.21746886 | X19: 8.585704383 | Y19: 1.656397999 | Z19: 1.269497236 | AA19: 5.319445736 | AB19: 9.997923441 | AC19: 0.3997301293 | AD19: 13.91477686 | BB19: Limited | BC19: N/A | BD19: N/A | BE19: N/A | BF19: N/A | BG19: N/A | BH19: N/A | BI19: N/A | BJ19: N/A | BK19: N/A | BL19: N/A | BM19: N/A | BN19: N/A | BO19: N/A | BP19: N/A | BQ19: N/A | BR19: N/A | BS19: N/A | BT19: N/A | BU19: N/A | BV19: N/A | BW19: N/A | BX19: N/A | BY19: N/A | BZ19: N/A | CA19: N/A | CB19: N/A | CC19: N/A | CD19: N/A
B20: Unimproved | C20: 47.55810843 | D20: 44.42958791 | E20: 24.56840563 | F20: 4.251097069 | G20: 1.281182388 | H20: 16.39078777 | I20: 4.41488309 | J20: 1.517911216 | K20: 1.361536058 | L20: 0.5181174435 | M20: 49.25534696 | N20: 46.47219324 | O20: 48.40781111 | P20: 40.25992628 | Q20: 18.76409974 | R20: 22.51726079 | S20: 36.59863218 | T20: 19.9279306 | U20: 33.81646879 | V20: 34.73194578 | W20: 51.4241366 | X20: 65.08325752 | Y20: 13.47210343 | Z20: 3.395136092 | AA20: 1.999442016 | AB20: 35.03855134 | AC20: 2.083603697 | AD20: 5.708968801 | BB20: Unimproved | BC20: N/A | BD20: N/A | BE20: N/A | BF20: N/A | BG20: N/A | BH20: N/A | BI20: N/A | BJ20: N/A | BK20: N/A | BL20: N/A | BM20: N/A | BN20: N/A | BO20: N/A | BP20: N/A | BQ20: N/A | BR20: N/A | BS20: N/A | BT20: N/A | BU20: N/A | BV20: N/A | BW20: N/A | BX20: N/A | BY20: N/A | BZ20: N/A | CA20: N/A | CB20: N/A | CC20: N/A | CD20: N/A
B21: Surface water | C21: 4.647034296 | D21: 4.824076302 | E21: 0.395728714 | F21: 0 | G21: 0.03267671548 | H21: 0 | I21: 0 | J21: 0 | K21: 0 | L21: 0 | M21: 4.340180399 | N21: 5.474388536 | O21: 6.73977381 | P21: 1.252977907 | Q21: 0.2961776699 | R21: 0 | S21: 0 | T21: 0.626423652 | U21: 9.348527737 | V21: 11.46188807 | W21: 0.8870687596 | X21: 1.06256497 | Y21: 0 | Z21: 0 | AA21: 0 | AB21: 1.210821178 | AC21: 0 | AD21: 2.266311687 | BB21: Surface water | BC21: N/A | BD21: N/A | BE21: N/A | BF21: N/A | BG21: N/A | BH21: N/A | BI21: N/A | BJ21: N/A | BK21: N/A | BL21: N/A | BM21: N/A | BN21: N/A | BO21: N/A | BP21: N/A | BQ21: N/A | BR21: N/A | BS21: N/A | BT21: N/A | BU21: N/A | BV21: N/A | BW21: N/A | BX21: N/A | BY21: N/A | BZ21: N/A | CA21: N/A | CB21: N/A | CC21: N/A | CD21: N/A
A22: Improved water point at more than 30 minutes | B22: Yes | C22: 53.09443519 | D22: 39.91311024 | E22: 20.90531747 | F22: 4.990905607 | G22: 2.688406084 | H22: 18.61624652 | I22: 5.016889511 | J22: 2.662191524 | K22: 2.553259696 | L22: 2.903728588 | M22: 54.41873447 | N22: 54.10908996 | O22: 43.70596935 | P22: 31.67533598 | Q22: 15.81077383 | R22: 8.9521159 | S22: 45.01300617 | T22: 29.19062044 | U22: 31.18456854 | V22: 51.38724503 | W22: 34.00687516 | X22: 25.36084175 | Y22: 1.914293615 | Z22: 1.314113167 | AA22: 5.427974948 | AB22: 15.6828628 | AC22: 0.4082361529 | AD22: 15.12069468 | BA22: Improved water point at more than 30 minutes | BB22: Yes | BC22: N/A | BD22: N/A | BE22: N/A | BF22: N/A | BG22: N/A | BH22: N/A | BI22: N/A | BJ22: N/A | BK22: N/A | BL22: N/A | BM22: N/A | BN22: N/A | BO22: N/A | BP22: N/A | BQ22: N/A | BR22: N/A | BS22: N/A | BT22: N/A | BU22: N/A | BV22: N/A | BW22: N/A | BX22: N/A | BY22: N/A | BZ22: N/A | CA22: N/A | CB22: N/A | CC22: N/A | CD22: N/A
B23: No | C23: 46.90556481 | D23: 60.08688976 | E23: 79.09468253 | F23: 95.00909439 | G23: 97.31159392 | H23: 81.38375348 | I23: 94.98311049 | J23: 97.33780848 | K23: 97.4467403 | L23: 97.09627141 | M23: 45.58126553 | N23: 45.89091004 | O23: 56.29403065 | P23: 68.32466402 | Q23: 84.18922617 | R23: 91.0478841 | S23: 54.98699383 | T23: 70.80937956 | U23: 68.81543146 | V23: 48.61275497 | W23: 65.99312484 | X23: 74.63915825 | Y23: 98.08570638 | Z23: 98.68588683 | AA23: 94.57202505 | AB23: 84.3171372 | AC23: 99.59176385 | AD23: 84.87930532 | BB23: No | BC23: N/A | BD23: N/A | BE23: N/A | BF23: N/A | BG23: N/A | BH23: N/A | BI23: N/A | BJ23: N/A | BK23: N/A | BL23: N/A | BM23: N/A | BN23: N/A | BO23: N/A | BP23: N/A | BQ23: N/A | BR23: N/A | BS23: N/A | BT23: N/A | BU23: N/A | BV23: N/A | BW23: N/A | BX23: N/A | BY23: N/A | BZ23: N/A | CA23: N/A | CB23: N/A | CC23: N/A | CD23: N/A
A24: Manually calculated ratios | B24: Improved wells and springs | C24: =(C62+C64)/(C62+C63+C64+C65)*100 -> 19.98265579 | D24: 23.58955644 | E24: 38.39568393 | F24: 48.60464405 | G24: 37.02290298 | H24: 32.22258941 | I24: 30.02179948 | J24: 68.46192751 | K24: 57.59012156 | L24: 55.5247992 | M24: 19.08608814 | N24: 22.39043339 | O24: 20.59137758 | P24: 33.56185353 | Q24: 42.81960752
B25: Improved springs
B26: Other
C27: NATIONAL wealth index quintile | H27: URBAN wealth index quintile | M27: RURAL wealth index quintile | R27: SUB-REGIONS: | BA27: Raw numbers of respondents: | BB27: Use of drinking water sources | BC27: NATIONAL wealth index quintile | BH27: URBAN wealth index quintile | BM27: RURAL wealth index quintile | BR27: SUB-REGIONS:
A28: Percentage based on weighted population | C28: Poorest | D28: Poor | E28: Middle | F28: Rich | G28: Richest | H28: Poorest | I28: Poor | J28: Middle | K28: Rich | L28: Richest | M28: Poorest | N28: Poor | O28: Middle | P28: Rich | Q28: Richest | R28: Adrar | S28: Assaba | T28: Brakna | U28: Gorgol | V28: Guidimagha | W28: Hodh ECharghi | X28: Hodh ELGharbi | Y28: Inchiri | Z28: Nouadhibou | AA28: Nouakchott | AB28: Tagant | AC28: Tiris Zemmour | AD28: Trarza | BA28: Water data, raw numbers (weighted) | BC28: Poorest | BD28: Poor | BE28: Middle | BF28: Rich | BG28: Richest | BH28: Poorest | BI28: Poor | BJ28: Middle | BK28: Rich | BL28: Richest | BM28: Poorest | BN28: Poor | BO28: Middle | BP28: Rich | BQ28: Richest | BR28: Adrar | BS28: Assaba | BT28: Brakna | BU28: Gorgol | BV28: Guidimagha | BW28: Hodh ECharghi | BX28: Hodh ELGharbi | BY28: Inchiri | BZ28: Nouadhibou | CA28: Nouakchott | CB28: Tagant | CC28: Tiris Zemmour | CD28: Trarza
A29: Piped water | B29: Yes | C29: 10.30132648 | D29: 16.27220446 | E29: 35.4221402 | F29: 36.55113338 | G29: 53.10387135 | H29: 47.71450985 | I29: 39.66313258 | J29: 35.80244544 | K29: 48.69372226 | L29: 60.37739494 | M29: 8.380034362 | N29: 9.877524152 | O29: 9.813023628 | P29: 21.84555879 | Q29: 34.97324407 | R29: 42.24546637 | S29: 24.71902116 | T29: 39.19532329 | U29: 27.72447527 | V29: 15.99556366 | W29: 17.59678595 | X29: 17.65677827 | Y29: 71.30721344 | Z29: 89.19815961 | AA29: 30.31766673 | AB29: 47.55303248 | AC29: 15.40491128 | AD29: 36.00771202 | BA29: Piped water | BB29: Yes | BC29: N/A | BD29: N/A | BE29: N/A | BF29: N/A | BG29: N/A | BH29: N/A | BI29: N/A | BJ29: N/A | BK29: N/A | BL29: N/A | BM29: N/A | BN29: N/A | BO29: N/A | BP29: N/A | BQ29: N/A | BR29: N/A | BS29: N/A | BT29: N/A | BU29: N/A | BV29: N/A | BW29: N/A | BX29: N/A | BY29: N/A | BZ29: N/A | CA29: N/A | CB29: N/A | CC29: N/A | CD29: N/A
B30: No | C30: 89.69867352 | D30: 83.72779554 | E30: 64.5778598 | F30: 63.44886662 | G30: 46.89612865 | H30: 52.28549015 | I30: 60.33686742 | J30: 64.19755456 | K30: 51.30627774 | L30: 39.62260506 | M30: 91.61996564 | N30: 90.12247585 | O30: 90.18697637 | P30: 78.15444121 | Q30: 65.02675593 | R30: 57.75453363 | S30: 75.28097884 | T30: 60.80467671 | U30: 72.27552473 | V30: 84.00443634 | W30: 82.40321405 | X30: 82.34322173 | Y30: 28.69278656 | Z30: 10.80184039 | AA30: 69.68233327 | AB30: 52.44696752 | AC30: 84.59508872 | AD30: 63.99228798 | BB30: No | BC30: N/A | BD30: N/A | BE30: N/A | BF30: N/A | BG30: N/A | BH30: N/A | BI30: N/A | BJ30: N/A | BK30: N/A | BL30: N/A | BM30: N/A | BN30: N/A | BO30: N/A | BP30: N/A | BQ30: N/A | BR30: N/A | BS30: N/A | BT30: N/A | BU30: N/A | BV30: N/A | BW30: N/A | BX30: N/A | BY30: N/A | BZ30: N/A | CA30: N/A | CB30: N/A | CC30: N/A | CD30: N/A
A31: Piped water on premises | B31: Yes | C31: 2.946462405 | D31: 8.226949427 | E31: 23.88123463 | F31: 24.776417 | G31: 42.0817882 | H31: 24.05066796 | I31: 24.31179615 | J31: 23.95645066 | K31: 34.43546264 | L31: 53.04295306 | M31: 2.106224087 | N31: 2.99634159 | O31: 5.553171873 | P31: 14.10994001 | Q31: 29.21927373 | R31: 34.51084174 | S31: 19.67730175 | T31: 34.67465892 | U31: 14.39894131 | V31: 7.7396445 | W31: 4.316720058 | X31: 15.4725691 | Y31: 48.11202435 | Z31: 45.6777651 | AA31: 18.22403864 | AB31: 41.46410908 | AC31: 13.22554889 | AD31: 30.88923967 | BA31: Piped water on premises | BB31: Yes | BC31: N/A | BD31: N/A | BE31: N/A | BF31: N/A | BG31: N/A | BH31: N/A | BI31: N/A | BJ31: N/A | BK31: N/A | BL31: N/A | BM31: N/A | BN31: N/A | BO31: N/A | BP31: N/A | BQ31: N/A | BR31: N/A | BS31: N/A | BT31: N/A | BU31: N/A | BV31: N/A | BW31: N/A | BX31: N/A | BY31: N/A | BZ31: N/A | CA31: N/A | CB31: N/A | CC31: N/A | CD31: N/A
B32: No | C32: 97.0535376 | D32: 91.77305057 | E32: 76.11876537 | F32: 75.223583 | G32: 57.9182118 | H32: 75.94933204 | I32: 75.68820385 | J32: 76.04354934 | K32: 65.56453736 | L32: 46.95704694 | M32: 97.89377591 | N32: 97.00365841 | O32: 94.44682813 | P32: 85.89005999 | Q32: 70.78072627 | R32: 65.48915826 | S32: 80.32269825 | T32: 65.32534108 | U32: 85.60105869 | V32: 92.2603555 | W32: 95.68327994 | X32: 84.5274309 | Y32: 51.88797565 | Z32: 54.3222349 | AA32: 81.77596136 | AB32: 58.53589092 | AC32: 86.77445111 | AD32: 69.11076033 | BB32: No | BC32: N/A | BD32: N/A | BE32: N/A | BF32: N/A | BG32: N/A | BH32: N/A | BI32: N/A | BJ32: N/A | BK32: N/A | BL32: N/A | BM32: N/A | BN32: N/A | BO32: N/A | BP32: N/A | BQ32: N/A | BR32: N/A | BS32: N/A | BT32: N/A | BU32: N/A | BV32: N/A | BW32: N/A | BX32: N/A | BY32: N/A | BZ32: N/A | CA32: N/A | CB32: N/A | CC32: N/A | CD32: N/A
A33: Piped water into dwelling | B33: Yes | C33: N/A | D33: N/A | E33: N/A | F33: N/A | G33: N/A | H33: N/A | I33: N/A | J33: N/A | K33: N/A | L33: N/A | M33: N/A | N33: N/A | O33: N/A | P33: N/A | Q33: N/A | R33: N/A | S33: N/A | T33: N/A | U33: N/A | V33: N/A | W33: N/A | X33: N/A | Y33: N/A | Z33: N/A | AA33: N/A | AB33: N/A | AC33: N/A | AD33: N/A | BA33: Piped water into dwelling | BB33: Yes | BC33: N/A | BD33: N/A | BE33: N/A | BF33: N/A | BG33: N/A | BH33: N/A | BI33: N/A | BJ33: N/A | BK33: N/A | BL33: N/A | BM33: N/A | BN33: N/A | BO33: N/A | BP33: N/A | BQ33: N/A | BR33: N/A | BS33: N/A | BT33: N/A | BU33: N/A | BV33: N/A | BW33: N/A | BX33: N/A | BY33: N/A | BZ33: N/A | CA33: N/A | CB33: N/A | CC33: N/A | CD33: N/A
B34: No | C34: N/A | D34: N/A | E34: N/A | F34: N/A | G34: N/A | H34: N/A | I34: N/A | J34: N/A | K34: N/A | L34: N/A | M34: N/A | N34: N/A | O34: N/A | P34: N/A | Q34: N/A | R34: N/A | S34: N/A | T34: N/A | U34: N/A | V34: N/A | W34: N/A | X34: N/A | Y34: N/A | Z34: N/A | AA34: N/A | AB34: N/A | AC34: N/A | AD34: N/A | BB34: No | BC34: N/A | BD34: N/A | BE34: N/A | BF34: N/A | BG34: N/A | BH34: N/A | BI34: N/A | BJ34: N/A | BK34: N/A | BL34: N/A | BM34: N/A | BN34: N/A | BO34: N/A | BP34: N/A | BQ34: N/A | BR34: N/A | BS34: N/A | BT34: N/A | BU34: N/A | BV34: N/A | BW34: N/A | BX34: N/A | BY34: N/A | BZ34: N/A | CA34: N/A | CB34: N/A | CC34: N/A | CD34: N/A
A35: Water source on premises | B35: Yes | C35: 7.771393235 | D35: 17.25521622 | E35: 46.7178688 | F35: 82.68023028 | G35: 90.51238458 | H35: 56.42983943 | I35: 81.12429233 | J35: 87.56712452 | K35: 88.33473638 | L35: 93.92820175 | M35: 7.733840478 | N35: 5.96216819 | O35: 11.15702005 | P35: 26.74832093 | Q35: 58.78900249 | R35: 62.33234535 | S35: 22.46372212 | T35: 36.47111332 | U35: 18.57714585 | V35: 9.204285941 | W35: 26.27112973 | X35: 19.96701556 | Y35: 85.85584759 | Z35: 89.99620206 | AA35: 84.15381757 | AB35: 43.87226966 | AC35: 95.74225745 | AD35: 66.57235858 | BA35: Water source on premises | BB35: Yes | BC35: N/A | BD35: N/A | BE35: N/A | BF35: N/A | BG35: N/A | BH35: N/A | BI35: N/A | BJ35: N/A | BK35: N/A | BL35: N/A | BM35: N/A | BN35: N/A | BO35: N/A | BP35: N/A | BQ35: N/A | BR35: N/A | BS35: N/A | BT35: N/A | BU35: N/A | BV35: N/A | BW35: N/A | BX35: N/A | BY35: N/A | BZ35: N/A | CA35: N/A | CB35: N/A | CC35: N/A | CD35: N/A
B36: No | C36: 92.22860676 | D36: 82.74478378 | E36: 53.2821312 | F36: 17.31976972 | G36: 9.487615417 | H36: 43.57016057 | I36: 18.87570767 | J36: 12.43287548 | K36: 11.66526362 | L36: 6.071798251 | M36: 92.26615952 | N36: 94.03783181 | O36: 88.84297995 | P36: 73.25167907 | Q36: 41.21099751 | R36: 37.66765465 | S36: 77.53627788 | T36: 63.52888668 | U36: 81.42285415 | V36: 90.79571406 | W36: 73.72887027 | X36: 80.03298444 | Y36: 14.14415241 | Z36: 10.00379794 | AA36: 15.84618243 | AB36: 56.12773034 | AC36: 4.257742549 | AD36: 33.42764142 | BB36: No | BC36: N/A | BD36: N/A | BE36: N/A | BF36: N/A | BG36: N/A | BH36: N/A | BI36: N/A | BJ36: N/A | BK36: N/A | BL36: N/A | BM36: N/A | BN36: N/A | BO36: N/A | BP36: N/A | BQ36: N/A | BR36: N/A | BS36: N/A | BT36: N/A | BU36: N/A | BV36: N/A | BW36: N/A | BX36: N/A | BY36: N/A | BZ36: N/A | CA36: N/A | CB36: N/A | CC36: N/A | CD36: N/A
A37: Improved Water source on premises | B37: Yes | C37: 13.7971302 | D37: 29.24888512 | E37: 58.77584143 | F37: 85.47085118 | G37: 91.51011535 | H37: 64.35061283 | I37: 84.19159267 | J37: 88.65797587 | K37: 89.18603934 | L37: 94.41706049 | M37: 12.84188985 | N37: 11.39402095 | O37: 20.74455701 | P37: 39.8901184 | Q37: 69.55663818 | R37: 79.3120543 | S37: 35.37771221 | T37: 45.46439545 | U37: 28.74175922 | V37: 16.26017687 | W37: 44.565423 | X37: 49.83709241 | Y37: 91.48183714 | Z37: 91.6214567 | AA37: 85.82124917 | AB37: 68.00457974 | AC37: 97.21487854 | AD37: 69.78551302 | BA37: Improved water source on premises | BB37: Yes | BC37: N/A | BD37: N/A | BE37: N/A | BF37: N/A | BG37: N/A | BH37: N/A | BI37: N/A | BJ37: N/A | BK37: N/A | BL37: N/A | BM37: N/A | BN37: N/A | BO37: N/A | BP37: N/A | BQ37: N/A | BR37: N/A | BS37: N/A | BT37: N/A | BU37: N/A | BV37: N/A | BW37: N/A | BX37: N/A | BY37: N/A | BZ37: N/A | CA37: N/A | CB37: N/A | CC37: N/A | CD37: N/A
B38: No | C38: 86.2028698 | D38: 70.75111488 | E38: 41.22415857 | F38: 14.52914882 | G38: 8.489884654 | H38: 35.64938717 | I38: 15.80840733 | J38: 11.34202413 | K38: 10.81396066 | L38: 5.58293951 | M38: 87.15811015 | N38: 88.60597905 | O38: 79.25544299 | P38: 60.1098816 | Q38: 30.44336182 | R38: 20.6879457 | S38: 64.62228779 | T38: 54.53560455 | U38: 71.25824078 | V38: 83.73982313 | W38: 55.434577 | X38: 50.16290759 | Y38: 8.518162859 | Z38: 8.3785433 | AA38: 14.17875083 | AB38: 31.99542026 | AC38: 2.78512146 | AD38: 30.21448698 | BB38: No | BC38: N/A | BD38: N/A | BE38: N/A | BF38: N/A | BG38: N/A | BH38: N/A | BI38: N/A | BJ38: N/A | BK38: N/A | BL38: N/A | BM38: N/A | BN38: N/A | BO38: N/A | BP38: N/A | BQ38: N/A | BR38: N/A | BS38: N/A | BT38: N/A | BU38: N/A | BV38: N/A | BW38: N/A | BX38: N/A | BY38: N/A | BZ38: N/A | CA38: N/A | CB38: N/A | CC38: N/A | CD38: N/A
A39: Piped water on premises available when needed | B39: Yes | C39: N/A | D39: N/A | E39: N/A | F39: N/A | G39: N/A | H39: N/A | I39: N/A | J39: N/A | K39: N/A | L39: N/A | M39: N/A | N39: N/A | O39: N/A | P39: N/A | Q39: N/A | R39: N/A | S39: N/A | T39: N/A | U39: N/A | V39: N/A | W39: N/A | X39: N/A | Y39: N/A | Z39: N/A | AA39: N/A | AB39: N/A | AC39: N/A | AD39: N/A | BA39: Piped water on premises available when needed | BB39: Yes | BC39: N/A | BD39: N/A | BE39: N/A | BF39: N/A | BG39: N/A | BH39: N/A | BI39: N/A | BJ39: N/A | BK39: N/A | BL39: N/A | BM39: N/A | BN39: N/A | BO39: N/A | BP39: N/A | BQ39: N/A | BR39: N/A | BS39: N/A | BT39: N/A | BU39: N/A | BV39: N/A | BW39: N/A | BX39: N/A | BY39: N/A | BZ39: N/A | CA39: N/A | CB39: N/A | CC39: N/A | CD39: N/A
B40: No | C40: N/A | D40: N/A | E40: N/A | F40: N/A | G40: N/A | H40: N/A | I40: N/A | J40: N/A | K40: N/A | L40: N/A | M40: N/A | N40: N/A | O40: N/A | P40: N/A | Q40: N/A | R40: N/A | S40: N/A | T40: N/A | U40: N/A | V40: N/A | W40: N/A | X40: N/A | Y40: N/A | Z40: N/A | AA40: N/A | AB40: N/A | AC40: N/A | AD40: N/A | BB40: No | BC40: N/A | BD40: N/A | BE40: N/A | BF40: N/A | BG40: N/A | BH40: N/A | BI40: N/A | BJ40: N/A | BK40: N/A | BL40: N/A | BM40: N/A | BN40: N/A | BO40: N/A | BP40: N/A | BQ40: N/A | BR40: N/A | BS40: N/A | BT40: N/A | BU40: N/A | BV40: N/A | BW40: N/A | BX40: N/A | BY40: N/A | BZ40: N/A | CA40: N/A | CB40: N/A | CC40: N/A | CD40: N/A
A41: Water point at more than 30 minutes | B41: Yes | C41: 57.03331288 | D41: 45.80201966 | E41: 26.72469924 | F41: 6.063734074 | G41: 3.035014149 | H41: 20.16954996 | I41: 6.025803866 | J41: 3.061779534 | K41: 2.816644748 | L41: 3.13309524 | M41: 56.8031096 | N41: 57.6395942 | O41: 48.93253436 | P41: 39.56539168 | Q41: 21.4205821 | R41: 20.89302796 | S41: 53.29682691 | T41: 35.43366629 | U41: 35.00111948 | V41: 51.93185369 | W41: 40.35753739 | X41: 50.32300413 | Y41: 5.166384236 | Z41: 1.8260446 | AA41: 5.994601136 | AB41: 30.43002213 | AC41: 0.6199379672 | AD41: 15.91588186 | BA41: Water point at more than 30 minutes | BB41: Yes | BC41: N/A | BD41: N/A | BE41: N/A | BF41: N/A | BG41: N/A | BH41: N/A | BI41: N/A | BJ41: N/A | BK41: N/A | BL41: N/A | BM41: N/A | BN41: N/A | BO41: N/A | BP41: N/A | BQ41: N/A | BR41: N/A | BS41: N/A | BT41: N/A | BU41: N/A | BV41: N/A | BW41: N/A | BX41: N/A | BY41: N/A | BZ41: N/A | CA41: N/A | CB41: N/A | CC41: N/A | CD41: N/A
B42: No | C42: 42.96668712 | D42: 54.19798034 | E42: 73.27530076 | F42: 93.93626593 | G42: 96.96498585 | H42: 79.83045004 | I42: 93.97419613 | J42: 96.93822047 | K42: 97.18335525 | L42: 96.86690476 | M42: 43.1968904 | N42: 42.3604058 | O42: 51.06746564 | P42: 60.43460832 | Q42: 78.5794179 | R42: 79.10697204 | S42: 46.70317309 | T42: 64.56633371 | U42: 64.99888052 | V42: 48.06814631 | W42: 59.64246261 | X42: 49.67699587 | Y42: 94.83361576 | Z42: 98.1739554 | AA42: 94.00539886 | AB42: 69.56997787 | AC42: 99.38006203 | AD42: 84.08411814 | BB42: No | BC42: N/A | BD42: N/A | BE42: N/A | BF42: N/A | BG42: N/A | BH42: N/A | BI42: N/A | BJ42: N/A | BK42: N/A | BL42: N/A | BM42: N/A | BN42: N/A | BO42: N/A | BP42: N/A | BQ42: N/A | BR42: N/A | BS42: N/A | BT42: N/A | BU42: N/A | BV42: N/A | BW42: N/A | BX42: N/A | BY42: N/A | BZ42: N/A | CA42: N/A | CB42: N/A | CC42: N/A | CD42: N/A
A43: Water source available when needed | B43: Yes | C43: N/A | D43: N/A | E43: N/A | F43: N/A | G43: N/A | H43: N/A | I43: N/A | J43: N/A | K43: N/A | L43: N/A | M43: N/A | N43: N/A | O43: N/A | P43: N/A | Q43: N/A | R43: N/A | S43: N/A | T43: N/A | U43: N/A | V43: N/A | W43: N/A | X43: N/A | Y43: N/A | Z43: N/A | AA43: N/A | AB43: N/A | AC43: N/A | AD43: N/A | BA43: Water source available when needed | BB43: Yes | BC43: N/A | BD43: N/A | BE43: N/A | BF43: N/A | BG43: N/A | BH43: N/A | BI43: N/A | BJ43: N/A | BK43: N/A | BL43: N/A | BM43: N/A | BN43: N/A | BO43: N/A | BP43: N/A | BQ43: N/A | BR43: N/A | BS43: N/A | BT43: N/A | BU43: N/A | BV43: N/A | BW43: N/A | BX43: N/A | BY43: N/A | BZ43: N/A | CA43: N/A | CB43: N/A | CC43: N/A | CD43: N/A
B44: No | C44: N/A | D44: N/A | E44: N/A | F44: N/A | G44: N/A | H44: N/A | I44: N/A | J44: N/A | K44: N/A | L44: N/A | M44: N/A | N44: N/A | O44: N/A | P44: N/A | Q44: N/A | R44: N/A | S44: N/A | T44: N/A | U44: N/A | V44: N/A | W44: N/A | X44: N/A | Y44: N/A | Z44: N/A | AA44: N/A | AB44: N/A | AC44: N/A | AD44: N/A | BB44: No | BC44: N/A | BD44: N/A | BE44: N/A | BF44: N/A | BG44: N/A | BH44: N/A | BI44: N/A | BJ44: N/A | BK44: N/A | BL44: N/A | BM44: N/A | BN44: N/A | BO44: N/A | BP44: N/A | BQ44: N/A | BR44: N/A | BS44: N/A | BT44: N/A | BU44: N/A | BV44: N/A | BW44: N/A | BX44: N/A | BY44: N/A | BZ44: N/A | CA44: N/A | CB44: N/A | CC44: N/A | CD44: N/A
A45: Improved water source available when needed | B45: Yes | C45: N/A | D45: N/A | E45: N/A | F45: N/A | G45: N/A | H45: N/A | I45: N/A | J45: N/A | K45: N/A | L45: N/A | M45: N/A | N45: N/A | O45: N/A | P45: N/A | Q45: N/A | R45: N/A | S45: N/A | T45: N/A | U45: N/A | V45: N/A | W45: N/A | X45: N/A | Y45: N/A | Z45: N/A | AA45: N/A | AB45: N/A | AC45: N/A | AD45: N/A | BA45: Improved water source available when needed | BB45: Yes | BC45: N/A | BD45: N/A | BE45: N/A | BF45: N/A | BG45: N/A | BH45: N/A | BI45: N/A | BJ45: N/A | BK45: N/A | BL45: N/A | BM45: N/A | BN45: N/A | BO45: N/A | BP45: N/A | BQ45: N/A | BR45: N/A | BS45: N/A | BT45: N/A | BU45: N/A | BV45: N/A | BW45: N/A | BX45: N/A | BY45: N/A | BZ45: N/A | CA45: N/A | CB45: N/A | CC45: N/A | CD45: N/A
B46: No | C46: N/A | D46: N/A | E46: N/A | F46: N/A | G46: N/A | H46: N/A | I46: N/A | J46: N/A | K46: N/A | L46: N/A | M46: N/A | N46: N/A | O46: N/A | P46: N/A | Q46: N/A | R46: N/A | S46: N/A | T46: N/A | U46: N/A | V46: N/A | W46: N/A | X46: N/A | Y46: N/A | Z46: N/A | AA46: N/A | AB46: N/A | AC46: N/A | AD46: N/A | BB46: No | BC46: N/A | BD46: N/A | BE46: N/A | BF46: N/A | BG46: N/A | BH46: N/A | BI46: N/A | BJ46: N/A | BK46: N/A | BL46: N/A | BM46: N/A | BN46: N/A | BO46: N/A | BP46: N/A | BQ46: N/A | BR46: N/A | BS46: N/A | BT46: N/A | BU46: N/A | BV46: N/A | BW46: N/A | BX46: N/A | BY46: N/A | BZ46: N/A | CA46: N/A | CB46: N/A | CC46: N/A | CD46: N/A
A47: Microbiological quality at point of collection | B47: Not contaminated (No E. coli in 100 mL) | C47: N/A | D47: N/A | E47: N/A | F47: N/A | G47: N/A | H47: N/A | I47: N/A | J47: N/A | K47: N/A | L47: N/A | M47: N/A | N47: N/A | O47: N/A | P47: N/A | Q47: N/A | R47: N/A | S47: N/A | T47: N/A | U47: N/A | V47: N/A | W47: N/A | X47: N/A | Y47: N/A | Z47: N/A | AA47: N/A | AB47: N/A | AC47: N/A | AD47: N/A | BA47: Microbiological quality at point of collection | BB47: Not contaminated (No E. coli in 100 mL) | BC47: N/A | BD47: N/A | BE47: N/A | BF47: N/A | BG47: N/A | BH47: N/A | BI47: N/A | BJ47: N/A | BK47: N/A | BL47: N/A | BM47: N/A | BN47: N/A | BO47: N/A | BP47: N/A | BQ47: N/A | BR47: N/A | BS47: N/A | BT47: N/A | BU47: N/A | BV47: N/A | BW47: N/A | BX47: N/A | BY47: N/A | BZ47: N/A | CA47: N/A | CB47: N/A | CC47: N/A | CD47: N/A
B48: Contaminated (E. coli detected in 100 mL) | C48: N/A | D48: N/A | E48: N/A | F48: N/A | G48: N/A | H48: N/A | I48: N/A | J48: N/A | K48: N/A | L48: N/A | M48: N/A | N48: N/A | O48: N/A | P48: N/A | Q48: N/A | R48: N/A | S48: N/A | T48: N/A | U48: N/A | V48: N/A | W48: N/A | X48: N/A | Y48: N/A | Z48: N/A | AA48: N/A | AB48: N/A | AC48: N/A | AD48: N/A | BB48: Contaminated (E. coli detected in 100 mL) | BC48: N/A | BD48: N/A | BE48: N/A | BF48: N/A | BG48: N/A | BH48: N/A | BI48: N/A | BJ48: N/A | BK48: N/A | BL48: N/A | BM48: N/A | BN48: N/A | BO48: N/A | BP48: N/A | BQ48: N/A | BR48: N/A | BS48: N/A | BT48: N/A | BU48: N/A | BV48: N/A | BW48: N/A | BX48: N/A | BY48: N/A | BZ48: N/A | CA48: N/A | CB48: N/A | CC48: N/A | CD48: N/A
B49: Highly contaminated (>100 CFU/100 mL) | C49: N/A | D49: N/A | E49: N/A | F49: N/A | G49: N/A | H49: N/A | I49: N/A | J49: N/A | K49: N/A | L49: N/A | M49: N/A | N49: N/A | O49: N/A | P49: N/A | Q49: N/A | R49: N/A | S49: N/A | T49: N/A | U49: N/A | V49: N/A | W49: N/A | X49: N/A | Y49: N/A | Z49: N/A | AA49: N/A | AB49: N/A | AC49: N/A | AD49: N/A | BB49: Highly contaminated (>100 CFU/100 mL) | BC49: N/A | BD49: N/A | BE49: N/A | BF49: N/A | BG49: N/A | BH49: N/A | BI49: N/A | BJ49: N/A | BK49: N/A | BL49: N/A | BM49: N/A | BN49: N/A | BO49: N/A | BP49: N/A | BQ49: N/A | BR49: N/A | BS49: N/A | BT49: N/A | BU49: N/A | BV49: N/A | BW49: N/A | BX49: N/A | BY49: N/A | BZ49: N/A | CA49: N/A | CB49: N/A | CC49: N/A | CD49: N/A
A50: Microbiological quality of improved water sources at point of collection | B50: Not contaminated (No E. coli in 100 mL) | C50: N/A | D50: N/A | E50: N/A | F50: N/A | G50: N/A | H50: N/A | I50: N/A | J50: N/A | K50: N/A | L50: N/A | M50: N/A | N50: N/A | O50: N/A | P50: N/A | Q50: N/A | R50: N/A | S50: N/A | T50: N/A | U50: N/A | V50: N/A | W50: N/A | X50: N/A | Y50: N/A | Z50: N/A | AA50: N/A | AB50: N/A | AC50: N/A | AD50: N/A | BA50: Microbiological quality of improved water sources at point of collection | BB50: Not contaminated (No E. coli in 100 mL) | BC50: N/A | BD50: N/A | BE50: N/A | BF50: N/A | BG50: N/A | BH50: N/A | BI50: N/A | BJ50: N/A | BK50: N/A | BL50: N/A | BM50: N/A | BN50: N/A | BO50: N/A | BP50: N/A | BQ50: N/A | BR50: N/A | BS50: N/A | BT50: N/A | BU50: N/A | BV50: N/A | BW50: N/A | BX50: N/A | BY50: N/A | BZ50: N/A | CA50: N/A | CB50: N/A | CC50: N/A | CD50: N/A
B51: Contaminated (E. coli detected in 100 mL) | C51: N/A | D51: N/A | E51: N/A | F51: N/A | G51: N/A | H51: N/A | I51: N/A | J51: N/A | K51: N/A | L51: N/A | M51: N/A | N51: N/A | O51: N/A | P51: N/A | Q51: N/A | R51: N/A | S51: N/A | T51: N/A | U51: N/A | V51: N/A | W51: N/A | X51: N/A | Y51: N/A | Z51: N/A | AA51: N/A | AB51: N/A | AC51: N/A | AD51: N/A | BB51: Contaminated (E. coli detected in 100 mL) | BC51: N/A | BD51: N/A | BE51: N/A | BF51: N/A | BG51: N/A | BH51: N/A | BI51: N/A | BJ51: N/A | BK51: N/A | BL51: N/A | BM51: N/A | BN51: N/A | BO51: N/A | BP51: N/A | BQ51: N/A | BR51: N/A | BS51: N/A | BT51: N/A | BU51: N/A | BV51: N/A | BW51: N/A | BX51: N/A | BY51: N/A | BZ51: N/A | CA51: N/A | CB51: N/A | CC51: N/A | CD51: N/A
B52: Highly contaminated (>100 CFU/100 mL) | C52: N/A | D52: N/A | E52: N/A | F52: N/A | G52: N/A | H52: N/A | I52: N/A | J52: N/A | K52: N/A | L52: N/A | M52: N/A | N52: N/A | O52: N/A | P52: N/A | Q52: N/A | R52: N/A | S52: N/A | T52: N/A | U52: N/A | V52: N/A | W52: N/A | X52: N/A | Y52: N/A | Z52: N/A | AA52: N/A | AB52: N/A | AC52: N/A | AD52: N/A | BB52: Highly contaminated (>100 CFU/100 mL) | BC52: N/A | BD52: N/A | BE52: N/A | BF52: N/A | BG52: N/A | BH52: N/A | BI52: N/A | BJ52: N/A | BK52: N/A | BL52: N/A | BM52: N/A | BN52: N/A | BO52: N/A | BP52: N/A | BQ52: N/A | BR52: N/A | BS52: N/A | BT52: N/A | BU52: N/A | BV52: N/A | BW52: N/A | BX52: N/A | BY52: N/A | BZ52: N/A | CA52: N/A | CB52: N/A | CC52: N/A | CD52: N/A
A53: Microbiological quality of piped on premises at point of collection | B53: Not contaminated (No E. coli in 100 mL) | C53: N/A | D53: N/A | E53: N/A | F53: N/A | G53: N/A | H53: N/A | I53: N/A | J53: N/A | K53: N/A | L53: N/A | M53: N/A | N53: N/A | O53: N/A | P53: N/A | Q53: N/A | R53: N/A | S53: N/A | T53: N/A | U53: N/A | V53: N/A | W53: N/A | X53: N/A | Y53: N/A | Z53: N/A | AA53: N/A | AB53: N/A | AC53: N/A | AD53: N/A | BA53: Microbiological quality of piped on premises at point of collection | BB53: Not contaminated (No E. coli in 100 mL) | BC53: N/A | BD53: N/A | BE53: N/A | BF53: N/A | BG53: N/A | BH53: N/A | BI53: N/A | BJ53: N/A | BK53: N/A | BL53: N/A | BM53: N/A | BN53: N/A | BO53: N/A | BP53: N/A | BQ53: N/A | BR53: N/A | BS53: N/A | BT53: N/A | BU53: N/A | BV53: N/A | BW53: N/A | BX53: N/A | BY53: N/A | BZ53: N/A | CA53: N/A | CB53: N/A | CC53: N/A | CD53: N/A
B54: Contaminated (E. coli detected in 100 mL) | C54: N/A | D54: N/A | E54: N/A | F54: N/A | G54: N/A | H54: N/A | I54: N/A | J54: N/A | K54: N/A | L54: N/A | M54: N/A | N54: N/A | O54: N/A | P54: N/A | Q54: N/A | R54: N/A | S54: N/A | T54: N/A | U54: N/A | V54: N/A | W54: N/A | X54: N/A | Y54: N/A | Z54: N/A | AA54: N/A | AB54: N/A | AC54: N/A | AD54: N/A | BB54: Contaminated (E. coli detected in 100 mL) | BC54: N/A | BD54: N/A | BE54: N/A | BF54: N/A | BG54: N/A | BH54: N/A | BI54: N/A | BJ54: N/A | BK54: N/A | BL54: N/A | BM54: N/A | BN54: N/A | BO54: N/A | BP54: N/A | BQ54: N/A | BR54: N/A | BS54: N/A | BT54: N/A | BU54: N/A | BV54: N/A | BW54: N/A | BX54: N/A | BY54: N/A | BZ54: N/A | CA54: N/A | CB54: N/A | CC54: N/A | CD54: N/A
B55: Highly contaminated (>100 CFU/100 mL) | C55: N/A | D55: N/A | E55: N/A | F55: N/A | G55: N/A | H55: N/A | I55: N/A | J55: N/A | K55: N/A | L55: N/A | M55: N/A | N55: N/A | O55: N/A | P55: N/A | Q55: N/A | R55: N/A | S55: N/A | T55: N/A | U55: N/A | V55: N/A | W55: N/A | X55: N/A | Y55: N/A | Z55: N/A | AA55: N/A | AB55: N/A | AC55: N/A | AD55: N/A | BB55: Highly contaminated (>100 CFU/100 mL) | BC55: N/A | BD55: N/A | BE55: N/A | BF55: N/A | BG55: N/A | BH55: N/A | BI55: N/A | BJ55: N/A | BK55: N/A | BL55: N/A | BM55: N/A | BN55: N/A | BO55: N/A | BP55: N/A | BQ55: N/A | BR55: N/A | BS55: N/A | BT55: N/A | BU55: N/A | BV55: N/A | BW55: N/A | BX55: N/A | BY55: N/A | BZ55: N/A | CA55: N/A | CB55: N/A | CC55: N/A | CD55: N/A
C56: NATIONAL wealth index quintile | H56: URBAN wealth index quintile | M56: RURAL wealth index quintile | R56: SUB-REGIONS: | BA56: Raw numbers of respondents: | BB56: Use of drinking water sources | BC56: NATIONAL wealth index quintile | BH56: URBAN wealth index quintile | BM56: RURAL wealth index quintile | BR56: SUB-REGIONS:
A57: Percentage based on weighted population | C57: Poorest | D57: Poor | E57: Middle | F57: Rich | G57: Richest | H57: Poorest | I57: Poor | J57: Middle | K57: Rich | L57: Richest | M57: Poorest | N57: Poor | O57: Middle | P57: Rich | Q57: Richest | R57: Adrar | S57: Assaba | T57: Brakna | U57: Gorgol | V57: Guidimagha | W57: Hodh ECharghi | X57: Hodh ELGharbi | Y57: Inchiri | Z57: Nouadhibou | AA57: Nouakchott | AB57: Tagant | AC57: Tiris Zemmour | AD57: Trarza | BA57: Water data, raw numbers (weighted) | BC57: Poorest | BD57: Poor | BE57: Middle | BF57: Rich | BG57: Richest | BH57: Poorest | BI57: Poor | BJ57: Middle | BK57: Rich | BL57: Richest | BM57: Poorest | BN57: Poor | BO57: Middle | BP57: Rich | BQ57: Richest | BR57: Adrar | BS57: Assaba | BT57: Brakna | BU57: Gorgol | BV57: Guidimagha | BW57: Hodh ECharghi | BX57: Hodh ELGharbi | BY57: Inchiri | BZ57: Nouadhibou | CA57: Nouakchott | CB57: Tagant | CC57: Tiris Zemmour | CD57: Trarza
A58: Principale source d'eau que boivent les membre du menage | B58: Eau de robinet dns le logement | C58: 0.7513958132 | D58: 2.338131399 | E58: 5.524462054 | F58: 6.142701758 | G58: 25.83450274 | H58: 5.86590452 | I58: 5.186716347 | J58: 8.052416632 | K58: 16.12611391 | L58: 38.5192057 | M58: 0.5256427527 | N58: 0.9197576763 | O58: 2.076284615 | P58: 3.231611438 | Q58: 6.388100213 | R58: 8.415803667 | S58: 1.220065601 | T58: 12.13165184 | U58: 5.509275611 | V58: 4.314477214 | W58: 1.197774637 | X58: 0.3990701156 | Y58: 15.15110721 | Z58: 33.44236884 | AA58: 12.64164964 | AB58: 20.91296303 | AC58: 9.419428851 | AD58: 5.472764279
B59: Dans la cour/parcelle | C59: 2.195066592 | D59: 5.83748343 | E59: 18.35677258 | F59: 18.63371525 | G59: 16.23060688 | H59: 18.0715417 | I59: 19.1250798 | J59: 15.90403403 | K59: 18.27257969 | L59: 14.52374736 | M59: 1.580581334 | N59: 2.076583914 | O59: 3.476887259 | P59: 10.87832857 | Q59: 22.83117352 | R59: 26.09503807 | S59: 18.45723615 | T59: 22.41760116 | U59: 8.889665698 | V59: 3.425167286 | W59: 3.118945422 | X59: 15.07349899 | Y59: 32.96091714 | Z59: 12.21105033 | AA59: 5.573100502 | AB59: 20.55114605 | AC59: 3.806120034 | AD59: 25.41647539
B60: Robinet public/borne fontaine | C60: 7.354864072 | D60: 8.045255037 | E60: 11.54090557 | F60: 11.77471637 | G60: 11.02208315 | H60: 23.66384189 | I60: 15.35133643 | J60: 11.84599477 | K60: 14.25825962 | L60: 7.334441881 | M60: 6.273810275 | N60: 6.881182562 | O60: 4.259851754 | P60: 7.735618783 | Q60: 5.753970341 | R60: 7.734624627 | S60: 5.041719413 | T60: 4.520664368 | U60: 13.32553396 | V60: 8.255919164 | W60: 13.28006589 | X60: 2.184209169 | Y60: 23.19518909 | Z60: 43.52039452 | AA60: 12.09362809 | AB60: 6.088923395 | AC60: 2.179362398 | AD60: 5.11847235
B61: Puits a pompe/forage | C61: 7.880667129 | D61: 8.694255748 | E61: 10.94877888 | F61: 7.14086296 | G61: 0.8455610483 | H61: 1.33223715 | I61: 0.2195863194 | J61: 0.0820817312 | K61: 0.3720710767 | L61: 0.1799619845 | M61: 8.150335432 | N61: 7.712511261 | O61: 11.60731066 | P61: 9.658249381 | Q61: 26.0085291 | R61: 2.825632845 | S61: 8.397453673 | T61: 8.932551347 | U61: 14.59544553 | V61: 2.692256957 | W61: 2.540078552 | X61: 3.775496809 | Y61: 4.850078772 | Z61: 0.3656073225 | AA61: 0.04644250418 | AB61: 2.871375936 | AC61: 0.6870148478 | AD61: 31.10151145
B62: Puits protege | C62: 10.83602268 | D62: 12.45988697 | E62: 13.70876626 | F62: 2.364580989 | G62: 0.2879234842 | H62: 5.707220204 | I62: 0.9745266145 | J62: 0.3453293298 | K62: 0.3001809392 | L62: 0.08006346311 | M62: 10.96906549 | N62: 11.91099244 | O62: 11.38189721 | P62: 18.86196599 | Q62: 13.24201207 | R62: 3.807259982 | S62: 4.518229603 | T62: 26.61492203 | U62: 6.587464787 | V62: 28.86858577 | W62: 4.227277242 | X62: 7.563545706 | Y62: 0.788760952 | Z62: 0 | AA62: 0 | AB62: 1.660554758 | AC62: 0.05496118782 | AD62: 18.66090687
B63: Puits non protege | C63: 41.90007508 | D63: 41.18047661 | E63: 21.72840998 | F63: 2.56024508 | G63: 0.450300953 | H63: 12.07585496 | I63: 2.271536684 | J63: 0.1132643339 | K63: 0.2210559172 | L63: 0.06413059839 | M63: 44.08080533 | N63: 41.04421589 | O63: 45.01247853 | P63: 37.53304826 | Q63: 17.24186191 | R63: 20.44777892 | S63: 30.64943983 | T63: 18.80538806 | U63: 29.61293597 | V63: 32.09507184 | W63: 50.46910133 | X63: 59.61217832 | Y63: 4.890317903 | Z63: 0 | AA63: 0 | AB63: 32.17324844 | AC63: 1.593874447 | AD63: 3.375357832
B64: Source protegee | C64: 0.2148340131 | D64: 0.6130382104 | E64: 0.263505022 | F64: 0.1351646837 | G64: 0 | H64: 0.1098942418 | I64: 0 | J64: 0.2982831779 | K64: 0 | L64: 0 | M64: 0.09053771947 | N64: 0.4066256422 | O64: 0.7541677457 | P64: 0.4130780071 | Q64: 0.2401209828 | R64: 0 | S64: 0.06925783318 | T64: 0.4436030014 | U64: 1.581173265 | V64: 0.4893847781 | W64: 0 | X64: 0 | Y64: 0.3155043808 | Z64: 0 | AA64: 0.1021735092 | AB64: 0 | AC64: 0 | AD64: 0
B65: Ource non protegee | C65: 2.351310381 | D65: 1.164872879 | E65: 0.6895320394 | F65: 0.08302741346 | G65: 0.03946575191 | H65: 0.1599386735 | I65: 0 | J65: 0.1832259734 | K65: 0 | L65: 0 | M65: 2.805479222 | N65: 1.651027405 | O65: 1.789062347 | P65: 0.6233126499 | Q65: 0.7618916044 | R65: 0.8725337803 | S65: 1.52367233 | T65: 0.5242580926 | U65: 4.0463219 | V65: 0.894825325 | W65: 0.4534630713 | X65: 0.09043106129 | Y65: 0 | Z65: 0 | AA65: 0 | AB65: 1.43950364 | AC65: 0.08244178173 | AD65: 1.181375241
B66: Eau de pluie | C66: 15.35541273 | D66: 7.348918272 | E66: 1.513387615 | F66: 0.07854039019 | G66: 0 | H66: 0 | I66: 0 | J66: 0 | K66: 0 | L66: 0 | M66: 15.08537666 | N66: 16.32407663 | O66: 8.771468997 | P66: 3.506705207 | Q66: 0.7339172697 | R66: 0.9971814632 | S66: 22.32420983 | T66: 3.206039874 | U66: 6.237815409 | V66: 4.533285612 | W66: 7.75421852 | X66: 3.594634686 | Y66: 0 | Z66: 0 | AA66: 0 | AB66: 10.55144169 | AC66: 0.1648835635 | AD66: 0.2169872892
B67: Camion citerne | C67: 0.06863904015 | D67: 0.1436749991 | E67: 3.219910319 | F67: 7.341584152 | G67: 9.823100125 | H67: 3.732429129 | I67: 6.938407763 | J67: 9.990149254 | K67: 6.79322209 | L67: 12.41586216 | M67: 0.07518974328 | N67: 0.05630622253 | O67: 0.004008672028 | P67: 1.147102582 | Q67: 3.354586888 | R67: 16.75362263 | S67: 0.08693569693 | T67: 0.0895756552 | U67: 0.06950212155 | V67: 0 | W67: 0.08092025843 | X67: 0.1330233719 | Y67: 8.981294843 | Z67: 6.62257677 | AA67: 7.55155118 | AB67: 0.345948908 | AC67: 76.6363676 | AD67: 1.181375241
B68: Charrette avec petite citerne/tonneau | C68: 3.087995629 | D68: 5.24566911 | E68: 10.0097272 | F68: 42.14982919 | G68: 34.62608911 | H68: 25.07901811 | I68: 47.79665046 | J68: 51.96840035 | K68: 42.47926758 | L68: 26.42895219 | M68: 3.592140027 | N68: 1.735742738 | O68: 2.551187023 | P68: 3.091817158 | Q68: 2.42351567 | R68: 10.88865998 | S68: 3.381711849 | T68: 1.007818625 | U68: 0.1216287127 | V68: 0.9301492506 | W68: 15.65556252 | X68: 1.130698661 | Y68: 0.2850441776 | Z68: 0.4267859752 | AA68: 59.9851384 | AB68: 0.5261094774 | AC68: 4.97169334 | AD68: 4.856226632
B69: Eau de surface | C69: 4.646193506 | D69: 4.815989509 | E69: 0.3949305737 | F69: 0 | G69: 0.03266666212 | H69: 0 | I69: 0 | J69: 0 | K69: 0 | L69: 0 | M69: 4.340180399 | N69: 5.472578433 | O69: 6.724565224 | P69: 1.251849633 | Q69: 0.2956151043 | R69: 0 | S69: 0 | T69: 0.6250769565 | U69: 9.330659818 | V69: 11.46188807 | W69: 0.8842529891 | X69: 1.06256497 | Y69: 0 | Z69: 0 | AA69: 0 | AB69: 1.210821178 | AC69: 0 | AD69: 2.266311687
B70: Eau en bouteille | C70: 0.05940508053 | D70: 0.1025885065 | E70: 0 | F70: 0 | G70: 0.0166785731 | H70: 0.1132217399 | I70: 0 | J70: 0 | K70: 0.03676903591 | L70: 0 | M70: 0.06179320451 | N70: 0.04681524871 | O70: 0.09379401781 | P70: 0 | Q70: 0 | R70: 0 | S70: 0 | T70: 0.1254059173 | U70: 0 | V70: 0.2969401056 | W70: 0 | X70: 0 | Y70: 0 | Z70: 0.02434592447 | AA70: 0.009288500836 | AB70: 0.2421642356 | AC70: 0 | AD70: 0
B71: Autre | C71: 3.248813362 | D71: 1.874128882 | E71: 2.100911908 | F71: 1.595031766 | G71: 0.6806564978 | H71: 3.926258952 | I71: 2.136159581 | J71: 1.21682041 | K71: 0.9509228856 | L71: 0.4536346644 | M71: 2.278890825 | N71: 3.693575195 | O71: 1.497035943 | P71: 2.022288617 | Q71: 0.6800709389 | R71: 1.161864034 | S71: 4.330068196 | T71: 0.5554430652 | U71: 0.09257722081 | V71: 1.742048619 | W71: 0.2023006461 | X71: 5.380648147 | Y71: 8.58178553 | Z71: 3.251816983 | AA71: 1.876277169 | AB71: 1.425799253 | AC71: 0.4038519485 | AD71: 1.079906632
B72: Manquant | C72: 0.04930488831 | D72: 0.1356304357 | E72: 0 | F72: 0 | G72: 0.1103650151 | H72: 0.1626387305 | I72: 0 | J72: 0 | K72: 0.1895572548 | L72: 0 | M72: 0.09017158789 | N72: 0.06800874019 | O72: 0 | P72: 0.0450237166 | Q72: 0.04463438867 | R72: 0 | S72: 0 | T72: 0 | U72: 0 | V72: 0 | W72: 0.1360389214 | X72: 0 | Y72: 0 | Z72: 0.1350533369 | AA72: 0.1207505109 | AB72: 0 | AC72: 0 | AD72: 0.0723290964
A108: =A1026 -> Mauritania
A109: =A1034 -> 2007
A110: Use of sanitation facilities
A111: by wealth quintile and sub-national region
A112: Notes:
A113: WHO/UNICEF JMP customised wealth index excludes water,
A114: sanitation and hygiene assets.
A115: Survey used for analysis: | B115: =A1025 -> MICS07
A116: =B1030 -> 
A117: =B1029 -> 
A120: Use of sanitation facilities | C120: NATIONAL wealth index quintile | H120: URBAN wealth index quintile | M120: RURAL wealth index quintile | R120: SUB-REGIONS: | BA120: Raw numbers of respondents: | BB120: Use of sanitation facilities | BC120: NATIONAL wealth index quintile | BH120: URBAN wealth index quintile | BM120: RURAL wealth index quintile | BR120: SUB-REGIONS:
A121: Weighted percentage (used in graphs) | C121: Poorest | D121: Poor | E121: Middle | F121: Rich | G121: Richest | H121: Poorest | I121: Poor | J121: Middle | K121: Rich | L121: Richest | M121: Poorest | N121: Poor | O121: Middle | P121: Rich | Q121: Richest | R121: Adrar | S121: Assaba | T121: Brakna | U121: Gorgol | V121: Guidimagha | W121: Hodh ECharghi | X121: Hodh ELGharbi | Y121: Inchiri | Z121: Nouadhibou | AA121: Nouakchott | AB121: Tagant | AC121: Tiris Zemmour | AD121: Trarza | BA121: Sanitation data, raw numbers (weighted) | BC121: Poorest | BD121: Poor | BE121: Middle | BF121: Rich | BG121: Richest | BH121: Poorest | BI121: Poor | BJ121: Middle | BK121: Rich | BL121: Richest | BM121: Poorest | BN121: Poor | BO121: Middle | BP121: Rich | BQ121: Richest | BR121: Adrar | BS121: Assaba | BT121: Brakna | BU121: Gorgol | BV121: Guidimagha | BW121: Hodh ECharghi | BX121: Hodh ELGharbi | BY121: Inchiri | BZ121: Nouadhibou | CA121: Nouakchott | CB121: Tagant | CC121: Tiris Zemmour | CD121: Trarza
A122: Sanitation | B122: Improved | C122: 2.261255867 | D122: 5.948391479 | E122: 27.04245866 | F122: 65.54137991 | G122: 87.80742388 | H122: 26.50412121 | I122: 61.06400059 | J122: 73.12931015 | K122: 84.14816192 | L122: 94.26979702 | M122: 2.08005846 | N122: 2.514585134 | O122: 4.235638187 | P122: 12.41729366 | Q122: 42.6987606 | R122: 40.81971528 | S122: 6.69458787 | T122: 17.21376517 | U122: 5.217452393 | V122: 8.696683636 | W122: 8.28824702 | X122: 9.407510372 | Y122: 43.95660033 | Z122: 79.84988544 | AA122: 78.35779305 | AB122: 21.92991925 | AC122: 87.67959972 | AD122: 60.16885599 | BA122: Sanitation | BB122: Improved | BC122: 269.4435898 | BD122: 708.5203377 | BE122: 3222.227304 | BF122: 7808.199122 | BG122: 10464.48987 | BH122: 1431.352267 | BI122: 3294.765133 | BJ122: 3947.855489 | BK122: 4548.918018 | BL122: 5085.045179 | BM122: 135.5232949 | BN122: 163.9565525 | BO122: 275.6915658 | BP122: 810.1468411 | BQ122: 2779.62588 | BR122: 564.8145954 | BS122: 406.5610633 | BT122: 839.3068943 | BU122: 292.2483177 | BV122: 268.1981866 | BW122: 536.906787 | BX122: 489.2876855 | BY122: 72.70325388 | BZ122: 1717.946545 | CA122: 12349.30218 | CB122: 364.5911793 | CC122: 882.206997 | CD122: 3688.806536
B123: Not Improved | C123: 97.73874413 | D123: 94.05160852 | E123: 72.95754134 | F123: 34.45862009 | G123: 12.19257612 | H123: 73.49587879 | I123: 38.93599941 | J123: 26.87068985 | K123: 15.85183808 | L123: 5.730202977 | M123: 97.91994154 | N123: 97.48541487 | O123: 95.76436181 | P123: 87.58270634 | Q123: 57.3012394 | R123: 59.18028472 | S123: 93.30541213 | T123: 82.78623483 | U123: 94.78254761 | V123: 91.30331636 | W123: 91.71175298 | X123: 90.59248963 | Y123: 56.04339967 | Z123: 20.15011456 | AA123: 21.64220695 | AB123: 78.07008075 | AC123: 12.32040028 | AD123: 39.83114401 | BB123: Not Improved | BC123: 11646.21769 | BD123: 11202.60455 | BE123: 8693.210357 | BF123: 4105.189234 | BG123: 1453.055831 | BH123: 3969.137172 | BI123: 2100.828181 | BJ123: 1450.603051 | BK123: 856.9255728 | BL123: 309.0951921 | BM123: 6379.836613 | BN123: 6356.266218 | BO123: 6233.163856 | BP123: 5714.196249 | BQ123: 3730.225555 | BR123: 818.8662842 | BS123: 5666.420144 | BT123: 4036.482256 | BU123: 5309.112187 | BV123: 2815.715151 | BW123: 5941.022572 | BX123: 4711.744959 | BY123: 92.69455517 | BZ123: 433.523724 | CA123: 3410.8433 | CB123: 1297.937419 | CC123: 123.9643356 | CD123: 2441.950773
A124: Sanitation ladder | B124: Basic | C124: 1.480294373 | D124: 4.248629297 | E124: 17.22629554 | F124: 49.22596586 | G124: 76.33564923 | H124: 16.53410602 | I124: 42.27961629 | J124: 55.86404993 | K124: 68.77636398 | L124: 88.82188676 | M124: 1.499434694 | N124: 1.772215643 | O124: 3.012645755 | P124: 7.508613875 | Q124: 32.13208899 | R124: 37.76176348 | S124: 4.918844873 | T124: 12.27312274 | U124: 3.075669325 | V124: 7.246322805 | W124: 5.687566981 | X124: 6.498541102 | Y124: 42.8227874 | Z124: 67.52335688 | AA124: 61.70153157 | AB124: 19.32093021 | AC124: 83.33937688 | AD124: 44.98924095 | BA124: Sanitation ladder | BB124: Basic | BC124: 176.3090367 | BD124: 505.9768405 | BE124: 2051.782153 | BF124: 5836.037711 | BG124: 9051.860856 | BH124: 892.9226496 | BI124: 2267.000912 | BJ124: 3015.797574 | BK124: 3697.644453 | BL124: 4768.416833 | BM124: 97.6147338 | BN124: 115.5179112 | BO124: 196.0887566 | BP124: 489.8877305 | BQ124: 2081.075044 | BR124: 521.851014 | BS124: 298.4619156 | BT124: 596.7223141 | BU124: 172.2194579 | BV124: 223.4703155 | BW124: 368.4365713 | BX124: 337.9912441 | BY124: 70.72700666 | BZ124: 1450.269159 | CA124: 9671.863383 | CB124: 321.2159903 | CC124: 838.5369189 | CD124: 2750.201308
B125: Limited | C125: 0.7378174236 | D125: 1.684389629 | E125: 9.787490732 | F125: 16.14747498 | G125: 11.4105212 | H125: 9.970015194 | I125: 18.53989248 | J125: 17.26526023 | K125: 15.28477931 | L125: 5.420559086 | M125: 0.5015442186 | N125: 0.7132577298 | O125: 1.222992431 | P125: 4.908679789 | Q125: 10.27270807 | R125: 2.984092881 | S125: 1.694896373 | T125: 4.706281244 | U125: 2.108833678 | V125: 1.450360831 | W125: 2.600680039 | X125: 2.90896927 | Y125: 1.053824704 | Z125: 12.29212982 | AA125: 16.53903623 | AB125: 2.608989041 | AC125: 4.340222849 | AD125: 15.06404264 | BB125: Limited | BC125: 87.87703417 | BD125: 200.596965 | BE125: 1165.76421 | BF125: 1914.38139 | BG125: 1353.05655 | BH125: 538.4296177 | BI125: 994.0949528 | BJ125: 932.0579151 | BK125: 821.7602115 | BL125: 291.0035593 | BM125: 32.65104215 | BN125: 46.49210912 | BO125: 79.60280917 | BP125: 320.2591106 | BQ125: 665.3248221 | BR125: 41.2388552 | BS125: 102.8416287 | BT125: 228.8205776 | BU125: 118.0823276 | BV125: 44.72787112 | BW125: 168.4702158 | BX125: 151.2964413 | BY125: 1.740518807 | BZ125: 264.0108193 | CA125: 2592.533684 | CB125: 43.37518894 | CC125: 43.67007808 | CD125: 920.867943
B126: Unimproved | C126: 6.185813141 | D126: 17.70820241 | E126: 27.30391872 | F126: 22.62752789 | G126: 10.3589901 | H126: 33.61120698 | I126: 23.67570479 | J126: 21.55649988 | K126: 14.22793931 | L126: 5.191174738 | M126: 4.074077968 | N126: 7.203264349 | O126: 16.45026998 | P126: 22.0178376 | Q126: 22.77060541 | R126: 19.81990236 | S126: 15.21934979 | T126: 33.82721815 | U126: 37.04026378 | V126: 39.87581874 | W126: 11.18886256 | X126: 8.175760961 | Y126: 30.82597942 | Z126: 12.66094473 | AA126: 12.53268584 | AB126: 5.184273648 | AC126: 5.230330009 | AD126: 4.690076147 | BB126: Unimproved | BC126: 736.755321 | BD126: 2108.901408 | BE126: 3252.103334 | BF126: 2682.631082 | BG126: 1228.366273 | BH126: 1815.169683 | BI126: 1269.473308 | BJ126: 1163.718709 | BK126: 764.9410035 | BL126: 278.6890248 | BM126: 265.2266471 | BN126: 469.5286684 | BO126: 1070.724289 | BP126: 1436.519266 | BQ126: 1474.766819 | BR126: 273.9023603 | BS126: 923.4680923 | BT126: 1644.687853 | BU126: 2074.037705 | BV126: 1229.735693 | BW126: 724.8066124 | BX126: 425.2239965 | BY126: 50.91282899 | BZ126: 271.9322395 | CA126: 1964.52863 | CB126: 86.19003203 | CC126: 52.62608115 | CD126: 286.705294
B127: Open defecation | C127: 91.59607506 | D127: 76.35877866 | E127: 45.68229501 | F127: 11.99903128 | G127: 1.894839476 | H127: 39.88467181 | I127: 15.50478644 | J127: 5.314189962 | K127: 1.710917396 | L127: 0.5663794173 | M127: 93.92494312 | N127: 90.31126228 | O127: 79.31409183 | P127: 65.56486874 | Q127: 34.82459753 | R127: 39.43424128 | S127: 78.16690897 | T127: 49.19337787 | U127: 57.77523322 | V127: 51.42749762 | W127: 80.52289042 | X127: 82.41672867 | Y127: 25.29740847 | Z127: 7.523568578 | AA127: 9.226746358 | AB127: 72.8858071 | AC127: 7.090070266 | AD127: 35.25664026 | BB127: Open defecation | BC127: 10909.46237 | BD127: 9093.703139 | BE127: 5441.107023 | BF127: 1422.558152 | BG127: 224.6895579 | BH127: 2153.967489 | BI127: 831.3548724 | BJ127: 286.8843418 | BK127: 91.9845693 | BL127: 30.40616729 | BM127: 6114.609966 | BN127: 5886.73755 | BO127: 5162.439566 | BP127: 4277.676983 | BQ127: 2255.458736 | BR127: 544.9639239 | BS127: 4742.952052 | BT127: 2391.794403 | BU127: 3235.074482 | BV127: 1585.979458 | BW127: 5216.215959 | BX127: 4286.520963 | BY127: 41.78172618 | BZ127: 161.5914844 | CA127: 1446.31467 | CB127: 1211.747387 | CC127: 71.33825448 | CD127: 2155.245479
A128: Shared among Improved Sanitation | B128: Yes | C128: 33.26331093 | D128: 28.39009364 | E128: 36.23146579 | F128: 24.70035962 | G128: 13.00401048 | H128: 37.61684877 | I128: 30.48346305 | J128: 23.6092207 | K128: 18.18293055 | L128: 5.751717326 | M128: 25.06494274 | N128: 28.69705777 | O128: 28.87386451 | P128: 39.53099541 | Q128: 24.22534426 | R128: 7.32367202 | S128: 25.62689271 | T128: 27.71758801 | U128: 40.67571524 | V128: 16.67717135 | W128: 31.37792627 | X128: 30.92177585 | Y128: 2.401791417 | Z128: 15.40068266 | AA128: 21.13869659 | AB128: 11.89693865 | AC128: 4.950094278 | AD128: 25.08446123 | BA128: Shared among improved sanitation facilities | BB128: Yes | BC128: N/A | BD128: N/A | BE128: N/A | BF128: N/A | BG128: N/A | BH128: N/A | BI128: N/A | BJ128: N/A | BK128: N/A | BL128: N/A | BM128: N/A | BN128: N/A | BO128: N/A | BP128: N/A | BQ128: N/A | BR128: N/A | BS128: N/A | BT128: N/A | BU128: N/A | BV128: N/A | BW128: N/A | BX128: N/A | BY128: N/A | BZ128: N/A | CA128: N/A | CB128: N/A | CC128: N/A | CD128: N/A
B129: No | C129: 66.73668907 | D129: 71.60990636 | E129: 63.76853421 | F129: 75.29964038 | G129: 86.99598952 | H129: 62.38315123 | I129: 69.51653695 | J129: 76.3907793 | K129: 81.81706945 | L129: 94.24828267 | M129: 74.93505726 | N129: 71.30294223 | O129: 71.12613549 | P129: 60.46900459 | Q129: 75.77465574 | R129: 92.67632798 | S129: 74.37310729 | T129: 72.28241199 | U129: 59.32428476 | V129: 83.32282865 | W129: 68.62207373 | X129: 69.07822415 | Y129: 97.59820858 | Z129: 84.59931734 | AA129: 78.86130341 | AB129: 88.10306135 | AC129: 95.04990572 | AD129: 74.91553877 | BB129: No | BC129: N/A | BD129: N/A | BE129: N/A | BF129: N/A | BG129: N/A | BH129: N/A | BI129: N/A | BJ129: N/A | BK129: N/A | BL129: N/A | BM129: N/A | BN129: N/A | BO129: N/A | BP129: N/A | BQ129: N/A | BR129: N/A | BS129: N/A | BT129: N/A | BU129: N/A | BV129: N/A | BW129: N/A | BX129: N/A | BY129: N/A | BZ129: N/A | CA129: N/A | CB129: N/A | CC129: N/A | CD129: N/A
A130: Manually calculated ratios | B130: Improved latrines | C130: =(C157+C158)/(C157+C158+C159)*100 -> 17.59709649 | D130: =(D157+D158)/(D157+D158+D159)*100 -> 17.99758411 | E130: 36.84225569 | F130: 62.78497101 | G130: 81.98212287 | H130: 29.01327606 | I130: 56.71920881 | J130: 67.42599044 | K130: 77.47691614 | L130: 89.55872078 | M130: 25.13249932 | N130: 18.39244471 | O130: 15.34056172 | P130: 26.11590177 | Q130: 56.03070648 | R130: 60.54573941 | S130: 19.56736465 | T130: 28.82405831 | U130: 5.65066568 | V130: 16.7899488 | W130: 40.33637501 | X130: 53.3333387 | Y130: 58.14687359 | Z130: 81.53589751 | AA130: 76.10738255 | AB130: 33.19632119 | AC130: 95.99972632 | AD130: 85.12598632
B131: Other
B132: Other
C133: NATIONAL wealth index quintile | H133: URBAN wealth index quintile | M133: RURAL wealth index quintile | R133: SUB-REGIONS: | BA133: Raw numbers of respondents: | BB133: Use of sanitation facilities | BC133: NATIONAL wealth index quintile | BH133: URBAN wealth index quintile | BM133: RURAL wealth index quintile | BR133: SUB-REGIONS:
A134: Percentage based on weighted population | C134: Poorest | D134: Poor | E134: Middle | F134: Rich | G134: Richest | H134: Poorest | I134: Poor | J134: Middle | K134: Rich | L134: Richest | M134: Poorest | N134: Poor | O134: Middle | P134: Rich | Q134: Richest | R134: Adrar | S134: Assaba | T134: Brakna | U134: Gorgol | V134: Guidimagha | W134: Hodh ECharghi | X134: Hodh ELGharbi | Y134: Inchiri | Z134: Nouadhibou | AA134: Nouakchott | AB134: Tagant | AC134: Tiris Zemmour | AD134: Trarza | BA134: Sanitation data, raw numbers (weighted) | BC134: Poorest | BD134: Poor | BE134: Middle | BF134: Rich | BG134: Richest | BH134: Poorest | BI134: Poor | BJ134: Middle | BK134: Rich | BL134: Richest | BM134: Poorest | BN134: Poor | BO134: Middle | BP134: Rich | BQ134: Richest | BR134: Adrar | BS134: Assaba | BT134: Brakna | BU134: Gorgol | BV134: Guidimagha | BW134: Hodh ECharghi | BX134: Hodh ELGharbi | BY134: Inchiri | BZ134: Nouadhibou | CA134: Nouakchott | CB134: Tagant | CC134: Tiris Zemmour | CD134: Trarza
A135: Sanitation type | B135: Sewer connection | C135: 0 | D135: 0 | E135: 0.2853144363 | F135: 0.5864304547 | G135: 4.668447596 | H135: 0 | I135: 0.3798347324 | J135: 1.088903197 | K135: 4.331440711 | L135: 5.798864259 | M135: 0 | N135: 0 | O135: 0 | P135: 0 | Q135: 0.5222310237 | R135: 0 | S135: 0 | T135: 0 | U135: 0 | V135: 0 | W135: 0 | X135: 0 | Y135: 0 | Z135: 11.24781711 | AA135: 2.173509196 | AB135: 0 | AC135: 4.143077783 | AD135: 0.5545230724 | BA135: Sanitation type | BB135: Sewer connection | BC135: N/A | BD135: N/A | BE135: N/A | BF135: N/A | BG135: N/A | BH135: N/A | BI135: N/A | BJ135: N/A | BK135: N/A | BL135: N/A | BM135: N/A | BN135: N/A | BO135: N/A | BP135: N/A | BQ135: N/A | BR135: N/A | BS135: N/A | BT135: N/A | BU135: N/A | BV135: N/A | BW135: N/A | BX135: N/A | BY135: N/A | BZ135: N/A | CA135: N/A | CB135: N/A | CC135: N/A | CD135: N/A
B136: Septic tank connection | C136: 0.9896109328 | D136: 2.201324038 | E136: 11.2045919 | F136: 29.54127104 | G136: 40.77027267 | H136: 12.39330673 | I136: 32.05513415 | J136: 30.23850234 | K136: 35.60487544 | L136: 48.953428 | M136: 0.7513598935 | N136: 0.9956760918 | O136: 1.37026176 | P136: 4.930960724 | Q136: 14.93070735 | R136: 14.40632337 | S136: 2.995284084 | T136: 3.843720645 | U136: 2.879393126 | V136: 1.820214373 | W136: 1.066621893 | X136: 0.6282081922 | Y136: 3.015247306 | Z136: 22.56971813 | AA136: 38.76091399 | AB136: 19.59724411 | AC136: 3.860498053 | AD136: 36.562245 | BB136: Septic tank connection | BC136: N/A | BD136: N/A | BE136: N/A | BF136: N/A | BG136: N/A | BH136: N/A | BI136: N/A | BJ136: N/A | BK136: N/A | BL136: N/A | BM136: N/A | BN136: N/A | BO136: N/A | BP136: N/A | BQ136: N/A | BR136: N/A | BS136: N/A | BT136: N/A | BU136: N/A | BV136: N/A | BW136: N/A | BX136: N/A | BY136: N/A | BZ136: N/A | CA136: N/A | CB136: N/A | CC136: N/A | CD136: N/A
B137: Improved latrines | C137: 1.271644934 | D137: 3.747067441 | E137: 15.55255232 | F137: 35.41367841 | G137: 42.36870361 | H137: 14.11081448 | I137: 28.62903172 | J137: 41.80190462 | K137: 44.21184577 | L137: 39.51750477 | M137: 1.328698566 | N137: 1.518909042 | O137: 2.865376426 | P137: 7.486332939 | Q137: 27.24582223 | R137: 26.41339191 | S137: 3.699303786 | T137: 13.37004452 | U137: 2.338059267 | V137: 6.876469264 | W137: 7.221625127 | X137: 8.77930218 | Y137: 40.94135302 | Z137: 46.03235021 | AA137: 37.42336987 | AB137: 2.332675143 | AC137: 79.67602389 | AD137: 23.05208792 | BB137: Improved latrines | BC137: N/A | BD137: N/A | BE137: N/A | BF137: N/A | BG137: N/A | BH137: N/A | BI137: N/A | BJ137: N/A | BK137: N/A | BL137: N/A | BM137: N/A | BN137: N/A | BO137: N/A | BP137: N/A | BQ137: N/A | BR137: N/A | BS137: N/A | BT137: N/A | BU137: N/A | BV137: N/A | BW137: N/A | BX137: N/A | BY137: N/A | BZ137: N/A | CA137: N/A | CB137: N/A | CC137: N/A | CD137: N/A
B138: Unimproved facilities | C138: 6.183083789 | D138: 17.70530851 | E138: 27.29319247 | F138: 22.51778421 | G138: 10.30720842 | H138: 33.61120698 | I138: 23.52796503 | J138: 21.55649988 | K138: 14.15026148 | L138: 5.166514137 | M138: 4.070790422 | N138: 7.201113903 | O138: 16.45026998 | P138: 22.0178376 | Q138: 22.65438518 | R138: 19.79519731 | S138: 15.20617405 | T138: 33.73172634 | U138: 37.02739189 | V138: 39.87581874 | W138: 11.18886256 | X138: 8.175760961 | Y138: 30.78204559 | Z138: 12.63936776 | AA138: 12.46516812 | AB138: 5.184273648 | AC138: 5.230330009 | AD138: 4.676506988 | BB138: Unimproved facilities | BC138: N/A | BD138: N/A | BE138: N/A | BF138: N/A | BG138: N/A | BH138: N/A | BI138: N/A | BJ138: N/A | BK138: N/A | BL138: N/A | BM138: N/A | BN138: N/A | BO138: N/A | BP138: N/A | BQ138: N/A | BR138: N/A | BS138: N/A | BT138: N/A | BU138: N/A | BV138: N/A | BW138: N/A | BX138: N/A | BY138: N/A | BZ138: N/A | CA138: N/A | CB138: N/A | CC138: N/A | CD138: N/A
B139: Open defecation | C139: 91.55566034 | D139: 76.34630001 | E139: 45.66434887 | F139: 11.94083589 | G139: 1.885367706 | H139: 39.88467181 | I139: 15.40803437 | J139: 5.314189962 | K139: 1.701576595 | L139: 0.5636888401 | M139: 93.84915112 | N139: 90.28430096 | O139: 79.31409183 | P139: 65.56486874 | Q139: 34.64685422 | R139: 39.38508741 | S139: 78.09923808 | T139: 49.05450849 | U139: 57.75515571 | V139: 51.42749762 | W139: 80.52289042 | X139: 82.41672867 | Y139: 25.26135408 | Z139: 7.510746802 | AA139: 9.177038826 | AB139: 72.8858071 | AC139: 7.090070266 | AD139: 35.15463703 | BB139: Open defecation | BC139: N/A | BD139: N/A | BE139: N/A | BF139: N/A | BG139: N/A | BH139: N/A | BI139: N/A | BJ139: N/A | BK139: N/A | BL139: N/A | BM139: N/A | BN139: N/A | BO139: N/A | BP139: N/A | BQ139: N/A | BR139: N/A | BS139: N/A | BT139: N/A | BU139: N/A | BV139: N/A | BW139: N/A | BX139: N/A | BY139: N/A | BZ139: N/A | CA139: N/A | CB139: N/A | CC139: N/A | CD139: N/A
A140: Septic tank emptying practices | B140: Not emptied/treated and disposed in situ | C140: N/A | D140: N/A | E140: N/A | F140: N/A | G140: N/A | H140: N/A | I140: N/A | J140: N/A | K140: N/A | L140: N/A | M140: N/A | N140: N/A | O140: N/A | P140: N/A | Q140: N/A | R140: N/A | S140: N/A | T140: N/A | U140: N/A | V140: N/A | W140: N/A | X140: N/A | Y140: N/A | Z140: N/A | AA140: N/A | AB140: N/A | AC140: N/A | AD140: N/A | BA140: Septic tank emptying practices | BB140: Not emptied/treated and disposed in situ | BC140: N/A | BD140: N/A | BE140: N/A | BF140: N/A | BG140: N/A | BH140: N/A | BI140: N/A | BJ140: N/A | BK140: N/A | BL140: N/A | BM140: N/A | BN140: N/A | BO140: N/A | BP140: N/A | BQ140: N/A | BR140: N/A | BS140: N/A | BT140: N/A | BU140: N/A | BV140: N/A | BW140: N/A | BX140: N/A | BY140: N/A | BZ140: N/A | CA140: N/A | CB140: N/A | CC140: N/A | CD140: N/A
B141: Emptied and buried on site | C141: N/A | D141: N/A | E141: N/A | F141: N/A | G141: N/A | H141: N/A | I141: N/A | J141: N/A | K141: N/A | L141: N/A | M141: N/A | N141: N/A | O141: N/A | P141: N/A | Q141: N/A | R141: N/A | S141: N/A | T141: N/A | U141: N/A | V141: N/A | W141: N/A | X141: N/A | Y141: N/A | Z141: N/A | AA141: N/A | AB141: N/A | AC141: N/A | AD141: N/A | BB141: Emptied and buried on site | BC141: N/A | BD141: N/A | BE141: N/A | BF141: N/A | BG141: N/A | BH141: N/A | BI141: N/A | BJ141: N/A | BK141: N/A | BL141: N/A | BM141: N/A | BN141: N/A | BO141: N/A | BP141: N/A | BQ141: N/A | BR141: N/A | BS141: N/A | BT141: N/A | BU141: N/A | BV141: N/A | BW141: N/A | BX141: N/A | BY141: N/A | BZ141: N/A | CA141: N/A | CB141: N/A | CC141: N/A | CD141: N/A
B142: Emptied and discharged locally | C142: N/A | D142: N/A | E142: N/A | F142: N/A | G142: N/A | H142: N/A | I142: N/A | J142: N/A | K142: N/A | L142: N/A | M142: N/A | N142: N/A | O142: N/A | P142: N/A | Q142: N/A | R142: N/A | S142: N/A | T142: N/A | U142: N/A | V142: N/A | W142: N/A | X142: N/A | Y142: N/A | Z142: N/A | AA142: N/A | AB142: N/A | AC142: N/A | AD142: N/A | BB142: Emptied and discharged locally | BC142: N/A | BD142: N/A | BE142: N/A | BF142: N/A | BG142: N/A | BH142: N/A | BI142: N/A | BJ142: N/A | BK142: N/A | BL142: N/A | BM142: N/A | BN142: N/A | BO142: N/A | BP142: N/A | BQ142: N/A | BR142: N/A | BS142: N/A | BT142: N/A | BU142: N/A | BV142: N/A | BW142: N/A | BX142: N/A | BY142: N/A | BZ142: N/A | CA142: N/A | CB142: N/A | CC142: N/A | CD142: N/A
B143: Emptied and removed offsite | C143: N/A | D143: N/A | E143: N/A | F143: N/A | G143: N/A | H143: N/A | I143: N/A | J143: N/A | K143: N/A | L143: N/A | M143: N/A | N143: N/A | O143: N/A | P143: N/A | Q143: N/A | R143: N/A | S143: N/A | T143: N/A | U143: N/A | V143: N/A | W143: N/A | X143: N/A | Y143: N/A | Z143: N/A | AA143: N/A | AB143: N/A | AC143: N/A | AD143: N/A | BB143: Emptied and removed offsite | BC143: N/A | BD143: N/A | BE143: N/A | BF143: N/A | BG143: N/A | BH143: N/A | BI143: N/A | BJ143: N/A | BK143: N/A | BL143: N/A | BM143: N/A | BN143: N/A | BO143: N/A | BP143: N/A | BQ143: N/A | BR143: N/A | BS143: N/A | BT143: N/A | BU143: N/A | BV143: N/A | BW143: N/A | BX143: N/A | BY143: N/A | BZ143: N/A | CA143: N/A | CB143: N/A | CC143: N/A | CD143: N/A
A144: Latrine emptying practices | B144: Not emptied/treated and disposed in situ | C144: N/A | D144: N/A | E144: N/A | F144: N/A | G144: N/A | H144: N/A | I144: N/A | J144: N/A | K144: N/A | L144: N/A | M144: N/A | N144: N/A | O144: N/A | P144: N/A | Q144: N/A | R144: N/A | S144: N/A | T144: N/A | U144: N/A | V144: N/A | W144: N/A | X144: N/A | Y144: N/A | Z144: N/A | AA144: N/A | AB144: N/A | AC144: N/A | AD144: N/A | BA144: Latrine emptying practices | BB144: Not emptied/treated and disposed in situ | BC144: N/A | BD144: N/A | BE144: N/A | BF144: N/A | BG144: N/A | BH144: N/A | BI144: N/A | BJ144: N/A | BK144: N/A | BL144: N/A | BM144: N/A | BN144: N/A | BO144: N/A | BP144: N/A | BQ144: N/A | BR144: N/A | BS144: N/A | BT144: N/A | BU144: N/A | BV144: N/A | BW144: N/A | BX144: N/A | BY144: N/A | BZ144: N/A | CA144: N/A | CB144: N/A | CC144: N/A | CD144: N/A
B145: Emptied and buried on site | C145: N/A | D145: N/A | E145: N/A | F145: N/A | G145: N/A | H145: N/A | I145: N/A | J145: N/A | K145: N/A | L145: N/A | M145: N/A | N145: N/A | O145: N/A | P145: N/A | Q145: N/A | R145: N/A | S145: N/A | T145: N/A | U145: N/A | V145: N/A | W145: N/A | X145: N/A | Y145: N/A | Z145: N/A | AA145: N/A | AB145: N/A | AC145: N/A | AD145: N/A | BB145: Emptied and buried on site | BC145: N/A | BD145: N/A | BE145: N/A | BF145: N/A | BG145: N/A | BH145: N/A | BI145: N/A | BJ145: N/A | BK145: N/A | BL145: N/A | BM145: N/A | BN145: N/A | BO145: N/A | BP145: N/A | BQ145: N/A | BR145: N/A | BS145: N/A | BT145: N/A | BU145: N/A | BV145: N/A | BW145: N/A | BX145: N/A | BY145: N/A | BZ145: N/A | CA145: N/A | CB145: N/A | CC145: N/A | CD145: N/A
B146: Emptied and discharged locally | C146: N/A | D146: N/A | E146: N/A | F146: N/A | G146: N/A | H146: N/A | I146: N/A | J146: N/A | K146: N/A | L146: N/A | M146: N/A | N146: N/A | O146: N/A | P146: N/A | Q146: N/A | R146: N/A | S146: N/A | T146: N/A | U146: N/A | V146: N/A | W146: N/A | X146: N/A | Y146: N/A | Z146: N/A | AA146: N/A | AB146: N/A | AC146: N/A | AD146: N/A | BB146: Emptied and discharged locally | BC146: N/A | BD146: N/A | BE146: N/A | BF146: N/A | BG146: N/A | BH146: N/A | BI146: N/A | BJ146: N/A | BK146: N/A | BL146: N/A | BM146: N/A | BN146: N/A | BO146: N/A | BP146: N/A | BQ146: N/A | BR146: N/A | BS146: N/A | BT146: N/A | BU146: N/A | BV146: N/A | BW146: N/A | BX146: N/A | BY146: N/A | BZ146: N/A | CA146: N/A | CB146: N/A | CC146: N/A | CD146: N/A
B147: Emptied and removed offsite | C147: N/A | D147: N/A | E147: N/A | F147: N/A | G147: N/A | H147: N/A | I147: N/A | J147: N/A | K147: N/A | L147: N/A | M147: N/A | N147: N/A | O147: N/A | P147: N/A | Q147: N/A | R147: N/A | S147: N/A | T147: N/A | U147: N/A | V147: N/A | W147: N/A | X147: N/A | Y147: N/A | Z147: N/A | AA147: N/A | AB147: N/A | AC147: N/A | AD147: N/A | BB147: Emptied and removed offsite | BC147: N/A | BD147: N/A | BE147: N/A | BF147: N/A | BG147: N/A | BH147: N/A | BI147: N/A | BJ147: N/A | BK147: N/A | BL147: N/A | BM147: N/A | BN147: N/A | BO147: N/A | BP147: N/A | BQ147: N/A | BR147: N/A | BS147: N/A | BT147: N/A | BU147: N/A | BV147: N/A | BW147: N/A | BX147: N/A | BY147: N/A | BZ147: N/A | CA147: N/A | CB147: N/A | CC147: N/A | CD147: N/A
A148: Shared among improved sanitation facilities | B148: Yes | C148: 0.7374918781 | D148: 1.684114363 | E148: 9.783645749 | F148: 16.06915961 | G148: 11.35348321 | H148: 9.970015194 | I148: 18.42420092 | J148: 17.26526023 | K148: 15.20133163 | L148: 5.394808799 | M148: 0.5011395014 | N148: 0.7130447955 | O148: 1.222992431 | P148: 4.908679789 | Q148: 10.22027659 | R148: 2.980373279 | S148: 1.693429063 | T148: 4.69299575 | U148: 2.108100836 | V148: 1.450360831 | W148: 2.600680039 | X148: 2.90896927 | Y148: 1.052322771 | Z148: 12.27118139 | AA148: 16.44993498 | AB148: 2.608989041 | AC148: 4.340222849 | AD148: 15.0204599 | BA148: Shared among improved sanitation facilities | BB148: Yes | BC148: N/A | BD148: N/A | BE148: N/A | BF148: N/A | BG148: N/A | BH148: N/A | BI148: N/A | BJ148: N/A | BK148: N/A | BL148: N/A | BM148: N/A | BN148: N/A | BO148: N/A | BP148: N/A | BQ148: N/A | BR148: N/A | BS148: N/A | BT148: N/A | BU148: N/A | BV148: N/A | BW148: N/A | BX148: N/A | BY148: N/A | BZ148: N/A | CA148: N/A | CB148: N/A | CC148: N/A | CD148: N/A
B149: No | C149: 1.479641226 | D149: 4.24793498 | E149: 17.21952824 | F149: 48.98721956 | G149: 75.95406878 | H149: 16.53410602 | I149: 42.01578548 | J149: 55.86404993 | K149: 68.40087751 | L149: 88.39993967 | M149: 1.498224736 | N149: 1.77168657 | O149: 3.012645755 | P149: 7.508613875 | Q149: 31.96808813 | R149: 37.71469431 | S149: 4.914586516 | T149: 12.2384766 | U149: 3.074600497 | V149: 7.246322805 | W149: 5.687566981 | X149: 6.498541102 | Y149: 42.76175547 | Z149: 67.40828258 | AA149: 61.36912502 | AB149: 19.32093021 | AC149: 83.33937688 | AD149: 44.8590797 | BB149: No | BC149: N/A | BD149: N/A | BE149: N/A | BF149: N/A | BG149: N/A | BH149: N/A | BI149: N/A | BJ149: N/A | BK149: N/A | BL149: N/A | BM149: N/A | BN149: N/A | BO149: N/A | BP149: N/A | BQ149: N/A | BR149: N/A | BS149: N/A | BT149: N/A | BU149: N/A | BV149: N/A | BW149: N/A | BX149: N/A | BY149: N/A | BZ149: N/A | CA149: N/A | CB149: N/A | CC149: N/A | CD149: N/A
B150: DK/missing | C150: 97.7828669 | D150: 94.06795066 | E150: 72.99682601 | F150: 34.94362083 | G150: 12.69244801 | H150: 73.49587879 | I150: 39.56001361 | J150: 26.87068985 | K150: 16.39779086 | L150: 6.205251534 | M150: 98.00063576 | N150: 97.51526863 | O150: 95.76436181 | P150: 87.58270634 | Q150: 57.81163529 | R150: 59.30493241 | S150: 93.39198442 | T150: 83.06852765 | U150: 94.81729867 | V150: 91.30331636 | W150: 91.71175298 | X150: 90.59248963 | Y150: 56.18592176 | Z150: 20.32053603 | AA150: 22.18094 | AB150: 78.07008075 | AC150: 12.32040028 | AD150: 40.1204604 | BB150: DK/missing | BC150: N/A | BD150: N/A | BE150: N/A | BF150: N/A | BG150: N/A | BH150: N/A | BI150: N/A | BJ150: N/A | BK150: N/A | BL150: N/A | BM150: N/A | BN150: N/A | BO150: N/A | BP150: N/A | BQ150: N/A | BR150: N/A | BS150: N/A | BT150: N/A | BU150: N/A | BV150: N/A | BW150: N/A | BX150: N/A | BY150: N/A | BZ150: N/A | CA150: N/A | CB150: N/A | CC150: N/A | CD150: N/A
A151: Shared among all sanitation facilities | B151: Yes | C151: 40.13719243 | D151: 30.90942507 | E151: 37.66578357 | F151: 25.20010658 | G151: 13.75832364 | H151: 37.13591387 | I151: 29.85414036 | J151: 24.36336883 | K151: 17.94725286 | L151: 6.354321821 | M151: 34.43145637 | N151: 36.69888411 | O151: 26.55300198 | P151: 39.7841017 | Q151: 29.04879303 | R151: 9.988024499 | S151: 28.36580252 | T151: 22.06458365 | U151: 42.72902445 | V151: 36.49266849 | W151: 39.02234463 | X151: 32.02450479 | Y151: 4.459106999 | Z151: 17.45416788 | AA151: 22.12108816 | AB151: 13.45073553 | AC151: 4.812248698 | AD151: 24.87380023 | BA151: Shared among all sanitation facilities | BB151: Yes | BC151: N/A | BD151: N/A | BE151: N/A | BF151: N/A | BG151: N/A | BH151: N/A | BI151: N/A | BJ151: N/A | BK151: N/A | BL151: N/A | BM151: N/A | BN151: N/A | BO151: N/A | BP151: N/A | BQ151: N/A | BR151: N/A | BS151: N/A | BT151: N/A | BU151: N/A | BV151: N/A | BW151: N/A | BX151: N/A | BY151: N/A | BZ151: N/A | CA151: N/A | CB151: N/A | CC151: N/A | CD151: N/A
B152: No | C152: 56.77108128 | D152: 67.1526877 | E152: 61.28407081 | F152: 74.01354533 | G152: 85.58167622 | H152: 62.26804038 | I152: 68.89501858 | J152: 75.63201951 | K152: 81.41336205 | L152: 92.97717206 | M152: 62.42412063 | N152: 60.20420535 | O152: 72.16023352 | P152: 57.51688526 | Q152: 69.61914706 | R152: 89.29224025 | S152: 70.66531354 | T152: 76.43141012 | U152: 55.66753998 | V152: 62.32541958 | W152: 57.88477966 | X152: 66.94689183 | Y152: 93.40250374 | Z152: 81.79393065 | AA152: 77.06074862 | AB152: 86.54926447 | AC152: 95.12859596 | AD152: 74.68003621 | BB152: No | BC152: N/A | BD152: N/A | BE152: N/A | BF152: N/A | BG152: N/A | BH152: N/A | BI152: N/A | BJ152: N/A | BK152: N/A | BL152: N/A | BM152: N/A | BN152: N/A | BO152: N/A | BP152: N/A | BQ152: N/A | BR152: N/A | BS152: N/A | BT152: N/A | BU152: N/A | BV152: N/A | BW152: N/A | BX152: N/A | BY152: N/A | BZ152: N/A | CA152: N/A | CB152: N/A | CC152: N/A | CD152: N/A
A153: Type de toilettes | B153: Chasse branchee a l'egout | C153: 0 | D153: 0 | E153: 0.2853144363 | F153: 0.5864304547 | G153: 4.668447596 | H153: 0 | I153: 0.3798347324 | J153: 1.088903197 | K153: 4.331440711 | L153: 5.798864259 | M153: 0 | N153: 0 | O153: 0 | P153: 0 | Q153: 0.5222310237 | R153: 0 | S153: 0 | T153: 0 | U153: 0 | V153: 0 | W153: 0 | X153: 0 | Y153: 0 | Z153: 11.24781711 | AA153: 2.173509196 | AB153: 0 | AC153: 4.143077783 | AD153: 0.5545230724 | BA153: Type de toilettes | BB153: Chasse branchee a l'egout | BC153: 0 | BD153: 0 | BE153: 33.99646379 | BF153: 69.8637375 | BG153: 556.3643757 | BH153: 0 | BI153: 20.49433742 | BJ153: 58.78398761 | BK153: 234.1509101 | BL153: 312.798878 | BM153: 0 | BN153: 0 | BO153: 0 | BP153: 0 | BQ153: 33.99646379 | BR153: 0 | BS153: 0 | BT153: 0 | BU153: 0 | BV153: 0 | BW153: 0 | BX153: 0 | BY153: 0 | BZ153: 241.993441 | CA153: 342.5482112 | CB153: 0 | CC153: 41.68646094 | CD153: 33.99646379
B154: Chasse branchee a fosse septique | C154: 0.9896109328 | D154: 2.201324038 | E154: 11.2045919 | F154: 29.54127104 | G154: 40.77027267 | H154: 12.39330673 | I154: 32.05513415 | J154: 30.23850234 | K154: 35.60487544 | L154: 48.953428 | M154: 0.7513598935 | N154: 0.9956760918 | O154: 1.37026176 | P154: 4.930960724 | Q154: 14.93070735 | R154: 14.40632337 | S154: 2.995284084 | T154: 3.843720645 | U154: 2.879393126 | V154: 1.820214373 | W154: 1.066621893 | X154: 0.6282081922 | Y154: 3.015247306 | Z154: 22.56971813 | AA154: 38.76091399 | AB154: 19.59724411 | AC154: 3.860498053 | AD154: 36.562245 | BB154: Chasse branchee a fosse septique | BC154: 117.9186867 | BD154: 262.2024553 | BE154: 1335.076163 | BF154: 3519.366345 | BG154: 4858.815876 | BH154: 669.2992212 | BI154: 1729.564675 | BJ154: 1632.413012 | BK154: 1924.743877 | BL154: 2640.616622 | BM154: 48.95380126 | BN154: 64.92029926 | BO154: 89.18835688 | BP154: 321.7127953 | BQ154: 971.9668665 | BR154: 199.3375419 | BS154: 181.9030395 | BT154: 187.4117142 | BU154: 161.2851894 | BV154: 56.13383381 | BW154: 69.09501277 | BX154: 32.67331315 | BY154: 4.987152982 | BZ154: 485.5807753 | CA154: 6108.776433 | CB154: 325.8097879 | CC154: 38.84322471 | CD154: 2241.542507
B155: Chasse branchee a autre chose | C155: 0.08167957058 | D155: 0.09820060154 | E155: 0.8412056908 | F155: 0.9581407492 | G155: 0.5809920877 | H155: 0.7977108427 | I155: 0.6476093848 | J155: 1.179313559 | K155: 0.564670549 | L155: 0.4480363115 | M155: 0 | N155: 0.2388301457 | O155: 0.01495295307 | P155: 0.1590713238 | Q155: 1.255721654 | R155: 0.2492953658 | S155: 0 | T155: 0.2508118345 | U155: 0.6423409768 | V155: 5.47968393 | W155: 0 | X155: 0.1773644958 | Y155: 0 | Z155: 0.5849298704 | AA155: 0.1393275125 | AB155: 0.5535182528 | AC155: 0.4797247959 | AD155: 0.4339745784 | BB155: Chasse branchee a autre chose | BC155: 9.732660966 | BD155: 11.69679629 | BE155: 100.2333397 | BF155: 114.1470284 | BG155: 69.23999755 | BH155: 43.08028982 | BI155: 34.94236866 | BJ155: 63.66475352 | BK155: 30.52520668 | BL155: 24.16770755 | BM155: 0 | BN155: 15.57225755 | BO155: 0.9732660966 | BP155: 10.37835892 | BQ155: 81.74561413 | BR155: 3.449452311 | BS155: 0 | BT155: 12.22905622 | BU155: 35.97983378 | BV155: 168.9887036 | BW155: 0 | BX155: 9.224785327 | BY155: 0 | BZ155: 12.58459226 | CA155: 21.95821867 | CB155: 9.202399251 | CC155: 4.826853372 | CD155: 26.60592818
B156: Chasse branchee a un endroit inconnu | C156: 0 | D156: 0.03752808762 | E156: 0.497851939 | F156: 0.2600079856 | G156: 0.5102871386 | H156: 1.102953373 | I156: 0.4770153404 | J156: 0.09702683146 | K156: 0.683464133 | L156: 0.1136309964 | M156: 0 | N156: 0 | O156: 0 | P156: 0.02834061252 | Q156: 0.3089874055 | R156: 0 | S156: 0 | T156: 0 | U156: 0.1734784801 | V156: 0 | W156: 0.04046012921 | X156: 0 | Y156: 0 | Z156: 1.46242929 | AA156: 0.5573100502 | AB156: 0.08311678366 | AC156: 0.4797247959 | AD156: 0.2893163856 | BB156: Chasse branchee a un endroit inconnu | BC156: 0 | BD156: 4.470017383 | BE156: 59.32123744 | BF156: 30.97576108 | BG156: 60.81370293 | BH156: 59.56488044 | BI156: 25.73780781 | BJ156: 5.237953268 | BK156: 36.94700203 | BL156: 6.12941545 | BM156: 0 | BN156: 0 | BO156: 0 | BP156: 1.849038795 | BQ156: 20.11462105 | BR156: 0 | BS156: 0 | BT156: 0 | BU156: 9.717155068 | BV156: 0 | BW156: 2.620978589 | BX156: 0 | BY156: 0 | BZ156: 31.46373138 | CA156: 87.83287467 | CB156: 1.381840299 | CC156: 4.826853372 | CD156: 17.73728546
B157: Latrines ameliorees auto aerees (LAA) | C157: 0 | D157: 0.1824779609 | E157: 2.313226795 | F157: 9.5553264 | G157: 17.50216643 | H157: 2.369267953 | I157: 7.564673525 | J157: 12.41054737 | K157: 14.61392344 | L157: 20.55709621 | M157: 0 | N157: 0 | O157: 0 | P157: 0.6699436574 | Q157: 5.727855278 | R157: 2.320360754 | S157: 0 | T157: 3.785551972 | U157: 0.3412573913 | V157: 0.1706461614 | W157: 0.2427607753 | X157: 0.7599199541 | Y157: 24.086233 | Z157: 17.93234113 | AA157: 13.06892068 | AB157: 0.1662335673 | AC157: 43.57247613 | AD157: 4.872865234 | BB157: Latrines ameliorees auto aerees (LAA) | BC157: 0 | BD157: 21.73517781 | BE157: 275.6310967 | BF157: 1138.363143 | BG157: 2085.828683 | BH157: 127.9520656 | BI157: 408.159019 | BJ157: 669.9782544 | BK157: 790.0058435 | BL157: 1108.878626 | BM157: 0 | BN157: 0 | BO157: 0 | BP157: 43.70942272 | BQ157: 372.874869 | BR157: 32.10638809 | BS157: 0 | BT157: 184.5755323 | BU157: 19.11505674 | BV157: 5.26257973 | BW157: 15.72587153 | BX157: 39.52368488 | BY157: 39.83810167 | BZ157: 385.808988 | CA157: 2059.680911 | CB157: 2.763680597 | CC157: 438.4137637 | CD157: 298.7435415
B158: Latrines couvertes | C158: 1.271644934 | D158: 3.527061393 | E158: 12.74147359 | F158: 25.59834402 | G158: 24.35625004 | H158: 10.63859316 | I158: 20.58734285 | J158: 29.29433041 | K158: 28.9144582 | L158: 18.84677756 | M158: 1.328698566 | N158: 1.518909042 | O158: 2.865376426 | P158: 6.788048669 | Q158: 21.20897955 | R158: 24.09303116 | S158: 3.699303786 | T158: 9.584492551 | U158: 1.823323396 | V158: 6.705823103 | W158: 6.938404222 | X158: 8.019382226 | Y158: 16.85512002 | Z158: 26.63757979 | AA158: 23.79713914 | AB158: 2.083324792 | AC158: 35.62382296 | AD158: 17.8899063 | BB158: Latrines couvertes | BC158: 151.5249031 | BD158: 420.1126872 | BE158: 1518.202343 | BF158: 3049.630136 | BG158: 2902.667229 | BH158: 574.5360999 | BI158: 1110.809294 | BJ158: 1581.442282 | BK158: 1563.070385 | BL158: 1016.621637 | BM158: 86.56949368 | BN158: 99.03625322 | BO158: 186.5032089 | BP158: 442.8755843 | BQ158: 1380.673059 | BR158: 333.3706654 | BS158: 224.6580238 | BT158: 467.3196479 | BU158: 102.1309166 | BV158: 206.8017731 | BW158: 449.4649241 | BX158: 417.0906875 | BY158: 27.87799923 | BZ158: 573.0996096 | CA158: 3750.463748 | CB158: 34.63587047 | CC158: 358.4366942 | CD158: 1096.786738
B159: Latrines a fosses/trou ouvert | C159: 5.95480254 | D159: 16.90177898 | E159: 25.80789096 | F159: 20.83691117 | G159: 9.19956423 | H159: 31.8263075 | I159: 21.48199116 | J159: 20.14794412 | K159: 12.65400636 | L159: 4.593933955 | M159: 3.958075938 | N159: 6.739422388 | O159: 15.81305581 | P159: 21.09929201 | Q159: 21.1382949 | R159: 17.21212521 | S159: 15.20617405 | T159: 33.01497309 | U159: 36.14207031 | V159: 34.0793987 | W159: 10.62203372 | X159: 7.68188775 | Y159: 29.46888659 | Z159: 10.09302176 | AA159: 11.57347204 | AB159: 4.526970723 | AC159: 3.300080983 | AD159: 3.977325723 | BB159: Latrines a fosses/trou ouvert | BC159: 709.5541006 | BD159: 2013.192002 | BE159: 3075.123159 | BF159: 2482.382149 | BG159: 1096.362271 | BH159: 1718.776376 | BI159: 1159.080879 | BJ159: 1087.67841 | BK159: 684.0557918 | BL159: 247.8032461 | BM159: 257.8828927 | BN159: 439.4253531 | BO159: 1029.248941 | BP159: 1376.5902 | BQ159: 1376.071594 | BR159: 238.1608855 | BS159: 923.4680923 | BT159: 1609.740476 | BU159: 2024.447652 | BV159: 1050.979122 | BW159: 688.0878406 | BX159: 399.5374896 | BY159: 48.74089277 | BZ159: 217.1483624 | CA159: 1823.996031 | CB159: 75.26218292 | CC159: 33.2044688 | CD159: 243.8401874
B160: Pas de toilettes ou brousse ou champ | C160: 91.55566034 | D160: 76.34630001 | E160: 45.66434887 | F160: 11.94083589 | G160: 1.885367706 | H160: 39.88467181 | I160: 15.40803437 | J160: 5.314189962 | K160: 1.701576595 | L160: 0.5636888401 | M160: 93.84915112 | N160: 90.28430096 | O160: 79.31409183 | P160: 65.56486874 | Q160: 34.64685422 | R160: 39.38508741 | S160: 78.09923808 | T160: 49.05450849 | U160: 57.75515571 | V160: 51.42749762 | W160: 80.52289042 | X160: 82.41672867 | Y160: 25.26135408 | Z160: 7.510746802 | AA160: 9.177038826 | AB160: 72.8858071 | AC160: 7.090070266 | AD160: 35.15463703 | BB160: Pas de toilettes ou brousse ou champ | BC160: 10909.46237 | BD160: 9093.703139 | BE160: 5441.107023 | BF160: 1422.558152 | BG160: 224.6895579 | BH160: 2153.967489 | BI160: 831.3548724 | BJ160: 286.8843418 | BK160: 91.9845693 | BL160: 30.40616729 | BM160: 6114.609966 | BN160: 5886.73755 | BO160: 5162.439566 | BP160: 4277.676983 | BQ160: 2255.458736 | BR160: 544.9639239 | BS160: 4742.952052 | BT160: 2391.794403 | BU160: 3235.074482 | BV160: 1585.979458 | BW160: 5216.215959 | BX160: 4286.520963 | BY160: 41.78172618 | BZ160: 161.5914844 | CA160: 1446.31467 | CB160: 1211.747387 | CC160: 71.33825448 | CD160: 2155.245479
B161: Autres | C161: 0.04487284963 | D161: 0.3550534249 | E161: 0.5745885485 | F161: 0.5640293155 | G161: 0.2135218762 | H161: 0.9790633576 | I161: 1.129277254 | J161: 0.09645718551 | K161: 0.4707233337 | L161: 0 | M161: 0 | N161: 0.1495830699 | O161: 0.2667274344 | P161: 0.4147454471 | Q161: 0.15532468 | R161: 2.333776741 | S161: 0 | T161: 0.100818864 | U161: 0.1734784801 | V161: 0.1385720493 | W161: 0.2040583821 | X161: 0.3165087145 | Y161: 0.3155043808 | Z161: 0.803833963 | AA161: 0.678060561 | AB161: 0 | AC161: 0.3166292583 | AD161: 0 | BB161: Autres | BC161: 5.346896769 | BD161: 42.29085685 | BE161: 68.46474031 | BF161: 67.1950028 | BG161: 25.44656717 | BH161: 52.87421323 | BI161: 60.93120803 | BJ161: 5.207201168 | BK161: 25.44656717 | BL161: 0 | BM161: 0 | BN161: 9.753149383 | BO161: 17.36090307 | BP161: 27.05941592 | BQ161: 10.11140591 | BR161: 32.29202253 | BS161: 0 | BT161: 4.91571523 | BU161: 9.717155068 | BV161: 4.273441909 | BW161: 13.21875784 | BX161: 16.46172157 | BY161: 0.5218373333 | BZ161: 17.29424873 | CA161: 106.8633309 | CB161: 0 | CC161: 3.185832828 | CD161: 0
B162: Manquant | C162: 0.1017288293 | D162: 0.3502755043 | E162: 0.06950726401 | F162: 0.1587029698 | G162: 0.3131302217 | H162: 0.008125279327 | I162: 0.2690872303 | J162: 0.1327850213 | K162: 0.4608612411 | L162: 0.1245438706 | M162: 0.1127144849 | N162: 0.07327829944 | O162: 0.3555337791 | P162: 0.3447288174 | Q162: 0.1050439422 | R162: 0 | S162: 0 | T162: 0.365122549 | U162: 0.06950212155 | V162: 0.1781640633 | W162: 0.3627704571 | X162: 0 | Y162: 0.9976546215 | Z162: 1.157582165 | AA162: 0.07430800669 | AB162: 0.1037846724 | AC162: 1.133894972 | AD162: 0.2652066868 | BB162: Manquant | BC162: 12.12166272 | BD162: 41.72175276 | BE162: 8.282094713 | BF162: 18.90690112 | BG162: 37.31743726 | BH162: 0.438804852 | BI162: 14.5188526 | BJ162: 7.168344321 | BK162: 24.91343786 | BL162: 6.718071204 | BM162: 7.343754357 | BN162: 4.777908366 | BO162: 23.14117966 | BP162: 22.49129078 | BQ162: 6.838204575 | BR162: 0 | BS162: 0 | BT162: 17.80260563 | BU162: 3.893064386 | BV162: 5.494425312 | BW162: 23.50001394 | BX162: 0 | BY162: 1.650098886 | BZ162: 24.90503612 | CA162: 11.71104996 | CB162: 1.72544986 | CC162: 11.40892615 | CD162: 16.25917834
BB163: Total | BC163: 11915.66128 | BD163: 11911.12488 | BE163: 11915.43766 | BF163: 11913.38836 | BG163: 11917.5457 | BH163: 5400.48944 | BI163: 5395.593314 | BJ163: 5398.458539 | BK163: 5405.843591 | BL163: 5394.140371 | BM163: 6515.359908 | BN163: 6520.222771 | BO163: 6508.855422 | BP163: 6524.34309 | BQ163: 6509.851435 | BR163: 1383.68088 | BS163: 6072.981208 | BT163: 4875.78915 | BU163: 5601.360505 | BV163: 3083.913338 | BW163: 6477.929359 | BX163: 5201.032645 | BY163: 165.397809 | BZ163: 2151.470269 | CA163: 15760.14548 | CB163: 1662.528599 | CC163: 1006.171333 | CD163: 6130.757309
A208: =A1026 -> Mauritania
A209: =A1034 -> 2007
A210: Access to hygiene facilities
A211: by wealth quintile and sub-national region
A212: Notes:
A213: WHO/UNICEF JMP customised wealth index excludes water,
A214: sanitation and hygiene assets.
A215: Survey used for analysis: | B215: =A1025 -> MICS07
A220: Access to handwashing | C220: NATIONAL wealth index quintile | H220: URBAN wealth index quintile | M220: RURAL wealth index quintile | R220: SUB-REGIONS: | BA220: Raw numbers of respondents: | BB220: Access to handwashing | BC220: NATIONAL wealth index quintile | BH220: URBAN wealth index quintile | BM220: RURAL wealth index quintile | BR220: SUB-REGIONS:
A221: Weighted percentage (used in graphs) | C221: Poorest | D221: Poor | E221: Middle | F221: Rich | G221: Richest | H221: Poorest | I221: Poor | J221: Middle | K221: Rich | L221: Richest | M221: Poorest | N221: Poor | O221: Middle | P221: Rich | Q221: Richest | R221: Adrar | S221: Assaba | T221: Brakna | U221: Gorgol | V221: Guidimagha | W221: Hodh ECharghi | X221: Hodh ELGharbi | Y221: Inchiri | Z221: Nouadhibou | AA221: Nouakchott | AB221: Tagant | AC221: Tiris Zemmour | AD221: Trarza | BA221: Hygiene data, raw numbers (weighted) | BC221: Poorest | BD221: Poor | BE221: Middle | BF221: Rich | BG221: Richest | BH221: Poorest | BI221: Poor | BJ221: Middle | BK221: Rich | BL221: Richest | BM221: Poorest | BN221: Poor | BO221: Middle | BP221: Rich | BQ221: Richest | BR221: Adrar | BS221: Assaba | BT221: Brakna | BU221: Gorgol | BV221: Guidimagha | BW221: Hodh ECharghi | BX221: Hodh ELGharbi | BY221: Inchiri | BZ221: Nouadhibou | CA221: Nouakchott | CB221: Tagant | CC221: Tiris Zemmour | CD221: Trarza
A222: Hygiene ladder | B222: Basic | C222: N/A | D222: N/A | E222: N/A | F222: N/A | G222: N/A | H222: N/A | I222: N/A | J222: N/A | K222: N/A | L222: N/A | M222: N/A | N222: N/A | O222: N/A | P222: N/A | Q222: N/A | R222: N/A | S222: N/A | T222: N/A | U222: N/A | V222: N/A | W222: N/A | X222: N/A | Y222: N/A | Z222: N/A | AA222: N/A | AB222: N/A | AC222: N/A | AD222: N/A | BA222: Hygiene ladder | BB222: Basic | BC222: N/A | BD222: N/A | BE222: N/A | BF222: N/A | BG222: N/A | BH222: N/A | BI222: N/A | BJ222: N/A | BK222: N/A | BL222: N/A | BM222: N/A | BN222: N/A | BO222: N/A | BP222: N/A | BQ222: N/A | BR222: N/A | BS222: N/A | BT222: N/A | BU222: N/A | BV222: N/A | BW222: N/A | BX222: N/A | BY222: N/A | BZ222: N/A | CA222: N/A | CB222: N/A | CC222: N/A | CD222: N/A
B223: Limited | C223: N/A | D223: N/A | E223: N/A | F223: N/A | G223: N/A | H223: N/A | I223: N/A | J223: N/A | K223: N/A | L223: N/A | M223: N/A | N223: N/A | O223: N/A | P223: N/A | Q223: N/A | R223: N/A | S223: N/A | T223: N/A | U223: N/A | V223: N/A | W223: N/A | X223: N/A | Y223: N/A | Z223: N/A | AA223: N/A | AB223: N/A | AC223: N/A | AD223: N/A | BB223: Limited | BC223: N/A | BD223: N/A | BE223: N/A | BF223: N/A | BG223: N/A | BH223: N/A | BI223: N/A | BJ223: N/A | BK223: N/A | BL223: N/A | BM223: N/A | BN223: N/A | BO223: N/A | BP223: N/A | BQ223: N/A | BR223: N/A | BS223: N/A | BT223: N/A | BU223: N/A | BV223: N/A | BW223: N/A | BX223: N/A | BY223: N/A | BZ223: N/A | CA223: N/A | CB223: N/A | CC223: N/A | CD223: N/A
B224: No facility | C224: N/A | D224: N/A | E224: N/A | F224: N/A | G224: N/A | H224: N/A | I224: N/A | J224: N/A | K224: N/A | L224: N/A | M224: N/A | N224: N/A | O224: N/A | P224: N/A | Q224: N/A | R224: N/A | S224: N/A | T224: N/A | U224: N/A | V224: N/A | W224: N/A | X224: N/A | Y224: N/A | Z224: N/A | AA224: N/A | AB224: N/A | AC224: N/A | AD224: N/A | BB224: No facility | BC224: N/A | BD224: N/A | BE224: N/A | BF224: N/A | BG224: N/A | BH224: N/A | BI224: N/A | BJ224: N/A | BK224: N/A | BL224: N/A | BM224: N/A | BN224: N/A | BO224: N/A | BP224: N/A | BQ224: N/A | BR224: N/A | BS224: N/A | BT224: N/A | BU224: N/A | BV224: N/A | BW224: N/A | BX224: N/A | BY224: N/A | BZ224: N/A | CA224: N/A | CB224: N/A | CC224: N/A | CD224: N/A
BA225: Observed handwashing place | BB225: Fixed | BC225: N/A | BD225: N/A | BE225: N/A | BF225: N/A | BG225: N/A | BH225: N/A | BI225: N/A | BJ225: N/A | BK225: N/A | BL225: N/A | BM225: N/A | BN225: N/A | BO225: N/A | BP225: N/A | BQ225: N/A | BR225: N/A | BS225: N/A | BT225: N/A | BU225: N/A | BV225: N/A | BW225: N/A | BX225: N/A | BY225: N/A | BZ225: N/A | CA225: N/A | CB225: N/A | CC225: N/A | CD225: N/A
BB226: Mobile | BC226: N/A | BD226: N/A | BE226: N/A | BF226: N/A | BG226: N/A | BH226: N/A | BI226: N/A | BJ226: N/A | BK226: N/A | BL226: N/A | BM226: N/A | BN226: N/A | BO226: N/A | BP226: N/A | BQ226: N/A | BR226: N/A | BS226: N/A | BT226: N/A | BU226: N/A | BV226: N/A | BW226: N/A | BX226: N/A | BY226: N/A | BZ226: N/A | CA226: N/A | CB226: N/A | CC226: N/A | CD226: N/A
BA227: Water / Soap | BB227: Water and soap | BC227: N/A | BD227: N/A | BE227: N/A | BF227: N/A | BG227: N/A | BH227: N/A | BI227: N/A | BJ227: N/A | BK227: N/A | BL227: N/A | BM227: N/A | BN227: N/A | BO227: N/A | BP227: N/A | BQ227: N/A | BR227: N/A | BS227: N/A | BT227: N/A | BU227: N/A | BV227: N/A | BW227: N/A | BX227: N/A | BY227: N/A | BZ227: N/A | CA227: N/A | CB227: N/A | CC227: N/A | CD227: N/A
BB228: Water only | BC228: N/A | BD228: N/A | BE228: N/A | BF228: N/A | BG228: N/A | BH228: N/A | BI228: N/A | BJ228: N/A | BK228: N/A | BL228: N/A | BM228: N/A | BN228: N/A | BO228: N/A | BP228: N/A | BQ228: N/A | BR228: N/A | BS228: N/A | BT228: N/A | BU228: N/A | BV228: N/A | BW228: N/A | BX228: N/A | BY228: N/A | BZ228: N/A | CA228: N/A | CB228: N/A | CC228: N/A | CD228: N/A
BB229: Soap only | BC229: N/A | BD229: N/A | BE229: N/A | BF229: N/A | BG229: N/A | BH229: N/A | BI229: N/A | BJ229: N/A | BK229: N/A | BL229: N/A | BM229: N/A | BN229: N/A | BO229: N/A | BP229: N/A | BQ229: N/A | BR229: N/A | BS229: N/A | BT229: N/A | BU229: N/A | BV229: N/A | BW229: N/A | BX229: N/A | BY229: N/A | BZ229: N/A | CA229: N/A | CB229: N/A | CC229: N/A | CD229: N/A
BB230: Neither | BC230: N/A | BD230: N/A | BE230: N/A | BF230: N/A | BG230: N/A | BH230: N/A | BI230: N/A | BJ230: N/A | BK230: N/A | BL230: N/A | BM230: N/A | BN230: N/A | BO230: N/A | BP230: N/A | BQ230: N/A | BR230: N/A | BS230: N/A | BT230: N/A | BU230: N/A | BV230: N/A | BW230: N/A | BX230: N/A | BY230: N/A | BZ230: N/A | CA230: N/A | CB230: N/A | CC230: N/A | CD230: N/A
BA259: Raw numbers of respondents: | BB259: Menstrual health and hygiene | BC259: NATIONAL wealth index quintile | BH259: URBAN wealth index quintile | BM259: RURAL wealth index quintile | BR259: SUB-REGIONS:
BA260: MHH data, raw numbers (weighted) | BC260: Poorest | BD260: Poor | BE260: Middle | BF260: Rich | BG260: Richest | BH260: Poorest | BI260: Poor | BJ260: Middle | BK260: Rich | BL260: Richest | BM260: Poorest | BN260: Poor | BO260: Middle | BP260: Rich | BQ260: Richest | BR260: Adrar | BS260: Assaba | BT260: Brakna | BU260: Gorgol | BV260: Guidimagha | BW260: Hodh ECharghi | BX260: Hodh ELGharbi | BY260: Inchiri | BZ260: Nouadhibou | CA260: Nouakchott | CB260: Tagant | CC260: Tiris Zemmour | CD260: Trarza
BA261: Private place to wash and change | BB261: Yes | BC261: N/A | BD261: N/A | BE261: N/A | BF261: N/A | BG261: N/A | BH261: N/A | BI261: N/A | BJ261: N/A | BK261: N/A | BL261: N/A | BM261: N/A | BN261: N/A | BO261: N/A | BP261: N/A | BQ261: N/A | BR261: N/A | BS261: N/A | BT261: N/A | BU261: N/A | BV261: N/A | BW261: N/A | BX261: N/A | BY261: N/A | BZ261: N/A | CA261: N/A | CB261: N/A | CC261: N/A | CD261: N/A
BB262: No | BC262: N/A | BD262: N/A | BE262: N/A | BF262: N/A | BG262: N/A | BH262: N/A | BI262: N/A | BJ262: N/A | BK262: N/A | BL262: N/A | BM262: N/A | BN262: N/A | BO262: N/A | BP262: N/A | BQ262: N/A | BR262: N/A | BS262: N/A | BT262: N/A | BU262: N/A | BV262: N/A | BW262: N/A | BX262: N/A | BY262: N/A | BZ262: N/A | CA262: N/A | CB262: N/A | CC262: N/A | CD262: N/A
BB263: DK/not sure/missing | BC263: N/A | BD263: N/A | BE263: N/A | BF263: N/A | BG263: N/A | BH263: N/A | BI263: N/A | BJ263: N/A | BK263: N/A | BL263: N/A | BM263: N/A | BN263: N/A | BO263: N/A | BP263: N/A | BQ263: N/A | BR263: N/A | BS263: N/A | BT263: N/A | BU263: N/A | BV263: N/A | BW263: N/A | BX263: N/A | BY263: N/A | BZ263: N/A | CA263: N/A | CB263: N/A | CC263: N/A | CD263: N/A
BA264: Use of menstrual materials | BB264: Materials reusable | BC264: N/A | BD264: N/A | BE264: N/A | BF264: N/A | BG264: N/A | BH264: N/A | BI264: N/A | BJ264: N/A | BK264: N/A | BL264: N/A | BM264: N/A | BN264: N/A | BO264: N/A | BP264: N/A | BQ264: N/A | BR264: N/A | BS264: N/A | BT264: N/A | BU264: N/A | BV264: N/A | BW264: N/A | BX264: N/A | BY264: N/A | BZ264: N/A | CA264: N/A | CB264: N/A | CC264: N/A | CD264: N/A
BB265: Materials not reusable | BC265: N/A | BD265: N/A | BE265: N/A | BF265: N/A | BG265: N/A | BH265: N/A | BI265: N/A | BJ265: N/A | BK265: N/A | BL265: N/A | BM265: N/A | BN265: N/A | BO265: N/A | BP265: N/A | BQ265: N/A | BR265: N/A | BS265: N/A | BT265: N/A | BU265: N/A | BV265: N/A | BW265: N/A | BX265: N/A | BY265: N/A | BZ265: N/A | CA265: N/A | CB265: N/A | CC265: N/A | CD265: N/A
BB266: No materials used | BC266: N/A | BD266: N/A | BE266: N/A | BF266: N/A | BG266: N/A | BH266: N/A | BI266: N/A | BJ266: N/A | BK266: N/A | BL266: N/A | BM266: N/A | BN266: N/A | BO266: N/A | BP266: N/A | BQ266: N/A | BR266: N/A | BS266: N/A | BT266: N/A | BU266: N/A | BV266: N/A | BW266: N/A | BX266: N/A | BY266: N/A | BZ266: N/A | CA266: N/A | CB266: N/A | CC266: N/A | CD266: N/A
BB267: DK/not sure/missing | BC267: N/A | BD267: N/A | BE267: N/A | BF267: N/A | BG267: N/A | BH267: N/A | BI267: N/A | BJ267: N/A | BK267: N/A | BL267: N/A | BM267: N/A | BN267: N/A | BO267: N/A | BP267: N/A | BQ267: N/A | BR267: N/A | BS267: N/A | BT267: N/A | BU267: N/A | BV267: N/A | BW267: N/A | BX267: N/A | BY267: N/A | BZ267: N/A | CA267: N/A | CB267: N/A | CC267: N/A | CD267: N/A
BA268: Use of menstrual materials with private place to wash and change | BB268: Materials reusable | BC268: N/A | BD268: N/A | BE268: N/A | BF268: N/A | BG268: N/A | BH268: N/A | BI268: N/A | BJ268: N/A | BK268: N/A | BL268: N/A | BM268: N/A | BN268: N/A | BO268: N/A | BP268: N/A | BQ268: N/A | BR268: N/A | BS268: N/A | BT268: N/A | BU268: N/A | BV268: N/A | BW268: N/A | BX268: N/A | BY268: N/A | BZ268: N/A | CA268: N/A | CB268: N/A | CC268: N/A | CD268: N/A
BB269: Materials not reusable | BC269: N/A | BD269: N/A | BE269: N/A | BF269: N/A | BG269: N/A | BH269: N/A | BI269: N/A | BJ269: N/A | BK269: N/A | BL269: N/A | BM269: N/A | BN269: N/A | BO269: N/A | BP269: N/A | BQ269: N/A | BR269: N/A | BS269: N/A | BT269: N/A | BU269: N/A | BV269: N/A | BW269: N/A | BX269: N/A | BY269: N/A | BZ269: N/A | CA269: N/A | CB269: N/A | CC269: N/A | CD269: N/A
BB270: No materials used | BC270: N/A | BD270: N/A | BE270: N/A | BF270: N/A | BG270: N/A | BH270: N/A | BI270: N/A | BJ270: N/A | BK270: N/A | BL270: N/A | BM270: N/A | BN270: N/A | BO270: N/A | BP270: N/A | BQ270: N/A | BR270: N/A | BS270: N/A | BT270: N/A | BU270: N/A | BV270: N/A | BW270: N/A | BX270: N/A | BY270: N/A | BZ270: N/A | CA270: N/A | CB270: N/A | CC270: N/A | CD270: N/A
BA271: Awareness of menstruation before menarche | BB271: Yes | BC271: N/A | BD271: N/A | BE271: N/A | BF271: N/A | BG271: N/A | BH271: N/A | BI271: N/A | BJ271: N/A | BK271: N/A | BL271: N/A | BM271: N/A | BN271: N/A | BO271: N/A | BP271: N/A | BQ271: N/A | BR271: N/A | BS271: N/A | BT271: N/A | BU271: N/A | BV271: N/A | BW271: N/A | BX271: N/A | BY271: N/A | BZ271: N/A | CA271: N/A | CB271: N/A | CC271: N/A | CD271: N/A
BB272: No | BC272: N/A | BD272: N/A | BE272: N/A | BF272: N/A | BG272: N/A | BH272: N/A | BI272: N/A | BJ272: N/A | BK272: N/A | BL272: N/A | BM272: N/A | BN272: N/A | BO272: N/A | BP272: N/A | BQ272: N/A | BR272: N/A | BS272: N/A | BT272: N/A | BU272: N/A | BV272: N/A | BW272: N/A | BX272: N/A | BY272: N/A | BZ272: N/A | CA272: N/A | CB272: N/A | CC272: N/A | CD272: N/A
BB273: DK/not sure/missing | BC273: N/A | BD273: N/A | BE273: N/A | BF273: N/A | BG273: N/A | BH273: N/A | BI273: N/A | BJ273: N/A | BK273: N/A | BL273: N/A | BM273: N/A | BN273: N/A | BO273: N/A | BP273: N/A | BQ273: N/A | BR273: N/A | BS273: N/A | BT273: N/A | BU273: N/A | BV273: N/A | BW273: N/A | BX273: N/A | BY273: N/A | BZ273: N/A | CA273: N/A | CB273: N/A | CC273: N/A | CD273: N/A
BA274: Participation in (all) activities during menstruation | BB274: Yes | BC274: N/A | BD274: N/A | BE274: N/A | BF274: N/A | BG274: N/A | BH274: N/A | BI274: N/A | BJ274: N/A | BK274: N/A | BL274: N/A | BM274: N/A | BN274: N/A | BO274: N/A | BP274: N/A | BQ274: N/A | BR274: N/A | BS274: N/A | BT274: N/A | BU274: N/A | BV274: N/A | BW274: N/A | BX274: N/A | BY274: N/A | BZ274: N/A | CA274: N/A | CB274: N/A | CC274: N/A | CD274: N/A
BB275: No | BC275: N/A | BD275: N/A | BE275: N/A | BF275: N/A | BG275: N/A | BH275: N/A | BI275: N/A | BJ275: N/A | BK275: N/A | BL275: N/A | BM275: N/A | BN275: N/A | BO275: N/A | BP275: N/A | BQ275: N/A | BR275: N/A | BS275: N/A | BT275: N/A | BU275: N/A | BV275: N/A | BW275: N/A | BX275: N/A | BY275: N/A | BZ275: N/A | CA275: N/A | CB275: N/A | CC275: N/A | CD275: N/A
BB276: DK/not sure/missing/no such activity | BC276: N/A | BD276: N/A | BE276: N/A | BF276: N/A | BG276: N/A | BH276: N/A | BI276: N/A | BJ276: N/A | BK276: N/A | BL276: N/A | BM276: N/A | BN276: N/A | BO276: N/A | BP276: N/A | BQ276: N/A | BR276: N/A | BS276: N/A | BT276: N/A | BU276: N/A | BV276: N/A | BW276: N/A | BX276: N/A | BY276: N/A | BZ276: N/A | CA276: N/A | CB276: N/A | CC276: N/A | CD276: N/A
BA277: Participation in specific activities during menstruation | BB277: Did not go to school (amongst those usually attending school) | BC277: N/A | BD277: N/A | BE277: N/A | BF277: N/A | BG277: N/A | BH277: N/A | BI277: N/A | BJ277: N/A | BK277: N/A | BL277: N/A | BM277: N/A | BN277: N/A | BO277: N/A | BP277: N/A | BQ277: N/A | BR277: N/A | BS277: N/A | BT277: N/A | BU277: N/A | BV277: N/A | BW277: N/A | BX277: N/A | BY277: N/A | BZ277: N/A | CA277: N/A | CB277: N/A | CC277: N/A | CD277: N/A
BB278: Did not go to work (amongst those who usually work) | BC278: N/A | BD278: N/A | BE278: N/A | BF278: N/A | BG278: N/A | BH278: N/A | BI278: N/A | BJ278: N/A | BK278: N/A | BL278: N/A | BM278: N/A | BN278: N/A | BO278: N/A | BP278: N/A | BQ278: N/A | BR278: N/A | BS278: N/A | BT278: N/A | BU278: N/A | BV278: N/A | BW278: N/A | BX278: N/A | BY278: N/A | BZ278: N/A | CA278: N/A | CB278: N/A | CC278: N/A | CD278: N/A
BB279: Did not participate in social activities | BC279: N/A | BD279: N/A | BE279: N/A | BF279: N/A | BG279: N/A | BH279: N/A | BI279: N/A | BJ279: N/A | BK279: N/A | BL279: N/A | BM279: N/A | BN279: N/A | BO279: N/A | BP279: N/A | BQ279: N/A | BR279: N/A | BS279: N/A | BT279: N/A | BU279: N/A | BV279: N/A | BW279: N/A | BX279: N/A | BY279: N/A | BZ279: N/A | CA279: N/A | CB279: N/A | CC279: N/A | CD279: N/A
BB280: Did not cook food | BC280: N/A | BD280: N/A | BE280: N/A | BF280: N/A | BG280: N/A | BH280: N/A | BI280: N/A | BJ280: N/A | BK280: N/A | BL280: N/A | BM280: N/A | BN280: N/A | BO280: N/A | BP280: N/A | BQ280: N/A | BR280: N/A | BS280: N/A | BT280: N/A | BU280: N/A | BV280: N/A | BW280: N/A | BX280: N/A | BY280: N/A | BZ280: N/A | CA280: N/A | CB280: N/A | CC280: N/A | CD280: N/A
BB281: Did not eat with others | BC281: N/A | BD281: N/A | BE281: N/A | BF281: N/A | BG281: N/A | BH281: N/A | BI281: N/A | BJ281: N/A | BK281: N/A | BL281: N/A | BM281: N/A | BN281: N/A | BO281: N/A | BP281: N/A | BQ281: N/A | BR281: N/A | BS281: N/A | BT281: N/A | BU281: N/A | BV281: N/A | BW281: N/A | BX281: N/A | BY281: N/A | BZ281: N/A | CA281: N/A | CB281: N/A | CC281: N/A | CD281: N/A
BB282: Did not bathe in regular place | BC282: N/A | BD282: N/A | BE282: N/A | BF282: N/A | BG282: N/A | BH282: N/A | BI282: N/A | BJ282: N/A | BK282: N/A | BL282: N/A | BM282: N/A | BN282: N/A | BO282: N/A | BP282: N/A | BQ282: N/A | BR282: N/A | BS282: N/A | BT282: N/A | BU282: N/A | BV282: N/A | BW282: N/A | BX282: N/A | BY282: N/A | BZ282: N/A | CA282: N/A | CB282: N/A | CC282: N/A | CD282: N/A
BB283: Did not participate in other activities | BC283: N/A | BD283: N/A | BE283: N/A | BF283: N/A | BG283: N/A | BH283: N/A | BI283: N/A | BJ283: N/A | BK283: N/A | BL283: N/A | BM283: N/A | BN283: N/A | BO283: N/A | BP283: N/A | BQ283: N/A | BR283: N/A | BS283: N/A | BT283: N/A | BU283: N/A | BV283: N/A | BW283: N/A | BX283: N/A | BY283: N/A | BZ283: N/A | CA283: N/A | CB283: N/A | CC283: N/A | CD283: N/A
BB284: DK/not sure/missing/no such activity | BC284: N/A | BD284: N/A | BE284: N/A | BF284: N/A | BG284: N/A | BH284: N/A | BI284: N/A | BJ284: N/A | BK284: N/A | BL284: N/A | BM284: N/A | BN284: N/A | BO284: N/A | BP284: N/A | BQ284: N/A | BR284: N/A | BS284: N/A | BT284: N/A | BU284: N/A | BV284: N/A | BW284: N/A | BX284: N/A | BY284: N/A | BZ284: N/A | CA284: N/A | CB284: N/A | CC284: N/A | CD284: N/A
BA339: Raw numbers of respondents: | BB339: Basic water, sanitation and hygiene | BC339: NATIONAL wealth index quintile | BH339: URBAN wealth index quintile | BM339: RURAL wealth index quintile | BR339: SUB-REGIONS:
BA340: WatSan data, raw numbers (weighted) | BC340: Poorest | BD340: Poor | BE340: Middle | BF340: Rich | BG340: Richest | BH340: Poorest | BI340: Poor | BJ340: Middle | BK340: Rich | BL340: Richest | BM340: Poorest | BN340: Poor | BO340: Middle | BP340: Rich | BQ340: Richest | BR340: Adrar | BS340: Assaba | BT340: Brakna | BU340: Gorgol | BV340: Guidimagha | BW340: Hodh ECharghi | BX340: Hodh ELGharbi | BY340: Inchiri | BZ340: Nouadhibou | CA340: Nouakchott | CB340: Tagant | CC340: Tiris Zemmour | CD340: Trarza
BA341: Use of Basic Water Sanitation and Hygiene | BB341: Yes | BC341: N/A | BD341: N/A | BE341: N/A | BF341: N/A | BG341: N/A | BH341: N/A | BI341: N/A | BJ341: N/A | BK341: N/A | BL341: N/A | BM341: N/A | BN341: N/A | BO341: N/A | BP341: N/A | BQ341: N/A | BR341: N/A | BS341: N/A | BT341: N/A | BU341: N/A | BV341: N/A | BW341: N/A | BX341: N/A | BY341: N/A | BZ341: N/A | CA341: N/A | CB341: N/A | CC341: N/A | CD341: N/A
BB342: No | BC342: N/A | BD342: N/A | BE342: N/A | BF342: N/A | BG342: N/A | BH342: N/A | BI342: N/A | BJ342: N/A | BK342: N/A | BL342: N/A | BM342: N/A | BN342: N/A | BO342: N/A | BP342: N/A | BQ342: N/A | BR342: N/A | BS342: N/A | BT342: N/A | BU342: N/A | BV342: N/A | BW342: N/A | BX342: N/A | BY342: N/A | BZ342: N/A | CA342: N/A | CB342: N/A | CC342: N/A | CD342: N/A
BA343: Use of Basic Water and Sanitation | BB343: Yes | BC343: N/A | BD343: N/A | BE343: N/A | BF343: N/A | BG343: N/A | BH343: N/A | BI343: N/A | BJ343: N/A | BK343: N/A | BL343: N/A | BM343: N/A | BN343: N/A | BO343: N/A | BP343: N/A | BQ343: N/A | BR343: N/A | BS343: N/A | BT343: N/A | BU343: N/A | BV343: N/A | BW343: N/A | BX343: N/A | BY343: N/A | BZ343: N/A | CA343: N/A | CB343: N/A | CC343: N/A | CD343: N/A
BB344: No | BC344: N/A | BD344: N/A | BE344: N/A | BF344: N/A | BG344: N/A | BH344: N/A | BI344: N/A | BJ344: N/A | BK344: N/A | BL344: N/A | BM344: N/A | BN344: N/A | BO344: N/A | BP344: N/A | BQ344: N/A | BR344: N/A | BS344: N/A | BT344: N/A | BU344: N/A | BV344: N/A | BW344: N/A | BX344: N/A | BY344: N/A | BZ344: N/A | CA344: N/A | CB344: N/A | CC344: N/A | CD344: N/A
BA345: Use of Basic Water and Hygiene | BB345: Yes | BC345: N/A | BD345: N/A | BE345: N/A | BF345: N/A | BG345: N/A | BH345: N/A | BI345: N/A | BJ345: N/A | BK345: N/A | BL345: N/A | BM345: N/A | BN345: N/A | BO345: N/A | BP345: N/A | BQ345: N/A | BR345: N/A | BS345: N/A | BT345: N/A | BU345: N/A | BV345: N/A | BW345: N/A | BX345: N/A | BY345: N/A | BZ345: N/A | CA345: N/A | CB345: N/A | CC345: N/A | CD345: N/A
BB346: No | BC346: N/A | BD346: N/A | BE346: N/A | BF346: N/A | BG346: N/A | BH346: N/A | BI346: N/A | BJ346: N/A | BK346: N/A | BL346: N/A | BM346: N/A | BN346: N/A | BO346: N/A | BP346: N/A | BQ346: N/A | BR346: N/A | BS346: N/A | BT346: N/A | BU346: N/A | BV346: N/A | BW346: N/A | BX346: N/A | BY346: N/A | BZ346: N/A | CA346: N/A | CB346: N/A | CC346: N/A | CD346: N/A
BA347: Use of Basic Sanitation and Hygiene | BB347: Yes | BC347: N/A | BD347: N/A | BE347: N/A | BF347: N/A | BG347: N/A | BH347: N/A | BI347: N/A | BJ347: N/A | BK347: N/A | BL347: N/A | BM347: N/A | BN347: N/A | BO347: N/A | BP347: N/A | BQ347: N/A | BR347: N/A | BS347: N/A | BT347: N/A | BU347: N/A | BV347: N/A | BW347: N/A | BX347: N/A | BY347: N/A | BZ347: N/A | CA347: N/A | CB347: N/A | CC347: N/A | CD347: N/A
BB348: No | BC348: N/A | BD348: N/A | BE348: N/A | BF348: N/A | BG348: N/A | BH348: N/A | BI348: N/A | BJ348: N/A | BK348: N/A | BL348: N/A | BM348: N/A | BN348: N/A | BO348: N/A | BP348: N/A | BQ348: N/A | BR348: N/A | BS348: N/A | BT348: N/A | BU348: N/A | BV348: N/A | BW348: N/A | BX348: N/A | BY348: N/A | BZ348: N/A | CA348: N/A | CB348: N/A | CC348: N/A | CD348: N/A
BA349: Use of Basic Water | BB349: Yes | BC349: N/A | BD349: N/A | BE349: N/A | BF349: N/A | BG349: N/A | BH349: N/A | BI349: N/A | BJ349: N/A | BK349: N/A | BL349: N/A | BM349: N/A | BN349: N/A | BO349: N/A | BP349: N/A | BQ349: N/A | BR349: N/A | BS349: N/A | BT349: N/A | BU349: N/A | BV349: N/A | BW349: N/A | BX349: N/A | BY349: N/A | BZ349: N/A | CA349: N/A | CB349: N/A | CC349: N/A | CD349: N/A
BB350: No | BC350: N/A | BD350: N/A | BE350: N/A | BF350: N/A | BG350: N/A | BH350: N/A | BI350: N/A | BJ350: N/A | BK350: N/A | BL350: N/A | BM350: N/A | BN350: N/A | BO350: N/A | BP350: N/A | BQ350: N/A | BR350: N/A | BS350: N/A | BT350: N/A | BU350: N/A | BV350: N/A | BW350: N/A | BX350: N/A | BY350: N/A | BZ350: N/A | CA350: N/A | CB350: N/A | CC350: N/A | CD350: N/A
BA351: Use of Basic Sanitation | BB351: Yes | BC351: N/A | BD351: N/A | BE351: N/A | BF351: N/A | BG351: N/A | BH351: N/A | BI351: N/A | BJ351: N/A | BK351: N/A | BL351: N/A | BM351: N/A | BN351: N/A | BO351: N/A | BP351: N/A | BQ351: N/A | BR351: N/A | BS351: N/A | BT351: N/A | BU351: N/A | BV351: N/A | BW351: N/A | BX351: N/A | BY351: N/A | BZ351: N/A | CA351: N/A | CB351: N/A | CC351: N/A | CD351: N/A
BB352: No | BC352: N/A | BD352: N/A | BE352: N/A | BF352: N/A | BG352: N/A | BH352: N/A | BI352: N/A | BJ352: N/A | BK352: N/A | BL352: N/A | BM352: N/A | BN352: N/A | BO352: N/A | BP352: N/A | BQ352: N/A | BR352: N/A | BS352: N/A | BT352: N/A | BU352: N/A | BV352: N/A | BW352: N/A | BX352: N/A | BY352: N/A | BZ352: N/A | CA352: N/A | CB352: N/A | CC352: N/A | CD352: N/A
BA353: Access to Basic Hygiene | BB353: Yes | BC353: N/A | BD353: N/A | BE353: N/A | BF353: N/A | BG353: N/A | BH353: N/A | BI353: N/A | BJ353: N/A | BK353: N/A | BL353: N/A | BM353: N/A | BN353: N/A | BO353: N/A | BP353: N/A | BQ353: N/A | BR353: N/A | BS353: N/A | BT353: N/A | BU353: N/A | BV353: N/A | BW353: N/A | BX353: N/A | BY353: N/A | BZ353: N/A | CA353: N/A | CB353: N/A | CC353: N/A | CD353: N/A
BB354: No | BC354: N/A | BD354: N/A | BE354: N/A | BF354: N/A | BG354: N/A | BH354: N/A | BI354: N/A | BJ354: N/A | BK354: N/A | BL354: N/A | BM354: N/A | BN354: N/A | BO354: N/A | BP354: N/A | BQ354: N/A | BR354: N/A | BS354: N/A | BT354: N/A | BU354: N/A | BV354: N/A | BW354: N/A | BX354: N/A | BY354: N/A | BZ354: N/A | CA354: N/A | CB354: N/A | CC354: N/A | CD354: N/A
C399: INITIAL (national) Wealth Index | H399: URBAN Wealth Index | M399: RURAL Wealth Index
C400: Component Matrix | H400: Component Matrix | M400: Component Matrix
E401: Component | J401: Component | O401: Component
B402: Note: The INITIAL (national) Wealth Index is based on the first component of the Principal Component Analysis (PCA) which has been obtained at national level. The final national-level (NATIONAL) Wealth Index is based on the URBAN and RURAL specific wealth indexes. Regression procedures are used to establish the relationships between the two sets of scores (urban and rural) and the initial (national) wealth factors. This allows best use of the available information for each area and a better precision of the FINAL (NATIONAL) Wealth Index. For dependency reasons, all WASH variables (contained in the generic MICS and DHS scripts) have been excluded from the sets of asset variables used in the PCAs. The PCA can extracts as many components as there are asset variables in the input. Only the first of the components is used to represent the Wealth Index. The scores represent the weights of the asset variables on the Wealth Index (correlations between the variables and the component). The communalities are the proportion of each variable's variance that can be explained by the component. Proportion of explained variance is the part of the model's total variance that is explained by the component. For more information on the procedure used: The DHS Wealth Index, DHS Comparative Reports No. 6, Shea Oscar Rutstein, Kiersten Johnson, ORC Macro International Inc., 2004. The DHS Wealth Index: Approaches for Rural and Urban Areas, Shea O. Rutstein, ORC Macro International Inc., 2008. MICS Methodological Paper No. 4, Review of options for reporting water, sanitation and hygiene coverage by wealth quintile, UNICEF, 2016. | E402: 1 | J402: 1 | O402: 1
C403: wall8 | E403: 0.7850988904 | H403: wall8 | J403: 0.6740255007 | M403: Household cooks at open sky | O403: -0.6101936071
C404: Household member owns: asset2a | E404: 0.7797368976 | H404: Household member owns: asset2a | J404: 0.6183387924 | M404: floor4 | O404: 0.5886843606
C405: Household member owns: asset2c | E405: 0.7380715002 | H405: roof8 | J405: 0.5946316136 | M405: fuel2 | O405: 0.5882026212
C406: Household cooks at open sky | E406: -0.7179960982 | H406: Household member owns: asset2c | J406: 0.5845357341 | M406: fuel3 | O406: 0.5882026212
C407: floor1 | E407: -0.6782749118 | H407: Household member owns: asset2f | J407: 0.5641328347 | M407: fuel1 | O407: 0.5882026212
C408: Household cooks outside house | E408: -0.6660840182 | H408: floor1 | J408: -0.5448080726 | M408: fuel4 | O408: 0.5882026212
C409: Household member owns: asset2d | E409: 0.6341954414 | H409: Household cooks outside house | J409: -0.4980020335 | M409: Household cooks in other house | O409: 0.5459367449
C410: roof8 | E410: 0.6246681082 | H410: wall3 | J410: -0.439581653 | M410: Household cooks outside house | O410: -0.5410748901
C411: Household member owns: asset2f | E411: 0.6037826435 | H411: Household cooks at open sky | J411: -0.4278035448 | M411: wall8 | O411: 0.536525879
C412: floor4 | E412: 0.5785593799 | H412: fuel1 | J412: 0.4273697093 | M412: floor1 | O412: -0.5277083214
C413: Household cooks in other house | E413: 0.5154723828 | H413: fuel3 | J413: 0.4273697093 | M413: Household member owns: asset2a | O413: 0.4783171465
C414: wall3 | E414: -0.448460996 | H414: fuel2 | J414: 0.4273697093 | M414: roof5 | O414: 0.4555905501
... 187 more rows

Sheet MICS11
A2: =A1026 -> Mauritania
A3: =A1034 -> 2011
A4: Use of drinking water sources
A5: by wealth quintile and sub-national region
A6: Notes:
A7: WHO/UNICEF JMP customised wealth index excludes water,
A8: sanitation and hygiene assets.
A9: Survey used for analysis: | B9: =A1025 -> MICS11
A10: =B1028 -> 
A11: =B1027 -> 
A14: Use of drinking water sources | C14: NATIONAL wealth index quintile | H14: URBAN wealth index quintile | M14: RURAL wealth index quintile | R14: SUB-REGIONS: | BA14: Raw numbers of respondents: | BB14: Use of drinking water sources | BC14: NATIONAL wealth index quintile | BH14: URBAN wealth index quintile | BM14: RURAL wealth index quintile | BR14: SUB-REGIONS:
A15: Weighted percentage (used in graphs) | C15: Poorest | D15: Poor | E15: Middle | F15: Rich | G15: Richest | H15: Poorest | I15: Poor | J15: Middle | K15: Rich | L15: Richest | M15: Poorest | N15: Poor | O15: Middle | P15: Rich | Q15: Richest | R15: Adrar | S15: Assaba | T15: Brakna | U15: Dakhlett Nouadibou | V15: Gorgol | W15: Guidimagha | X15: Hodh charghy | Y15: Hodh Gharby | Z15: Nouakchott | AA15: Tagant | AB15: Tirs-ezemour | AC15: Trarza | BA15: Water data, raw numbers (weighted) | BC15: Poorest | BD15: Poor | BE15: Middle | BF15: Rich | BG15: Richest | BH15: Poorest | BI15: Poor | BJ15: Middle | BK15: Rich | BL15: Richest | BM15: Poorest | BN15: Poor | BO15: Middle | BP15: Rich | BQ15: Richest | BR15: Adrar | BS15: Assaba | BT15: Brakna | BU15: Dakhlett Nouadibou | BV15: Gorgol | BW15: Guidimagha | BX15: Hodh charghy | BY15: Hodh Gharby | BZ15: Nouakchott | CA15: Tagant | CB15: Tirs-ezemour | CC15: Trarza
A16: Water | B16: Improved | C16: 42.92334646 | D16: 52.2059479 | E16: 75.77835355 | F16: 95.74046174 | G16: 99.27887621 | H16: 90.37401383 | I16: 98.11776528 | J16: 99.38063897 | K16: 99.84437112 | L16: 99.98424793 | M16: 40.01537094 | N16: 41.00982601 | O16: 48.31998474 | P16: 61.59870673 | Q16: 85.21854096 | R16: 73.12066017 | S16: 69.5835535 | T16: 72.81078795 | U16: 99.29489173 | V16: 56.45761692 | W16: 36.8592513 | X16: 56.96955599 | Y16: 37.01836994 | Z16: 99.56145395 | AA16: 54.34885053 | AB16: 99.77563482 | AC16: 88.39179519 | BA16: Water | BB16: Improved | BC16: N/A | BD16: N/A | BE16: N/A | BF16: N/A | BG16: N/A | BH16: N/A | BI16: N/A | BJ16: N/A | BK16: N/A | BL16: N/A | BM16: N/A | BN16: N/A | BO16: N/A | BP16: N/A | BQ16: N/A | BR16: N/A | BS16: N/A | BT16: N/A | BU16: N/A | BV16: N/A | BW16: N/A | BX16: N/A | BY16: N/A | BZ16: N/A | CA16: N/A | CB16: N/A | CC16: N/A
B17: Not Improved | C17: 57.07665354 | D17: 47.7940521 | E17: 24.22164645 | F17: 4.259538264 | G17: 0.7211237888 | H17: 9.62598617 | I17: 1.882234715 | J17: 0.6193610312 | K17: 0.1556288799 | L17: 0.01575206774 | M17: 59.98462906 | N17: 58.99017399 | O17: 51.68001526 | P17: 38.40129327 | Q17: 14.78145904 | R17: 26.87933983 | S17: 30.4164465 | T17: 27.18921205 | U17: 0.7051082705 | V17: 43.54238308 | W17: 63.1407487 | X17: 43.03044401 | Y17: 62.98163006 | Z17: 0.4385460547 | AA17: 45.65114947 | AB17: 0.2243651777 | AC17: 11.60820481 | BB17: Not Improved | BC17: N/A | BD17: N/A | BE17: N/A | BF17: N/A | BG17: N/A | BH17: N/A | BI17: N/A | BJ17: N/A | BK17: N/A | BL17: N/A | BM17: N/A | BN17: N/A | BO17: N/A | BP17: N/A | BQ17: N/A | BR17: N/A | BS17: N/A | BT17: N/A | BU17: N/A | BV17: N/A | BW17: N/A | BX17: N/A | BY17: N/A | BZ17: N/A | CA17: N/A | CB17: N/A | CC17: N/A
A18: Water ladder | B18: Basic | C18: =C16*C23/100 -> 24.41195044 | D18: =D16*D23/100 -> 39.09663247 | E18: =E16*E23/100 -> 63.15634471 | F18: 83.15877032 | G18: 91.2522108 | H18: 67.54586453 | I18: 81.51709316 | J18: 86.22102188 | K18: 89.03765261 | L18: 94.3113302 | M18: 19.66496832 | N18: 28.21758359 | O18: 36.03939441 | P18: 52.28326169 | Q18: 76.80333718 | R18: 53.02344657 | S18: 43.7615894 | T18: 61.82851675 | U18: 96.72596094 | V18: 43.290895 | W18: 29.10277321 | X18: 45.76137033 | Y18: 30.30882047 | Z18: 87.37923739 | AA18: 50.23055952 | AB18: 32.8747152 | AC18: 82.21558515 | BA18: Water ladder | BB18: Basic | BC18: N/A | BD18: N/A | BE18: N/A | BF18: N/A | BG18: N/A | BH18: N/A | BI18: N/A | BJ18: N/A | BK18: N/A | BL18: N/A | BM18: N/A | BN18: N/A | BO18: N/A | BP18: N/A | BQ18: N/A | BR18: N/A | BS18: N/A | BT18: N/A | BU18: N/A | BV18: N/A | BW18: N/A | BX18: N/A | BY18: N/A | BZ18: N/A | CA18: N/A | CB18: N/A | CC18: N/A
B19: Limited | C19: =C16*C22/100 -> 18.51139602 | D19: =D16*D22/100 -> 13.10931543 | E19: =E16*E22/100 -> 12.62200884 | F19: 12.58169142 | G19: 8.026665409 | H19: 22.8281493 | I19: 16.60067212 | J19: 13.15961709 | K19: 10.80671851 | L19: 5.672917737 | M19: 20.35040262 | N19: 12.79224242 | O19: 12.28059033 | P19: 9.315445039 | Q19: 8.415203775 | R19: 20.09721361 | S19: 25.8219641 | T19: 10.9822712 | U19: 2.568930792 | V19: 13.16672192 | W19: 7.756478087 | X19: 11.20818566 | Y19: 6.709549468 | Z19: 12.18221656 | AA19: 4.118291009 | AB19: 66.90091962 | AC19: 6.176210039 | BB19: Limited | BC19: N/A | BD19: N/A | BE19: N/A | BF19: N/A | BG19: N/A | BH19: N/A | BI19: N/A | BJ19: N/A | BK19: N/A | BL19: N/A | BM19: N/A | BN19: N/A | BO19: N/A | BP19: N/A | BQ19: N/A | BR19: N/A | BS19: N/A | BT19: N/A | BU19: N/A | BV19: N/A | BW19: N/A | BX19: N/A | BY19: N/A | BZ19: N/A | CA19: N/A | CB19: N/A | CC19: N/A
B20: Unimproved | C20: =100-C18-C19-C21 -> 54.38006597 | D20: =100-D18-D19-D21 -> 44.93241452 | E20: =100-E18-E19-E21 -> 23.16175618 | F20: 4.242915622 | G20: 0.7211237888 | H20: 9.62598617 | I20: 1.882234715 | J20: 0.6193610312 | K20: 0.1556288799 | L20: 0.01575206774 | M20: 56.94813796 | N20: 55.47466002 | O20: 48.96180333 | P20: 36.53843262 | Q20: 14.6630006 | R20: 26.77971882 | S20: 29.99745603 | T20: 25.06580706 | U20: 0.7051082705 | V20: 40.59054342 | W20: 57.63751638 | X20: 43.03044401 | Y20: 62.79384553 | Z20: 0.4385460547 | AA20: 42.2353298 | AB20: 0.2243651777 | AC20: 8.24286984 | BB20: Unimproved | BC20: N/A | BD20: N/A | BE20: N/A | BF20: N/A | BG20: N/A | BH20: N/A | BI20: N/A | BJ20: N/A | BK20: N/A | BL20: N/A | BM20: N/A | BN20: N/A | BO20: N/A | BP20: N/A | BQ20: N/A | BR20: N/A | BS20: N/A | BT20: N/A | BU20: N/A | BV20: N/A | BW20: N/A | BX20: N/A | BY20: N/A | BZ20: N/A | CA20: N/A | CB20: N/A | CC20: N/A
B21: Surface water | C21: 2.696587575 | D21: 2.861637581 | E21: 1.059890266 | F21: 0.01662264171 | G21: 0 | H21: 0 | I21: 0 | J21: 0 | K21: 0 | L21: 0 | M21: 3.036491096 | N21: 3.515513976 | O21: 2.718211927 | P21: 1.862860648 | Q21: 0.118458445 | R21: 0.09962100244 | S21: 0.4189904723 | T21: 2.123404993 | U21: 0 | V21: 2.951839664 | W21: 5.503232324 | X21: 0 | Y21: 0.1877845305 | Z21: 0 | AA21: 3.415819662 | AB21: 0 | AC21: 3.365334975 | BB21: Surface water | BC21: N/A | BD21: N/A | BE21: N/A | BF21: N/A | BG21: N/A | BH21: N/A | BI21: N/A | BJ21: N/A | BK21: N/A | BL21: N/A | BM21: N/A | BN21: N/A | BO21: N/A | BP21: N/A | BQ21: N/A | BR21: N/A | BS21: N/A | BT21: N/A | BU21: N/A | BV21: N/A | BW21: N/A | BX21: N/A | BY21: N/A | BZ21: N/A | CA21: N/A | CB21: N/A | CC21: N/A
A22: Improved water point at more than 30 minutes | B22: Yes | C22: 43.12663748 | D22: 25.11076986 | E22: 16.65648335 | F22: 13.1414568 | G22: 8.084968037 | H22: 25.25963862 | I22: 16.91912986 | J22: 13.24163059 | K22: 10.8235631 | L22: 5.67381148 | M22: 50.85646376 | N22: 31.19311557 | O22: 25.41513702 | P22: 15.12279321 | Q22: 9.874850802 | R22: 27.48500022 | S22: 37.10929207 | T22: 15.08330223 | U22: 2.587173164 | V22: 23.321427 | W22: 21.04350418 | X22: 19.6739916 | Y22: 18.12491873 | Z22: 12.23587651 | AA22: 7.577512623 | AB22: 67.05135952 | AC22: 6.987311465 | BA22: Improved water point at more than 30 minutes | BB22: Yes | BC22: N/A | BD22: N/A | BE22: N/A | BF22: N/A | BG22: N/A | BH22: N/A | BI22: N/A | BJ22: N/A | BK22: N/A | BL22: N/A | BM22: N/A | BN22: N/A | BO22: N/A | BP22: N/A | BQ22: N/A | BR22: N/A | BS22: N/A | BT22: N/A | BU22: N/A | BV22: N/A | BW22: N/A | BX22: N/A | BY22: N/A | BZ22: N/A | CA22: N/A | CB22: N/A | CC22: N/A
B23: No | C23: 56.87336252 | D23: 74.88923014 | E23: 83.34351665 | F23: 86.8585432 | G23: 91.91503196 | H23: 74.74036138 | I23: 83.08087014 | J23: 86.75836941 | K23: 89.1764369 | L23: 94.32618852 | M23: 49.14353624 | N23: 68.80688443 | O23: 74.58486298 | P23: 84.87720679 | Q23: 90.1251492 | R23: 72.51499978 | S23: 62.89070793 | T23: 84.91669777 | U23: 97.41282684 | V23: 76.678573 | W23: 78.95649582 | X23: 80.3260084 | Y23: 81.87508127 | Z23: 87.76412349 | AA23: 92.42248738 | AB23: 32.94864048 | AC23: 93.01268853 | BB23: No | BC23: N/A | BD23: N/A | BE23: N/A | BF23: N/A | BG23: N/A | BH23: N/A | BI23: N/A | BJ23: N/A | BK23: N/A | BL23: N/A | BM23: N/A | BN23: N/A | BO23: N/A | BP23: N/A | BQ23: N/A | BR23: N/A | BS23: N/A | BT23: N/A | BU23: N/A | BV23: N/A | BW23: N/A | BX23: N/A | BY23: N/A | BZ23: N/A | CA23: N/A | CB23: N/A | CC23: N/A
A24: Manually calculated ratios | B24: Improved wells
B25: Improved springs
B26: Other
C27: NATIONAL wealth index quintile | H27: URBAN wealth index quintile | M27: RURAL wealth index quintile | R27: SUB-REGIONS: | BA27: Raw numbers of respondents: | BB27: Use of drinking water sources | BC27: NATIONAL wealth index quintile | BH27: URBAN wealth index quintile | BM27: RURAL wealth index quintile | BR27: SUB-REGIONS:
A28: Percentage based on weighted population | C28: Poorest | D28: Poor | E28: Middle | F28: Rich | G28: Richest | H28: Poorest | I28: Poor | J28: Middle | K28: Rich | L28: Richest | M28: Poorest | N28: Poor | O28: Middle | P28: Rich | Q28: Richest | R28: Adrar | S28: Assaba | T28: Brakna | U28: Dakhlett Nouadibou | V28: Gorgol | W28: Guidimagha | X28: Hodh charghy | Y28: Hodh Gharby | Z28: Nouakchott | AA28: Tagant | AB28: Tirs-ezemour | AC28: Trarza | BA28: Water data, raw numbers (weighted) | BC28: Poorest | BD28: Poor | BE28: Middle | BF28: Rich | BG28: Richest | BH28: Poorest | BI28: Poor | BJ28: Middle | BK28: Rich | BL28: Richest | BM28: Poorest | BN28: Poor | BO28: Middle | BP28: Rich | BQ28: Richest | BR28: Adrar | BS28: Assaba | BT28: Brakna | BU28: Dakhlett Nouadibou | BV28: Gorgol | BW28: Guidimagha | BX28: Hodh charghy | BY28: Hodh Gharby | BZ28: Nouakchott | CA28: Tagant | CB28: Tirs-ezemour | CC28: Trarza
A29: Piped water | B29: Yes | C29: 14.37086019 | D29: 25.91296823 | E29: 50.63068369 | F29: 56.2157868 | G29: 68.96590977 | H29: 53.03920075 | I29: 48.54296856 | J29: 50.09579374 | K29: 60.10937752 | L29: 78.41345524 | M29: 9.532420531 | N29: 14.60955293 | O29: 24.10416495 | P29: 42.07827669 | Q29: 71.16348281 | R29: 48.14107254 | S29: 38.17209695 | T29: 55.81613 | U29: 95.5036783 | V29: 24.94240287 | W29: 23.34232791 | X29: 30.56391586 | Y29: 18.26487489 | Z29: 45.59972466 | AA29: 44.08437716 | AB29: 35.33068615 | AC29: 78.80209978 | BA29: Piped water | BB29: Yes | BC29: N/A | BD29: N/A | BE29: N/A | BF29: N/A | BG29: N/A | BH29: N/A | BI29: N/A | BJ29: N/A | BK29: N/A | BL29: N/A | BM29: N/A | BN29: N/A | BO29: N/A | BP29: N/A | BQ29: N/A | BR29: N/A | BS29: N/A | BT29: N/A | BU29: N/A | BV29: N/A | BW29: N/A | BX29: N/A | BY29: N/A | BZ29: N/A | CA29: N/A | CB29: N/A | CC29: N/A
B30: No | C30: 85.62913981 | D30: 74.08703177 | E30: 49.36931631 | F30: 43.7842132 | G30: 31.03409023 | H30: 46.96079925 | I30: 51.45703144 | J30: 49.90420626 | K30: 39.89062248 | L30: 21.58654476 | M30: 90.46757947 | N30: 85.39044707 | O30: 75.89583505 | P30: 57.92172331 | Q30: 28.83651719 | R30: 51.85892746 | S30: 61.82790305 | T30: 44.18387 | U30: 4.4963217 | V30: 75.05759713 | W30: 76.65767209 | X30: 69.43608414 | Y30: 81.73512511 | Z30: 54.40027534 | AA30: 55.91562284 | AB30: 64.66931385 | AC30: 21.19790022 | BB30: No | BC30: N/A | BD30: N/A | BE30: N/A | BF30: N/A | BG30: N/A | BH30: N/A | BI30: N/A | BJ30: N/A | BK30: N/A | BL30: N/A | BM30: N/A | BN30: N/A | BO30: N/A | BP30: N/A | BQ30: N/A | BR30: N/A | BS30: N/A | BT30: N/A | BU30: N/A | BV30: N/A | BW30: N/A | BX30: N/A | BY30: N/A | BZ30: N/A | CA30: N/A | CB30: N/A | CC30: N/A
A31: Piped water on premises | B31: Yes | C31: 5.268276986 | D31: 16.05872088 | E31: 35.64556961 | F31: 38.87197858 | G31: 57.09068832 | H31: 21.01066479 | I31: 26.40015031 | J31: 32.48056389 | K31: 43.56310071 | L31: 71.90897621 | M31: 3.164270186 | N31: 7.744538878 | O31: 15.95096605 | P31: 33.55278924 | Q31: 61.26866634 | R31: 40.13588479 | S31: 30.6888233 | T31: 43.17761809 | U31: 69.41489018 | V31: 18.05405938 | W31: 8.897047583 | X31: 18.77969967 | Y31: 13.83835489 | Z31: 27.63590917 | AA31: 37.28014549 | AB31: 23.84735345 | AC31: 64.90312274 | BA31: Piped water on premises | BB31: Yes | BC31: N/A | BD31: N/A | BE31: N/A | BF31: N/A | BG31: N/A | BH31: N/A | BI31: N/A | BJ31: N/A | BK31: N/A | BL31: N/A | BM31: N/A | BN31: N/A | BO31: N/A | BP31: N/A | BQ31: N/A | BR31: N/A | BS31: N/A | BT31: N/A | BU31: N/A | BV31: N/A | BW31: N/A | BX31: N/A | BY31: N/A | BZ31: N/A | CA31: N/A | CB31: N/A | CC31: N/A
B32: No | C32: 94.73172301 | D32: 83.94127912 | E32: 64.35443039 | F32: 61.12802142 | G32: 42.90931168 | H32: 78.98933521 | I32: 73.59984969 | J32: 67.51943611 | K32: 56.43689929 | L32: 28.09102379 | M32: 96.83572981 | N32: 92.25546112 | O32: 84.04903395 | P32: 66.44721076 | Q32: 38.73133366 | R32: 59.86411521 | S32: 69.3111767 | T32: 56.82238191 | U32: 30.58510982 | V32: 81.94594062 | W32: 91.10295242 | X32: 81.22030033 | Y32: 86.16164511 | Z32: 72.36409083 | AA32: 62.71985451 | AB32: 76.15264655 | AC32: 35.09687726 | BB32: No | BC32: N/A | BD32: N/A | BE32: N/A | BF32: N/A | BG32: N/A | BH32: N/A | BI32: N/A | BJ32: N/A | BK32: N/A | BL32: N/A | BM32: N/A | BN32: N/A | BO32: N/A | BP32: N/A | BQ32: N/A | BR32: N/A | BS32: N/A | BT32: N/A | BU32: N/A | BV32: N/A | BW32: N/A | BX32: N/A | BY32: N/A | BZ32: N/A | CA32: N/A | CB32: N/A | CC32: N/A
A33: Piped water into dwelling | B33: Yes | C33: N/A | D33: N/A | E33: N/A | F33: N/A | G33: N/A | H33: N/A | I33: N/A | J33: N/A | K33: N/A | L33: N/A | M33: N/A | N33: N/A | O33: N/A | P33: N/A | Q33: N/A | R33: N/A | S33: N/A | T33: N/A | U33: N/A | V33: N/A | W33: N/A | X33: N/A | Y33: N/A | Z33: N/A | AA33: N/A | AB33: N/A | AC33: N/A | BA33: Piped water into dwelling | BB33: Yes | BC33: N/A | BD33: N/A | BE33: N/A | BF33: N/A | BG33: N/A | BH33: N/A | BI33: N/A | BJ33: N/A | BK33: N/A | BL33: N/A | BM33: N/A | BN33: N/A | BO33: N/A | BP33: N/A | BQ33: N/A | BR33: N/A | BS33: N/A | BT33: N/A | BU33: N/A | BV33: N/A | BW33: N/A | BX33: N/A | BY33: N/A | BZ33: N/A | CA33: N/A | CB33: N/A | CC33: N/A
B34: No | C34: N/A | D34: N/A | E34: N/A | F34: N/A | G34: N/A | H34: N/A | I34: N/A | J34: N/A | K34: N/A | L34: N/A | M34: N/A | N34: N/A | O34: N/A | P34: N/A | Q34: N/A | R34: N/A | S34: N/A | T34: N/A | U34: N/A | V34: N/A | W34: N/A | X34: N/A | Y34: N/A | Z34: N/A | AA34: N/A | AB34: N/A | AC34: N/A | BB34: No | BC34: N/A | BD34: N/A | BE34: N/A | BF34: N/A | BG34: N/A | BH34: N/A | BI34: N/A | BJ34: N/A | BK34: N/A | BL34: N/A | BM34: N/A | BN34: N/A | BO34: N/A | BP34: N/A | BQ34: N/A | BR34: N/A | BS34: N/A | BT34: N/A | BU34: N/A | BV34: N/A | BW34: N/A | BX34: N/A | BY34: N/A | BZ34: N/A | CA34: N/A | CB34: N/A | CC34: N/A
A35: Water source on premises | B35: Yes | C35: 6.41983816 | D35: 19.05448733 | E35: 39.65049606 | F35: 42.30692226 | G35: 59.64526522 | H35: 24.42374193 | I35: 28.60265872 | J35: 36.49115016 | K35: 45.4881227 | L35: 74.6722832 | M35: 4.180139351 | N35: 9.384595686 | O35: 19.15336773 | P35: 37.41305299 | Q35: 65.56859185 | R35: 41.72630314 | S35: 32.0161764 | T35: 44.4114574 | U35: 73.22877143 | V35: 29.09558794 | W35: 12.49908902 | X35: 20.44535427 | Y35: 15.52175017 | Z35: 30.743613 | AA35: 37.85335609 | AB35: 24.71055838 | AC35: 65.18023242 | BA35: Water source on premises | BB35: Yes | BC35: N/A | BD35: N/A | BE35: N/A | BF35: N/A | BG35: N/A | BH35: N/A | BI35: N/A | BJ35: N/A | BK35: N/A | BL35: N/A | BM35: N/A | BN35: N/A | BO35: N/A | BP35: N/A | BQ35: N/A | BR35: N/A | BS35: N/A | BT35: N/A | BU35: N/A | BV35: N/A | BW35: N/A | BX35: N/A | BY35: N/A | BZ35: N/A | CA35: N/A | CB35: N/A | CC35: N/A
B36: No | C36: 93.58016184 | D36: 80.94551267 | E36: 60.34950394 | F36: 57.69307774 | G36: 40.35473478 | H36: 75.57625807 | I36: 71.39734128 | J36: 63.50884984 | K36: 54.5118773 | L36: 25.3277168 | M36: 95.81986065 | N36: 90.61540431 | O36: 80.84663227 | P36: 62.58694701 | Q36: 34.43140815 | R36: 58.27369686 | S36: 67.9838236 | T36: 55.5885426 | U36: 26.77122857 | V36: 70.90441206 | W36: 87.50091098 | X36: 79.55464573 | Y36: 84.47824983 | Z36: 69.256387 | AA36: 62.14664391 | AB36: 75.28944162 | AC36: 34.81976758 | BB36: No | BC36: N/A | BD36: N/A | BE36: N/A | BF36: N/A | BG36: N/A | BH36: N/A | BI36: N/A | BJ36: N/A | BK36: N/A | BL36: N/A | BM36: N/A | BN36: N/A | BO36: N/A | BP36: N/A | BQ36: N/A | BR36: N/A | BS36: N/A | BT36: N/A | BU36: N/A | BV36: N/A | BW36: N/A | BX36: N/A | BY36: N/A | BZ36: N/A | CA36: N/A | CB36: N/A | CC36: N/A
A37: Improved Water source on premises | B37: Yes | C37: 5.576303534 | D37: 17.75110383 | E37: 37.79919368 | F37: 41.76104655 | G37: 59.55580409 | H37: 22.9003097 | I37: 28.43681057 | J37: 36.28002379 | K37: 45.4881227 | L37: 74.6722832 | M37: 3.293486308 | N37: 8.615913716 | O37: 17.92019425 | P37: 35.32035749 | Q37: 63.90032476 | R37: 41.72630314 | S37: 31.04930316 | T37: 43.66661147 | U37: 73.0795758 | V37: 24.48990605 | W37: 10.74819292 | X37: 19.18149515 | Y37: 14.62637785 | Z37: 30.743613 | AA37: 37.52038373 | AB37: 24.71055838 | AC37: 65.18023242 | BA37: Improved water source on premises | BB37: Yes | BC37: N/A | BD37: N/A | BE37: N/A | BF37: N/A | BG37: N/A | BH37: N/A | BI37: N/A | BJ37: N/A | BK37: N/A | BL37: N/A | BM37: N/A | BN37: N/A | BO37: N/A | BP37: N/A | BQ37: N/A | BR37: N/A | BS37: N/A | BT37: N/A | BU37: N/A | BV37: N/A | BW37: N/A | BX37: N/A | BY37: N/A | BZ37: N/A | CA37: N/A | CB37: N/A | CC37: N/A
B38: No | C38: 94.42369647 | D38: 82.24889617 | E38: 62.20080632 | F38: 58.23895345 | G38: 40.44419591 | H38: 77.0996903 | I38: 71.56318943 | J38: 63.71997621 | K38: 54.5118773 | L38: 25.3277168 | M38: 96.70651369 | N38: 91.38408628 | O38: 82.07980575 | P38: 64.67964251 | Q38: 36.09967524 | R38: 58.27369686 | S38: 68.95069684 | T38: 56.33338853 | U38: 26.9204242 | V38: 75.51009395 | W38: 89.25180708 | X38: 80.81850485 | Y38: 85.37362215 | Z38: 69.256387 | AA38: 62.47961627 | AB38: 75.28944162 | AC38: 34.81976758 | BB38: No | BC38: N/A | BD38: N/A | BE38: N/A | BF38: N/A | BG38: N/A | BH38: N/A | BI38: N/A | BJ38: N/A | BK38: N/A | BL38: N/A | BM38: N/A | BN38: N/A | BO38: N/A | BP38: N/A | BQ38: N/A | BR38: N/A | BS38: N/A | BT38: N/A | BU38: N/A | BV38: N/A | BW38: N/A | BX38: N/A | BY38: N/A | BZ38: N/A | CA38: N/A | CB38: N/A | CC38: N/A
A39: Piped water on premises available when needed | B39: Yes | C39: N/A | D39: N/A | E39: N/A | F39: N/A | G39: N/A | H39: N/A | I39: N/A | J39: N/A | K39: N/A | L39: N/A | M39: N/A | N39: N/A | O39: N/A | P39: N/A | Q39: N/A | R39: N/A | S39: N/A | T39: N/A | U39: N/A | V39: N/A | W39: N/A | X39: N/A | Y39: N/A | Z39: N/A | AA39: N/A | AB39: N/A | AC39: N/A | BA39: Piped water on premises available when needed | BB39: Yes | BC39: N/A | BD39: N/A | BE39: N/A | BF39: N/A | BG39: N/A | BH39: N/A | BI39: N/A | BJ39: N/A | BK39: N/A | BL39: N/A | BM39: N/A | BN39: N/A | BO39: N/A | BP39: N/A | BQ39: N/A | BR39: N/A | BS39: N/A | BT39: N/A | BU39: N/A | BV39: N/A | BW39: N/A | BX39: N/A | BY39: N/A | BZ39: N/A | CA39: N/A | CB39: N/A | CC39: N/A
B40: No | C40: N/A | D40: N/A | E40: N/A | F40: N/A | G40: N/A | H40: N/A | I40: N/A | J40: N/A | K40: N/A | L40: N/A | M40: N/A | N40: N/A | O40: N/A | P40: N/A | Q40: N/A | R40: N/A | S40: N/A | T40: N/A | U40: N/A | V40: N/A | W40: N/A | X40: N/A | Y40: N/A | Z40: N/A | AA40: N/A | AB40: N/A | AC40: N/A | BB40: No | BC40: N/A | BD40: N/A | BE40: N/A | BF40: N/A | BG40: N/A | BH40: N/A | BI40: N/A | BJ40: N/A | BK40: N/A | BL40: N/A | BM40: N/A | BN40: N/A | BO40: N/A | BP40: N/A | BQ40: N/A | BR40: N/A | BS40: N/A | BT40: N/A | BU40: N/A | BV40: N/A | BW40: N/A | BX40: N/A | BY40: N/A | BZ40: N/A | CA40: N/A | CB40: N/A | CC40: N/A
A41: Water point at more than 30 minutes | B41: Yes | C41: 48.51645747 | D41: 39.12139173 | E41: 23.87704728 | F41: 14.39077971 | G41: 8.247178606 | H41: 25.44116569 | I41: 16.79678697 | J41: 13.25609672 | K41: 10.81092757 | L41: 5.690735708 | M41: 53.24448331 | N41: 42.58673475 | O41: 40.45128414 | P41: 29.06068423 | Q41: 14.527702 | R41: 34.8394233 | S41: 48.02973194 | T41: 27.8882135 | U41: 2.741209703 | V41: 37.90803955 | W41: 39.29322996 | X41: 30.42008094 | Y41: 32.15784904 | Z41: 12.30315513 | AA41: 26.08523701 | AB41: 67.13108145 | AC41: 8.801424147 | BA41: Water point at more than 30 minutes | BB41: Yes | BC41: N/A | BD41: N/A | BE41: N/A | BF41: N/A | BG41: N/A | BH41: N/A | BI41: N/A | BJ41: N/A | BK41: N/A | BL41: N/A | BM41: N/A | BN41: N/A | BO41: N/A | BP41: N/A | BQ41: N/A | BR41: N/A | BS41: N/A | BT41: N/A | BU41: N/A | BV41: N/A | BW41: N/A | BX41: N/A | BY41: N/A | BZ41: N/A | CA41: N/A | CB41: N/A | CC41: N/A
B42: No | C42: 51.48354253 | D42: 60.87860827 | E42: 76.12295272 | F42: 85.60922029 | G42: 91.75282139 | H42: 74.55883431 | I42: 83.20321303 | J42: 86.74390328 | K42: 89.18907243 | L42: 94.30926429 | M42: 46.75551669 | N42: 57.41326525 | O42: 59.54871586 | P42: 70.93931577 | Q42: 85.472298 | R42: 65.1605767 | S42: 51.97026806 | T42: 72.1117865 | U42: 97.2587903 | V42: 62.09196045 | W42: 60.70677004 | X42: 69.57991906 | Y42: 67.84215096 | Z42: 87.69684487 | AA42: 73.91476299 | AB42: 32.86891855 | AC42: 91.19857585 | BB42: No | BC42: N/A | BD42: N/A | BE42: N/A | BF42: N/A | BG42: N/A | BH42: N/A | BI42: N/A | BJ42: N/A | BK42: N/A | BL42: N/A | BM42: N/A | BN42: N/A | BO42: N/A | BP42: N/A | BQ42: N/A | BR42: N/A | BS42: N/A | BT42: N/A | BU42: N/A | BV42: N/A | BW42: N/A | BX42: N/A | BY42: N/A | BZ42: N/A | CA42: N/A | CB42: N/A | CC42: N/A
A43: Water source available when needed | B43: Yes | C43: N/A | D43: N/A | E43: N/A | F43: N/A | G43: N/A | H43: N/A | I43: N/A | J43: N/A | K43: N/A | L43: N/A | M43: N/A | N43: N/A | O43: N/A | P43: N/A | Q43: N/A | R43: N/A | S43: N/A | T43: N/A | U43: N/A | V43: N/A | W43: N/A | X43: N/A | Y43: N/A | Z43: N/A | AA43: N/A | AB43: N/A | AC43: N/A | BA43: Water source available when needed | BB43: Yes | BC43: N/A | BD43: N/A | BE43: N/A | BF43: N/A | BG43: N/A | BH43: N/A | BI43: N/A | BJ43: N/A | BK43: N/A | BL43: N/A | BM43: N/A | BN43: N/A | BO43: N/A | BP43: N/A | BQ43: N/A | BR43: N/A | BS43: N/A | BT43: N/A | BU43: N/A | BV43: N/A | BW43: N/A | BX43: N/A | BY43: N/A | BZ43: N/A | CA43: N/A | CB43: N/A | CC43: N/A
B44: No | C44: N/A | D44: N/A | E44: N/A | F44: N/A | G44: N/A | H44: N/A | I44: N/A | J44: N/A | K44: N/A | L44: N/A | M44: N/A | N44: N/A | O44: N/A | P44: N/A | Q44: N/A | R44: N/A | S44: N/A | T44: N/A | U44: N/A | V44: N/A | W44: N/A | X44: N/A | Y44: N/A | Z44: N/A | AA44: N/A | AB44: N/A | AC44: N/A | BB44: No | BC44: N/A | BD44: N/A | BE44: N/A | BF44: N/A | BG44: N/A | BH44: N/A | BI44: N/A | BJ44: N/A | BK44: N/A | BL44: N/A | BM44: N/A | BN44: N/A | BO44: N/A | BP44: N/A | BQ44: N/A | BR44: N/A | BS44: N/A | BT44: N/A | BU44: N/A | BV44: N/A | BW44: N/A | BX44: N/A | BY44: N/A | BZ44: N/A | CA44: N/A | CB44: N/A | CC44: N/A
A45: Improved water source available when needed | B45: Yes | C45: N/A | D45: N/A | E45: N/A | F45: N/A | G45: N/A | H45: N/A | I45: N/A | J45: N/A | K45: N/A | L45: N/A | M45: N/A | N45: N/A | O45: N/A | P45: N/A | Q45: N/A | R45: N/A | S45: N/A | T45: N/A | U45: N/A | V45: N/A | W45: N/A | X45: N/A | Y45: N/A | Z45: N/A | AA45: N/A | AB45: N/A | AC45: N/A | BA45: Improved water source available when needed | BB45: Yes | BC45: N/A | BD45: N/A | BE45: N/A | BF45: N/A | BG45: N/A | BH45: N/A | BI45: N/A | BJ45: N/A | BK45: N/A | BL45: N/A | BM45: N/A | BN45: N/A | BO45: N/A | BP45: N/A | BQ45: N/A | BR45: N/A | BS45: N/A | BT45: N/A | BU45: N/A | BV45: N/A | BW45: N/A | BX45: N/A | BY45: N/A | BZ45: N/A | CA45: N/A | CB45: N/A | CC45: N/A
